Workbook

Sheet menu
E1: 月末締切用 | K1: 0
C2: 仕入処理 メニュ－ | G2: 月の変更はPGの指示で変更する
G3: =O6&"月切" -> 2月切
G4: パスワード入力
G5: ●●●●●● | O5: 基準日付で使用
O6: 2 | P6: 2018
E11: =IF(Check!M27=1,Check!J27,IF(Check!M28=1,Check!J28,"")) -> 
E12: =IF(Check!N3+Check!N11+Check!N25>0,Check!J38,"") -> 
C13: 入力延長 | E13: =IF(Check!M31+Check!M32=2,Check!J37,IF(Check!M31=1,Check!J31,IF(Check!M32=1,Check!J32,IF(Check!E33+Check!E34>0,Check!G34,"")))) -> 本日入力にデータ残あり | I13: 5
E14: =IF(計算1!Y2+計算1!AN2=仕入日報!K40,"",IF(部品本日入力!M2>=0,"","仕入先コードに存在しない仕入先がある")) ->  | I14: 3
E15: =IF(計算1!O32="OK","","計算1にＥＲＲ 保存終了で消えます") -> 

Sheet Check
D1: 全体エラーチェック
I2: 部品 | J2: 仕入月データチェック表
B3: 仕入日報 | F3: 比較 | J3: 製番列 | K3: 金額列 | L3: コード列 | N3: =N4+N5 -> 0
C4: 部品 | D4: 縦合計 | E4: =仕入日報!O24 -> 17945 | I4: A=B=C | J4: =SUM(J6:J8) -> 0 | K4: =SUM(K6:K8) -> 0 | L4: =SUM(L6:L8) -> 0 | M4: =IF(AND(E24=E25,E24=E26),"OK","NO") -> OK | N4: =IF(AND(J4>K4,J4>L4),1,IF(AND(K4>J4,K4>L4),2,IF(AND(L4>J4,L4>K4),3,0))) -> 0 | O4: 大列
D5: 横合計 | E5: =仕入日報!K26 -> 17945 | F5: =IF(E4-E5=0,"OK","ERR") -> OK | I5: A<>B<>C | M5: =IF(AND(E24<>E25,E24<>E26,E25<>E26),"OK","NO") -> NO | N5: =IF(AND(J4<K4,J4<L4),1,IF(AND(K4<J4,K4<L4),2,IF(AND(L4<J4,L4<K4),3,0))) -> 0 | O5: 小列
C6: 経費 | D6: 縦合計 | E6: =仕入日報!K37 -> 6000 | I6: A=C | J6: =IF(M6="NO",E24-E26,"") ->  | L6: =IF(M6="NO",E26-E24,"") ->  | M6: =IF(E24=E26,"OK","NO") -> OK
C7: 総合計 | E7: =E5+E6 -> 23945 | I7: B=C | K7: =IF(M7="NO",E25-E26,"") ->  | L7: =IF(M7="NO",E26-E25,"") ->  | M7: =IF(E25=E26,"OK","NO") -> OK
D8: 仕入合計 | E8: =仕入日報!K40 -> 23945 | F8: =IF(E7-E8=0,"OK","ERR") -> OK | I8: A=B | J8: =IF(M8="NO",E24-E25,"") ->  | K8: =IF(M8="NO",E25-E24,"") ->  | M8: =IF(E24=E25,"OK","NO") -> OK
I10: 経費 | J10: 仕入月データチェック表
B11: 仕入月合計 | C11: 部品 | D11: 合計 | E11: =仕入月合計データ!M2 -> 14345 | J11: 科目列 | K11: 金額列 | L11: コード列 | N11: =N12+N13 -> 0
C12: 機種分類 | D12: 合計 | E12: =仕入月合計データ!Q2 -> 14345 | F12: =IF(E11-E12=0,"OK","ERR") -> OK | G12: =E11-E12 -> 0 | I12: A=B=C | J12: =SUM(J14:J16) -> 0 | K12: =SUM(K14:K16) -> 0 | L12: =SUM(L14:L16) -> 0 | M12: =IF(AND(E27=E28,E27=E29),"OK","NO") -> OK | N12: =IF(AND(J12>K12,J12>L12),1,IF(AND(K12>J12,K12>L12),2,IF(AND(L12>J12,L12>K12),3,0))) -> 0 | O12: 大列
I13: A<>B<>C | M13: =IF(AND(E27<>E28,E27<>E29,E28<>E29),"OK","NO") -> NO | N13: =IF(AND(J12<K12,J12<L12),1,IF(AND(K12<J12,K12<L12),2,IF(AND(L12<J12,L12<K12),3,0))) -> 0 | O13: 小列
C14: 経費 | D14: 合計 | E14: =経費月合計データ!J2 -> 6000 | I14: A=C | J14: =IF(M14="NO",E27-E29,"") ->  | L14: =IF(M14="NO",E29-E27,"") ->  | M14: =IF(E27=E29,"OK","NO") -> OK
C15: 機種分類 | D15: 合計 | E15: =経費月合計データ!O2 -> 6000 | F15: =IF(E14-E15=0,"OK","ERR") -> OK | I15: B=C | K15: =IF(M15="NO",E28-E29,"") ->  | L15: =IF(M15="NO",E29-E28,"") ->  | M15: =IF(E28=E29,"OK","NO") -> OK
I16: A=B | J16: =IF(M16="NO",E27-E28,"") ->  | K16: =IF(M16="NO",E28-E27,"") ->  | M16: =IF(E27=E28,"OK","NO") -> OK
B18: E転送データ保存と仕入月合計
C19: 部品 | D19: 合計 | E19: =[1]当月仕入!$M$2 -> 14345 | F19: =IF(E11-E19=0,"OK","ERR") -> OK | G19: =IF(F19="ERR","転送データが不良","") ->  | I19: 部品 | J19: 製番文字の入力間違い | N19: =IF(N20=1,"",IF(F12="ERR",1,0)) -> 0
C20: 経費 | D20: 合計 | E20: =[1]当月経費!$J$2 -> 6000 | F20: =IF(E14-E20=0,"OK","ERR") -> OK | G20: =IF(F20="ERR","転送データが不良","") ->  | J20: 経費を部品に入力した | N20: =IF(仕入月合計データ!S112>0,1,0) -> 0
J21: =IF(N5=1,"製番列のデータが少ない",IF(N5=2,"金額列のデータが少ない",IF(N5=3,"コード列のデータが少ない",""))) -> 
B23: 仕入月合計のデータ行数比較 | I23: 経費 | J23: 経費科目コードの間違い | N23: =IF(F15="ERR",1,0) -> 0
C24: 部品 A | D24: 製番行数 | E24: =仕入月合計データ!S105 -> 230 | J24: =IF(N13=1,"科目列のデータが少ない",IF(N13=2,"金額列のデータが少ない",IF(N13=3,"コード列のデータが少ない",""))) ->  | N24: =IF(J24="",0,1) -> 0
C25: B | D25: 金額行数 | E25: =仕入月合計データ!S106 -> 230 | F25: =IF(E25=E24,"OK","ERR") -> OK | N25: =N23+N24+N19+N20 -> 0
C26: C | D26: コード行数 | E26: =仕入月合計データ!S107 -> 230 | F26: =IF(E26=E25,"OK","ERR") -> OK
C27: 経費 A | D27: 科目行数 | E27: =経費月合計データ!O21 -> 8 | I27: F5 27 | J27: =IF(F5="OK","","仕入日報部品合計にERR") ->  | M27: =IF(J27="",0,1) -> 0
C28: B | D28: 金額行数 | E28: =経費月合計データ!O22 -> 8 | F28: =IF(E28=E27,"OK","ERR") -> OK | I28: F8 28 | J28: =IF(F8="OK","","仕入日報経費合計にERR") ->  | M28: 0
C29: C | D29: コード行数 | E29: =経費月合計データ!O20 -> 8 | F29: =IF(E29=E28,"OK","ERR") -> OK | I29: F12 29 | J29: =IF(F12="OK","","部品データの製番にERR") ->  | M29: 0
I30: F15 30 | J30: =IF(F15="OK","","経費データの科目にERR") ->  | M30: 0
I31: F19 31 | J31: =IF(F19="OK","","L転送保存部品データにERR") ->  | M31: 0
B32: 本日入力のデータ残の有無 | I32: F20 32 | J32: =IF(F20="OK","","L転送保存経費データにERR") ->  | M32: 0
C33: 部品 | D33: =IF(部品本日入力!M2>0,"あり","なし") -> あり | E33: =IF(部品本日入力!M2>0,1,0) -> 1 | I33: F25 33 | J33: =IF(F25="OK","","部品データの金額にERR") ->  | M33: 0
C34: 経費 | D34: =IF(経費本日入力!J2>0,"あり","なし") -> なし | E34: =IF(経費本日入力!J2>0,1,0) -> 0 | G34: 本日入力にデータ残あり | I34: F26 34 | J34: =IF(F26="OK","","部品データのコードにERR") ->  | M34: 0
I35: F28 35 | J35: =IF(F28="OK","","経費データの金額にERR") ->  | M35: 0
I36: F29 36 | J36: =IF(F29="OK","","経費データのコードにERR") ->  | M36: 0
B37: 伝票入力日付表示用 | D37: 日 | F37: 月 | G37: 月末日 | I37: 37 | J37: E転送データの部品と経費がERR
D38: =VALUE((TEXT(E38,"d"))) -> 1900-01-05 | E38: =TODAY()-26 -> 2021-06-05 | F38: =VALUE((TEXT(E38,"m"))) -> 6 | G38: =EOMONTH(G42,0) -> 2021-02-28 | I38: 38 | J38: 入力データに不良あり
E39: =[2]Sheet1!$A$2 -> 2021 | F39: 日付基準年
B40: 更新変数 | C40: 0 | E40: =[2]Sheet1!$B$2 -> 2 | F40: 日付基準月
B41: 来月変数 | C41: 0
B42: 表示日付 | C42: =E42 -> 2021-02-28 | E42: =IF(C41=1,E38,IF(C40=1,E38,G38)) -> 2021-02-28 | F42: 入力の日付表示 | G42: =E39&"/"&E40 -> 2021/2 | I42: 月末割り出し | K42: =EOMONTH(G42,0)
C43: 0 | F43: 月末を過ぎたら1 | G43: =IF(E38>G38,1,0) -> 1 | I43: 今日は月末の前か後か | K43: =IF(E38>G38,1,0) | M43: 前 | N43: 0
M44: 後 | N44: 1
B46: 終了変数 | C46: 0 | E46: 終了は 1 継続は 0

Sheet 加工仕入
H2: 当月分 加工品入力 | L2: =Check!E42 -> 2021-02-28
D3: 注文書No | H3: 仕 入 先 名 | K3: =IF(AND(I7>0,G7=""),"日付未入力",IF(D4="","",IF(W5>0,"納品書がダブリ",IF(U5<1,"注文書No 間違い","")))) -> 
H4: =IF(L7="F","社内加工",VLOOKUP(L7,仕入先登録!$B$3:$C$499,2)) -> 0 | I4: =L7 -> 0 | Q4: 注文DT用
Q5: =IF(R6=0,"D7:F7","D7:F"&R6+6) -> D7:F7 | R5: =IF(R6=0,"D7:G7","D7:G"&R6+6) -> D7:G7 | S5: =IF(R6=0,"H7:H7","H7:H"&R6+6) -> H7:H7 | T5: =IF(R6=0,"I7:L7","I7:L"&R6+6) -> I7:L7 | U5: 1 | V5: =D4 -> 0 | W5: =仕入入力済!G5 -> 1 | X5: 0
D6: 製番 | E6: 品番 | G6: 納入日 | H6: 品名 | I6: 数量 | J6: 単価 | K6: 金額 | L6: ｺｰﾄﾞNO | Q6: =IF(R6=0,"H7:H7","H7:H"&R6+6) -> H7:H7 | R6: =SUM(R7:R14) -> 0 | U6: =LEN(D7) | V6: =TRIM(D7) | W6: =LEN(V7) | X6: =U7-W7
K7: =IF(J7="","",I7*J7) ->  | Q7: =IF(R6=0,"I7:K7","I7:K"&R6+6) -> I7:K7 | R7: =IF(L7<1,0,1) -> 0 | U7: =LEN(D7) -> 0 | V7: =TRIM(D7) ->  | W7: =LEN(V7) -> 0 | X7: =U7-W7 -> 0
A8: =IF(D8="","",IF(D7="","ERR",IF(CODE(D7)=32,"ERR",""))) ->  | K8: =IF(J8="","",I8*J8) ->  | Q8: =IF(R6=0,"L7","L7:L"&R6+6) -> L7 | R8: =IF(L8<1,0,1) -> 0 | U8: 0 | W8: =LEN(V8) -> 0 | X8: =U8-W8 -> 0
R9: =IF(L9<1,0,1) -> 0 | U9: 0 | W9: 0 | X9: 0
R10: =IF(L10<1,0,1) -> 0 | U10: 0 | W10: 0 | X10: 0
R11: =IF(L11<1,0,1) -> 0 | U11: 0 | W11: 0 | X11: 0
R12: 0 | U12: 0 | W12: 0 | X12: 0
R13: 0 | U13: 0 | W13: 0 | X13: 0
R14: 0 | U14: 0 | W14: 0 | X14: 0
H15: 本日処理した一覧を見るか？ | J15: 合計 | K15: =SUM(K7:K14) -> 0
H16: =IF(K16>0,"登録未処理あり。","") -> 登録未処理あり。 | J16: 本日入力合計 | K16: =+部品本日入力!M2 -> 3600
V35: コードチェックの列を抜くために転記
T37: 製番 | U37: 品番１ | V37: 品番２ | W37: 月 | X37: 日 | Y37: 品名 | Z37: 数量 | AA37: 単価 | AB37: 金額 | AC37: ｺｰﾄﾞNO
T38: =+D7 -> 0 | U38: =+E7 -> 0 | V38: =+F7 -> 0 | W38: =+G7 -> 0 | X38: =+#REF! ->  | Y38: =+H7 -> 0 | Z38: =+I7 -> 0 | AA38: 0 | AC38: 0
T39: =+D8 -> 0 | U39: 0 | V39: =+F10 -> 0 | W39: =+G8 -> 0 | X39: =+#REF! ->  | Y39: =+H8 -> 0 | Z39: 0 | AA39: 0 | AC39: 0
T40: 0 | U40: 0 | V40: =+F9 -> 0 | W40: 0 | X40: =+#REF! ->  | Y40: 0 | Z40: 0 | AA40: 0 | AC40: 0
T41: 0 | U41: 0 | V41: =+#REF! ->  | W41: 0 | X41: =+#REF! ->  | Y41: 0 | Z41: 0 | AA41: 0 | AC41: =+L10 -> 0
T42: 0 | U42: 0 | V42: =+F11 -> 0 | W42: 0 | X42: =+#REF! ->  | Y42: 0 | Z42: 0 | AA42: 0 | AC42: =+L11 -> 0
T43: 0 | U43: 0 | V43: =+F12 -> 0 | W43: 0 | X43: =+#REF! ->  | Y43: 0 | Z43: 0 | AA43: 0 | AC43: 0
T44: 0 | U44: 0 | V44: =+F13 -> 0 | W44: 0 | X44: =+#REF! ->  | Y44: 0 | Z44: 0 | AA44: 0 | AC44: 0
T45: 0 | U45: 0 | V45: =+F14 -> 0 | W45: 0 | X45: =+#REF! ->  | Y45: 0 | Z45: 0 | AA45: 0 | AC45: 0

Sheet 購入仕入
G2: 当月分 購入品入力 | L2: =Check!E42 -> 2021-02-28
B3: 注文書No | G3: 仕 入 先 名 | K3: =IF(AND(I7>0,E7=""),"日付未入力",IF(B4="","",IF(X5>0,"納品書ダブリ",IF(V5<1,"注文書No 間違い","")))) -> 
G4: =VLOOKUP($L$7,仕入先登録!$B$3:$C$499,2) -> 0 | I4: =L7 -> 0 | S4: 注文DT用
S5: =IF(T6=0,"B7:D7","B7:D"&T6+6) -> B7:D7 | T5: =IF(T6=0,"B7:E7","B7:E"&T6+6) -> B7:E7 | U5: =IF(T6=0,"F7:L7","F7:L"&T6+6) -> F7:L7 | V5: 1 | W5: =B4 -> 0 | X5: =仕入入力済!H5 -> 0
B6: 製番 | C6: 品番 | E6: 納入日 | F6: 品名 | G6: 形状・寸法 | H6: メーカー | I6: 数量 | J6: 単価 | K6: 金額 | L6: ｺｰﾄﾞNO | S6: =IF(T6=0,"F7:H7","F7:H"&T6+6) -> F7:H7 | T6: =SUM(T7:T14) -> 0 | V6: =LEN(B7) | W6: =TRIM(B7) | X6: =LEN(W7) | Y6: =V7-X7
K7: =IF(J7="","",I7*J7) ->  | S7: =IF(T6=0,"I7:K7","I7:K"&T6+6) -> I7:K7 | T7: =IF(L7<1,0,1) -> 0 | V7: =LEN(B7) -> 0 | W7: =TRIM(B7) ->  | X7: =LEN(W7) -> 0 | Y7: =V7-X7 -> 0
A8: 2 | S8: =IF(T6=0,"L7","L7:L"&T6+6) -> L7 | T8: 0 | V8: =LEN(B8) -> 0 | W8: =TRIM(B8) ->  | X8: =LEN(W8) -> 0 | Y8: =V8-X8 -> 0
A9: =IF(D9="","",IF(D8="","ERR",IF(CODE(D8)=32,"ERR",""))) ->  | T9: 0 | V9: =LEN(#REF!) ->  | W9: =TRIM(#REF!) -> 
A10: =IF(#REF!="","",IF(D9="","ERR",IF(CODE(D9)=32,"ERR",""))) ->  | K10: =IF(J10="","",I10*J10) ->  | T10: 0 | V10: =LEN(B11) -> 0 | W10: =TRIM(B11) ->  | X10: 0 | Y10: 0
A11: =IF(D11="","",IF(#REF!="","ERR",IF(CODE(#REF!)=32,"ERR",""))) ->  | T11: 0 | V11: =LEN(B12) -> 0 | W11: =TRIM(B12) ->  | X11: =LEN(W11) -> 0 | Y11: 0
A12: =IF(D12="","",IF(D11="","ERR",IF(CODE(D11)=32,"ERR",""))) ->  | K12: =IF(J12="","",I12*J12) ->  | T12: 0 | V12: =LEN(B12) -> 0 | W12: =TRIM(B12) ->  | X12: 0 | Y12: 0
A13: =IF(D13="","",IF(D12="","ERR",IF(CODE(D12)=32,"ERR",""))) ->  | T13: 0 | V13: =LEN(B13) -> 0 | W13: =TRIM(B13) ->  | X13: 0 | Y13: 0
A14: =IF(D10="","",IF(D13="","ERR",IF(CODE(D13)=32,"ERR",""))) ->  | T14: 0 | V14: =LEN(B14) -> 0 | W14: =TRIM(B14) ->  | X14: 0 | Y14: 0
F15: 本日処理した一覧を見るか ？ | I15: 合計 | K15: =SUM(K7:K14) -> 0
G16: =IF(K16>0,"登録未処理あり。","") -> 登録未処理あり。 | I16: 本日入力合計 | K16: =+部品本日入力!M2 -> 3600
X35: コードチェックの列を抜くために転記
V37: 製番 | W37: 品番１ | X37: 品番２ | Y37: 月 | Z37: 日 | AA37: 品名 | AB37: 数量 | AC37: 単価 | AD37: 金額 | AE37: ｺｰﾄﾞNO
V38: =+D7 -> 0 | W38: 0 | X38: 0 | Y38: =+#REF! ->  | Z38: =+H7 -> 0 | AA38: =+#REF! ->  | AB38: =+I7 -> 0 | AC38: =+J7 -> 0 | AD38: =+K7 ->  | AE38: =+L7 -> 0
V39: 0 | W39: 0 | X39: 0 | Y39: =+G9 -> 0 | Z39: 0 | AA39: =+#REF! ->  | AB39: =+I8 -> 0 | AC39: 0 | AE39: =+L14 -> 0
V40: 0 | W40: 0 | X40: 0 | Y40: =+#REF! ->  | Z40: 0 | AA40: =+#REF! ->  | AB40: 0 | AC40: 0 | AE40: =+L9 -> 0
V41: =+#REF! ->  | W41: =+E10 -> 0 | X41: =+F14 -> 0 | Y41: =+G10 -> 0 | Z41: 0 | AA41: =+#REF! ->  | AB41: 0 | AC41: 0 | AE41: =+L10 -> 0
V42: =+D11 -> 0 | W42: =+E11 -> 0 | X42: =+F11 -> 0 | Y42: =+G11 -> 0 | Z42: 0 | AA42: =+#REF! ->  | AB42: 0 | AC42: 0 | AE42: =+L11 -> 0
V43: =+D12 -> 0 | W43: =+E12 -> 0 | X43: =+F12 -> 0 | Y43: =+G12 -> 0 | Z43: 0 | AA43: =+#REF! ->  | AB43: 0 | AC43: 0 | AE43: =+L12 -> 0
V44: =+D13 -> 0 | W44: =+E13 -> 0 | X44: =+F13 -> 0 | Y44: =+G13 -> 0 | Z44: 0 | AA44: =+#REF! ->  | AB44: 0 | AC44: 0 | AE44: =+L13 -> 0
V45: =+D10 -> 0 | W45: =+E14 -> 0 | X45: =+F7 -> 0 | Y45: =+G7 -> 0 | Z45: =+H7 -> 0 | AA45: =+#REF! ->  | AB45: 0 | AC45: 0 | AE45: =+#REF! -> 
B100: =VLOOKUP($L$7,仕入先登録!$B$3:$C$395,2) -> 0

Sheet 材料仕入
A1: 80
G2: 当月分 材料入力 | L2: =Check!E42 -> 2021-02-28
B3: 注文書No | G3: 仕 入 先 名 | K3: =IF(AND(I7>0,E7=""),"日付未入力",IF(B4="","",IF(X5>0,"納品書ダブリ",IF(V5<1,"注文書No 間違い","")))) -> 
G4: =VLOOKUP(L7,仕入先登録!B3:C395,2) -> 0 | I4: =L7 -> 0 | S4: 注文DT用
S5: =IF(T6=0,"B7:D7","B7:D"&T6+6) -> B7:D7 | T5: =IF(T6=0,"B7:H7","B7:H"&T6+6) -> B7:H7 | U5: =IF(T6=0,"I7:L7","I7:L"&T6+6) -> I7:L7 | V5: 1 | W5: =B4 -> 0 | X5: =仕入入力済!I5 -> 0
B6: 製番 | C6: 品番 | E6: 納入日 | F6: 細 品番 | G6: 材質 | H6: 材料取り | I6: 数量 | J6: 単価 | K6: 金額 | L6: ｺｰﾄﾞNO | S6: =IF(T6=0,"F7:H7","F7:H"&T6+6) -> F7:H7 | T6: =SUM(T7:T14) -> 0 | V6: =LEN(B7) | W6: =TRIM(B7) | X6: =LEN(W7) | Y6: =V7-X7
K7: =IF(J7="","",I7*J7) ->  | S7: =IF(T6=0,"I7:K7","I7:K"&T6+6) -> I7:K7 | T7: =IF(L7<1,0,1) -> 0 | V7: =LEN(B7) -> 0 | W7: =TRIM(B7) ->  | X7: =LEN(W7) -> 0 | Y7: =V7-X7 -> 0
A8: =IF(D8="","",IF(D7="","ERR",IF(CODE(D7)=32,"ERR",""))) ->  | K8: =IF(J8="","",I8*J8) ->  | S8: =IF(T6=0,"L7","L7:L"&T6+6) -> L7 | T8: 0 | V8: =LEN(B8) -> 0 | W8: =TRIM(B8) ->  | X8: =LEN(W8) -> 0 | Y8: =V8-X8 -> 0
A9: =IF(D9="","",IF(D8="","ERR",IF(CODE(D8)=32,"ERR",""))) ->  | T9: 0 | V9: 0 | X9: 0 | Y9: 0
T10: 0 | V10: 0 | X10: 0 | Y10: 0
T11: 0 | V11: 0 | X11: 0 | Y11: 0
T12: 0 | V12: 0 | X12: 0 | Y12: 0
T13: 0 | V13: 0 | X13: 0 | Y13: 0
T14: 0 | V14: 0 | X14: 0 | Y14: 0
E15: 本日処理した一覧を見るか ？ | I15: 合計 | K15: =SUM(K7:K14) -> 0 | P15: =IF(B15="ERR",1,"") -> 
E16: =IF(K16>0,"登録未処理あり。","") -> 登録未処理あり。 | I16: 本日入力合計 | K16: =+部品本日入力!M2 -> 3600
X35: コードチェックの列を抜くために転記
V37: 製番 | W37: 品番１ | X37: 品番２ | Y37: 月 | Z37: 日 | AA37: 品名 | AB37: 数量 | AC37: 単価 | AD37: 金額 | AE37: ｺｰﾄﾞNO
V38: =+D7 -> 0 | W38: =+#REF! ->  | X38: =+E7 -> 0 | Y38: 0 | Z38: 0 | AA38: =+#REF! ->  | AB38: =+I7 -> 0 | AC38: 0 | AE38: 0
V39: 0 | W39: =+#REF! ->  | X39: 0 | Y39: 0 | Z39: 0 | AA39: =+#REF! ->  | AB39: 0 | AC39: 0 | AE39: 0
V40: 0 | W40: =+#REF! ->  | X40: 0 | Y40: 0 | Z40: 0 | AA40: =+#REF! ->  | AB40: 0 | AC40: 0 | AE40: 0
V41: 0 | W41: =+#REF! ->  | X41: 0 | Y41: 0 | Z41: 0 | AA41: =+#REF! ->  | AB41: 0 | AC41: 0 | AE41: 0
V42: 0 | W42: =+#REF! ->  | X42: 0 | Y42: 0 | Z42: 0 | AA42: =+#REF! ->  | AB42: 0 | AC42: 0 | AE42: 0
V43: 0 | W43: =+#REF! ->  | X43: 0 | Y43: 0 | Z43: 0 | AA43: =+#REF! ->  | AB43: 0 | AC43: 0 | AE43: 0
V44: 0 | W44: =+#REF! ->  | X44: 0 | Y44: 0 | Z44: 0 | AA44: =+#REF! ->  | AB44: 0 | AC44: 0 | AE44: 0
V45: 0 | W45: =+#REF! ->  | X45: 0 | Y45: 0 | Z45: 0 | AA45: =+#REF! ->  | AB45: 0 | AC45: 0 | AE45: 0

Sheet 経費仕入
G2: 経費 入力画面 | L2: =Check!E42 -> 2021-02-28
C3: 注文書No | G3: 仕 入 先 名 | K3: =IF(AND(I7>0,E7=""),"日付未入力",IF(C4="","",IF(X5>0,"納品書ダブリ",IF(V5<1,"注文書No 間違い","")))) -> 
G4: =VLOOKUP(L7,仕入先登録!B3:C395,2) -> 0 | I4: =L7 -> 0
T5: =IF(T6=0,"C7:L7","C7:L"&T6+6) -> C7:L7 | U5: =IF(T6=0,"F7:L7","F7:L"&T6+6) -> F7:L7 | V5: 1 | W5: =C4 -> 0 | X5: =仕入入力済!J5 -> 0
C6: 科目 | D6: 科目No | E6: 納入日 | F6: 品名 | G6: 形状・寸法 | H6: メーカー | I6: 数量 | J6: 単価 | K6: 金額 | L6: ｺｰﾄﾞNO | T6: =SUM(T7:T14) -> 0
C7: =IF(D7="","",VLOOKUP(D7,$N$7:$O$11,2)) ->  | K7: =IF(J7="","",I7*J7) ->  | N7: P-1 | O7: 加工用刃具 | T7: =IF(L7<1,0,1) -> 0
A8: =IF(D8="","",IF(D7="","ERR",IF(CODE(D7)=32,"ERR",""))) ->  | K8: =IF(J8="","",I8*J8) ->  | N8: P-2 | O8: 加工用工具 | T8: =IF(L8<1,0,1) -> 0
A9: =IF(D9="","",IF(D8="","ERR",IF(CODE(D8)=32,"ERR",""))) ->  | N9: P-3 | O9: 消耗品 | T9: 0
N10: P-4 | O10: 改善５Ｓ用 | T10: 0
N11: P5 | O11: ERR | T11: 0
T12: 0
T13: 0
T14: 0
G15: 本日処理した一覧を見るか ？ | J15: 合計 | K15: =SUM(K7:K14) -> 0
G16: =IF(K16>0,"登録未処理あり。","") ->  | J16: 本日入力合計 | K16: =+経費本日入力!J2 -> 0
X35: コードチェックの列を抜くために転記
V37: 科目 | W37: 科目Ｎｏ | X37: 月 | Y37: 日 | Z37: 品名 | AA37: 数量 | AB37: 単価 | AC37: 金額 | AD37: ｺｰﾄﾞNO
V38: =+C7 ->  | W38: 0 | X38: 0 | Y38: 0 | Z38: 0 | AA38: =+I7 -> 0 | AB38: 0 | AD38: 0
W39: 0 | X39: 0 | Y39: 0 | Z39: 0 | AA39: 0 | AB39: 0 | AD39: 0
W40: 0 | X40: 0 | Y40: 0 | Z40: 0 | AA40: 0 | AB40: 0 | AD40: 0
W41: 0 | X41: 0 | Y41: 0 | Z41: 0 | AA41: 0 | AB41: 0 | AD41: 0
W42: 0 | X42: 0 | Y42: 0 | Z42: 0 | AA42: 0 | AB42: 0 | AD42: 0
W43: 0 | X43: 0 | Y43: 0 | Z43: 0 | AA43: 0 | AB43: 0 | AD43: 0
W44: 0 | X44: 0 | Y44: 0 | Z44: 0 | AA44: 0 | AB44: 0 | AD44: 0
W45: 0 | X45: 0 | Y45: 0 | Z45: 0 | AA45: 0 | AB45: 0 | AD45: 0

Sheet 加工DT抽出
B4: 注番 | K4: 月 | L4: 日 | P4: =SUM(P5:P12) -> 129231
B5: 製番 | C5: 品番1 | D5: 品番2 | E5: 品名 | F5: 形状 寸法 | G5: メーカ | H5: 備考 | I5: 数量 | J5: 単価 | K5: 金額 | L5: 仕入先名 | M5: 仕入先コード | N5: 納期 | P5: 納入印 | Q5: 注文書No | R5: DT行番号
B6: A-3544 | C6: A1 | D6: 09 | E6: ガイドフランジ | H6: A-900 | I6: 1 | J6: 1000 | K6: 1000 | L6: ㈱モリ | M6: 166 | N6: 11 | O6: 30 | P6: 2017-12-08 | Q6: OZ19570 | R6: 14
B7: A-3544 | C7: A1 | D7: 10 | E7: ガイドフランジ | H7: A-900 | I7: 1 | J7: 1000 | K7: 1000 | L7: ㈱モリ | M7: 166 | N7: 11 | O7: 30 | P7: 2017-12-08 | Q7: OZ19570 | R7: 15
B8: A-3544 | C8: A1 | D8: 11 | E8: ガイドフランジ | H8: A-900 | I8: 1 | J8: 1500 | K8: 1500 | L8: ㈱モリ | M8: 166 | N8: 11 | O8: 30 | P8: 2017-12-08 | Q8: OZ19570 | R8: 16
B15: 製番 | C15: 品番1 | D15: 品番2 | E15: 品名 | F15: 形状 寸法 | G15: メーカ | H15: 備考 | I15: 数量 | J15: 単価 | K15: 金額 | L15: 仕入先名 | M15: 仕入先コード | N15: 納期 | P15: 納入印 | Q15: 注文書No | R15: DT行番号
B16: =IF(B6="","",B6) -> A-3544
B17: =IF(B7="","",B7) -> A-3544
B18: A-3544 | G18: B16:B23はB6:B13の製番を取り出すための処理。
G19: 関数が入っている。

Sheet 購入DT抽出
B4: 注番 | M4: 月 | N4: 日 | R4: =SUM(R6:R13) -> 0
B5: 製番 | C5: 品番1 | D5: 品番2 | E5: 品名 | F5: 形状 寸法 | G5: メーカ | H5: 備考 | I5: 数量 | J5: 単価 | K5: 金額 | L5: 仕入先名 | M5: 仕入先コード | N5: 納期 | P5: 納入印 | Q5: 注文書No | R5: チェック値 | S5: DT行番号
R6: =IF(I6<1,0,1) -> 0
R7: 0
R8: 0
R9: 0
R10: 0
R11: 0
R12: 0
R13: 0
B15: 製番 | C15: 品番1 | D15: 品番2 | E15: 品名 | F15: 形状 寸法 | G15: メーカ | H15: 備考 | I15: 数量 | J15: 単価 | K15: 金額 | L15: 仕入先名 | M15: 仕入先コード | N15: 納期 | P15: 納入印 | Q15: 注文書No | R15: チェック値 | S15: DT行番号
B16: =IF(B6="","",B6) -> 
B17: =IF(B7="","",B7) -> 
F18: B16:B23はB6:B13の製番を取り出すための処理。
F19: 関数が入っている。

Sheet 材料DT抽出
B4: 注番 | M4: 月 | N4: 日 | Q4: =SUM(Q6:Q13) -> 0
B5: 製番 | C5: 品番1 | D5: 品番2 | E5: 細品番 | F5: 材質 | G5: 材料取り | H5: 数量 | I5: 単価 | J5: 金額 | K5: 仕入先名 | L5: 仕入先コード | M5: 納期 | O5: 納入印 | P5: 注文書No | Q5: チェック値 | R5: 行番号
Q6: =IF(H6<1,0,1) -> 0
Q7: =IF(H7<1,0,1) -> 0
Q8: 0
Q9: 0
Q10: 0
Q11: 0
Q12: 0
Q13: 0
B15: 製番 | C15: 品番1 | D15: 品番2 | E15: 細品番 | F15: 材質 | G15: 材料取り | H15: 数量 | I15: 単価 | J15: 金額 | K15: 仕入先名 | L15: 仕入先コード | M15: 納期 | O15: 納入印 | P15: 注文書No | Q15: チェック値
B16: =IF(B6="","",B6) -> 
B17: =IF(B7="","",B7) -> 
G18: B16:B23はB6:B13の製番を取り出すための処理。
G19: 関数が入っている。

Sheet 経費DT抽出
C4: 注番 | L4: 月 | M4: 日
B5: 製 番 | C5: 品番1 | D5: 品番2 | E5: 品名 | F5: 形状 寸法 | G5: メーカ | H5: 備考 | I5: 数量 | J5: 単価 | K5: 金額 | L5: 仕入先名 | M5: 仕入先コード | N5: 納 | O5: 期 | P5: 納入印 | Q5: 注文書No

Sheet 仕入入力済
B1: ="B"&COUNTA(B6:B3829)+6 -> B7 | C1: ="C"&COUNTA(B6:B3829)+6 -> C7 | D1: ="D"&COUNTA(D6:D7993)+6 -> D6 | E1: ="E"&COUNTA(E6:E7207)+6 -> E6 | L1: B6 | M1: C6 | N1: D6 | O1: E6
L2: =COUNTA(#REF!)+5 -> 6 | M2: =COUNTA(#REF!)+5 -> 6 | N2: =COUNTA(D6:D6786)+5 -> 5 | O2: =COUNTA(E6:E7207)+5 -> 5
B3: 納品書の重複入力チェック | G3: 加工チェック | H3: 購入チェック | I3: 材料チェック | J3: 経費チェック | L3: 値引きデータベースの注文書Ｎｏの行を削除するために
B4: 仕入入力済の注文書N0 | G4: =加工仕入!V5 -> 0 | H4: =購入仕入!W5 -> 0 | I4: =材料仕入!W5 -> 0 | J4: =経費仕入!W5 -> 0 | L4: 上記のセルの注文書Ｎｏを削除する。
B5: 加工品 | C5: 購入品 | D5: 材料 | E5: 経費 | G5: =COUNTIF(B6:B7294,G4) -> 1 | H5: =COUNTIF(C6:C5200,H4) -> 0 | I5: =COUNTIF(D6:D7993,I4) -> 0 | J5: =COUNTIF(E6:E7206,J4) -> 0
B6: 0

Sheet 仕入先登録
C1: 仕入先登録
B2: コードNO | C2: 仕入先名 | K2: 0 | M2: 2
B3: 0
B4: 1 | C4: AAAA | D4: コードNOの付けかた
B5: 2 | C5: BBBB | D5: 材料 | E5: 1から21
B6: 3 | C6: CCCC | D6: 外注加工 | E6: 101から200
B7: 4 | C7: DDDD | D7: 購入品 | E7: 201から300
B8: 5 | C8: EEEE | D8: 外注設計 | E8: 301から334
B9: 6 | C9: FFFF | D9: 外注電装 | E9: 401から426
B10: 7 | C10: GGGG | D10: 外注組立 | E10: 501から543
B11: 8 | C11: HHHH
B12: 9 | C12: JJJJ
B13: 10 | C13: KKKK
B14: 11 | C14: LLLL
B15: 12 | C15: MMMM
B16: 13 | C16: NNNN
B17: 14 | C17: PPPP
B18: 15 | C18: QQQQ
B19: 16 | C19: RRRR
B20: 17 | C20: SSSS
B21: 18 | C21: TTTT
B22: 19 | C22: UUUU
B23: 20 | C23: VVVV
B24: 21 | C24: WWWW
B25: 101 | C25: AAA
B26: 102 | C26: BBB
B27: 103 | C27: CCC
B28: 104 | C28: DDD
B29: 105 | C29: EEE
B30: 106 | C30: FFF
B31: 107 | C31: GGG
B32: 108 | C32: HHH
B33: 109 | C33: LLL
B34: 110 | C34: MMM
B35: 111 | C35: NNN
B36: 112 | C36: PPP
B37: 113 | C37: QQQ
B38: 114 | C38: RRR
B39: 115 | C39: SSS
B40: 116 | C40: TTT
B41: 117 | C41: UUU
B42: 118 | C42: VVV
B43: 119 | C43: WWW
B44: 120 | C44: XXX
B45: 121 | C45: YYY
B46: 122 | C46: ZZZ
B47: 123 | C47: AA1
B48: 124 | C48: BB1
B49: 125 | C49: CC1
B50: 126 | C50: DD1
B51: 127 | C51: EE1
B52: 128 | C52: FF1
B53: 129 | C53: GG1
B54: 130 | C54: HH1
B55: 131 | C55: LL1
B56: 132 | C56: MM1
B57: 133 | C57: NN1
B58: 134 | C58: PP1
B59: 135 | C59: QQ1
B60: 136 | C60: RR1
B61: 137 | C61: SS1
B62: 138 | C62: TT1
B63: 139 | C63: UU1
B64: 140 | C64: VV1
B65: 141 | C65: WW1
B66: 142 | C66: XX1
B67: 143 | C67: YY1
B68: 144 | C68: ZZ1
B69: 145 | C69: AA2
B70: 146 | C70: BB2
B71: 147 | C71: CC2
B72: 148 | C72: DD2
B73: 149 | C73: EE2
B74: 150 | C74: FF2
B75: 151 | C75: GG2
B76: 152 | C76: HH2
B77: 153 | C77: LL2
B78: 154 | C78: MM2
B79: 155 | C79: NN2
B80: 156 | C80: PP2
B81: 157 | C81: QQ2
B82: 158 | C82: RR2
B83: 159 | C83: SS2
B84: 160 | C84: TT2
B85: 161 | C85: UU2
B86: 162 | C86: VV2
B87: 163 | C87: WW2
B88: 164 | C88: XX2
B89: 165 | C89: YY2
B90: 166 | C90: ZZ2
B91: 167 | C91: AA3
B92: 168 | C92: BB3
B93: 169 | C93: CC3
B94: 170 | C94: DD3
B95: 171 | C95: EE3
B96: 172 | C96: FF3
B97: 173 | C97: GG3
B98: 174 | C98: HH3
B99: 175 | C99: LL3
B100: 176 | C100: MM3
B101: 177 | C101: NN3
B102: 178 | C102: PP3
B103: 179 | C103: QQ3
B104: 180 | C104: RR3
B105: 181 | C105: SS3
B106: 182 | C106: TT3
B107: 183 | C107: UU3
B108: 184 | C108: VV3
B109: 185 | C109: WW3
B110: 186 | C110: XX3
B111: 187 | C111: YY3
B112: 188 | C112: ZZ3
B113: 189 | C113: AA4
B114: 190 | C114: BB4
B115: 191 | C115: CC4
B116: 192 | C116: DD4
B117: 193 | C117: EE4
B118: 194 | C118: FF4
B119: 195 | C119: GG4
B120: 196 | C120: HH4
B121: 197 | C121: LL4
B122: 198 | C122: MM4
B123: 199 | C123: NN4
B124: 200 | C124: PP4
B125: 201 | C125: QQ4
B126: 202 | C126: RR4
B127: 203 | C127: SS4
B128: 204 | C128: TT4
B129: 205 | C129: UU4
B130: 206 | C130: VV4
B131: 207 | C131: WW4
B132: 208 | C132: XX4
B133: 209 | C133: YY4
B134: 210 | C134: ZZ4
B135: 211 | C135: AA5
B136: 212 | C136: BB5
B137: 213 | C137: CC5
B138: 214 | C138: DD5
B139: 215 | C139: EE5
B140: 216 | C140: FF5
B141: 217 | C141: GG5
B142: 218 | C142: HH5
B143: 219 | C143: LL5
B144: 220 | C144: MM5
B145: 221 | C145: NN5
B146: 222 | C146: PP5
B147: 223 | C147: QQ5
B148: 224 | C148: RR5
B149: 225 | C149: SS5
B150: 226 | C150: TT5
B151: 227 | C151: UU5
B152: 228 | C152: VV5
B153: 229 | C153: WW5
B154: 230 | C154: XX5
B155: 231 | C155: YY5
B156: 232 | C156: ZZ5
B157: 233 | C157: AA6
B158: 234 | C158: BB6
B159: 235 | C159: CC6
B160: 236 | C160: DD6
B161: 237 | C161: EE6
B162: 238 | C162: FF6
B163: 239 | C163: GG6
B164: 240 | C164: HH6
B165: 241 | C165: LL6
B166: 242 | C166: MM6
B167: 243 | C167: NN6
B168: 244 | C168: PP6
B169: 245 | C169: QQ6
B170: 246 | C170: RR6
B171: 247 | C171: SS6
B172: 248 | C172: TT6
B173: 249 | C173: UU6
B174: 250 | C174: VV6
B175: 251 | C175: WW6
B176: 252 | C176: XX6
B177: 253 | C177: YY6
B178: 254 | C178: ZZ6
B179: 255 | C179: AA7
B180: 256 | C180: BB7
B181: 257 | C181: CC7
B182: 258 | C182: DD7
B183: 259 | C183: EE7
B184: 260 | C184: FF7
B185: 261 | C185: GG7
B186: 262 | C186: HH7
B187: 263 | C187: LL7
B188: 264 | C188: MM7
B189: 265 | C189: NN7
B190: 266 | C190: PP7
B191: 267 | C191: QQ7
B192: 268 | C192: RR7
B193: 269 | C193: SS7
B194: 270 | C194: TT7
B195: 271 | C195: UU7
B196: 272 | C196: VV7
B197: 273 | C197: WW7
B198: 274 | C198: XX7
B199: 275 | C199: YY7
B200: 276 | C200: ZZ7
... 163 more rows

Sheet 仕入先別金額
D2: 仕入先別 仕入金額 | H2: =TODAY() -> 2021-07-01
B3: No | C3: 仕入先 | D3: 本日仕入額 | F3: 前日仕入額 | H3: 当月仕入額
D4: 部品仕入 | E4: 経費仕入 | F4: 部品仕入 | G4: 経費仕入 | H4: 累計額
B5: =+仕入先登録!B3 -> 0 | C5: =+仕入先登録!C3 -> 0 | D5: =+計算2!D5 -> 0 | E5: =+計算2!S5 -> 0 | F5: =+計算1!S5 -> 0 | G5: =+計算1!AH5 -> 0 | H5: =SUM(D5:G5) -> 0
B6: =+仕入先登録!B4 -> 1 | C6: =+仕入先登録!C4 -> AAAA | D6: =+計算2!D7 -> 0 | E6: =+計算2!S7 -> 0 | F6: =+計算1!S7 -> 0 | G6: =+計算1!AH7 -> 0 | H6: =SUM(D6:G6) -> 0
B7: =+仕入先登録!B5 -> 2 | C7: =+仕入先登録!C5 -> BBBB | D7: =+計算2!D9 -> 0 | E7: =+計算2!S9 -> 0 | F7: =+計算1!S9 -> 0 | G7: =+計算1!AH9 -> 0 | H7: =SUM(D7:G7) -> 0
B8: =+仕入先登録!B6 -> 3 | C8: =+仕入先登録!C6 -> CCCC | D8: =+計算2!D11 -> 0 | E8: =+計算2!S11 -> 0 | F8: =+計算1!S11 -> 0 | G8: =+計算1!AH11 -> 0 | H8: 0
B9: =+仕入先登録!B7 -> 4 | C9: =+仕入先登録!C7 -> DDDD | D9: =+計算2!D13 -> 0 | E9: =+計算2!S13 -> 0 | F9: =+計算1!S13 -> 0 | G9: =+計算1!AH13 -> 200 | H9: 200
B10: =+仕入先登録!B8 -> 5 | C10: =+仕入先登録!C8 -> EEEE | D10: =+計算2!D15 -> 100 | E10: =+計算2!S15 -> 0 | F10: =+計算1!S15 -> 0 | G10: =+計算1!AH15 -> 800 | H10: 900
B11: =+仕入先登録!B9 -> 6 | C11: =+仕入先登録!C9 -> FFFF | D11: =+計算2!D17 -> 0 | E11: =+計算2!S17 -> 0 | F11: =+計算1!S17 -> 0 | G11: =+計算1!AH17 -> 1800 | H11: 1800
B12: =+仕入先登録!B10 -> 7 | C12: =+仕入先登録!C10 -> GGGG | D12: =+計算2!D19 -> 0 | E12: =+計算2!S19 -> 0 | F12: =+計算1!S19 -> 0 | G12: =+計算1!AH19 -> 3200 | H12: =SUM(D12:G12) -> 3200
B13: =+仕入先登録!B11 -> 8 | C13: =+仕入先登録!C11 -> HHHH | D13: =+計算2!D21 -> 0 | E13: =+計算2!S21 -> 0 | F13: =+計算1!S21 -> 0 | G13: =+計算1!AH21 -> 0 | H13: 0
B14: =+仕入先登録!B12 -> 9 | C14: =+仕入先登録!C12 -> JJJJ | D14: =+計算2!D23 -> 0 | E14: =+計算2!S23 -> 0 | F14: =+計算1!S23 -> 0 | G14: =+計算1!AH23 -> 0 | H14: 0
B15: =+仕入先登録!B13 -> 10 | C15: =+仕入先登録!C13 -> KKKK | D15: =+計算2!D25 -> 0 | E15: =+計算2!S25 -> 0 | F15: =+計算1!S25 -> 0 | G15: =+計算1!AH25 -> 0 | H15: 0
B16: =+仕入先登録!B14 -> 11 | C16: =+仕入先登録!C14 -> LLLL | D16: =+計算2!D27 -> 0 | E16: =+計算2!S27 -> 0 | F16: =+計算1!S27 -> 0 | G16: =+計算1!AH27 -> 0 | H16: 0
B17: =+仕入先登録!B15 -> 12 | C17: =+仕入先登録!C15 -> MMMM | D17: =+計算2!D29 -> 0 | E17: =+計算2!S29 -> 0 | F17: =+計算1!S29 -> 0 | G17: =+計算1!AH29 -> 0 | H17: =SUM(D17:G17) -> 0
B18: =+仕入先登録!B16 -> 13 | C18: =+仕入先登録!C16 -> NNNN | D18: =+計算2!D31 -> 0 | E18: =+計算2!S31 -> 0 | F18: =+計算1!S31 -> 0 | G18: =+計算1!AH31 -> 0 | H18: =SUM(D18:F18) -> 0
B19: =+仕入先登録!B17 -> 14 | C19: =+仕入先登録!C17 -> PPPP | D19: =+計算2!D33 -> 0 | E19: =+計算2!S33 -> 0 | F19: =+計算1!S33 -> 0 | G19: =+計算1!AH31 -> 0 | H19: 0
B20: =+仕入先登録!B18 -> 15 | C20: =+仕入先登録!C18 -> QQQQ | D20: =+計算2!D35 -> 0 | E20: =+計算2!S35 -> 0 | F20: =+計算1!S35 -> 435 | G20: =+計算1!AH35 -> 0 | H20: 435
B21: =+仕入先登録!B19 -> 16 | C21: =+仕入先登録!C19 -> RRRR | D21: =+計算2!D37 -> 0 | E21: =+計算2!S37 -> 0 | F21: =+計算1!S37 -> 0 | G21: =+計算1!AH37 -> 0 | H21: =SUM(D21:F21) -> 0
B22: =+仕入先登録!B20 -> 17 | C22: =+仕入先登録!C20 -> SSSS | D22: =+計算2!D39 -> 0 | E22: =+計算2!S39 -> 0 | F22: =+計算1!S39 -> 0 | G22: =+計算1!AH39 -> 0 | H22: 0
B23: =+仕入先登録!B21 -> 18 | C23: =+仕入先登録!C21 -> TTTT | D23: =+計算2!D41 -> 0 | E23: =+計算2!S41 -> 0 | F23: =+計算1!S41 -> 0 | G23: =+計算1!AH41 -> 0 | H23: 0
B24: =+仕入先登録!B22 -> 19 | C24: =+仕入先登録!C22 -> UUUU | D24: =+計算2!D43 -> 0 | E24: =+計算2!S43 -> 0 | F24: =+計算1!S43 -> 2235 | G24: =+計算1!AH43 -> 0 | H24: 2235
B25: =+仕入先登録!B23 -> 20 | C25: =+仕入先登録!C23 -> VVVV | D25: =+計算2!D45 -> 0 | E25: =+計算2!S45 -> 0 | F25: =+計算1!S45 -> 0 | G25: =+計算1!AH45 -> 0 | H25: =SUM(D25:F25) -> 0
B26: =+仕入先登録!B24 -> 21 | C26: =+仕入先登録!C24 -> WWWW | D26: =+計算2!D47 -> 0 | E26: =+計算2!S47 -> 0 | F26: =+計算1!S47 -> 0 | G26: =+計算1!AH47 -> 0 | H26: 0
B27: =+仕入先登録!B25 -> 101 | C27: =+仕入先登録!C25 -> AAA | D27: =+計算2!D49 -> 0 | E27: =+計算2!S49 -> 0 | F27: =+計算1!S49 -> 0 | G27: =+計算1!AH49 -> 0 | H27: 0
B28: =+仕入先登録!B26 -> 102 | C28: =+仕入先登録!C26 -> BBB | D28: =+計算2!D51 -> 0 | E28: =+計算2!S51 -> 0 | F28: =+計算1!S51 -> 0 | G28: =+計算1!AH51 -> 0 | H28: 0
B29: =+仕入先登録!B27 -> 103 | C29: =+仕入先登録!C27 -> CCC | D29: =+計算2!D53 -> 0 | E29: =+計算2!S53 -> 0 | F29: =+計算1!S53 -> 0 | G29: =+計算1!AH53 -> 0 | H29: 0
B30: =+仕入先登録!B28 -> 104 | C30: =+仕入先登録!C28 -> DDD | D30: =+計算2!D55 -> 0 | E30: =+計算2!S55 -> 0 | F30: =+計算1!S55 -> 0 | G30: =+計算1!AH55 -> 0 | H30: 0
B31: =+仕入先登録!B29 -> 105 | C31: =+仕入先登録!C29 -> EEE | D31: =+計算2!D57 -> 0 | E31: =+計算2!S57 -> 0 | F31: =+計算1!S57 -> 0 | G31: =+計算1!AH57 -> 0 | H31: 0
B32: =+仕入先登録!B30 -> 106 | C32: =+仕入先登録!C30 -> FFF | D32: =+計算2!D59 -> 0 | E32: =+計算2!S59 -> 0 | F32: =+計算1!S59 -> 0 | G32: =+計算1!AH59 -> 0 | H32: 0
B33: =+仕入先登録!B31 -> 107 | C33: =+仕入先登録!C31 -> GGG | D33: =+計算2!D61 -> 0 | E33: =+計算2!S61 -> 0 | F33: =+計算1!S61 -> 0 | G33: =+計算1!AH61 -> 0 | H33: 0
B34: =+仕入先登録!B32 -> 108 | C34: =+仕入先登録!C32 -> HHH | D34: =+計算2!D63 -> 0 | E34: =+計算2!S63 -> 0 | F34: =+計算1!S63 -> 0 | G34: =+計算1!AH63 -> 0 | H34: 0
B35: =+仕入先登録!B33 -> 109 | C35: =+仕入先登録!C33 -> LLL | D35: =+計算2!D65 -> 0 | E35: =+計算2!S65 -> 0 | F35: =+計算1!S65 -> 735 | G35: =+計算1!AH65 -> 0 | H35: 735
B36: =+仕入先登録!B34 -> 110 | C36: =+仕入先登録!C34 -> MMM | D36: =+計算2!D67 -> 0 | E36: =+計算2!S67 -> 0 | F36: =+計算1!S67 -> 0 | G36: =+計算1!AH67 -> 0 | H36: 0
B37: =+仕入先登録!B35 -> 111 | C37: =+仕入先登録!C35 -> NNN | D37: =+計算2!D69 -> 0 | E37: =+計算2!S69 -> 0 | F37: =+計算1!S69 -> 0 | G37: =+計算1!AH69 -> 0 | H37: 0
B38: =+仕入先登録!B36 -> 112 | C38: =+仕入先登録!C36 -> PPP | D38: =+計算2!D71 -> 0 | E38: =+計算2!S71 -> 0 | F38: =+計算1!S71 -> 0 | G38: =+計算1!AH71 -> 0 | H38: 0
B39: =+仕入先登録!B37 -> 113 | C39: =+仕入先登録!C37 -> QQQ | D39: =+計算2!D73 -> 0 | E39: =+計算2!S73 -> 0 | F39: =+計算1!S73 -> 0 | G39: =+計算1!AH73 -> 0 | H39: 0
B40: =+仕入先登録!B38 -> 114 | C40: =+仕入先登録!C38 -> RRR | D40: =+計算2!D75 -> 0 | E40: =+計算2!S75 -> 0 | F40: =+計算1!S75 -> 0 | G40: =+計算1!AH75 -> 0 | H40: 0
B41: =+仕入先登録!B39 -> 115 | C41: =+仕入先登録!C39 -> SSS | D41: =+計算2!D77 -> 0 | E41: =+計算2!S77 -> 0 | F41: =+計算1!S77 -> 0 | G41: =+計算1!AH77 -> 0 | H41: 0
B42: =+仕入先登録!B40 -> 116 | C42: =+仕入先登録!C40 -> TTT | D42: =+計算2!D79 -> 0 | E42: =+計算2!S79 -> 0 | F42: =+計算1!S79 -> 0 | G42: =+計算1!AH79 -> 0 | H42: 0
B43: =+仕入先登録!B41 -> 117 | C43: =+仕入先登録!C41 -> UUU | D43: =+計算2!D81 -> 0 | E43: =+計算2!S81 -> 0 | F43: =+計算1!S81 -> 0 | G43: =+計算1!AH81 -> 0 | H43: 0
B44: =+仕入先登録!B42 -> 118 | C44: =+仕入先登録!C42 -> VVV | D44: =+計算2!D83 -> 0 | E44: =+計算2!S83 -> 0 | F44: =+計算1!S83 -> 0 | G44: =+計算1!AH83 -> 0 | H44: 0
B45: =+仕入先登録!B43 -> 119 | C45: =+仕入先登録!C43 -> WWW | D45: =+計算2!D85 -> 0 | E45: =+計算2!S85 -> 0 | F45: =+計算1!S85 -> 735 | G45: =+計算1!AH85 -> 0 | H45: 735
B46: =+仕入先登録!B44 -> 120 | C46: =+仕入先登録!C44 -> XXX | D46: =+計算2!D87 -> 0 | E46: =+計算2!S87 -> 0 | F46: =+計算1!S87 -> 0 | G46: =+計算1!AH87 -> 0 | H46: 0
B47: =+仕入先登録!B45 -> 121 | C47: =+仕入先登録!C45 -> YYY | D47: =+計算2!D89 -> 0 | E47: =+計算2!S89 -> 0 | F47: =+計算1!S89 -> 0 | G47: =+計算1!AH89 -> 0 | H47: =SUM(D47:G47) -> 0
B48: =+仕入先登録!B46 -> 122 | C48: =+仕入先登録!C46 -> ZZZ | D48: =+計算2!D91 -> 0 | E48: =+計算2!S91 -> 0 | F48: =+計算1!S91 -> 0 | G48: =+計算1!AH91 -> 0 | H48: 0
B49: =+仕入先登録!B47 -> 123 | C49: =+仕入先登録!C47 -> AA1 | D49: =+計算2!D93 -> 0 | E49: =+計算2!S93 -> 0 | F49: =+計算1!S93 -> 0 | G49: =+計算1!AH93 -> 0 | H49: 0
B50: =+仕入先登録!B48 -> 124 | C50: =+仕入先登録!C48 -> BB1 | D50: =+計算2!D95 -> 0 | E50: =+計算2!S95 -> 0 | F50: =+計算1!S95 -> 0 | G50: =+計算1!AH95 -> 0 | H50: 0
B51: =+仕入先登録!B49 -> 125 | C51: =+仕入先登録!C49 -> CC1 | D51: =+計算2!D97 -> 0 | E51: =+計算2!S97 -> 0 | F51: =+計算1!S97 -> 0 | G51: =+計算1!AH97 -> 0 | H51: 0
B52: =+仕入先登録!B50 -> 126 | C52: =+仕入先登録!C50 -> DD1 | D52: =+計算2!D99 -> 0 | E52: =+計算2!S99 -> 0 | F52: =+計算1!S99 -> 0 | G52: =+計算1!AH99 -> 0 | H52: 0
B53: =+仕入先登録!B51 -> 127 | C53: =+仕入先登録!C51 -> EE1 | D53: =+計算2!D101 -> 0 | E53: =+計算2!S101 -> 0 | F53: =+計算1!S101 -> 0 | G53: =+計算1!AH101 -> 0 | H53: 0
B54: =+仕入先登録!B52 -> 128 | C54: =+仕入先登録!C52 -> FF1 | D54: =+計算2!D103 -> 0 | E54: =+計算2!S103 -> 0 | F54: =+計算1!S103 -> 0 | G54: =+計算1!AH103 -> 0 | H54: 0
B55: =+仕入先登録!B53 -> 129 | C55: =+仕入先登録!C53 -> GG1 | D55: =+計算2!D105 -> 0 | E55: =+計算2!S105 -> 0 | F55: =+計算1!S105 -> 0 | G55: =+計算1!AH105 -> 0 | H55: 0
B56: =+仕入先登録!B54 -> 130 | C56: =+仕入先登録!C54 -> HH1 | D56: =+計算2!D107 -> 0 | E56: =+計算2!S107 -> 0 | F56: =+計算1!S107 -> 0 | G56: =+計算1!AH107 -> 0 | H56: 0
B57: =+仕入先登録!B55 -> 131 | C57: =+仕入先登録!C55 -> LL1 | D57: =+計算2!D109 -> 0 | E57: =+計算2!S109 -> 0 | F57: =+計算1!S109 -> 0 | G57: =+計算1!AH109 -> 0 | H57: 0
B58: =+仕入先登録!B56 -> 132 | C58: =+仕入先登録!C56 -> MM1 | D58: =+計算2!D111 -> 0 | E58: =+計算2!S111 -> 0 | F58: =+計算1!S111 -> 0 | G58: =+計算1!AH111 -> 0 | H58: 0
B59: =+仕入先登録!B57 -> 133 | C59: =+仕入先登録!C57 -> NN1 | D59: =+計算2!D113 -> 0 | E59: =+計算2!S113 -> 0 | F59: =+計算1!S113 -> 0 | G59: =+計算1!AH113 -> 0 | H59: 0
B60: =+仕入先登録!B58 -> 134 | C60: =+仕入先登録!C58 -> PP1 | D60: =+計算2!D115 -> 0 | E60: =+計算2!S115 -> 0 | F60: =+計算1!S115 -> 0 | G60: =+計算1!AH115 -> 0 | H60: 0
B61: =+仕入先登録!B59 -> 135 | C61: =+仕入先登録!C59 -> QQ1 | D61: =+計算2!D117 -> 0 | E61: =+計算2!S117 -> 0 | F61: =+計算1!S117 -> 0 | G61: =+計算1!AH117 -> 0 | H61: 0
B62: =+仕入先登録!B60 -> 136 | C62: =+仕入先登録!C60 -> RR1 | D62: =+計算2!D119 -> 0 | E62: =+計算2!S119 -> 0 | F62: =+計算1!S119 -> 0 | G62: =+計算1!AH119 -> 0 | H62: 0
B63: =+仕入先登録!B61 -> 137 | C63: =+仕入先登録!C61 -> SS1 | D63: =+計算2!D121 -> 0 | E63: =+計算2!S121 -> 0 | F63: =+計算1!S121 -> 0 | G63: =+計算1!AH121 -> 0 | H63: 0
B64: =+仕入先登録!B62 -> 138 | C64: =+仕入先登録!C62 -> TT1 | D64: =+計算2!D123 -> 0 | E64: =+計算2!S123 -> 0 | F64: =+計算1!S123 -> 0 | G64: =+計算1!AH123 -> 0 | H64: 0
B65: =+仕入先登録!B63 -> 139 | C65: =+仕入先登録!C63 -> UU1 | D65: =+計算2!D125 -> 0 | E65: =+計算2!S125 -> 0 | F65: =+計算1!S125 -> 0 | G65: =+計算1!AH125 -> 0 | H65: 0
B66: =+仕入先登録!B64 -> 140 | C66: =+仕入先登録!C64 -> VV1 | D66: =+計算2!D127 -> 0 | E66: =+計算2!S127 -> 0 | F66: =+計算1!S127 -> 0 | G66: =+計算1!AH127 -> 0 | H66: 0
B67: =+仕入先登録!B65 -> 141 | C67: =+仕入先登録!C65 -> WW1 | D67: =+計算2!D129 -> 0 | E67: =+計算2!S129 -> 0 | F67: =+計算1!S129 -> 0 | G67: =+計算1!AH129 -> 0 | H67: 0
B68: =+仕入先登録!B66 -> 142 | C68: =+仕入先登録!C66 -> XX1 | D68: =+計算2!D131 -> 0 | E68: =+計算2!S131 -> 0 | F68: =+計算1!S131 -> 0 | G68: =+計算1!AH131 -> 0 | H68: =SUM(D68:G68) -> 0
B69: =+仕入先登録!B67 -> 143 | C69: =+仕入先登録!C67 -> YY1 | D69: =+計算2!D133 -> 0 | E69: =+計算2!S133 -> 0 | F69: =+計算1!S133 -> 0 | G69: =+計算1!AH133 -> 0 | H69: =SUM(D69:G69) -> 0
B70: =+仕入先登録!B68 -> 144 | C70: =+仕入先登録!C68 -> ZZ1 | D70: =+計算2!D135 -> 0 | E70: =+計算2!S135 -> 0 | F70: =+計算1!S135 -> 0 | G70: =+計算1!AH135 -> 0 | H70: 0
B71: =+仕入先登録!B69 -> 145 | C71: =+仕入先登録!C69 -> AA2 | D71: =+計算2!D137 -> 0 | E71: =+計算2!S137 -> 0 | F71: =+計算1!S137 -> 0 | G71: =+計算1!AH137 -> 0 | H71: 0
B72: =+仕入先登録!B70 -> 146 | C72: =+仕入先登録!C70 -> BB2 | D72: =+計算2!D139 -> 0 | E72: =+計算2!S139 -> 0 | F72: =+計算1!S139 -> 0 | G72: =+計算1!AH139 -> 0 | H72: 0
B73: =+仕入先登録!B71 -> 147 | C73: =+仕入先登録!C71 -> CC2 | D73: =+計算2!D141 -> 0 | E73: =+計算2!S141 -> 0 | F73: =+計算1!S141 -> 0 | G73: =+計算1!AH141 -> 0 | H73: 0
B74: =+仕入先登録!B72 -> 148 | C74: =+仕入先登録!C72 -> DD2 | D74: =+計算2!D143 -> 0 | E74: =+計算2!S143 -> 0 | F74: =+計算1!S143 -> 0 | G74: =+計算1!AH143 -> 0 | H74: 0
B75: =+仕入先登録!B73 -> 149 | C75: =+仕入先登録!C73 -> EE2 | D75: =+計算2!D145 -> 0 | E75: =+計算2!S145 -> 0 | F75: =+計算1!S145 -> 0 | G75: =+計算1!AH145 -> 0 | H75: 0
B76: =+仕入先登録!B74 -> 150 | C76: =+仕入先登録!C74 -> FF2 | D76: =+計算2!G5 -> 0 | E76: =+計算2!V5 -> 0 | F76: =+計算1!V5 -> 0 | G76: =+計算1!AK5 -> 0 | H76: 0
B77: =+仕入先登録!B75 -> 151 | C77: =+仕入先登録!C75 -> GG2 | D77: =+計算2!G7 -> 0 | E77: =+計算2!V7 -> 0 | F77: =+計算1!V7 -> 0 | G77: =+計算1!AK7 -> 0 | H77: 0
B78: =+仕入先登録!B76 -> 152 | C78: =+仕入先登録!C76 -> HH2 | D78: =+計算2!G9 -> 0 | E78: =+計算2!V9 -> 0 | F78: =+計算1!V9 -> 0 | G78: =+計算1!AK9 -> 0 | H78: =SUM(D78:G78) -> 0
B79: =+仕入先登録!B77 -> 153 | C79: =+仕入先登録!C77 -> LL2 | D79: =+計算2!G11 -> 0 | E79: =+計算2!V11 -> 0 | F79: =+計算1!V11 -> 0 | G79: =+計算1!AK11 -> 0 | H79: 0
B80: =+仕入先登録!B78 -> 154 | C80: =+仕入先登録!C78 -> MM2 | D80: =+計算2!G13 -> 0 | E80: =+計算2!V13 -> 0 | F80: =+計算1!V13 -> 0 | G80: =+計算1!AK13 -> 0 | H80: 0
B81: =+仕入先登録!B79 -> 155 | C81: =+仕入先登録!C79 -> NN2 | D81: =+計算2!G15 -> 0 | E81: =+計算2!V15 -> 0 | F81: =+計算1!V15 -> 0 | G81: =+計算1!AK15 -> 0 | H81: 0
B82: =+仕入先登録!B80 -> 156 | C82: =+仕入先登録!C80 -> PP2 | D82: =+計算2!G17 -> 0 | E82: =+計算2!V17 -> 0 | F82: =+計算1!V17 -> 0 | G82: =+計算1!AK17 -> 0 | H82: 0
B83: =+仕入先登録!B81 -> 157 | C83: =+仕入先登録!C81 -> QQ2 | D83: =+計算2!G19 -> 0 | E83: =+計算2!V19 -> 0 | F83: =+計算1!V19 -> 0 | G83: =+計算1!AK19 -> 0 | H83: 0
B84: =+仕入先登録!B82 -> 158 | C84: =+仕入先登録!C82 -> RR2 | D84: =+計算2!G21 -> 0 | E84: =+計算2!V21 -> 0 | F84: =+計算1!V21 -> 0 | G84: =+計算1!AK21 -> 0 | H84: 0
B85: =+仕入先登録!B83 -> 159 | C85: =+仕入先登録!C83 -> SS2 | D85: =+計算2!G23 -> 0 | E85: =+計算2!V23 -> 0 | F85: =+計算1!V23 -> 0 | G85: =+計算1!AK23 -> 0 | H85: 0
B86: =+仕入先登録!B84 -> 160 | C86: =+仕入先登録!C84 -> TT2 | D86: =+計算2!G25 -> 0 | E86: =+計算2!V25 -> 0 | F86: =+計算1!V25 -> 0 | G86: =+計算1!AK25 -> 0 | H86: 0
B87: =+仕入先登録!B85 -> 161 | C87: =+仕入先登録!C85 -> UU2 | D87: =+計算2!G27 -> 0 | E87: =+計算2!V27 -> 0 | F87: =+計算1!V27 -> 0 | G87: =+計算1!AK27 -> 0 | H87: 0
B88: =+仕入先登録!B86 -> 162 | C88: =+仕入先登録!C86 -> VV2 | D88: =+計算2!G29 -> 0 | E88: =+計算2!V29 -> 0 | F88: =+計算1!V29 -> 0 | G88: =+計算1!AK29 -> 0 | H88: 0
B89: =+仕入先登録!B87 -> 163 | C89: =+仕入先登録!C87 -> WW2 | D89: =+計算2!G31 -> 0 | E89: =+計算2!V31 -> 0 | F89: =+計算1!V31 -> 0 | G89: =+計算1!AK31 -> 0 | H89: 0
B90: =+仕入先登録!B88 -> 164 | C90: =+仕入先登録!C88 -> XX2 | D90: =+計算2!G33 -> 0 | E90: =+計算2!V33 -> 0 | F90: =+計算1!V33 -> 0 | G90: =+計算1!AK33 -> 0 | H90: 0
B91: =+仕入先登録!B89 -> 165 | C91: =+仕入先登録!C89 -> YY2 | D91: =+計算2!G35 -> 3500 | E91: =+計算2!V35 -> 0 | F91: =+計算1!V35 -> 3500 | G91: =+計算1!AK35 -> 0 | H91: 7000
B92: =+仕入先登録!B90 -> 166 | C92: =+仕入先登録!C90 -> ZZ2 | D92: =+計算2!G37 -> 0 | E92: =+計算2!V37 -> 0 | F92: =+計算1!V37 -> 0 | G92: =+計算1!AK37 -> 0 | H92: 0
B93: =+仕入先登録!B91 -> 167 | C93: =+仕入先登録!C91 -> AA3 | D93: =+計算2!G39 -> 0 | E93: =+計算2!V39 -> 0 | F93: =+計算1!V39 -> 0 | G93: =+計算1!AK39 -> 0 | H93: 0
B94: =+仕入先登録!B92 -> 168 | C94: =+仕入先登録!C92 -> BB3 | D94: =+計算2!G41 -> 0 | E94: =+計算2!V41 -> 0 | F94: =+計算1!V41 -> 0 | G94: =+計算1!AK41 -> 0 | H94: 0
B95: =+仕入先登録!B93 -> 169 | C95: =+仕入先登録!C93 -> CC3 | D95: =+計算2!G43 -> 0 | E95: =+計算2!V43 -> 0 | F95: =+計算1!V43 -> 0 | G95: =+計算1!AK43 -> 0 | H95: 0
B96: =+仕入先登録!B94 -> 170 | C96: =+仕入先登録!C94 -> DD3 | D96: =+計算2!G45 -> 0 | E96: =+計算2!V45 -> 0 | F96: =+計算1!V45 -> 0 | G96: =+計算1!AK45 -> 0 | H96: 0
B97: =+仕入先登録!B95 -> 171 | C97: =+仕入先登録!C95 -> EE3 | D97: =+計算2!G47 -> 0 | E97: =+計算2!V47 -> 0 | F97: =+計算1!V47 -> 0 | G97: =+計算1!AK47 -> 0 | H97: 0
B98: =+仕入先登録!B96 -> 172 | C98: =+仕入先登録!C96 -> FF3 | D98: =+計算2!G49 -> 0 | E98: =+計算2!V49 -> 0 | F98: =+計算1!V49 -> 0 | G98: =+計算1!AK49 -> 0 | H98: 0
B99: =+仕入先登録!B97 -> 173 | C99: =+仕入先登録!C97 -> GG3 | D99: =+計算2!G51 -> 0 | E99: =+計算2!V51 -> 0 | F99: =+計算1!V51 -> 0 | G99: =+計算1!AK51 -> 0 | H99: 0
B100: =+仕入先登録!B98 -> 174 | C100: =+仕入先登録!C98 -> HH3 | D100: =+計算2!G53 -> 0 | E100: =+計算2!V53 -> 0 | F100: =+計算1!V53 -> 0 | G100: =+計算1!AK53 -> 0 | H100: 0
B101: =+仕入先登録!B99 -> 175 | C101: =+仕入先登録!C99 -> LL3 | D101: =+計算2!G55 -> 0 | E101: =+計算2!V55 -> 0 | F101: =+計算1!V55 -> 0 | G101: =+計算1!AK55 -> 0 | H101: 0
B102: =+仕入先登録!B100 -> 176 | C102: =+仕入先登録!C100 -> MM3 | D102: =+計算2!G57 -> 0 | E102: =+計算2!V57 -> 0 | F102: =+計算1!V57 -> 0 | G102: =+計算1!AK57 -> 0 | H102: 0
B103: =+仕入先登録!B101 -> 177 | C103: =+仕入先登録!C101 -> NN3 | D103: =+計算2!G59 -> 0 | E103: =+計算2!V59 -> 0 | F103: =+計算1!V59 -> 0 | G103: =+計算1!AK59 -> 0 | H103: 0
B104: =+仕入先登録!B102 -> 178 | C104: =+仕入先登録!C102 -> PP3 | D104: =+計算2!G61 -> 0 | E104: =+計算2!V61 -> 0 | F104: =+計算1!V61 -> 0 | G104: =+計算1!AK61 -> 0 | H104: 0
B105: =+仕入先登録!B103 -> 179 | C105: =+仕入先登録!C103 -> QQ3 | D105: =+計算2!G63 -> 0 | E105: =+計算2!V63 -> 0 | F105: =+計算1!V63 -> 0 | G105: =+計算1!AK63 -> 0 | H105: 0
B106: =+仕入先登録!B104 -> 180 | C106: =+仕入先登録!C104 -> RR3 | D106: =+計算2!G65 -> 0 | E106: =+計算2!V65 -> 0 | F106: =+計算1!V65 -> 0 | G106: =+計算1!AK65 -> 0 | H106: 0
B107: =+仕入先登録!B105 -> 181 | C107: =+仕入先登録!C105 -> SS3 | D107: =+計算2!G67 -> 0 | E107: =+計算2!V67 -> 0 | F107: =+計算1!V67 -> 0 | G107: =+計算1!AK67 -> 0 | H107: 0
B108: =+仕入先登録!B106 -> 182 | C108: =+仕入先登録!C106 -> TT3 | D108: =+計算2!G69 -> 0 | E108: =+計算2!V69 -> 0 | F108: =+計算1!V69 -> 0 | G108: =+計算1!AK69 -> 0 | H108: 0
B109: =+仕入先登録!B107 -> 183 | C109: =+仕入先登録!C107 -> UU3 | D109: =+計算2!G71 -> 0 | E109: =+計算2!V71 -> 0 | F109: =+計算1!V71 -> 0 | G109: =+計算1!AK71 -> 0 | H109: 0
B110: =+仕入先登録!B108 -> 184 | C110: =+仕入先登録!C108 -> VV3 | D110: =+計算2!G73 -> 0 | E110: =+計算2!V73 -> 0 | F110: =+計算1!V73 -> 0 | G110: =+計算1!AK73 -> 0 | H110: 0
B111: =+仕入先登録!B109 -> 185 | C111: =+仕入先登録!C109 -> WW3 | D111: =+計算2!G75 -> 0 | E111: =+計算2!V75 -> 0 | F111: =+計算1!V75 -> 0 | G111: =+計算1!AK75 -> 0 | H111: 0
B112: =+仕入先登録!B110 -> 186 | C112: =+仕入先登録!C110 -> XX3 | D112: =+計算2!G77 -> 0 | E112: =+計算2!V77 -> 0 | F112: =+計算1!V77 -> 0 | G112: =+計算1!AK77 -> 0 | H112: 0
B113: =+仕入先登録!B111 -> 187 | C113: =+仕入先登録!C111 -> YY3 | D113: =+計算2!G79 -> 0 | E113: =+計算2!V79 -> 0 | F113: =+計算1!V79 -> 0 | G113: =+計算1!AK79 -> 0 | H113: 0
B114: =+仕入先登録!B112 -> 188 | C114: =+仕入先登録!C112 -> ZZ3 | D114: =+計算2!G81 -> 0 | E114: =+計算2!V81 -> 0 | F114: =+計算1!V81 -> 0 | G114: =+計算1!AK81 -> 0 | H114: 0
B115: =+仕入先登録!B113 -> 189 | C115: =+仕入先登録!C113 -> AA4 | D115: =+計算2!G83 -> 0 | E115: =+計算2!V83 -> 0 | F115: =+計算1!V83 -> 0 | G115: =+計算1!AK83 -> 0 | H115: 0
B116: =+仕入先登録!B114 -> 190 | C116: =+仕入先登録!C114 -> BB4 | D116: =+計算2!G85 -> 0 | E116: =+計算2!V85 -> 0 | F116: =+計算1!V85 -> 0 | G116: =+計算1!AK85 -> 0 | H116: 0
B117: =+仕入先登録!B115 -> 191 | C117: =+仕入先登録!C115 -> CC4 | D117: =+計算2!G87 -> 0 | E117: =+計算2!V87 -> 0 | F117: =+計算1!V87 -> 0 | G117: =+計算1!AK87 -> 0 | H117: 0
B118: =+仕入先登録!B116 -> 192 | C118: =+仕入先登録!C116 -> DD4 | D118: =+計算2!G89 -> 0 | E118: =+計算2!V89 -> 0 | F118: =+計算1!V89 -> 0 | G118: =+計算1!AK89 -> 0 | H118: 0
B119: =+仕入先登録!B117 -> 193 | C119: =+仕入先登録!C117 -> EE4 | D119: =+計算2!G91 -> 0 | E119: =+計算2!V91 -> 0 | F119: =+計算1!V91 -> 0 | G119: =+計算1!AK91 -> 0 | H119: 0
B120: =+仕入先登録!B118 -> 194 | C120: =+仕入先登録!C118 -> FF4 | D120: =+計算2!G93 -> 0 | E120: =+計算2!V93 -> 0 | F120: =+計算1!V93 -> 0 | G120: =+計算1!AK93 -> 0 | H120: 0
B121: =+仕入先登録!B119 -> 195 | C121: =+仕入先登録!C119 -> GG4 | D121: =+計算2!G95 -> 0 | E121: =+計算2!V95 -> 0 | F121: =+計算1!V95 -> 0 | G121: =+計算1!AK95 -> 0 | H121: 0
B122: =+仕入先登録!B120 -> 196 | C122: =+仕入先登録!C120 -> HH4 | D122: =+計算2!G97 -> 0 | E122: =+計算2!V97 -> 0 | F122: =+計算1!V97 -> 0 | G122: =+計算1!AK97 -> 0 | H122: 0
B123: =+仕入先登録!B121 -> 197 | C123: =+仕入先登録!C121 -> LL4 | D123: =+計算2!G99 -> 0 | E123: =+計算2!V99 -> 0 | F123: =+計算1!V99 -> 0 | G123: =+計算1!AK99 -> 0 | H123: 0
B124: =+仕入先登録!B122 -> 198 | C124: =+仕入先登録!C122 -> MM4 | D124: =+計算2!G101 -> 0 | E124: =+計算2!V101 -> 0 | F124: =+計算1!V101 -> 0 | G124: =+計算1!AK101 -> 0 | H124: 0
B125: =+仕入先登録!B123 -> 199 | C125: =+仕入先登録!C123 -> NN4 | D125: =+計算2!G103 -> 0 | E125: =+計算2!V103 -> 0 | F125: =+計算1!V103 -> 0 | G125: =+計算1!AK103 -> 0 | H125: 0
B126: =+仕入先登録!B124 -> 200 | C126: =+仕入先登録!C124 -> PP4 | D126: =+計算2!G105 -> 0 | E126: =+計算2!V105 -> 0 | F126: =+計算1!V105 -> 0 | G126: =+計算1!AK105 -> 0 | H126: 0
B127: =+仕入先登録!B125 -> 201 | C127: =+仕入先登録!C125 -> QQ4 | D127: =+計算2!G107 -> 0 | E127: =+計算2!V107 -> 0 | F127: =+計算1!V107 -> 0 | G127: =+計算1!AK107 -> 0 | H127: 0
B128: =+仕入先登録!B126 -> 202 | C128: =+仕入先登録!C126 -> RR4 | D128: =+計算2!G109 -> 0 | E128: =+計算2!V109 -> 0 | F128: =+計算1!V109 -> 0 | G128: =+計算1!AK109 -> 0 | H128: 0
B129: =+仕入先登録!B127 -> 203 | C129: =+仕入先登録!C127 -> SS4 | D129: =+計算2!G111 -> 0 | E129: =+計算2!V111 -> 0 | F129: =+計算1!V111 -> 0 | G129: =+計算1!AK111 -> 0 | H129: 0
B130: =+仕入先登録!B128 -> 204 | C130: =+仕入先登録!C128 -> TT4 | D130: =+計算2!G113 -> 0 | E130: =+計算2!V113 -> 0 | F130: =+計算1!V113 -> 0 | G130: =+計算1!AK113 -> 0 | H130: 0
B131: =+仕入先登録!B129 -> 205 | C131: =+仕入先登録!C129 -> UU4 | D131: =+計算2!G115 -> 0 | E131: =+計算2!V115 -> 0 | F131: =+計算1!V115 -> 0 | G131: =+計算1!AK115 -> 0 | H131: 0
B132: =+仕入先登録!B130 -> 206 | C132: =+仕入先登録!C130 -> VV4 | D132: =+計算2!G117 -> 0 | E132: =+計算2!V117 -> 0 | F132: =+計算1!V117 -> 0 | G132: =+計算1!AK117 -> 0 | H132: 0
B133: =+仕入先登録!B131 -> 207 | C133: =+仕入先登録!C131 -> WW4 | D133: =+計算2!G119 -> 0 | E133: =+計算2!V119 -> 0 | F133: =+計算1!V119 -> 0 | G133: =+計算1!AK119 -> 0 | H133: 0
B134: =+仕入先登録!B132 -> 208 | C134: =+仕入先登録!C132 -> XX4 | D134: =+計算2!G121 -> 0 | E134: =+計算2!V121 -> 0 | F134: =+計算1!V121 -> 0 | G134: =+計算1!AK121 -> 0 | H134: 0
B135: =+仕入先登録!B133 -> 209 | C135: =+仕入先登録!C133 -> YY4 | D135: =+計算2!G123 -> 0 | E135: =+計算2!V123 -> 0 | F135: =+計算1!V123 -> 0 | G135: =+計算1!AK123 -> 0 | H135: 0
B136: =+仕入先登録!B134 -> 210 | C136: =+仕入先登録!C134 -> ZZ4 | D136: =+計算2!G125 -> 0 | E136: =+計算2!V125 -> 0 | F136: =+計算1!V125 -> 0 | G136: =+計算1!AK125 -> 0 | H136: 0
B137: =+仕入先登録!B135 -> 211 | C137: =+仕入先登録!C135 -> AA5 | D137: =+計算2!G127 -> 0 | E137: =+計算2!V127 -> 0 | F137: =+計算1!V127 -> 0 | G137: =+計算1!AK127 -> 0 | H137: 0
B138: =+仕入先登録!B136 -> 212 | C138: =+仕入先登録!C136 -> BB5 | D138: =+計算2!G129 -> 0 | E138: =+計算2!V129 -> 0 | F138: =+計算1!V129 -> 0 | G138: =+計算1!AK129 -> 0 | H138: 0
B139: =+仕入先登録!B137 -> 213 | C139: =+仕入先登録!C137 -> CC5 | D139: =+計算2!G131 -> 0 | E139: =+計算2!V131 -> 0 | F139: =+計算1!V131 -> 0 | G139: =+計算1!AK131 -> 0 | H139: 0
B140: =+仕入先登録!B138 -> 214 | C140: =+仕入先登録!C138 -> DD5 | D140: =+計算2!G133 -> 0 | E140: =+計算2!V133 -> 0 | F140: =+計算1!V133 -> 0 | G140: =+計算1!AK133 -> 0 | H140: 0
B141: =+仕入先登録!B139 -> 215 | C141: =+仕入先登録!C139 -> EE5 | D141: =+計算2!G135 -> 0 | E141: =+計算2!V135 -> 0 | F141: =+計算1!V135 -> 0 | G141: =+計算1!AK135 -> 0 | H141: 0
B142: =+仕入先登録!B140 -> 216 | C142: =+仕入先登録!C140 -> FF5 | D142: =+計算2!G137 -> 0 | E142: =+計算2!V137 -> 0 | F142: =+計算1!V137 -> 0 | G142: =+計算1!AK137 -> 0 | H142: 0
B143: =+仕入先登録!B141 -> 217 | C143: =+仕入先登録!C141 -> GG5 | D143: =+計算2!G139 -> 0 | E143: =+計算2!V139 -> 0 | F143: =+計算1!V139 -> 0 | G143: =+計算1!AK139 -> 0 | H143: 0
B144: =+仕入先登録!B142 -> 218 | C144: =+仕入先登録!C142 -> HH5 | D144: =+計算2!G141 -> 0 | E144: =+計算2!V141 -> 0 | F144: =+計算1!V141 -> 0 | G144: =+計算1!AK141 -> 0 | H144: 0
B145: =+仕入先登録!B143 -> 219 | C145: =+仕入先登録!C143 -> LL5 | D145: =+計算2!G143 -> 0 | E145: =+計算2!V143 -> 0 | F145: =+計算1!V143 -> 1035 | G145: =+計算1!AK143 -> 0 | H145: 1035
B146: =+仕入先登録!B144 -> 220 | C146: =+仕入先登録!C144 -> MM5 | D146: =+計算2!G145 -> 0 | E146: =+計算2!V145 -> 0 | F146: =+計算1!V145 -> 0 | G146: =+計算1!AK145 -> 0 | H146: 0
B147: =+仕入先登録!B145 -> 221 | C147: =+仕入先登録!C145 -> NN5 | D147: =+計算2!G147 -> 0 | E147: =+計算2!V147 -> 0 | F147: =+計算1!V147 -> 0 | G147: =+計算1!AK147 -> 0 | H147: 0
B148: =+仕入先登録!B146 -> 222 | C148: =+仕入先登録!C146 -> PP5 | D148: =+計算2!G149 -> 0 | E148: =+計算2!V149 -> 0 | F148: =+計算1!V149 -> 0 | G148: =+計算1!AK149 -> 0 | H148: 0
B149: =+仕入先登録!B147 -> 223 | C149: =+仕入先登録!C147 -> QQ5 | D149: =+計算2!G151 -> 0 | E149: =+計算2!V151 -> 0 | F149: =+計算1!V151 -> 0 | G149: =+計算1!AK151 -> 0 | H149: 0
B150: =+仕入先登録!B148 -> 224 | C150: =+仕入先登録!C148 -> RR5 | D150: =+計算2!G153 -> 0 | E150: =+計算2!V153 -> 0 | F150: =+計算1!V153 -> 0 | G150: =+計算1!AK153 -> 0 | H150: 0
B151: =+仕入先登録!B149 -> 225 | C151: =+仕入先登録!C149 -> SS5 | D151: =+計算2!J5 -> 0 | E151: =+計算2!Y5 -> 0 | F151: =+計算1!Y5 -> 0 | G151: =+計算1!AN5 -> 0 | H151: 0
B152: =+仕入先登録!B150 -> 226 | C152: =+仕入先登録!C150 -> TT5 | D152: =+計算2!J7 -> 0 | E152: =+計算2!Y7 -> 0 | F152: =+計算1!Y7 -> 0 | G152: =+計算1!AN7 -> 0 | H152: =SUM(D152:G152) -> 0
B153: =+仕入先登録!B151 -> 227 | C153: =+仕入先登録!C151 -> UU5 | D153: =+計算2!J9 -> 0 | E153: =+計算2!Y9 -> 0 | F153: =+計算1!Y9 -> 0 | G153: =+計算1!AN9 -> 0 | H153: 0
B154: =+仕入先登録!B152 -> 228 | C154: =+仕入先登録!C152 -> VV5 | D154: =+計算2!J11 -> 0 | E154: =+計算2!Y11 -> 0 | F154: =+計算1!Y11 -> 0 | G154: =+計算1!AN11 -> 0 | H154: 0
B155: =+仕入先登録!B153 -> 229 | C155: =+仕入先登録!C153 -> WW5 | D155: =+計算2!J13 -> 0 | E155: =+計算2!Y13 -> 0 | F155: =+計算1!Y13 -> 825 | G155: =+計算1!AN13 -> 0 | H155: 825
B156: =+仕入先登録!B154 -> 230 | C156: =+仕入先登録!C154 -> XX5 | D156: =+計算2!J15 -> 0 | E156: =+計算2!Y15 -> 0 | F156: =+計算1!Y15 -> 0 | G156: =+計算1!AN15 -> 0 | H156: 0
B157: =+仕入先登録!B155 -> 231 | C157: =+仕入先登録!C155 -> YY5 | D157: =+計算2!J17 -> 0 | E157: =+計算2!Y17 -> 0 | F157: =+計算1!Y17 -> 0 | G157: =+計算1!AN17 -> 0 | H157: 0
B158: =+仕入先登録!B156 -> 232 | C158: =+仕入先登録!C156 -> ZZ5 | D158: =+計算2!J19 -> 0 | E158: =+計算2!Y19 -> 0 | F158: =+計算1!Y19 -> 0 | G158: =+計算1!AN19 -> 0 | H158: 0
B159: =+仕入先登録!B157 -> 233 | C159: =+仕入先登録!C157 -> AA6 | D159: =+計算2!J21 -> 0 | E159: =+計算2!Y21 -> 0 | F159: =+計算1!Y21 -> 0 | G159: =+計算1!AN21 -> 0 | H159: 0
B160: =+仕入先登録!B158 -> 234 | C160: =+仕入先登録!C158 -> BB6 | D160: =+計算2!J23 -> 0 | E160: =+計算2!Y23 -> 0 | F160: =+計算1!Y23 -> 0 | G160: =+計算1!AN23 -> 0 | H160: 0
B161: =+仕入先登録!B159 -> 235 | C161: =+仕入先登録!C159 -> CC6 | D161: =+計算2!J25 -> 0 | E161: =+計算2!Y25 -> 0 | F161: =+計算1!Y25 -> 0 | G161: =+計算1!AN25 -> 0 | H161: 0
B162: =+仕入先登録!B160 -> 236 | C162: =+仕入先登録!C160 -> DD6 | D162: =+計算2!J27 -> 0 | E162: =+計算2!Y27 -> 0 | F162: =+計算1!Y27 -> 0 | G162: =+計算1!AN27 -> 0 | H162: 0
B163: =+仕入先登録!B161 -> 237 | C163: =+仕入先登録!C161 -> EE6 | D163: =+計算2!J29 -> 0 | E163: =+計算2!Y29 -> 0 | F163: =+計算1!Y29 -> 0 | G163: =+計算1!AN29 -> 0 | H163: 0
B164: =+仕入先登録!B162 -> 238 | C164: =+仕入先登録!C162 -> FF6 | D164: =+計算2!J31 -> 0 | E164: =+計算2!Y31 -> 0 | F164: =+計算1!Y31 -> 0 | G164: =+計算1!AN31 -> 0 | H164: 0
B165: =+仕入先登録!B163 -> 239 | C165: =+仕入先登録!C163 -> GG6 | D165: =+計算2!J33 -> 0 | E165: =+計算2!Y33 -> 0 | F165: =+計算1!Y33 -> 0 | G165: =+計算1!AN33 -> 0 | H165: 0
B166: =+仕入先登録!B164 -> 240 | C166: =+仕入先登録!C164 -> HH6 | D166: =+計算2!J35 -> 0 | E166: =+計算2!Y35 -> 0 | F166: =+計算1!Y35 -> 0 | G166: =+計算1!AN35 -> 0 | H166: 0
B167: =+仕入先登録!B165 -> 241 | C167: =+仕入先登録!C165 -> LL6 | D167: =+計算2!J37 -> 0 | E167: =+計算2!Y37 -> 0 | F167: =+計算1!Y37 -> 0 | G167: =+計算1!AN37 -> 0 | H167: 0
B168: =+仕入先登録!B166 -> 242 | C168: =+仕入先登録!C166 -> MM6 | D168: =+計算2!J39 -> 0 | E168: =+計算2!Y39 -> 0 | F168: =+計算1!Y39 -> 0 | G168: =+計算1!AN39 -> 0 | H168: 0
B169: =+仕入先登録!B167 -> 243 | C169: =+仕入先登録!C167 -> NN6 | D169: =+計算2!J41 -> 0 | E169: =+計算2!Y41 -> 0 | F169: =+計算1!Y41 -> 0 | G169: =+計算1!AN41 -> 0 | H169: 0
B170: =+仕入先登録!B168 -> 244 | C170: =+仕入先登録!C168 -> PP6 | D170: =+計算2!J43 -> 0 | E170: =+計算2!Y43 -> 0 | F170: =+計算1!Y43 -> 0 | G170: =+計算1!AN43 -> 0 | H170: 0
B171: =+仕入先登録!B169 -> 245 | C171: =+仕入先登録!C169 -> QQ6 | D171: =+計算2!J45 -> 0 | E171: =+計算2!Y45 -> 0 | F171: =+計算1!Y45 -> 0 | G171: =+計算1!AN45 -> 0 | H171: 0
B172: =+仕入先登録!B170 -> 246 | C172: =+仕入先登録!C170 -> RR6 | D172: =+計算2!J47 -> 0 | E172: =+計算2!Y47 -> 0 | F172: =+計算1!Y47 -> 0 | G172: =+計算1!AN47 -> 0 | H172: 0
B173: =+仕入先登録!B171 -> 247 | C173: =+仕入先登録!C171 -> SS6 | D173: =+計算2!J49 -> 0 | E173: =+計算2!Y49 -> 0 | F173: =+計算1!Y49 -> 0 | G173: =+計算1!AN49 -> 0 | H173: 0
B174: =+仕入先登録!B172 -> 248 | C174: =+仕入先登録!C172 -> TT6 | D174: =+計算2!J51 -> 0 | E174: =+計算2!Y51 -> 0 | F174: =+計算1!Y51 -> 0 | G174: =+計算1!AN51 -> 0 | H174: 0
B175: =+仕入先登録!B173 -> 249 | C175: =+仕入先登録!C173 -> UU6 | D175: =+計算2!J53 -> 0 | E175: =+計算2!Y53 -> 0 | F175: =+計算1!Y53 -> 0 | G175: =+計算1!AN53 -> 0 | H175: 0
B176: =+仕入先登録!B174 -> 250 | C176: =+仕入先登録!C174 -> VV6 | D176: =+計算2!J55 -> 0 | E176: =+計算2!Y55 -> 0 | F176: =+計算1!Y55 -> 0 | G176: =+計算1!AN55 -> 0 | H176: 0
B177: =+仕入先登録!B175 -> 251 | C177: =+仕入先登録!C175 -> WW6 | D177: =+計算2!J57 -> 0 | E177: =+計算2!Y57 -> 0 | F177: =+計算1!Y57 -> 0 | G177: =+計算1!AN57 -> 0 | H177: 0
B178: =+仕入先登録!B176 -> 252 | C178: =+仕入先登録!C176 -> XX6 | D178: =+計算2!J59 -> 0 | E178: =+計算2!Y59 -> 0 | F178: =+計算1!Y59 -> 0 | G178: =+計算1!AN59 -> 0 | H178: 0
B179: =+仕入先登録!B177 -> 253 | C179: =+仕入先登録!C177 -> YY6 | D179: =+計算2!J61 -> 0 | E179: =+計算2!Y61 -> 0 | F179: =+計算1!Y61 -> 0 | G179: =+計算1!AN61 -> 0 | H179: 0
B180: =+仕入先登録!B178 -> 254 | C180: =+仕入先登録!C178 -> ZZ6 | D180: =+計算2!J63 -> 0 | E180: =+計算2!Y63 -> 0 | F180: =+計算1!Y63 -> 0 | G180: =+計算1!AN63 -> 0 | H180: 0
B181: =+仕入先登録!B179 -> 255 | C181: =+仕入先登録!C179 -> AA7 | D181: =+計算2!J65 -> 0 | E181: =+計算2!Y65 -> 0 | F181: =+計算1!Y65 -> 0 | G181: =+計算1!AN65 -> 0 | H181: 0
B182: =+仕入先登録!B180 -> 256 | C182: =+仕入先登録!C180 -> BB7 | D182: =+計算2!J67 -> 0 | E182: =+計算2!Y67 -> 0 | F182: =+計算1!Y67 -> 0 | G182: =+計算1!AN67 -> 0 | H182: 0
B183: =+仕入先登録!B181 -> 257 | C183: =+仕入先登録!C181 -> CC7 | D183: =+計算2!J69 -> 0 | E183: =+計算2!Y69 -> 0 | F183: =+計算1!Y69 -> 0 | G183: =+計算1!AN69 -> 0 | H183: 0
B184: =+仕入先登録!B182 -> 258 | C184: =+仕入先登録!C182 -> DD7 | D184: =+計算2!J71 -> 0 | E184: =+計算2!Y71 -> 0 | F184: =+計算1!Y71 -> 0 | G184: =+計算1!AN71 -> 0 | H184: 0
B185: =+仕入先登録!B183 -> 259 | C185: =+仕入先登録!C183 -> EE7 | D185: =+計算2!J73 -> 0 | E185: =+計算2!Y73 -> 0 | F185: =+計算1!Y73 -> 0 | G185: =+計算1!AN73 -> 0 | H185: 0
B186: =+仕入先登録!B184 -> 260 | C186: =+仕入先登録!C184 -> FF7 | D186: =+計算2!J75 -> 0 | E186: =+計算2!Y75 -> 0 | F186: =+計算1!Y75 -> 0 | G186: =+計算1!AN75 -> 0 | H186: 0
B187: =+仕入先登録!B185 -> 261 | C187: =+仕入先登録!C185 -> GG7 | D187: =+計算2!J77 -> 0 | E187: =+計算2!Y77 -> 0 | F187: =+計算1!Y77 -> 0 | G187: =+計算1!AN77 -> 0 | H187: 0
B188: =+仕入先登録!B186 -> 262 | C188: =+仕入先登録!C186 -> HH7 | D188: =+計算2!J79 -> 0 | E188: =+計算2!Y79 -> 0 | F188: =+計算1!Y79 -> 0 | G188: =+計算1!AN79 -> 0 | H188: 0
B189: =+仕入先登録!B187 -> 263 | C189: =+仕入先登録!C187 -> LL7 | D189: =+計算2!J81 -> 0 | E189: =+計算2!Y81 -> 0 | F189: =+計算1!Y81 -> 0 | G189: =+計算1!AN81 -> 0 | H189: 0
B190: =+仕入先登録!B188 -> 264 | C190: =+仕入先登録!C188 -> MM7 | D190: =+計算2!J83 -> 0 | E190: =+計算2!Y83 -> 0 | F190: =+計算1!Y83 -> 0 | G190: =+計算1!AN83 -> 0 | H190: 0
B191: =+仕入先登録!B189 -> 265 | C191: =+仕入先登録!C189 -> NN7 | D191: =+計算2!J85 -> 0 | E191: =+計算2!Y85 -> 0 | F191: =+計算1!Y85 -> 0 | G191: =+計算1!AN85 -> 0 | H191: 0
B192: =+仕入先登録!B190 -> 266 | C192: =+仕入先登録!C190 -> PP7 | D192: =+計算2!J87 -> 0 | E192: =+計算2!Y87 -> 0 | F192: =+計算1!Y87 -> 0 | G192: =+計算1!AN87 -> 0 | H192: 0
B193: =+仕入先登録!B191 -> 267 | C193: =+仕入先登録!C191 -> QQ7 | D193: =+計算2!J89 -> 0 | E193: =+計算2!Y89 -> 0 | F193: =+計算1!Y89 -> 0 | G193: =+計算1!AN89 -> 0 | H193: 0
B194: =+仕入先登録!B192 -> 268 | C194: =+仕入先登録!C192 -> RR7 | D194: =+計算2!J91 -> 0 | E194: =+計算2!Y91 -> 0 | F194: =+計算1!Y91 -> 0 | G194: =+計算1!AN91 -> 0 | H194: 0
B195: =+仕入先登録!B193 -> 269 | C195: =+仕入先登録!C193 -> SS7 | D195: =+計算2!J93 -> 0 | E195: =+計算2!Y93 -> 0 | F195: =+計算1!Y93 -> 0 | G195: =+計算1!AN93 -> 0 | H195: 0
B196: =+仕入先登録!B194 -> 270 | C196: =+仕入先登録!C194 -> TT7 | D196: =+計算2!J95 -> 0 | E196: =+計算2!Y95 -> 0 | F196: =+計算1!Y95 -> 0 | G196: =+計算1!AN95 -> 0 | H196: 0
B197: =+仕入先登録!B195 -> 271 | C197: =+仕入先登録!C195 -> UU7 | D197: =+計算2!J97 -> 0 | E197: =+計算2!Y97 -> 0 | F197: =+計算1!Y97 -> 0 | G197: =+計算1!AN97 -> 0 | H197: 0
B198: =+仕入先登録!B196 -> 272 | C198: =+仕入先登録!C196 -> VV7 | D198: =+計算2!J99 -> 0 | E198: =+計算2!Y99 -> 0 | F198: =+計算1!Y99 -> 0 | G198: =+計算1!AN99 -> 0 | H198: 0
B199: =+仕入先登録!B197 -> 273 | C199: =+仕入先登録!C197 -> WW7 | D199: =+計算2!J101 -> 0 | E199: =+計算2!Y101 -> 0 | F199: =+計算1!Y101 -> 0 | G199: =+計算1!AN101 -> 0 | H199: 0
B200: =+仕入先登録!B198 -> 274 | C200: =+仕入先登録!C198 -> XX7 | D200: =+計算2!J103 -> 0 | E200: =+計算2!Y103 -> 0 | F200: =+計算1!Y103 -> 0 | G200: =+計算1!AN103 -> 0 | H200: 0
B201: =+仕入先登録!B199 -> 275 | C201: =+仕入先登録!C199 -> YY7 | D201: =+計算2!J105 -> 0 | E201: =+計算2!Y105 -> 0 | F201: =+計算1!Y105 -> 0 | G201: =+計算1!AN105 -> 0 | H201: 0
... 162 more rows

Sheet 仕入日報
D3: =TODAY() -> 2021-07-01 | G3: 仕 入 日 報 | N3: 材料 | O3: 1から21 | V3: 仕 入 日 報
C4: 機種 | E4: 材料費 | F4: 加工費 | G4: 購入品費 | H4: 外注設計費 | I4: 外注電装費 | J4: 外注組立費 | K4: 合計 | N4: 外注加工 | O4: 101から200 | R4: 機種 | T4: 材料費 | U4: 加工費 | V4: 購入品費 | W4: 外注設計費
C5: AA | D5: 日計 | E5: =+計算1!C6 -> 0 | F5: =+計算1!C7 -> 3500 | G5: =計算1!C8 -> 0 | H5: =+計算1!C9 -> 0 | I5: =+計算1!C10 -> 0 | J5: =+計算1!C11 -> 0 | K5: =SUM(E5:J5) -> 3500 | N5: 購入品 | O5: 201から300 | S5: 日計
D6: 累計 | E6: =+計算1!C6+計算1!C18 -> 240 | F6: =+計算1!C7+計算1!C19 -> 7220 | G6: =計算1!C8+計算1!C20 -> 360 | H6: =計算1!C9+計算1!C21 -> 120 | I6: =計算1!C10+計算1!C22 -> 150 | J6: =計算1!C11+計算1!C23 -> 120 | K6: 8210 | N6: 外注設計 | O6: 301から334 | S6: 累計
C7: BB | D7: 日計 | E7: =+計算1!D6 -> 0 | F7: =計算1!D7 -> 0 | G7: =計算1!D8 -> 0 | H7: =計算1!D9 -> 0 | I7: =+計算1!D10 -> 0 | J7: =+計算1!D11 -> 0 | K7: 0 | N7: 外注電装 | O7: 401から426 | S7: 日計
D8: 累計 | E8: =計算1!D6+計算1!D18 -> 246 | F8: =計算1!D7+計算1!D19 -> 386 | G8: =計算1!D8+計算1!D20 -> 366 | H8: =計算1!D9+計算1!D21 -> 123 | I8: =計算1!D10+計算1!D22 -> 153 | J8: =計算1!D11+計算1!D23 -> 183 | K8: 1457 | N8: 外注組立 | O8: 501から543 | S8: 累計
C9: CC | D9: 日計 | E9: =+計算1!E6 -> 100 | F9: =計算1!E7 -> 0 | G9: =計算1!E8 -> 0 | H9: =計算1!E9 -> 0 | I9: =計算1!E10 -> 0 | J9: =計算1!E11 -> 0 | K9: 100 | S9: 日計
D10: 累計 | E10: =計算1!E6+計算1!E18 -> 352 | F10: =計算1!E7+計算1!E19 -> 66 | G10: =計算1!E8+計算1!E20 -> 96 | H10: =計算1!E9+計算1!E21 -> 126 | I10: =計算1!E10+計算1!E22 -> 156 | J10: =計算1!E11+計算1!E23 -> 186 | K10: 982 | S10: 累計
C11: DD | D11: 日計 | E11: =計算1!F6 -> 0 | F11: =計算1!F7 -> 0 | G11: =計算1!F8 -> 0 | H11: =計算1!F9 -> 0 | I11: =計算1!F10 -> 0 | J11: =計算1!F11 -> 0 | K11: 0 | S11: 日計
D12: 累計 | E12: =計算1!F6+計算1!F18 -> 258 | F12: =計算1!F7+計算1!F19 -> 69 | G12: =計算1!F8+計算1!F20 -> 99 | H12: =計算1!F9+計算1!F21 -> 129 | I12: =計算1!F10+計算1!F22 -> 159 | J12: =計算1!F11+計算1!F23 -> 189 | K12: 903 | S12: 累計
C13: EE | D13: 日計 | E13: =計算1!G6 -> 0 | F13: =計算1!G7 -> 0 | G13: =計算1!G8 -> 0 | H13: =計算1!G9 -> 0 | I13: =計算1!G10 -> 0 | J13: =計算1!G11 -> 0 | K13: 0 | S13: 日計
D14: 累計 | E14: =計算1!G6+計算1!G18 -> 264 | F14: =計算1!G7+計算1!G19 -> 324 | G14: =計算1!G8+計算1!G20 -> 384 | H14: =計算1!G9+計算1!G21 -> 132 | I14: =計算1!G10+計算1!G22 -> 162 | J14: =計算1!G11+計算1!G23 -> 192 | K14: 1458 | S14: 累計
C15: FF | D15: 日計 | E15: =計算1!H6 -> 0 | F15: =計算1!H7 -> 0 | G15: =計算1!H8 -> 0 | H15: =計算1!H9 -> 0 | I15: =計算1!H10 -> 0 | J15: =計算1!H11 -> 0 | K15: 0 | S15: 日計
D16: 累計 | E16: =計算1!H6+計算1!H18 -> 270 | F16: =計算1!H7+計算1!H19 -> 75 | G16: =計算1!H8+計算1!H20 -> 105 | H16: =計算1!H9+計算1!H21 -> 135 | I16: =計算1!H10+計算1!H22 -> 165 | J16: =計算1!H11+計算1!H23 -> 195 | K16: 945 | S16: 累計
C17: GG | D17: 日計 | E17: =計算1!I6 -> 0 | F17: =計算1!I7 -> 0 | G17: =計算1!I8 -> 0 | H17: =計算1!I9 -> 0 | I17: =計算1!I10 -> 0 | J17: =計算1!I11 -> 0 | K17: 0 | S17: 日計
D18: 累計 | E18: =計算1!I6+計算1!I18 -> 276 | F18: =計算1!I7+計算1!I19 -> 78 | G18: =計算1!I8+計算1!I20 -> 108 | H18: =計算1!I9+計算1!I21 -> 138 | I18: =計算1!I10+計算1!I22 -> 168 | J18: =計算1!I11+計算1!I23 -> 198 | K18: 966 | S18: 累計
C19: HH | D19: 日計 | E19: =計算1!J6 -> 0 | F19: =計算1!J7 -> 0 | G19: =計算1!J8 -> 0 | H19: =計算1!J9 -> 0 | I19: =計算1!J10 -> 0 | J19: =計算1!J11 -> 0 | K19: 0 | S19: 日計
D20: 累計 | E20: =計算1!J6+計算1!J18 -> 282 | F20: =計算1!J7+計算1!J19 -> 81 | G20: =計算1!J8+計算1!J20 -> 111 | H20: =計算1!J9+計算1!J21 -> 141 | I20: =計算1!J10+計算1!J22 -> 171 | J20: =計算1!J11+計算1!J23 -> 201 | K20: 987 | S20: 累計
C21: LL | D21: 日計 | E21: =計算1!K6 -> 0 | F21: =計算1!K7 -> 0 | G21: =計算1!K8 -> 0 | H21: =計算1!K9 -> 0 | I21: =計算1!K10 -> 0 | J21: =計算1!K11 -> 0 | K21: 0 | N21: 合計 | O21: =SUM(O23:O24) -> 21545 | S21: 日計
D22: 累計 | E22: =計算1!K6+計算1!K18 -> 288 | F22: =計算1!K7+計算1!K19 -> 84 | G22: =計算1!K8+計算1!K20 -> 114 | H22: =計算1!K9+計算1!K21 -> 144 | I22: =計算1!K10+計算1!K22 -> 174 | J22: =計算1!K11+計算1!K23 -> 204 | K22: 1008 | N22: =IF(K26=O24,"OK","エラー") -> OK | O22: 縦合計 | S22: 累計
C23: MM | D23: 日計 | E23: =計算1!L6 -> 0 | F23: =計算1!L7 -> 0 | G23: =計算1!L8 -> 0 | H23: =計算1!L9 -> 0 | I23: =計算1!L10 -> 0 | J23: =計算1!L11 -> 0 | K23: 0 | N23: 日計 | O23: =+K5+K7+K9+K11+K13+K15+K17+K19+K21+K23 -> 3600 | S23: 日計
D24: 累計 | E24: =計算1!L6+計算1!L18 -> 294 | F24: =計算1!L7+計算1!L19 -> 87 | G24: =計算1!L8+計算1!L20 -> 117 | H24: =計算1!L9+計算1!L21 -> 147 | I24: =計算1!L10+計算1!L22 -> 177 | J24: =計算1!L11+計算1!L23 -> 207 | K24: 1029 | N24: 累計 | O24: =+K6+K8+K10+K12+K14+K16+K18+K20+K22+K24 -> 17945 | S24: 累計
C25: 部品仕入合計額 | D25: 日計 | E25: =+E5+E7+E9+E11+E13+E15+E17+E19+E21+E23 -> 100 | F25: 3500 | G25: 0 | H25: 0 | I25: 0 | J25: 0 | K25: =SUM(E25:J25) -> 3600
D26: 累計 | E26: =+E6+E8+E10+E12+E14+E16+E18+E20+E22+E24 -> 2770 | F26: 8470 | G26: 1860 | H26: 1335 | I26: 1635 | J26: 1875 | K26: 17945 | S26: 日計
N27: =IF(K40-K39=O30,"OK","エラー") -> OK | O27: 仕入DB値 | S27: 累計
C28: 加工用工具 Ｐ1 | D28: 日計 | K28: =+計算1!O6 -> 0 | N28: 部品額 | O28: =+仕入月合計データ!M2 -> 14345 | S28: 日計
D29: 累計 | K29: =+計算1!O18+K28 -> 200 | N29: 経費額 | O29: =+経費月合計データ!J2 -> 6000 | S29: 累計
C30: 組立用工具 Ｐ2 | D30: 日計 | K30: =+計算1!O7 -> 0 | N30: 合計 | O30: =SUM(O28:O29) -> 20345 | S30: 日計
D31: 累計 | K31: =+計算1!O19+K30 -> 800 | S31: 累計
C32: 消耗品 Ｐ3 | D32: 日計 | K32: =+計算1!O8 -> 0 | N32: =IF(K40-K39=O35,"OK","エラー") -> OK | O32: DB1値 | S32: 日計
D33: 累計 | K33: =+計算1!O20+K32 -> 1800 | N33: 部品額 | O33: =[1]当月仕入!$M$2 -> 14345 | S33: 累計
C34: 改善用 Ｐ4 | D34: 日計 | K34: =+計算1!O9 -> 0 | N34: 経費額 | O34: =[1]当月経費!$J$2 -> 6000 | S34: 日計
D35: 累計 | K35: =+計算1!O21+K34 -> 3200 | N35: 合計 | O35: =SUM(O33:O34) -> 20345 | S35: 累計
C36: 経費仕入合計額 | D36: 日計 | K36: =+K28+K30+K32+K34 -> 0 | S36: 日計
D37: 累計 | K37: =K29+K31+K33+K35 -> 6000 | S37: 累計
S38: 日計
C39: 総仕入合計額 | D39: 日計 | K39: =+K25+K36 -> 3600 | S39: 累計
D40: 累計 | K40: =+K26+K37 -> 23945
S41: 日計
S42: 累計
D60: 2021-02-24 | G60: 仕 入 日 報
C61: 機種 | E61: 材料費 | F61: 加工費 | G61: 購入品費 | H61: 外注設計費 | I61: 外注電装費 | J61: 外注組立費 | K61: 合計
C62: AA | D62: 日計 | E62: 0 | F62: 0 | G62: 0 | H62: 0 | I62: 0 | J62: 0 | K62: 0 | S62: 2009-07-07 | V62: 仕 入 日 報
D63: 累計 | E63: 240 | F63: 3720 | G63: 360 | H63: 120 | I63: 150 | J63: 120 | K63: 4710 | R63: 機種 | T63: 材料費 | U63: 加工費 | V63: 購入品費 | W63: 外注設計費
C64: BB | D64: 日計 | E64: 0 | F64: 0 | G64: 0 | H64: 0 | I64: 0 | J64: 0 | K64: 0 | R64: 標準送り | S64: 日計 | T64: 0 | U64: 0 | V64: 0 | W64: 0
D65: 累計 | E65: 246 | F65: 386 | G65: 366 | H65: 123 | I65: 153 | J65: 183 | K65: 1457 | S65: 累計 | T65: 2100 | U65: 41900 | V65: 120891 | W65: 15000
C66: CC | D66: 日計 | E66: 100 | F66: 0 | G66: 0 | H66: 0 | I66: 0 | J66: 0 | K66: 100 | R66: 特殊装置 | S66: 日計 | T66: 0 | U66: 0 | V66: 0 | W66: 0
D67: 累計 | E67: 352 | F67: 66 | G67: 96 | H67: 126 | I67: 156 | J67: 186 | K67: 982 | S67: 累計 | T67: 49985 | U67: 981250 | V67: 1437788 | W67: 600000
C68: DD | D68: 日計 | E68: 0 | F68: 0 | G68: 0 | H68: 0 | I68: 0 | J68: 0 | K68: 0 | R68: QDC | S68: 日計 | T68: 0 | U68: 0 | V68: 0 | W68: 0
D69: 累計 | E69: 258 | F69: 69 | G69: 99 | H69: 129 | I69: 159 | J69: 189 | K69: 903 | S69: 累計 | T69: 172550 | U69: 1765100 | V69: 385356 | W69: 0
C70: EE | D70: 日計 | E70: 0 | F70: 0 | G70: 0 | H70: 0 | I70: 0 | J70: 0 | K70: 0 | R70: ｵｰﾄｸﾗﾝﾌﾟ | S70: 日計 | T70: 0 | U70: 0 | V70: 0 | W70: 0
D71: 累計 | E71: 264 | F71: 324 | G71: 384 | H71: 132 | I71: 162 | J71: 192 | K71: 1458 | S71: 累計 | T71: 4870 | U71: 2000 | V71: 2462 | W71: 0
C72: FF | D72: 日計 | E72: 0 | F72: 0 | G72: 0 | H72: 0 | I72: 0 | J72: 0 | K72: 0 | R72: 付帯装置 | S72: 日計 | T72: 0 | U72: 0 | V72: 0 | W72: 0
D73: 累計 | E73: 270 | F73: 75 | G73: 105 | H73: 135 | I73: 165 | J73: 195 | K73: 945 | S73: 累計 | T73: 50160 | U73: 686600 | V73: 510101 | W73: 222000
C74: GG | D74: 日計 | E74: 0 | F74: 0 | G74: 0 | H74: 0 | I74: 0 | J74: 0 | K74: 0 | R74: ﾛｰﾀﾘｱﾝ | S74: 日計 | T74: 0 | U74: 0 | V74: 0 | W74: 0
D75: 累計 | E75: 276 | F75: 78 | G75: 108 | H75: 138 | I75: 168 | J75: 198 | K75: 966 | S75: 累計 | T75: 23100 | U75: 271000 | V75: 176783 | W75: 0
C76: HH | D76: 日計 | E76: 0 | F76: 0 | G76: 0 | H76: 0 | I76: 0 | J76: 0 | K76: 0 | R76: 試作 | S76: 日計 | T76: 0 | U76: 0 | V76: 0 | W76: 0
D77: 累計 | E77: 282 | F77: 81 | G77: 111 | H77: 141 | I77: 171 | J77: 201 | K77: 987 | S77: 累計 | T77: 0 | U77: 21500 | V77: 190 | W77: 0
C78: LL | D78: 日計 | E78: 0 | F78: 0 | G78: 0 | H78: 0 | I78: 0 | J78: 0 | K78: 0 | R78: ﾂｰﾘﾝｸﾞ | S78: 日計 | T78: 0 | U78: 0 | V78: 0 | W78: 0
D79: 累計 | E79: 288 | F79: 84 | G79: 114 | H79: 144 | I79: 174 | J79: 204 | K79: 1008 | S79: 累計 | T79: 0 | U79: 0 | V79: 0 | W79: 0
C80: MM | D80: 日計 | E80: 0 | F80: 0 | G80: 0 | H80: 0 | I80: 0 | J80: 0 | K80: 0 | R80: AA | S80: 日計 | T80: 0 | U80: 0 | V80: 0 | W80: 0
D81: 累計 | E81: 294 | F81: 87 | G81: 117 | H81: 147 | I81: 177 | J81: 207 | K81: 1029 | S81: 累計 | T81: 33300 | U81: 820600 | V81: 38213.5 | W81: 0
C82: 部品仕入合計額 | D82: 日計 | E82: 100 | F82: 0 | G82: 0 | H82: 0 | I82: 0 | J82: 0 | K82: 100 | R82: 部品仕入合計額 | S82: 日計 | T82: 0 | U82: 0 | V82: 0 | W82: 0
D83: 累計 | E83: 2770 | F83: 4970 | G83: 1860 | H83: 1335 | I83: 1635 | J83: 1875 | K83: 14445 | S83: 累計 | T83: 336065 | U83: 4589950 | V83: 2671784.5 | W83: 837000
C85: 加工用工具 Ｐ1 | D85: 日計 | K85: 0 | R85: 加工用刃具 Ｐ1 | S85: 日計
D86: 累計 | K86: 200 | S86: 累計
C87: 組立用工具 Ｐ2 | D87: 日計 | K87: 0 | R87: 加工用工具 Ｐ2 | S87: 日計
D88: 累計 | K88: 800 | S88: 累計
C89: 消耗品 Ｐ3 | D89: 日計 | K89: 0 | R89: 消耗品 Ｐ3 | S89: 日計
D90: 累計 | K90: 1800 | S90: 累計
C91: 改善用 Ｐ4 | D91: 日計 | K91: 0 | R91: 改善５Ｓ用 Ｐ4 | S91: 日計
D92: 累計 | K92: 3200 | S92: 累計
C93: 経費仕入合計額 | D93: 日計 | K93: 0 | R93: 経費仕入合計額 | S93: 日計
D94: 累計 | K94: 6000 | S94: 累計
S95: 日計
C96: 総仕入合計額 | D96: 日計 | K96: 100 | S96: 累計
D97: 累計 | K97: 20445 | R97: 仕入商品(CV) | S97: 日計 | T97: 0 | U97: 0 | V97: 0 | W97: 0
S98: 累計 | T98: 0 | U98: 1252390 | V98: 65520 | W98: 0
R100: 総仕入合計額 | S100: 日計
S101: 累計

Sheet 部品本日入力
I1: 行削除は不可です。数式と値のクリアを使用する。
H2: 部品仕入 本日入力伝票分 | M2: =SUM(M4:M5008) -> 3600 | N2: =IF((仕入日報!O28+仕入日報!O33)/2=仕入日報!K26-仕入日報!K25,"","転記エラー") ->  | Q2: N6 | R2: =+R8+R18+R25+R35+R48+R55+R65+R75+R85+R95 -> 3600 | T2: DB用端末 | U2: K4 | Y2: K8 | AX2: 昨日のデータ予備保存 | BH2: =SUM(BH4:BH5000) -> 100 | BQ2: 自動計算用 | BY2: 仕入日報用 | BZ2: １日保存用 | DE2: 2500
B3: 製番 | C3: 品番１ | D3: 品番２ | E3: 納入日 | F3: 細 品番 | G3: 材質 | H3: 品名 (材料取り） | I3: 形状・寸法 | J3: メーカー | K3: 数量 | L3: 単価 | M3: 金額 | N3: CODE | Q3: 分類計算 | AW3: 製番 | AX3: 品番１ | AY3: 品番２ | AZ3: 納入日 | BA3: 細 品番 | BB3: 材質 | BC3: 品名 (材料取り） | BD3: 形状・寸法 | BE3: メーカー | BF3: 数量 | BG3: 単価 | BH3: 金額 | BI3: CODE | BN3: 製番 | BO3: 品番１ | BP3: 品番２ | BQ3: 月 | BR3: 日 | BS3: 品名 | BT3: 数量 | BU3: 単価 | BV3: 金額 | BW3: コードNO | BY3: NK | CA3: RE.RN | CC3: SP | CE3: NR | CG3: QD.QS | CI3: OT | CK3: Z | CM3: T | CO3: AA | CV3: 製番 | CW3: 品番１ | CX3: 品番２ | CY3: 月 | CZ3: 日 | DA3: 品名 | DB3: 数量 | DC3: 単価 | DD3: 金額 | DE3: コードNO
B4: A | P4: 201 | Q4: 製番 | S4: 0～100 | T4: =DSUM($B$3:$N$5008,$M$3,W4:Y5) -> 0 | U4: =DSUM($B$3:$N$5008,$M$3,W6:Y7) -> 0 | V4: =SUM(T4:U4) -> 0 | W4: 製番 | X4: CODE | Y4: CODE | Z4: 製番 | AA4: CODE | AB4: CODE | AC4: 製番 | AD4: CODE | AE4: CODE | AF4: 製番 | AG4: CODE | AH4: CODE | AI4: 製番 | AJ4: CODE | AK4: CODE | AL4: 製番 | AM4: CODE | AN4: CODE | AO4: 製番 | AP4: CODE | AQ4: CODE | AR4: 製番 | AS4: CODE | AT4: CODE | AW4: A | BM4: 本日7入力9 | BN4: 0 | BO4: 0 | BP4: 0 | BQ4: 0 | BR4: 0 | BS4: 0 | BT4: 0 | BU4: 0 | BV4: 0 | BW4: 0 | BX4: 合計 | BY4: 0 | BZ4: 2500 | CA4: 0 | CB4: 0 | CC4: 0 | CD4: 0 | CE4: 0 | CF4: 0 | CG4: 0 | CH4: 0 | CI4: 0 | CJ4: 0 | CK4: 0 | CL4: 0 | CM4: 0 | CN4: 0 | CO4: 0 | CP4: 0 | CQ4: 2500
B5: CC-1863 | C5: 01 | D5: 02 | E5: 2021-02-17 | H5: AAAA | K5: 1 | L5: 100 | M5: 100 | N5: 6 | P5: 201 | Q5: AA | R5: =DSUM($B$3:$N$5008,$M$3,$Q$4:$Q$5) -> 3500 | S5: 101～200 | T5: =DSUM($B$3:$N$5008,$M$3,Z4:AB5) -> 3500 | U5: =DSUM($B$3:$N$5008,$M$3,Z6:AB7) -> 0 | V5: 3500 | W5: AA | X5: <101 | Y5: >0 | Z5: AA | AA5: <201 | AB5: >100 | AC5: AA | AD5: <301 | AE5: >200 | AF5: AA | AG5: <401 | AH5: >300 | AI5: AA | AJ5: <501 | AK5: >400 | AL5: AA | AM5: <601 | AN5: >500 | AO5: AA | AP5: <701 | AQ5: >600 | AR5: AA | AS5: <800 | AT5: >700 | AW5: CC-1863 | AX5: 01 | AY5: 02 | AZ5: 2021-02-17 | BC5: AAAA | BF5: 1 | BG5: 100 | BH5: 100 | BI5: 6 | BN5: 0 | BO5: 0 | BP5: 0 | BQ5: 0 | BR5: 0 | BS5: 0 | BT5: 0 | BU5: 0 | BV5: 0 | BW5: 0 | BX5: 0..100 | BY5: 0 | BZ5: 2500 | CA5: 0 | CB5: 0 | CC5: 0 | CD5: 0 | CE5: 0 | CF5: 0 | CG5: 0 | CH5: 0 | CI5: 0 | CJ5: 0 | CK5: 0 | CL5: 0 | CM5: 0 | CN5: 0 | CO5: 0 | CP5: 0 | CV5: NK1 | CY5: 8 | CZ5: 20 | DA5: SSS | DB5: 5 | DC5: 100 | DD5: 500 | DE5: 1
B6: AA-3544 | C6: A1 | D6: 09 | E6: 2021-02-28 | H6: ガイドフランジ | K6: 1 | L6: 1000 | M6: 1000 | N6: 166 | P6: 201 | Q6: 製番 | S6: 201～300 | T6: =DSUM($B$3:$N$5008,$M$3,AC4:AE5) -> 0 | U6: =DSUM($B$3:$N$5008,$M$3,AC6:AE7) -> 0 | V6: 0 | W6: 製番 | X6: CODE | Y6: CODE | Z6: 製番 | AA6: CODE | AB6: CODE | AC6: 製番 | AD6: CODE | AE6: CODE | AF6: 製番 | AG6: CODE | AH6: CODE | AI6: 製番 | AJ6: CODE | AK6: CODE | AL6: 製番 | AM6: CODE | AN6: CODE | AO6: 製番 | AP6: CODE | AQ6: CODE | AR6: 製番 | AS6: CODE | AT6: CODE | BN6: 0 | BO6: 0 | BP6: 0 | BQ6: 0 | BR6: 0 | BS6: 0 | BT6: 0 | BU6: 0 | BV6: 0 | BW6: 0 | BX6: 101..200 | BY6: 0 | BZ6: 0 | CA6: 0 | CB6: 0 | CC6: 0 | CD6: 0 | CE6: 0 | CF6: 0 | CG6: 0 | CH6: 0 | CI6: 0 | CJ6: 0 | CK6: 0 | CL6: 0 | CM6: 0 | CN6: 0 | CO6: 0 | CP6: 0 | CV6: NK1 | DA6: SS | DB6: 2 | DC6: 500 | DD6: 1000 | DE6: 1
B7: AA-3544 | C7: A1 | D7: 10 | E7: 2021-02-28 | H7: ガイドフランジ | K7: 1 | L7: 1000 | M7: 1000 | N7: 166 | Q7: AB | R7: =DSUM(B3:N5008,M3,Q6:Q7) -> 0 | S7: 301～400 | T7: =DSUM($B$3:$N$5008,$M$3,AF4:AH5) -> 0 | U7: =DSUM($B$3:$N$5008,$M$3,AF6:AH7) -> 0 | V7: 0 | W7: AB | X7: <101 | Y7: >0 | Z7: AB | AA7: <201 | AB7: >100 | AC7: AB | AD7: <301 | AE7: >200 | AF7: AB | AG7: <401 | AH7: >300 | AI7: AB | AJ7: <501 | AK7: >400 | AL7: AB | AM7: <601 | AN7: >500 | AO7: AB | AP7: <701 | AQ7: >600 | AR7: AB | AS7: <800 | AT7: >700 | BN7: 0 | BO7: 0 | BP7: 0 | BQ7: 0 | BR7: 0 | BS7: 0 | BT7: 0 | BU7: 0 | BV7: 0 | BW7: 0 | BX7: 201..300 | BY7: 0 | BZ7: 0 | CA7: 0 | CB7: 0 | CC7: 0 | CD7: 0 | CE7: 0 | CF7: 0 | CG7: 0 | CH7: 0 | CI7: 0 | CJ7: 0 | CK7: 0 | CL7: 0 | CM7: 0 | CN7: 0 | CO7: 0 | CP7: 0 | CV7: NK1 | DA7: SS | DB7: 10 | DC7: 100 | DD7: 1000 | DE7: 1
B8: AA-3544 | C8: A1 | D8: 11 | E8: 2021-02-28 | H8: ガイドフランジ | K8: 1 | L8: 1500 | M8: 1500 | N8: 166 | Q8: 小計 | R8: =+R5+R7 -> 3500 | S8: 401～500 | T8: =DSUM($B$3:$N$5008,$M$3,AI4:AK5) -> 0 | U8: =DSUM($B$3:$N$5008,$M$3,AI6:AK7) -> 0 | V8: 0 | BN8: 0 | BO8: 0 | BP8: 0 | BQ8: 0 | BR8: 0 | BS8: 0 | BT8: 0 | BU8: 0 | BV8: 0 | BW8: 0 | BX8: 301..400 | BY8: 0 | BZ8: 0 | CA8: 0 | CB8: 0 | CC8: 0 | CD8: 0 | CE8: 0 | CF8: 0 | CG8: 0 | CH8: 0 | CI8: 0 | CJ8: 0 | CK8: 0 | CL8: 0 | CM8: 0 | CN8: 0 | CO8: 0 | CP8: 0
S9: 501～600 | T9: =DSUM($B$3:$N$5008,$M$3,AL4:AN5) -> 0 | U9: =DSUM($B$3:$N$5008,$M$3,AL6:AN7) -> 0 | V9: 0 | BN9: 0 | BO9: 0 | BP9: 0 | BQ9: 0 | BR9: 0 | BS9: 0 | BT9: 0 | BU9: 0 | BV9: 0 | BW9: 0 | BX9: 401..500 | BY9: 0 | BZ9: 0 | CA9: 0 | CB9: 0 | CC9: 0 | CD9: 0 | CE9: 0 | CF9: 0 | CG9: 0 | CH9: 0 | CI9: 0 | CJ9: 0 | CK9: 0 | CL9: 0 | CM9: 0 | CN9: 0 | CO9: 0 | CP9: 0
S10: 601～700 | T10: =DSUM($B$3:$N$5008,$M$3,AO4:AQ5) -> 0 | U10: =DSUM($B$3:$N$5008,$M$3,AO6:AQ7) -> 0 | V10: =SUM(T10:U10) -> 0 | BN10: 0 | BO10: 0 | BP10: 0 | BQ10: 0 | BR10: 0 | BS10: 0 | BT10: 0 | BU10: 0 | BV10: 0 | BW10: 0 | BX10: 501..600 | BY10: 0 | BZ10: 0 | CA10: 0 | CB10: 0 | CC10: 0 | CD10: 0 | CE10: 0 | CF10: 0 | CG10: 0 | CH10: 0 | CI10: 0 | CJ10: 0 | CK10: 0 | CL10: 0 | CM10: 0 | CN10: 0 | CO10: 0 | CP10: 0
S11: 701～800 | T11: =DSUM($B$3:$N$5008,$M$3,AR4:AT5) -> 0 | U11: =DSUM($B$3:$N$5008,$M$3,AR6:AT7) -> 0 | V11: =SUM(T11:U11) -> 0 | BN11: 0 | BO11: 0 | BP11: 0 | BQ11: 0 | BR11: 0 | BS11: 0 | BT11: 0 | BU11: 0 | BV11: 0 | BW11: 0
S12: 合計 | T12: AA | U12: AB | V12: =SUM(V4:V10) -> 3500 | BN12: 0 | BO12: 0 | BP12: 0 | BQ12: 0 | BR12: 0 | BS12: 0 | BT12: 0 | BU12: 0 | BV12: 0 | BW12: 0 | BX12: 0
BN13: 0 | BO13: 0 | BP13: 0 | BQ13: 0 | BR13: 0 | BS13: 0 | BT13: 0 | BU13: 0 | BV13: 0 | BW13: 0 | BX13: 0
Q14: 製番 | S14: 0～100 | T14: =DSUM($B$3:$N$5008,$M$3,W14:Y15) -> 0 | U14: =DSUM($B$3:$N$5008,$M$3,W16:Y17) -> 0 | V14: =SUM(T14:U14) -> 0 | W14: 製番 | X14: CODE | Y14: CODE | Z14: 製番 | AA14: CODE | AB14: CODE | AC14: 製番 | AD14: CODE | AE14: CODE | AF14: 製番 | AG14: CODE | AH14: CODE | AI14: 製番 | AJ14: CODE | AK14: CODE | AL14: 製番 | AM14: CODE | AN14: CODE | AO14: 製番 | AP14: CODE | AQ14: CODE | AR14: 製番 | AS14: CODE | AT14: CODE | BN14: 0 | BO14: 0 | BP14: 0 | BQ14: 0 | BR14: 0 | BS14: 0 | BT14: 0 | BU14: 0 | BV14: 0 | BW14: 0
Q15: BB | R15: =DSUM($B$3:N5008,"金額",Q14:Q15) -> 0 | S15: 101～200 | T15: =DSUM($B$3:$N$5008,$M$3,Z14:AB15) -> 0 | U15: =DSUM($B$3:$N$5008,$M$3,Z16:AB17) -> 0 | V15: 0 | W15: BB | X15: <101 | Y15: >0 | Z15: BB | AA15: <201 | AB15: >100 | AC15: BB | AD15: <301 | AE15: >200 | AF15: BB | AG15: <401 | AH15: >300 | AI15: BB | AJ15: <501 | AK15: >400 | AL15: BB | AM15: <601 | AN15: >500 | AO15: BB | AP15: <701 | AQ15: >600 | AR15: BB | AS15: <800 | AT15: >700 | BN15: 0 | BO15: 0 | BP15: 0 | BQ15: 0 | BR15: 0 | BS15: 0 | BT15: 0 | BU15: 0 | BV15: 0 | BW15: 0
Q16: 製番 | S16: 201～300 | T16: =DSUM($B$3:$N$5008,$M$3,AC14:AE15) -> 0 | U16: =DSUM($B$3:$N$5008,$M$3,AC16:AE17) -> 0 | V16: 0 | W16: 製番 | X16: CODE | Y16: CODE | Z16: 製番 | AA16: CODE | AB16: CODE | AC16: 製番 | AD16: CODE | AE16: CODE | AF16: 製番 | AG16: CODE | AH16: CODE | AI16: 製番 | AJ16: CODE | AK16: CODE | AL16: 製番 | AM16: CODE | AN16: CODE | AO16: 製番 | AP16: CODE | AQ16: CODE | AR16: 製番 | AS16: CODE | AT16: CODE | BN16: 0 | BO16: 0 | BP16: 0 | BQ16: 0 | BR16: 0 | BS16: 0 | BT16: 0 | BU16: 0 | BV16: 0 | BW16: 0
Q17: BC | R17: =DSUM($B$3:N5008,$M$3,Q16:Q17) -> 0 | S17: 301～400 | T17: =DSUM($B$3:$N$5008,$M$3,AF14:AH15) -> 0 | U17: =DSUM($B$3:$N$5008,$M$3,AF16:AH17) -> 0 | V17: 0 | W17: BC | X17: <101 | Y17: >0 | Z17: BC | AA17: <201 | AB17: >100 | AC17: BC | AD17: <301 | AE17: >200 | AF17: BC | AG17: <401 | AH17: >300 | AI17: BC | AJ17: <501 | AK17: >400 | AL17: BC | AM17: <601 | AN17: >500 | AO17: BC | AP17: <701 | AQ17: >600 | AR17: BC | AS17: <800 | AT17: >700 | BN17: 0 | BO17: 0 | BP17: 0 | BQ17: 0 | BR17: 0 | BS17: 0 | BT17: 0 | BU17: 0 | BV17: 0 | BW17: 0 | BY17: {RANGE-VALUE AR4..AR10,AQ4..AQ10}
Q18: 小計 | R18: =+R15+R17 -> 0 | S18: 401～500 | T18: =DSUM($B$3:$N$5008,$M$3,AI14:AK15) -> 0 | U18: =DSUM($B$3:$N$5008,$M$3,AI16:AK17) -> 0 | V18: 0 | BN18: 0 | BO18: 0 | BP18: 0 | BQ18: 0 | BR18: 0 | BS18: 0 | BT18: 0 | BU18: 0 | BV18: 0 | BW18: 0 | BY18: {RANGE-VALUE AT4..AT10,AS4..AS10}
S19: 501～600 | T19: =DSUM($B$3:$N$5008,$M$3,AL14:AN15) -> 0 | U19: =DSUM($B$3:$N$5008,$M$3,AL16:AN17) -> 0 | V19: 0 | BN19: 0 | BO19: 0 | BP19: 0 | BQ19: 0 | BR19: 0 | BS19: 0 | BT19: 0 | BU19: 0 | BV19: 0 | BW19: 0 | BY19: {RANGE-VALUE AV4..AV10,AU4..AU10}
S20: 601～700 | T20: =DSUM($B$3:$N$5008,$M$3,AO14:AQ15) -> 0 | U20: =DSUM($B$3:$N$5008,$M$3,AO16:AQ17) -> 0 | V20: =SUM(T20:U20) -> 0 | BN20: 0 | BO20: 0 | BP20: 0 | BQ20: 0 | BR20: 0 | BS20: 0 | BT20: 0 | BU20: 0 | BV20: 0 | BW20: 0 | BY20: {RANGE-VALUE AX4..AX10,AW4..AW10}
S21: 701～800 | T21: =DSUM($B$3:$N$5008,$M$3,AR14:AT15) -> 0 | U21: =DSUM($B$3:$N$5008,$M$3,AR16:AT17) -> 0 | V21: =SUM(T21:U21) -> 0 | BN21: 0 | BO21: 0 | BP21: 0 | BQ21: 0 | BR21: 0 | BS21: 0 | BT21: 0 | BU21: 0 | BV21: 0 | BW21: 0 | BY21: {RANGE-VALUE AZ4..AZ10,AY4..AY10}
S22: 合計 | T22: BB | U22: BC | V22: =SUM(V14:V21) -> 0 | BN22: 0 | BO22: 0 | BP22: 0 | BQ22: 0 | BR22: 0 | BS22: 0 | BT22: 0 | BU22: 0 | BV22: 0 | BW22: 0 | BY22: {RANGE-VALUE BB4..BB10,BA4..BA10}
BN23: 0 | BO23: 0 | BP23: 0 | BQ23: 0 | BR23: 0 | BS23: 0 | BT23: 0 | BU23: 0 | BV23: 0 | BW23: 0 | BY23: {RANGE-VALUE BD4..BD10,BC4..BC10}
Q24: 製番 | S24: 0～100 | T24: =DSUM($B$3:$N$5008,$M$3,W24:Y25) -> 100 | V24: =SUM(T24:U24) -> 100 | W24: 製番 | X24: CODE | Y24: CODE | Z24: 製番 | AA24: CODE | AB24: CODE | AC24: 製番 | AD24: CODE | AE24: CODE | AF24: 製番 | AG24: CODE | AH24: CODE | AI24: 製番 | AJ24: CODE | AK24: CODE | AL24: 製番 | AM24: CODE | AN24: CODE | AO24: 製番 | AP24: CODE | AQ24: CODE | AR24: 製番 | AS24: CODE | AT24: CODE | BN24: 0 | BO24: 0 | BP24: 0 | BQ24: 0 | BR24: 0 | BS24: 0 | BT24: 0 | BU24: 0 | BV24: 0 | BW24: 0 | BY24: {RANGE-VALUE BF4..BF10,BE4..BE10}
Q25: CC | R25: =DSUM($B$3:N5008,$M$3,Q24:Q25) -> 100 | S25: 101～200 | T25: =DSUM($B$3:$N$5008,$M$3,Z24:AB25) -> 0 | V25: 0 | W25: CC | X25: <101 | Y25: >0 | Z25: CC | AA25: <201 | AB25: >100 | AC25: CC | AD25: <301 | AE25: >200 | AF25: CC | AG25: <401 | AH25: >300 | AI25: CC | AJ25: <501 | AK25: >400 | AL25: CC | AM25: <601 | AN25: >500 | AO25: CC | AP25: <701 | AQ25: >600 | AR25: CC | AS25: <800 | AT25: >700 | BN25: 0 | BO25: 0 | BP25: 0 | BQ25: 0 | BR25: 0 | BS25: 0 | BT25: 0 | BU25: 0 | BV25: 0 | BW25: 0 | BY25: {QUIT}
S26: 201～300 | T26: =DSUM($B$3:$N$5008,$M$3,AC24:AE25) -> 0 | V26: 0 | BN26: 0 | BO26: 0 | BP26: 0 | BQ26: 0 | BR26: 0 | BS26: 0 | BT26: 0 | BU26: 0 | BV26: 0 | BW26: 0
S27: 301～400 | T27: =DSUM($B$3:$N$5008,$M$3,AF24:AH25) -> 0 | V27: 0 | BN27: 0 | BO27: 0 | BP27: 0 | BQ27: 0 | BR27: 0 | BS27: 0 | BT27: 0 | BU27: 0 | BV27: 0 | BW27: 0
S28: 401～500 | T28: =DSUM($B$3:$N$5008,$M$3,AI24:AK25) -> 0 | V28: 0 | BN28: 0 | BO28: 0 | BP28: 0 | BQ28: 0 | BR28: 0 | BS28: 0 | BT28: 0 | BU28: 0 | BV28: 0 | BW28: 0
S29: 501～600 | T29: =DSUM($B$3:$N$5008,$M$3,AL24:AN25) -> 0 | V29: 0 | BN29: 0 | BO29: 0 | BP29: 0 | BQ29: 0 | BR29: 0 | BS29: 0 | BT29: 0 | BU29: 0 | BV29: 0 | BW29: 0
S30: 601～700 | T30: =DSUM($B$3:$N$5008,$M$3,AO24:AQ25) -> 0 | V30: =SUM(T30:U30) -> 0 | BN30: 0 | BO30: 0 | BP30: 0 | BQ30: 0 | BR30: 0 | BS30: 0 | BT30: 0 | BU30: 0 | BV30: 0 | BW30: 0
S31: 701～800 | T31: =DSUM($B$3:$N$5008,$M$3,AR24:AT25) -> 0 | V31: =SUM(T31:U31) -> 0 | BN31: 0 | BO31: 0 | BP31: 0 | BQ31: 0 | BR31: 0 | BS31: 0 | BT31: 0 | BU31: 0 | BV31: 0 | BW31: 0
S32: 合計 | T32: CC | V32: =SUM(V24:V31) -> 100 | BN32: 0 | BO32: 0 | BP32: 0 | BQ32: 0 | BR32: 0 | BS32: 0 | BT32: 0 | BU32: 0 | BV32: 0 | BW32: 0
BN33: 0 | BO33: 0 | BP33: 0 | BQ33: 0 | BR33: 0 | BS33: 0 | BT33: 0 | BU33: 0 | BV33: 0 | BW33: 0
Q34: 製番 | S34: 0～100 | T34: =DSUM($B$3:$N$5008,$M$3,W34:Y35) -> 0 | V34: =SUM(T34:U34) -> 0 | W34: 製番 | X34: CODE | Y34: CODE | Z34: 製番 | AA34: CODE | AB34: CODE | AC34: 製番 | AD34: CODE | AE34: CODE | AF34: 製番 | AG34: CODE | AH34: CODE | AI34: 製番 | AJ34: CODE | AK34: CODE | AL34: 製番 | AM34: CODE | AN34: CODE | AO34: 製番 | AP34: CODE | AQ34: CODE | AR34: 製番 | AS34: CODE | AT34: CODE | BN34: 0 | BO34: 0 | BP34: 0 | BQ34: 0 | BR34: 0 | BS34: 0 | BT34: 0 | BU34: 0 | BV34: 0 | BW34: 0
Q35: DD | R35: =DSUM($B$3:N5008,$M$3,Q34:Q35) -> 0 | S35: 101～200 | T35: =DSUM($B$3:$N$5008,$M$3,Z34:AB35) -> 0 | V35: 0 | W35: DD | X35: <101 | Y35: >0 | Z35: DD | AA35: <201 | AB35: >100 | AC35: DD | AD35: <301 | AE35: >200 | AF35: DD | AG35: <401 | AH35: >300 | AI35: DD | AJ35: <501 | AK35: >400 | AL35: DD | AM35: <601 | AN35: >500 | AO35: DD | AP35: <701 | AQ35: >600 | AR35: DD | AS35: <800 | AT35: >700 | BN35: 0 | BO35: 0 | BP35: 0 | BQ35: 0 | BR35: 0 | BS35: 0 | BT35: 0 | BU35: 0 | BV35: 0 | BW35: 0
S36: 201～300 | T36: =DSUM($B$3:$N$5008,$M$3,AC34:AE35) -> 0 | V36: 0 | BN36: 0 | BO36: 0 | BP36: 0 | BQ36: 0 | BR36: 0 | BS36: 0 | BT36: 0 | BU36: 0 | BV36: 0 | BW36: 0
S37: 301～400 | T37: =DSUM($B$3:$N$5008,$M$3,AF34:AH35) -> 0 | V37: 0 | BN37: 0 | BO37: 0 | BP37: 0 | BQ37: 0 | BR37: 0 | BS37: 0 | BT37: 0 | BU37: 0 | BV37: 0 | BW37: 0
S38: 401～500 | T38: =DSUM($B$3:$N$5008,$M$3,AI34:AK35) -> 0 | V38: 0 | BN38: 0 | BO38: 0 | BP38: 0 | BQ38: 0 | BR38: 0 | BS38: 0 | BT38: 0 | BU38: 0 | BV38: 0 | BW38: 0
S39: 501～600 | T39: =DSUM($B$3:$N$5008,$M$3,AL34:AN35) -> 0 | V39: 0 | BN39: 0 | BO39: 0 | BP39: 0 | BQ39: 0 | BR39: 0 | BS39: 0 | BT39: 0 | BU39: 0 | BV39: 0 | BW39: 0
S40: 601～700 | T40: =DSUM($B$3:$N$5008,$M$3,AO34:AQ35) -> 0 | V40: =SUM(T40:U40) -> 0 | BN40: 0 | BO40: 0 | BP40: 0 | BQ40: 0 | BR40: 0 | BS40: 0 | BT40: 0 | BU40: 0 | BV40: 0 | BW40: 0
S41: 701～800 | T41: =DSUM($B$3:$N$5008,$M$3,AR34:AT35) -> 0 | V41: =SUM(T41:U41) -> 0 | BN41: 0 | BO41: 0 | BP41: 0 | BQ41: 0 | BR41: 0 | BS41: 0 | BT41: 0 | BU41: 0 | BV41: 0 | BW41: 0
S42: 合計 | T42: DD | V42: =SUM(V34:V41) -> 0 | BN42: 0 | BO42: 0 | BP42: 0 | BQ42: 0 | BR42: 0 | BS42: 0 | BT42: 0 | BU42: 0 | BV42: 0 | BW42: 0
BN43: 0 | BO43: 0 | BP43: 0 | BQ43: 0 | BR43: 0 | BS43: 0 | BT43: 0 | BU43: 0 | BV43: 0 | BW43: 0
Q44: 製番 | S44: 0～100 | T44: =DSUM($B$3:$N$5008,$M$3,W44:Y45) -> 0 | U44: =DSUM($B$3:$N$5008,$M$3,W46:Y47) -> 0 | V44: =SUM(T44:U44) -> 0 | W44: 製番 | X44: CODE | Y44: CODE | Z44: 製番 | AA44: CODE | AB44: CODE | AC44: 製番 | AD44: CODE | AE44: CODE | AF44: 製番 | AG44: CODE | AH44: CODE | AI44: 製番 | AJ44: CODE | AK44: CODE | AL44: 製番 | AM44: CODE | AN44: CODE | AO44: 製番 | AP44: CODE | AQ44: CODE | AR44: 製番 | AS44: CODE | AT44: CODE | BN44: 0 | BO44: 0 | BP44: 0 | BQ44: 0 | BR44: 0 | BS44: 0 | BT44: 0 | BU44: 0 | BV44: 0 | BW44: 0
Q45: EE | R45: =DSUM($B$3:N5008,$M$3,Q44:Q45) -> 0 | S45: 101～200 | T45: =DSUM($B$3:$N$5008,$M$3,Z44:AB45) -> 0 | U45: =DSUM($B$3:$N$5008,$M$3,Z46:AB47) -> 0 | V45: 0 | W45: EE | X45: <101 | Y45: >0 | Z45: EE | AA45: <201 | AB45: >100 | AC45: EE | AD45: <301 | AE45: >200 | AF45: EE | AG45: <401 | AH45: >300 | AI45: EE | AJ45: <501 | AK45: >400 | AL45: EE | AM45: <601 | AN45: >500 | AO45: EE | AP45: <701 | AQ45: >600 | AR45: EE | AS45: <800 | AT45: >700 | BN45: 0 | BO45: 0 | BP45: 0 | BQ45: 0 | BR45: 0 | BS45: 0 | BT45: 0 | BU45: 0 | BV45: 0 | BW45: 0
Q46: 製番 | S46: 201～300 | T46: =DSUM($B$3:$N$5008,$M$3,AC44:AE45) -> 0 | U46: =DSUM($B$3:$N$5008,$M$3,AC46:AE47) -> 0 | V46: 0 | W46: 製番 | X46: CODE | Y46: CODE | Z46: 製番 | AA46: CODE | AB46: CODE | AC46: 製番 | AD46: CODE | AE46: CODE | AF46: 製番 | AG46: CODE | AH46: CODE | AI46: 製番 | AJ46: CODE | AK46: CODE | AL46: 製番 | AM46: CODE | AN46: CODE | AO46: 製番 | AP46: CODE | AQ46: CODE | AR46: 製番 | AS46: CODE | AT46: CODE | BN46: 0 | BO46: 0 | BP46: 0 | BQ46: 0 | BR46: 0 | BS46: 0 | BT46: 0 | BU46: 0 | BV46: 0 | BW46: 0
Q47: EB | R47: =DSUM($B$3:N5008,$M$3,Q46:Q47) -> 0 | S47: 301～400 | T47: =DSUM($B$3:$N$5008,$M$3,AF44:AH45) -> 0 | U47: =DSUM($B$3:$N$5008,$M$3,AF46:AH47) -> 0 | V47: 0 | W47: EB | X47: <101 | Y47: >0 | Z47: EB | AA47: <201 | AB47: >100 | AC47: EB | AD47: <301 | AE47: >200 | AF47: EB | AG47: <401 | AH47: >300 | AI47: EB | AJ47: <501 | AK47: >400 | AL47: EB | AM47: <601 | AN47: >500 | AO47: EB | AP47: <701 | AQ47: >600 | AR47: EB | AS47: <800 | AT47: >700 | BN47: 0 | BO47: 0 | BP47: 0 | BQ47: 0 | BR47: 0 | BS47: 0 | BT47: 0 | BU47: 0 | BV47: 0 | BW47: 0
Q48: 小計 | R48: =+R45+R47 -> 0 | S48: 401～500 | T48: =DSUM($B$3:$N$5008,$M$3,AI44:AK45) -> 0 | U48: =DSUM($B$3:$N$5008,$M$3,AI46:AK47) -> 0 | V48: 0 | BN48: 0 | BO48: 0 | BP48: 0 | BQ48: 0 | BR48: 0 | BS48: 0 | BT48: 0 | BU48: 0 | BV48: 0 | BW48: 0
S49: 501～600 | T49: =DSUM($B$3:$N$5008,$M$3,AL44:AN45) -> 0 | U49: =DSUM($B$3:$N$5008,$M$3,AL46:AN47) -> 0 | V49: 0 | BN49: 0 | BO49: 0 | BP49: 0 | BQ49: 0 | BR49: 0 | BS49: 0 | BT49: 0 | BU49: 0 | BV49: 0 | BW49: 0
S50: 601～700 | T50: =DSUM($B$3:$N$5008,$M$3,AO44:AQ45) -> 0 | U50: =DSUM($B$3:$N$5008,$M$3,AO46:AT47) -> 0 | V50: =SUM(T50:U50) -> 0 | BN50: 0 | BO50: 0 | BP50: 0 | BQ50: 0 | BR50: 0 | BS50: 0 | BT50: 0 | BU50: 0 | BV50: 0 | BW50: 0
S51: 701～800 | T51: =DSUM($B$3:$N$5008,$M$3,AR44:AT45) -> 0 | U51: =DSUM($B$3:$N$5008,$M$3,AR46:AT47) -> 0 | V51: =SUM(T51:U51) -> 0 | BN51: 0 | BO51: 0 | BP51: 0 | BQ51: 0 | BR51: 0 | BS51: 0 | BT51: 0 | BU51: 0 | BV51: 0 | BW51: 0
S52: 合計 | T52: EE | U52: EB | V52: =SUM(V44:V51) -> 0 | BN52: 0 | BO52: 0 | BP52: 0 | BQ52: 0 | BR52: 0 | BS52: 0 | BT52: 0 | BU52: 0 | BV52: 0 | BW52: 0
BN53: 0 | BO53: 0 | BP53: 0 | BQ53: 0 | BR53: 0 | BS53: 0 | BT53: 0 | BU53: 0 | BV53: 0 | BW53: 0
Q54: 製番 | S54: 0～100 | T54: =DSUM($B$3:$N$5008,$M$3,W54:Y55) -> 0 | V54: =SUM(T54:U54) -> 0 | W54: 製番 | X54: CODE | Y54: CODE | Z54: 製番 | AA54: CODE | AB54: CODE | AC54: 製番 | AD54: CODE | AE54: CODE | AF54: 製番 | AG54: CODE | AH54: CODE | AI54: 製番 | AJ54: CODE | AK54: CODE | AL54: 製番 | AM54: CODE | AN54: CODE | AO54: 製番 | AP54: CODE | AQ54: CODE | AR54: 製番 | AS54: CODE | AT54: CODE | BN54: 0 | BO54: 0 | BP54: 0 | BQ54: 0 | BR54: 0 | BS54: 0 | BT54: 0 | BU54: 0 | BV54: 0 | BW54: 0
Q55: FF | R55: =DSUM($B$3:N5008,$M$3,Q54:Q55) -> 0 | S55: 101～200 | T55: =DSUM($B$3:$N$5008,$M$3,Z54:AB55) -> 0 | V55: 0 | W55: FF | X55: <101 | Y55: >0 | Z55: FF | AA55: <201 | AB55: >100 | AC55: FF | AD55: <301 | AE55: >200 | AF55: FF | AG55: <401 | AH55: >300 | AI55: FF | AJ55: <501 | AK55: >400 | AL55: FF | AM55: <601 | AN55: >500 | AO55: FF | AP55: <701 | AQ55: >600 | AR55: FF | AS55: <800 | AT55: >700 | BN55: 0 | BO55: 0 | BP55: 0 | BQ55: 0 | BR55: 0 | BS55: 0 | BT55: 0 | BU55: 0 | BV55: 0 | BW55: 0
S56: 201～300 | T56: =DSUM($B$3:$N$5008,$M$3,AC54:AE55) -> 0 | V56: 0 | BN56: 0 | BO56: 0 | BP56: 0 | BQ56: 0 | BR56: 0 | BS56: 0 | BT56: 0 | BU56: 0 | BV56: 0 | BW56: 0
S57: 301～400 | T57: =DSUM($B$3:$N$5008,$M$3,AF54:AH55) -> 0 | V57: 0 | BN57: 0 | BO57: 0 | BP57: 0 | BQ57: 0 | BR57: 0 | BS57: 0 | BT57: 0 | BU57: 0 | BV57: 0 | BW57: 0
S58: 401～500 | T58: =DSUM($B$3:$N$5008,$M$3,AI54:AK55) -> 0 | V58: 0 | BN58: 0 | BO58: 0 | BP58: 0 | BQ58: 0 | BR58: 0 | BS58: 0 | BT58: 0 | BU58: 0 | BV58: 0 | BW58: 0
S59: 501～600 | T59: =DSUM($B$3:$N$5008,$M$3,AL54:AN55) -> 0 | V59: 0 | BN59: 0 | BO59: 0 | BP59: 0 | BQ59: 0 | BR59: 0 | BS59: 0 | BT59: 0 | BU59: 0 | BV59: 0 | BW59: 0
S60: 601～700 | T60: =DSUM($B$3:$N$5008,$M$3,AO54:AQ55) -> 0 | V60: =SUM(T60:U60) -> 0 | BN60: 0 | BO60: 0 | BP60: 0 | BQ60: 0 | BR60: 0 | BS60: 0 | BT60: 0 | BU60: 0 | BV60: 0 | BW60: 0
S61: 701～800 | T61: =DSUM($B$3:$N$5008,$M$3,AR54:AT55) -> 0 | V61: =SUM(T61:U61) -> 0 | BN61: 0 | BO61: 0 | BP61: 0 | BQ61: 0 | BR61: 0 | BS61: 0 | BT61: 0 | BU61: 0 | BV61: 0 | BW61: 0
S62: 合計 | T62: FF | V62: =SUM(V54:V61) -> 0 | BN62: 0 | BO62: 0 | BP62: 0 | BQ62: 0 | BR62: 0 | BS62: 0 | BT62: 0 | BU62: 0 | BV62: 0 | BW62: 0
BN63: 0 | BO63: 0 | BP63: 0 | BQ63: 0 | BR63: 0 | BS63: 0 | BT63: 0 | BU63: 0 | BV63: 0 | BW63: 0
Q64: 製番 | S64: 0～100 | T64: =DSUM($B$3:$N$5008,$M$3,W64:Y65) -> 0 | V64: =SUM(T64:U64) -> 0 | W64: 製番 | X64: CODE | Y64: CODE | Z64: 製番 | AA64: CODE | AB64: CODE | AC64: 製番 | AD64: CODE | AE64: CODE | AF64: 製番 | AG64: CODE | AH64: CODE | AI64: 製番 | AJ64: CODE | AK64: CODE | AL64: 製番 | AM64: CODE | AN64: CODE | AO64: 製番 | AP64: CODE | AQ64: CODE | AR64: 製番 | AS64: CODE | AT64: CODE | BN64: 0 | BO64: 0 | BP64: 0 | BQ64: 0 | BR64: 0 | BS64: 0 | BT64: 0 | BU64: 0 | BV64: 0 | BW64: 0
Q65: GG | R65: =DSUM($B$3:N5008,$M$3,Q64:Q65) -> 0 | S65: 101～200 | T65: =DSUM($B$3:$N$5008,$M$3,Z64:AB65) -> 0 | V65: 0 | W65: GG | X65: <101 | Y65: >0 | Z65: GG | AA65: <201 | AB65: >100 | AC65: GG | AD65: <301 | AE65: >200 | AF65: GG | AG65: <401 | AH65: >300 | AI65: GG | AJ65: <501 | AK65: >400 | AL65: GG | AM65: <601 | AN65: >500 | AO65: GG | AP65: <701 | AQ65: >600 | AR65: GG | AS65: <800 | AT65: >700 | BN65: 0 | BO65: 0 | BP65: 0 | BQ65: 0 | BR65: 0 | BS65: 0 | BT65: 0 | BU65: 0 | BV65: 0 | BW65: 0
S66: 201～300 | T66: =DSUM($B$3:$N$5008,$M$3,AC64:AE65) -> 0 | V66: 0 | BN66: 0 | BO66: 0 | BP66: 0 | BQ66: 0 | BR66: 0 | BS66: 0 | BT66: 0 | BU66: 0 | BV66: 0 | BW66: 0
S67: 301～400 | T67: =DSUM($B$3:$N$5008,$M$3,AF64:AH65) -> 0 | V67: 0 | BN67: 0 | BO67: 0 | BP67: 0 | BQ67: 0 | BR67: 0 | BS67: 0 | BT67: 0 | BU67: 0 | BV67: 0 | BW67: 0
S68: 401～500 | T68: =DSUM($B$3:$N$5008,$M$3,AI64:AK65) -> 0 | V68: 0 | BN68: 0 | BO68: 0 | BP68: 0 | BQ68: 0 | BR68: 0 | BS68: 0 | BT68: 0 | BU68: 0 | BV68: 0 | BW68: 0
S69: 501～600 | T69: =DSUM($B$3:$N$5008,$M$3,AL64:AN65) -> 0 | V69: 0 | BN69: 0 | BO69: 0 | BP69: 0 | BQ69: 0 | BR69: 0 | BS69: 0 | BT69: 0 | BU69: 0 | BV69: 0 | BW69: 0
S70: 601～700 | T70: =DSUM($B$3:$N$5008,$M$3,AO64:AQ65) -> 0 | V70: =SUM(T70:U70) -> 0 | BN70: 0 | BO70: 0 | BP70: 0 | BQ70: 0 | BR70: 0 | BS70: 0 | BT70: 0 | BU70: 0 | BV70: 0 | BW70: 0
S71: 701～800 | T71: =DSUM($B$3:$N$5008,$M$3,AR64:AT65) -> 0 | V71: =SUM(T71:U71) -> 0 | BN71: 0 | BO71: 0 | BP71: 0 | BQ71: 0 | BR71: 0 | BS71: 0 | BT71: 0 | BU71: 0 | BV71: 0 | BW71: 0
S72: 合計 | T72: GG | V72: =SUM(V64:V71) -> 0 | BN72: 0 | BO72: 0 | BP72: 0 | BQ72: 0 | BR72: 0 | BS72: 0 | BT72: 0 | BU72: 0 | BV72: 0 | BW72: 0
BN73: 0 | BO73: 0 | BP73: 0 | BQ73: 0 | BR73: 0 | BS73: 0 | BT73: 0 | BU73: 0 | BV73: 0 | BW73: 0
Q74: 製番 | S74: 0～100 | T74: =DSUM($B$3:$N$5008,$M$3,W74:Y75) -> 0 | V74: =SUM(T74:U74) -> 0 | W74: 製番 | X74: CODE | Y74: CODE | Z74: 製番 | AA74: CODE | AB74: CODE | AC74: 製番 | AD74: CODE | AE74: CODE | AF74: 製番 | AG74: CODE | AH74: CODE | AI74: 製番 | AJ74: CODE | AK74: CODE | AL74: 製番 | AM74: CODE | AN74: CODE | AO74: 製番 | AP74: CODE | AQ74: CODE | AR74: 製番 | AS74: CODE | AT74: CODE | BN74: 0 | BO74: 0 | BP74: 0 | BQ74: 0 | BR74: 0 | BS74: 0 | BT74: 0 | BU74: 0 | BV74: 0 | BW74: 0
Q75: HH | R75: =DSUM($B$3:N5008,$M$3,Q74:Q75) -> 0 | S75: 101～200 | T75: =DSUM($B$3:$N$5008,$M$3,Z74:AB75) -> 0 | V75: 0 | W75: HH | X75: <101 | Y75: >0 | Z75: HH | AA75: <201 | AB75: >100 | AC75: HH | AD75: <301 | AE75: >200 | AF75: HH | AG75: <401 | AH75: >300 | AI75: HH | AJ75: <501 | AK75: >400 | AL75: HH | AM75: <601 | AN75: >500 | AO75: HH | AP75: <701 | AQ75: >600 | AR75: HH | AS75: <800 | AT75: >700 | BN75: 0 | BO75: 0 | BP75: 0 | BQ75: 0 | BR75: 0 | BS75: 0 | BT75: 0 | BU75: 0 | BV75: 0 | BW75: 0
S76: 201～300 | T76: =DSUM($B$3:$N$5008,$M$3,AC74:AE75) -> 0 | V76: 0 | BN76: 0 | BO76: 0 | BP76: 0 | BQ76: 0 | BR76: 0 | BS76: 0 | BT76: 0 | BU76: 0 | BV76: 0 | BW76: 0
S77: 301～400 | T77: =DSUM($B$3:$N$5008,$M$3,AF74:AH75) -> 0 | V77: 0 | BN77: 0 | BO77: 0 | BP77: 0 | BQ77: 0 | BR77: 0 | BS77: 0 | BT77: 0 | BU77: 0 | BV77: 0 | BW77: 0
S78: 401～500 | T78: =DSUM($B$3:$N$5008,$M$3,AI74:AK75) -> 0 | V78: 0 | BN78: 0 | BO78: 0 | BP78: 0 | BQ78: 0 | BR78: 0 | BS78: 0 | BT78: 0 | BU78: 0 | BV78: 0 | BW78: 0
S79: 501～600 | T79: =DSUM($B$3:$N$5008,$M$3,AL74:AN75) -> 0 | V79: 0 | BN79: 0 | BO79: 0 | BP79: 0 | BQ79: 0 | BR79: 0 | BS79: 0 | BT79: 0 | BU79: 0 | BV79: 0 | BW79: 0
S80: 601～700 | T80: =DSUM($B$3:$N$5008,$M$3,AO74:AQ75) -> 0 | V80: =SUM(T80:U80) -> 0 | BN80: 0 | BO80: 0 | BP80: 0 | BQ80: 0 | BR80: 0 | BS80: 0 | BT80: 0 | BU80: 0 | BV80: 0 | BW80: 0
S81: 701～800 | T81: =DSUM($B$3:$N$5008,$M$3,AR74:AT75) -> 0 | V81: =SUM(T81:U81) -> 0 | BN81: 0 | BO81: 0 | BP81: 0 | BQ81: 0 | BR81: 0 | BS81: 0 | BT81: 0 | BU81: 0 | BV81: 0 | BW81: 0
S82: 合計 | T82: HH | V82: =SUM(V74:V81) -> 0 | BN82: 0 | BO82: 0 | BP82: 0 | BQ82: 0 | BR82: 0 | BS82: 0 | BT82: 0 | BU82: 0 | BV82: 0 | BW82: 0
BN83: 0 | BO83: 0 | BP83: 0 | BQ83: 0 | BR83: 0 | BS83: 0 | BT83: 0 | BU83: 0 | BV83: 0 | BW83: 0
Q84: 製番 | S84: 0～100 | T84: =DSUM($B$3:$N$5008,$M$3,W84:Y85) -> 0 | V84: =SUM(T84:U84) -> 0 | W84: 製番 | X84: CODE | Y84: CODE | Z84: 製番 | AA84: CODE | AB84: CODE | AC84: 製番 | AD84: CODE | AE84: CODE | AF84: 製番 | AG84: CODE | AH84: CODE | AI84: 製番 | AJ84: CODE | AK84: CODE | AL84: 製番 | AM84: CODE | AN84: CODE | AO84: 製番 | AP84: CODE | AQ84: CODE | AR84: 製番 | AS84: CODE | AT84: CODE | BN84: 0 | BO84: 0 | BP84: 0 | BQ84: 0 | BR84: 0 | BS84: 0 | BT84: 0 | BU84: 0 | BV84: 0 | BW84: 0
Q85: LL | R85: =DSUM($B$3:N5008,$M$3,Q84:Q85) -> 0 | S85: 101～200 | T85: =DSUM($B$3:$N$5008,$M$3,Z84:AB85) -> 0 | V85: 0 | W85: LL | X85: <101 | Y85: >0 | Z85: LL | AA85: <201 | AB85: >100 | AC85: LL | AD85: <301 | AE85: >200 | AF85: LL | AG85: <401 | AH85: >300 | AI85: LL | AJ85: <501 | AK85: >400 | AL85: LL | AM85: <601 | AN85: >500 | AO85: LL | AP85: <701 | AQ85: >600 | AR85: LL | AS85: <800 | AT85: >700 | BN85: 0 | BO85: 0 | BP85: 0 | BQ85: 0 | BR85: 0 | BS85: 0 | BT85: 0 | BU85: 0 | BV85: 0 | BW85: 0
S86: 201～300 | T86: =DSUM($B$3:$N$5008,$M$3,AC84:AE85) -> 0 | V86: 0 | BN86: 0 | BO86: 0 | BP86: 0 | BQ86: 0 | BR86: 0 | BS86: 0 | BT86: 0 | BU86: 0 | BV86: 0 | BW86: 0
S87: 301～400 | T87: =DSUM($B$3:$N$5008,$M$3,AF84:AH85) -> 0 | V87: 0 | BN87: 0 | BO87: 0 | BP87: 0 | BQ87: 0 | BR87: 0 | BS87: 0 | BT87: 0 | BU87: 0 | BV87: 0 | BW87: 0
S88: 401～500 | T88: =DSUM($B$3:$N$5008,$M$3,AI84:AK85) -> 0 | V88: 0 | BN88: 0 | BO88: 0 | BP88: 0 | BQ88: 0 | BR88: 0 | BS88: 0 | BT88: 0 | BU88: 0 | BV88: 0 | BW88: 0
S89: 501～600 | T89: =DSUM($B$3:$N$5008,$M$3,AL84:AN85) -> 0 | V89: 0 | BN89: 0 | BO89: 0 | BP89: 0 | BQ89: 0 | BR89: 0 | BS89: 0 | BT89: 0 | BU89: 0 | BV89: 0 | BW89: 0
S90: 601～700 | T90: =DSUM($B$3:$N$5008,$M$3,AO84:AQ85) -> 0 | V90: =SUM(T90:U90) -> 0 | BN90: 0 | BO90: 0 | BP90: 0 | BQ90: 0 | BR90: 0 | BS90: 0 | BT90: 0 | BU90: 0 | BV90: 0 | BW90: 0
S91: 701～800 | T91: =DSUM($B$3:$N$5008,$M$3,AR84:AT85) -> 0 | V91: =SUM(T91:U91) -> 0 | BN91: 0 | BO91: 0 | BP91: 0 | BQ91: 0 | BR91: 0 | BS91: 0 | BT91: 0 | BU91: 0 | BV91: 0 | BW91: 0
S92: 合計 | T92: LL | V92: =SUM(V84:V91) -> 0 | BN92: 0 | BO92: 0 | BP92: 0 | BQ92: 0 | BR92: 0 | BS92: 0 | BT92: 0 | BU92: 0 | BV92: 0 | BW92: 0
BN93: 0 | BO93: 0 | BP93: 0 | BQ93: 0 | BR93: 0 | BS93: 0 | BT93: 0 | BU93: 0 | BV93: 0 | BW93: 0
Q94: 製番 | S94: 0～100 | T94: =DSUM($B$3:$N$5008,$M$3,W94:Y95) -> 0 | V94: =SUM(T94:U94) -> 0 | W94: 製番 | X94: CODE | Y94: CODE | Z94: 製番 | AA94: CODE | AB94: CODE | AC94: 製番 | AD94: CODE | AE94: CODE | AF94: 製番 | AG94: CODE | AH94: CODE | AI94: 製番 | AJ94: CODE | AK94: CODE | AL94: 製番 | AM94: CODE | AN94: CODE | AO94: 製番 | AP94: CODE | AQ94: CODE | AR94: 製番 | AS94: CODE | AT94: CODE | BN94: 0 | BO94: 0 | BP94: 0 | BQ94: 0 | BR94: 0 | BS94: 0 | BT94: 0 | BU94: 0 | BV94: 0 | BW94: 0
Q95: MM | R95: =DSUM($B$3:N5016,$M$3,Q94:Q95) -> 0 | S95: 101～200 | T95: =DSUM($B$3:$N$5008,$M$3,Z94:AB95) -> 0 | V95: 0 | W95: MM | X95: <101 | Y95: >0 | Z95: MM | AA95: <201 | AB95: >100 | AC95: MM | AD95: <301 | AE95: >200 | AF95: MM | AG95: <401 | AH95: >300 | AI95: MM | AJ95: <501 | AK95: >400 | AL95: MM | AM95: <601 | AN95: >500 | AO95: MM | AP95: <701 | AQ95: >600 | AR95: MM | AS95: <800 | AT95: >700 | BN95: 0 | BO95: 0 | BP95: 0 | BQ95: 0 | BR95: 0 | BS95: 0 | BT95: 0 | BU95: 0 | BV95: 0 | BW95: 0
S96: 201～300 | T96: =DSUM($B$3:$N$5008,$M$3,AC94:AE95) -> 0 | V96: 0 | BN96: 0 | BO96: 0 | BP96: 0 | BQ96: 0 | BR96: 0 | BS96: 0 | BT96: 0 | BU96: 0 | BV96: 0 | BW96: 0
S97: 301～400 | T97: =DSUM($B$3:$N$5008,$M$3,AF94:AH95) -> 0 | V97: 0 | BN97: 0 | BO97: 0 | BP97: 0 | BQ97: 0 | BR97: 0 | BS97: 0 | BT97: 0 | BU97: 0 | BV97: 0 | BW97: 0
S98: 401～500 | T98: =DSUM($B$3:$N$5008,$M$3,AI94:AK95) -> 0 | V98: 0 | BN98: 0 | BO98: 0 | BP98: 0 | BQ98: 0 | BR98: 0 | BS98: 0 | BT98: 0 | BU98: 0 | BV98: 0 | BW98: 0
S99: 501～600 | T99: =DSUM($B$3:$N$5008,$M$3,AL94:AN95) -> 0 | V99: 0 | BN99: 0 | BO99: 0 | BP99: 0 | BQ99: 0 | BR99: 0 | BS99: 0 | BT99: 0 | BU99: 0 | BV99: 0 | BW99: 0
S100: 601～700 | T100: =DSUM($B$3:$N$5008,$M$3,AO94:AQ95) -> 0 | V100: =SUM(T100:U100) -> 0 | BN100: 0 | BO100: 0 | BP100: 0 | BQ100: 0 | BR100: 0 | BS100: 0 | BT100: 0 | BU100: 0 | BV100: 0 | BW100: 0
S101: 701～800 | T101: =DSUM($B$3:$N$5008,$M$3,AR94:AT95) -> 0 | V101: =SUM(T101:U101) -> 0 | BN101: 0 | BO101: 0 | BP101: 0 | BQ101: 0 | BR101: 0 | BS101: 0 | BT101: 0 | BU101: 0 | BV101: 0 | BW101: 0
S102: 合計 | T102: MM | V102: =SUM(V94:V101) -> 0 | BN102: 0 | BO102: 0 | BP102: 0 | BQ102: 0 | BR102: 0 | BS102: 0 | BT102: 0 | BU102: 0 | BV102: 0 | BW102: 0
BN103: 0 | BO103: 0 | BP103: 0 | BQ103: 0 | BR103: 0 | BS103: 0 | BT103: 0 | BU103: 0 | BV103: 0 | BW103: 0
BN104: 0 | BO104: 0 | BP104: 0 | BQ104: 0 | BR104: 0 | BS104: 0 | BT104: 0 | BU104: 0 | BV104: 0 | BW104: 0
BN105: 0 | BO105: 0 | BP105: 0 | BQ105: 0 | BR105: 0 | BS105: 0 | BT105: 0 | BU105: 0 | BV105: 0 | BW105: 0
BN106: 0 | BO106: 0 | BP106: 0 | BQ106: 0 | BR106: 0 | BS106: 0 | BT106: 0 | BU106: 0 | BV106: 0 | BW106: 0
BN107: 0 | BO107: 0 | BP107: 0 | BQ107: 0 | BR107: 0 | BS107: 0 | BT107: 0 | BU107: 0 | BV107: 0 | BW107: 0
BN108: 0 | BO108: 0 | BP108: 0 | BQ108: 0 | BR108: 0 | BS108: 0 | BT108: 0 | BU108: 0 | BV108: 0 | BW108: 0
BN109: 0 | BO109: 0 | BP109: 0 | BQ109: 0 | BR109: 0 | BS109: 0 | BT109: 0 | BU109: 0 | BV109: 0 | BW109: 0
BN110: 0 | BO110: 0 | BP110: 0 | BQ110: 0 | BR110: 0 | BS110: 0 | BT110: 0 | BU110: 0 | BV110: 0 | BW110: 0
BN111: 0 | BO111: 0 | BP111: 0 | BQ111: 0 | BR111: 0 | BS111: 0 | BT111: 0 | BU111: 0 | BV111: 0 | BW111: 0
BN112: 0 | BO112: 0 | BP112: 0 | BQ112: 0 | BR112: 0 | BS112: 0 | BT112: 0 | BU112: 0 | BV112: 0 | BW112: 0
BN113: 0 | BO113: 0 | BP113: 0 | BQ113: 0 | BR113: 0 | BS113: 0 | BT113: 0 | BU113: 0 | BV113: 0 | BW113: 0
BN114: 0 | BO114: 0 | BP114: 0 | BQ114: 0 | BR114: 0 | BS114: 0 | BT114: 0 | BU114: 0 | BV114: 0 | BW114: 0
BN115: 0 | BO115: 0 | BP115: 0 | BQ115: 0 | BR115: 0 | BS115: 0 | BT115: 0 | BU115: 0 | BV115: 0 | BW115: 0
BN116: 0 | BO116: 0 | BP116: 0 | BQ116: 0 | BR116: 0 | BS116: 0 | BT116: 0 | BU116: 0 | BV116: 0 | BW116: 0
BN117: 0 | BO117: 0 | BP117: 0 | BQ117: 0 | BR117: 0 | BS117: 0 | BT117: 0 | BU117: 0 | BV117: 0 | BW117: 0
BN118: 0 | BO118: 0 | BP118: 0 | BQ118: 0 | BR118: 0 | BS118: 0 | BT118: 0 | BU118: 0 | BV118: 0 | BW118: 0
BN119: 0 | BO119: 0 | BP119: 0 | BQ119: 0 | BR119: 0 | BS119: 0 | BT119: 0 | BU119: 0 | BV119: 0 | BW119: 0
BN120: 0 | BO120: 0 | BP120: 0 | BQ120: 0 | BR120: 0 | BS120: 0 | BT120: 0 | BU120: 0 | BV120: 0 | BW120: 0
BN121: 0 | BO121: 0 | BP121: 0 | BQ121: 0 | BR121: 0 | BS121: 0 | BT121: 0 | BU121: 0 | BV121: 0 | BW121: 0
BN122: 0 | BO122: 0 | BP122: 0 | BQ122: 0 | BR122: 0 | BS122: 0 | BT122: 0 | BU122: 0 | BV122: 0 | BW122: 0
BN123: 0 | BO123: 0 | BP123: 0 | BQ123: 0 | BR123: 0 | BS123: 0 | BT123: 0 | BU123: 0 | BV123: 0 | BW123: 0
BN124: 0 | BO124: 0 | BP124: 0 | BQ124: 0 | BR124: 0 | BS124: 0 | BT124: 0 | BU124: 0 | BV124: 0 | BW124: 0
BN125: 0 | BO125: 0 | BP125: 0 | BQ125: 0 | BR125: 0 | BS125: 0 | BT125: 0 | BU125: 0 | BV125: 0 | BW125: 0
BN126: 0 | BO126: 0 | BP126: 0 | BQ126: 0 | BR126: 0 | BS126: 0 | BT126: 0 | BU126: 0 | BV126: 0 | BW126: 0
BN127: 0 | BO127: 0 | BP127: 0 | BQ127: 0 | BR127: 0 | BS127: 0 | BT127: 0 | BU127: 0 | BV127: 0 | BW127: 0
BN128: 0 | BO128: 0 | BP128: 0 | BQ128: 0 | BR128: 0 | BS128: 0 | BT128: 0 | BU128: 0 | BV128: 0 | BW128: 0
BN129: 0 | BO129: 0 | BP129: 0 | BQ129: 0 | BR129: 0 | BS129: 0 | BT129: 0 | BU129: 0 | BV129: 0 | BW129: 0
BN130: 0 | BO130: 0 | BP130: 0 | BQ130: 0 | BR130: 0 | BS130: 0 | BT130: 0 | BU130: 0 | BV130: 0 | BW130: 0
BN131: 0 | BO131: 0 | BP131: 0 | BQ131: 0 | BR131: 0 | BS131: 0 | BT131: 0 | BU131: 0 | BV131: 0 | BW131: 0
BN132: 0 | BO132: 0 | BP132: 0 | BQ132: 0 | BR132: 0 | BS132: 0 | BT132: 0 | BU132: 0 | BV132: 0 | BW132: 0
BN133: 0 | BO133: 0 | BP133: 0 | BQ133: 0 | BR133: 0 | BS133: 0 | BT133: 0 | BU133: 0 | BV133: 0 | BW133: 0
BN134: 0 | BO134: 0 | BP134: 0 | BQ134: 0 | BR134: 0 | BS134: 0 | BT134: 0 | BU134: 0 | BV134: 0 | BW134: 0
BN135: 0 | BO135: 0 | BP135: 0 | BQ135: 0 | BR135: 0 | BS135: 0 | BT135: 0 | BU135: 0 | BV135: 0 | BW135: 0
BN136: 0 | BO136: 0 | BP136: 0 | BQ136: 0 | BR136: 0 | BS136: 0 | BT136: 0 | BU136: 0 | BV136: 0 | BW136: 0
BN137: 0 | BO137: 0 | BP137: 0 | BQ137: 0 | BR137: 0 | BS137: 0 | BT137: 0 | BU137: 0 | BV137: 0 | BW137: 0
BN138: 0 | BO138: 0 | BP138: 0 | BQ138: 0 | BR138: 0 | BS138: 0 | BT138: 0 | BU138: 0 | BV138: 0 | BW138: 0
BN139: 0 | BO139: 0 | BP139: 0 | BQ139: 0 | BR139: 0 | BS139: 0 | BT139: 0 | BU139: 0 | BV139: 0 | BW139: 0
BN140: 0 | BO140: 0 | BP140: 0 | BQ140: 0 | BR140: 0 | BS140: 0 | BT140: 0 | BU140: 0 | BV140: 0 | BW140: 0
BN141: 0 | BO141: 0 | BP141: 0 | BQ141: 0 | BR141: 0 | BS141: 0 | BT141: 0 | BU141: 0 | BV141: 0 | BW141: 0
BN142: 0 | BO142: 0 | BP142: 0 | BQ142: 0 | BR142: 0 | BS142: 0 | BT142: 0 | BU142: 0 | BV142: 0 | BW142: 0
BN143: 0 | BO143: 0 | BP143: 0 | BQ143: 0 | BR143: 0 | BS143: 0 | BT143: 0 | BU143: 0 | BV143: 0 | BW143: 0
BN144: 0 | BO144: 0 | BP144: 0 | BQ144: 0 | BR144: 0 | BS144: 0 | BT144: 0 | BU144: 0 | BV144: 0 | BW144: 0
BN145: 0 | BO145: 0 | BP145: 0 | BQ145: 0 | BR145: 0 | BS145: 0 | BT145: 0 | BU145: 0 | BV145: 0 | BW145: 0
BN146: 0 | BO146: 0 | BP146: 0 | BQ146: 0 | BR146: 0 | BS146: 0 | BT146: 0 | BU146: 0 | BV146: 0 | BW146: 0
BN147: 0 | BO147: 0 | BP147: 0 | BQ147: 0 | BR147: 0 | BS147: 0 | BT147: 0 | BU147: 0 | BV147: 0 | BW147: 0
BN148: 0 | BO148: 0 | BP148: 0 | BQ148: 0 | BR148: 0 | BS148: 0 | BT148: 0 | BU148: 0 | BV148: 0 | BW148: 0
BN149: 0 | BO149: 0 | BP149: 0 | BQ149: 0 | BR149: 0 | BS149: 0 | BT149: 0 | BU149: 0 | BV149: 0 | BW149: 0
BN150: 0 | BO150: 0 | BP150: 0 | BQ150: 0 | BR150: 0 | BS150: 0 | BT150: 0 | BU150: 0 | BV150: 0 | BW150: 0
BN151: 0 | BO151: 0 | BP151: 0 | BQ151: 0 | BR151: 0 | BS151: 0 | BT151: 0 | BU151: 0 | BV151: 0 | BW151: 0
BN152: 0 | BO152: 0 | BP152: 0 | BQ152: 0 | BR152: 0 | BS152: 0 | BT152: 0 | BU152: 0 | BV152: 0 | BW152: 0
BN153: 0 | BO153: 0 | BP153: 0 | BQ153: 0 | BR153: 0 | BS153: 0 | BT153: 0 | BU153: 0 | BV153: 0 | BW153: 0
BN154: 0 | BO154: 0 | BP154: 0 | BQ154: 0 | BR154: 0 | BS154: 0 | BT154: 0 | BU154: 0 | BV154: 0 | BW154: 0
BN155: 0 | BO155: 0 | BP155: 0 | BQ155: 0 | BR155: 0 | BS155: 0 | BT155: 0 | BU155: 0 | BV155: 0 | BW155: 0
BN156: 0 | BO156: 0 | BP156: 0 | BQ156: 0 | BR156: 0 | BS156: 0 | BT156: 0 | BU156: 0 | BV156: 0 | BW156: 0
BN157: 0 | BO157: 0 | BP157: 0 | BQ157: 0 | BR157: 0 | BS157: 0 | BT157: 0 | BU157: 0 | BV157: 0 | BW157: 0
BN158: 0 | BO158: 0 | BP158: 0 | BQ158: 0 | BR158: 0 | BS158: 0 | BT158: 0 | BU158: 0 | BV158: 0 | BW158: 0
BN159: 0 | BO159: 0 | BP159: 0 | BQ159: 0 | BR159: 0 | BS159: 0 | BT159: 0 | BU159: 0 | BV159: 0 | BW159: 0
BN160: 0 | BO160: 0 | BP160: 0 | BQ160: 0 | BR160: 0 | BS160: 0 | BT160: 0 | BU160: 0 | BV160: 0 | BW160: 0
BN161: 0 | BO161: 0 | BP161: 0 | BQ161: 0 | BR161: 0 | BS161: 0 | BT161: 0 | BU161: 0 | BV161: 0 | BW161: 0
BN162: 0 | BO162: 0 | BP162: 0 | BQ162: 0 | BR162: 0 | BS162: 0 | BT162: 0 | BU162: 0 | BV162: 0 | BW162: 0
BN163: 0 | BO163: 0 | BP163: 0 | BQ163: 0 | BR163: 0 | BS163: 0 | BT163: 0 | BU163: 0 | BV163: 0 | BW163: 0
BN164: 0 | BO164: 0 | BP164: 0 | BQ164: 0 | BR164: 0 | BS164: 0 | BT164: 0 | BU164: 0 | BV164: 0 | BW164: 0
BN165: 0 | BO165: 0 | BP165: 0 | BQ165: 0 | BR165: 0 | BS165: 0 | BT165: 0 | BU165: 0 | BV165: 0 | BW165: 0
BN166: 0 | BO166: 0 | BP166: 0 | BQ166: 0 | BR166: 0 | BS166: 0 | BT166: 0 | BU166: 0 | BV166: 0 | BW166: 0
BN167: 0 | BO167: 0 | BP167: 0 | BQ167: 0 | BR167: 0 | BS167: 0 | BT167: 0 | BU167: 0 | BV167: 0 | BW167: 0
BN168: 0 | BO168: 0 | BP168: 0 | BQ168: 0 | BR168: 0 | BS168: 0 | BT168: 0 | BU168: 0 | BV168: 0 | BW168: 0
BN169: 0 | BO169: 0 | BP169: 0 | BQ169: 0 | BR169: 0 | BS169: 0 | BT169: 0 | BU169: 0 | BV169: 0 | BW169: 0
BN170: 0 | BO170: 0 | BP170: 0 | BQ170: 0 | BR170: 0 | BS170: 0 | BT170: 0 | BU170: 0 | BV170: 0 | BW170: 0
BN171: 0 | BO171: 0 | BP171: 0 | BQ171: 0 | BR171: 0 | BS171: 0 | BT171: 0 | BU171: 0 | BV171: 0 | BW171: 0
BN172: 0 | BO172: 0 | BP172: 0 | BQ172: 0 | BR172: 0 | BS172: 0 | BT172: 0 | BU172: 0 | BV172: 0 | BW172: 0
BN173: 0 | BO173: 0 | BP173: 0 | BQ173: 0 | BR173: 0 | BS173: 0 | BT173: 0 | BU173: 0 | BV173: 0 | BW173: 0
BN174: 0 | BO174: 0 | BP174: 0 | BQ174: 0 | BR174: 0 | BS174: 0 | BT174: 0 | BU174: 0 | BV174: 0 | BW174: 0
BN175: 0 | BO175: 0 | BP175: 0 | BQ175: 0 | BR175: 0 | BS175: 0 | BT175: 0 | BU175: 0 | BV175: 0 | BW175: 0
BN176: 0 | BO176: 0 | BP176: 0 | BQ176: 0 | BR176: 0 | BS176: 0 | BT176: 0 | BU176: 0 | BV176: 0 | BW176: 0
BN177: 0 | BO177: 0 | BP177: 0 | BQ177: 0 | BR177: 0 | BS177: 0 | BT177: 0 | BU177: 0 | BV177: 0 | BW177: 0
BN178: 0 | BO178: 0 | BP178: 0 | BQ178: 0 | BR178: 0 | BS178: 0 | BT178: 0 | BU178: 0 | BV178: 0 | BW178: 0
BN179: 0 | BO179: 0 | BP179: 0 | BQ179: 0 | BR179: 0 | BS179: 0 | BT179: 0 | BU179: 0 | BV179: 0 | BW179: 0
BN180: 0 | BO180: 0 | BP180: 0 | BQ180: 0 | BR180: 0 | BS180: 0 | BT180: 0 | BU180: 0 | BV180: 0 | BW180: 0
BN181: 0 | BO181: 0 | BP181: 0 | BQ181: 0 | BR181: 0 | BS181: 0 | BT181: 0 | BU181: 0 | BV181: 0 | BW181: 0
BN182: 0 | BO182: 0 | BP182: 0 | BQ182: 0 | BR182: 0 | BS182: 0 | BT182: 0 | BU182: 0 | BV182: 0 | BW182: 0
BN183: 0 | BO183: 0 | BP183: 0 | BQ183: 0 | BR183: 0 | BS183: 0 | BT183: 0 | BU183: 0 | BV183: 0 | BW183: 0
BN184: 0 | BO184: 0 | BP184: 0 | BQ184: 0 | BR184: 0 | BS184: 0 | BT184: 0 | BU184: 0 | BV184: 0 | BW184: 0
BN185: 0 | BO185: 0 | BP185: 0 | BQ185: 0 | BR185: 0 | BS185: 0 | BT185: 0 | BU185: 0 | BV185: 0 | BW185: 0
BN186: 0 | BO186: 0 | BP186: 0 | BQ186: 0 | BR186: 0 | BS186: 0 | BT186: 0 | BU186: 0 | BV186: 0 | BW186: 0
BN187: 0 | BO187: 0 | BP187: 0 | BQ187: 0 | BR187: 0 | BS187: 0 | BT187: 0 | BU187: 0 | BV187: 0 | BW187: 0
BN188: 0 | BO188: 0 | BP188: 0 | BQ188: 0 | BR188: 0 | BS188: 0 | BT188: 0 | BU188: 0 | BV188: 0 | BW188: 0
BN189: 0 | BO189: 0 | BP189: 0 | BQ189: 0 | BR189: 0 | BS189: 0 | BT189: 0 | BU189: 0 | BV189: 0 | BW189: 0
BN190: 0 | BO190: 0 | BP190: 0 | BQ190: 0 | BR190: 0 | BS190: 0 | BT190: 0 | BU190: 0 | BV190: 0 | BW190: 0
BN191: 0 | BO191: 0 | BP191: 0 | BQ191: 0 | BR191: 0 | BS191: 0 | BT191: 0 | BU191: 0 | BV191: 0 | BW191: 0
BN192: 0 | BO192: 0 | BP192: 0 | BQ192: 0 | BR192: 0 | BS192: 0 | BT192: 0 | BU192: 0 | BV192: 0 | BW192: 0
BN193: 0 | BO193: 0 | BP193: 0 | BQ193: 0 | BR193: 0 | BS193: 0 | BT193: 0 | BU193: 0 | BV193: 0 | BW193: 0
BN194: 0 | BO194: 0 | BP194: 0 | BQ194: 0 | BR194: 0 | BS194: 0 | BT194: 0 | BU194: 0 | BV194: 0 | BW194: 0
BN195: 0 | BO195: 0 | BP195: 0 | BQ195: 0 | BR195: 0 | BS195: 0 | BT195: 0 | BU195: 0 | BV195: 0 | BW195: 0
BN196: 0 | BO196: 0 | BP196: 0 | BQ196: 0 | BR196: 0 | BS196: 0 | BT196: 0 | BU196: 0 | BV196: 0 | BW196: 0
BN197: 0 | BO197: 0 | BP197: 0 | BQ197: 0 | BR197: 0 | BS197: 0 | BT197: 0 | BU197: 0 | BV197: 0 | BW197: 0
BN198: 0 | BO198: 0 | BP198: 0 | BQ198: 0 | BR198: 0 | BS198: 0 | BT198: 0 | BU198: 0 | BV198: 0 | BW198: 0
BN199: 0 | BO199: 0 | BP199: 0 | BQ199: 0 | BR199: 0 | BS199: 0 | BT199: 0 | BU199: 0 | BV199: 0 | BW199: 0
BN200: 0 | BO200: 0 | BP200: 0 | BQ200: 0 | BR200: 0 | BS200: 0 | BT200: 0 | BU200: 0 | BV200: 0 | BW200: 0
... 857 more rows

Sheet 来月分仮入力
B2: QD-6822 | C2: 0 | D2: 0 | E2: 2018-01-31
B3: 製番 | C3: 品番１ | D3: 品番２ | E3: 納入日 | F3: 細 品番 | G3: 材質 | H3: 品名 (材料取り） | I3: 形状・寸法 | J3: メーカー | K3: 数量 | L3: 単価 | M3: 金額 | N3: CODE
B4: CC-1863 | C4: 01 | D4: 03 | E4: 2021-03-02 | H4: NNN | K4: 1 | L4: 1000 | M4: 1000 | N4: 5

Sheet 経費本日入力
F1: 行削除は不可です。数式と値のクリアを使用する。
F2: 経費仕入 本日入力伝票分 | J2: =SUM(J4:J1000) -> 0 | L2: =IF((仕入日報!O29+仕入日報!O34)/2=仕入日報!K37-仕入日報!K36,"","転記エラー") ->  | N2: 合計 | O2: =SUM(O5:O13) -> 0 | Q2: K4 | R2: J4 | S2: 本日用端末 | T2: B5 | X2: 昨日のデータ予備保存
B3: 科目 | C3: 科目No | D3: 納入日 | E3: 品名 | F3: 形状・寸法 | G3: メーカー | H3: 数量 | I3: 単価 | J3: 金額 | K3: CODE | N3: 分類計算 | W3: 科目 | X3: 科目No | Y3: 納入日 | Z3: 品名 | AA3: 形状・寸法 | AB3: メーカー | AC3: 数量 | AD3: 単価 | AE3: 金額 | AF3: CODE
N4: 科目No
N5: P-1 | O5: =DSUM($B$3:$K$1000,$J$3,N4:N5) -> 0
N6: 科目No
N7: P-2 | O7: =DSUM($B$3:$K$1000,$J$3,N6:N7) -> 0
N8: 科目No
N9: P-3 | O9: =DSUM($B$3:$K$1000,$J$3,N8:N9) -> 0
N10: 科目No
N11: P-4 | O11: =DSUM($B$3:$K$1000,$J$3,N10:N11) -> 0
N12: 科目No
N13: P-5 | O13: =DSUM($B$3:$K$1000,$J$3,N12:N13) -> 0

Sheet 経理用
C2: =TODAY() -> 2021-07-01 | D2: 仕入先別仕入金額 | H2: =IF(G4=0,"",IF(H4=0,"","ERR")) -> ERR
B3: NO. | C3: 支 払 先 | D3: ソート | E3: 請求額 | F3: 請求合計額 | G3: 当月仕入額 | H3: チェック
B4: 0 | C4: 0 | E4: 0 | F4: =SUM(E4:E364) -> 23945 | G4: =+L7 -> 20345 | H4: =F4-G4 -> 3600
B5: 1 | C5: AAAA | E5: 0 | J5: 当月部品仕入合計額 | L5: =+仕入月合計データ!M2 -> 14345
B6: 2 | C6: BBBB | E6: 0 | J6: 当月経費仕入合計額 | L6: =+経費月合計データ!J2 -> 6000
B7: 3 | C7: CCCC | E7: 0 | K7: 総合計 | L7: =SUM(L5:L6) -> 20345
B8: 4 | C8: DDDD | E8: 200
B9: 5 | C9: EEEE | E9: 900
B10: 6 | C10: FFFF | E10: 1800
B11: 7 | C11: GGGG | E11: 3200
B12: 8 | C12: HHHH | E12: 0
B13: 9 | C13: JJJJ | E13: 0
B14: 10 | C14: KKKK | E14: 0
B15: 11 | C15: LLLL | E15: 0
B16: 12 | C16: MMMM | E16: 0
B17: 13 | C17: NNNN | E17: 0
B18: 14 | C18: PPPP | E18: 0
B19: 15 | C19: QQQQ | E19: 435
B20: 16 | C20: RRRR | E20: 0
B21: 17 | C21: SSSS | E21: 0
B22: 18 | C22: TTTT | E22: 0
B23: 19 | C23: UUUU | E23: 2235
B24: 20 | C24: VVVV | E24: 0
B25: 21 | C25: WWWW | E25: 0
B26: 101 | C26: AAA | E26: 0
B27: 102 | C27: BBB | E27: 0
B28: 103 | C28: CCC | E28: 0
B29: 104 | C29: DDD | E29: 0
B30: 105 | C30: EEE | E30: 0
B31: 106 | C31: FFF | E31: 0
B32: 107 | C32: GGG | E32: 0
B33: 108 | C33: HHH | E33: 0
B34: 109 | C34: LLL | E34: 735
B35: 110 | C35: MMM | E35: 0
B36: 111 | C36: NNN | E36: 0
B37: 112 | C37: PPP | E37: 0
B38: 113 | C38: QQQ | E38: 0
B39: 114 | C39: RRR | E39: 0
B40: 115 | C40: SSS | E40: 0
B41: 116 | C41: TTT | E41: 0
B42: 117 | C42: UUU | E42: 0
B43: 118 | C43: VVV | E43: 0
B44: 119 | C44: WWW | E44: 735
B45: 120 | C45: XXX | E45: 0
B46: 121 | C46: YYY | E46: 0
B47: 122 | C47: ZZZ | E47: 0
B48: 123 | C48: AA1 | E48: 0
B49: 124 | C49: BB1 | E49: 0
B50: 125 | C50: CC1 | E50: 0
B51: 126 | C51: DD1 | E51: 0
B52: 127 | C52: EE1 | E52: 0
B53: 128 | C53: FF1 | E53: 0
B54: 129 | C54: GG1 | E54: 0
B55: 130 | C55: HH1 | E55: 0
B56: 131 | C56: LL1 | E56: 0
B57: 132 | C57: MM1 | E57: 0
B58: 133 | C58: NN1 | E58: 0
B59: 134 | C59: PP1 | E59: 0
B60: 135 | C60: QQ1 | E60: 0
B61: 136 | C61: RR1 | E61: 0
B62: 137 | C62: SS1 | E62: 0
B63: 138 | C63: TT1 | E63: 0
B64: 139 | C64: UU1 | E64: 0
B65: 140 | C65: VV1 | E65: 0
B66: 141 | C66: WW1 | E66: 0
B67: 142 | C67: XX1 | E67: 0
B68: 143 | C68: YY1 | E68: 0
B69: 144 | C69: ZZ1 | E69: 0
B70: 145 | C70: AA2 | E70: 0
B71: 146 | C71: BB2 | E71: 0
B72: 147 | C72: CC2 | E72: 0
B73: 148 | C73: DD2 | E73: 0
B74: 149 | C74: EE2 | E74: 0
B75: 150 | C75: FF2 | E75: 0
B76: 151 | C76: GG2 | E76: 0
B77: 152 | C77: HH2 | E77: 0
B78: 153 | C78: LL2 | E78: 0
B79: 154 | C79: MM2 | E79: 0
B80: 155 | C80: NN2 | E80: 0
B81: 156 | C81: PP2 | E81: 0
B82: 157 | C82: QQ2 | E82: 0
B83: 158 | C83: RR2 | E83: 0
B84: 159 | C84: SS2 | E84: 0
B85: 160 | C85: TT2 | E85: 0
B86: 161 | C86: UU2 | E86: 0
B87: 162 | C87: VV2 | E87: 0
B88: 163 | C88: WW2 | E88: 0
B89: 164 | C89: XX2 | E89: 0
B90: 165 | C90: YY2 | E90: 7000
B91: 166 | C91: ZZ2 | E91: 0
B92: 167 | C92: AA3 | E92: 0
B93: 168 | C93: BB3 | E93: 0
B94: 169 | C94: CC3 | E94: 0
B95: 170 | C95: DD3 | E95: 0
B96: 171 | C96: EE3 | E96: 0
B97: 172 | C97: FF3 | E97: 0
B98: 173 | C98: GG3 | E98: 0
B99: 174 | C99: HH3 | E99: 0
B100: 175 | C100: LL3 | E100: 0
B101: 176 | C101: MM3 | E101: 0
B102: 177 | C102: NN3 | E102: 0
B103: 178 | C103: PP3 | E103: 0
B104: 179 | C104: QQ3 | E104: 0
B105: 180 | C105: RR3 | E105: 0
B106: 181 | C106: SS3 | E106: 0
B107: 182 | C107: TT3 | E107: 0
B108: 183 | C108: UU3 | E108: 0
B109: 184 | C109: VV3 | E109: 0
B110: 185 | C110: WW3 | E110: 0
B111: 186 | C111: XX3 | E111: 0
B112: 187 | C112: YY3 | E112: 0
B113: 188 | C113: ZZ3 | E113: 0
B114: 189 | C114: AA4 | E114: 0
B115: 190 | C115: BB4 | E115: 0
B116: 191 | C116: CC4 | E116: 0
B117: 192 | C117: DD4 | E117: 0
B118: 193 | C118: EE4 | E118: 0
B119: 194 | C119: FF4 | E119: 0
B120: 195 | C120: GG4 | E120: 0
B121: 196 | C121: HH4 | E121: 0
B122: 197 | C122: LL4 | E122: 0
B123: 198 | C123: MM4 | E123: 0
B124: 199 | C124: NN4 | E124: 0
B125: 200 | C125: PP4 | E125: 0
B126: 201 | C126: QQ4 | E126: 0
B127: 202 | C127: RR4 | E127: 0
B128: 203 | C128: SS4 | E128: 0
B129: 204 | C129: TT4 | E129: 0
B130: 205 | C130: UU4 | E130: 0
B131: 206 | C131: VV4 | E131: 0
B132: 207 | C132: WW4 | E132: 0
B133: 208 | C133: XX4 | E133: 0
B134: 209 | C134: YY4 | E134: 0
B135: 210 | C135: ZZ4 | E135: 0
B136: 211 | C136: AA5 | E136: 0
B137: 212 | C137: BB5 | E137: 0
B138: 213 | C138: CC5 | E138: 0
B139: 214 | C139: DD5 | E139: 0
B140: 215 | C140: EE5 | E140: 0
B141: 216 | C141: FF5 | E141: 0
B142: 217 | C142: GG5 | E142: 0
B143: 218 | C143: HH5 | E143: 0
B144: 219 | C144: LL5 | E144: 1035
B145: 220 | C145: MM5 | E145: 0
B146: 221 | C146: NN5 | E146: 0
B147: 222 | C147: PP5 | E147: 0
B148: 223 | C148: QQ5 | E148: 0
B149: 224 | C149: RR5 | E149: 0
B150: 225 | C150: SS5 | E150: 0
B151: 226 | C151: TT5 | E151: 0
B152: 227 | C152: UU5 | E152: 0
B153: 228 | C153: VV5 | E153: 0
B154: 229 | C154: WW5 | E154: 825
B155: 230 | C155: XX5 | E155: 0
B156: 231 | C156: YY5 | E156: 0
B157: 232 | C157: ZZ5 | E157: 0
B158: 233 | C158: AA6 | E158: 0
B159: 234 | C159: BB6 | E159: 0
B160: 235 | C160: CC6 | E160: 0
B161: 236 | C161: DD6 | E161: 0
B162: 237 | C162: EE6 | E162: 0
B163: 238 | C163: FF6 | E163: 0
B164: 239 | C164: GG6 | E164: 0
B165: 240 | C165: HH6 | E165: 0
B166: 241 | C166: LL6 | E166: 0
B167: 242 | C167: MM6 | E167: 0
B168: 243 | C168: NN6 | E168: 0
B169: 244 | C169: PP6 | E169: 0
B170: 245 | C170: QQ6 | E170: 0
B171: 246 | C171: RR6 | E171: 0
B172: 247 | C172: SS6 | E172: 0
B173: 248 | C173: TT6 | E173: 0
B174: 249 | C174: UU6 | E174: 0
B175: 250 | C175: VV6 | E175: 0
B176: 251 | C176: WW6 | E176: 0
B177: 252 | C177: XX6 | E177: 0
B178: 253 | C178: YY6 | E178: 0
B179: 254 | C179: ZZ6 | E179: 0
B180: 255 | C180: AA7 | E180: 0
B181: 256 | C181: BB7 | E181: 0
B182: 257 | C182: CC7 | E182: 0
B183: 258 | C183: DD7 | E183: 0
B184: 259 | C184: EE7 | E184: 0
B185: 260 | C185: FF7 | E185: 0
B186: 261 | C186: GG7 | E186: 0
B187: 262 | C187: HH7 | E187: 0
B188: 263 | C188: LL7 | E188: 0
B189: 264 | C189: MM7 | E189: 0
B190: 265 | C190: NN7 | E190: 0
B191: 266 | C191: PP7 | E191: 0
B192: 267 | C192: QQ7 | E192: 0
B193: 268 | C193: RR7 | E193: 0
B194: 269 | C194: SS7 | E194: 0
B195: 270 | C195: TT7 | E195: 0
B196: 271 | C196: UU7 | E196: 0
B197: 272 | C197: VV7 | E197: 0
B198: 273 | C198: WW7 | E198: 0
B199: 274 | C199: XX7 | E199: 0
B200: 275 | C200: YY7 | E200: 0
B201: 276 | C201: ZZ7 | E201: 0
... 161 more rows

Sheet 計算1
B2: 仕入日報用機種分類の集計 | R2: 仕入先別仕入金額用 | U2: 当月部品合計 | X2: 合計 | Y2: =SUM(S5:S400)+SUM(V5:V400)+SUM(Y5:Y400)+SUM(AB5:AB400)+SUM(AE5:AE400) -> 14345 | AG2: 仕入先別仕入金額用 | AJ2: 当月経費合計 | AM2: 合計 | AN2: =SUM(AH5:AH400)+SUM(AK5:AK400)+SUM(AN5:AN400)+SUM(AQ5:AQ400)+SUM(AT5:AT400) -> 6000
B3: 本日入力分明細（部品本日入力と経費本日入力を基に表示）
C4: AA | D4: BB | E4: CC | F4: DD | G4: EE | H4: FF | I4: GG | J4: HH | K4: LL | L4: MM | M4: 列合計 | N4: 経費 | R4: CODE | U4: CODE | X4: CODE | AA4: CODE | AD4: CODE | AG4: CODE | AJ4: CODE | AM4: CODE | AP4: CODE | AS4: CODE
B5: 合計 | C5: =SUM(C6:C12) -> 3500 | D5: 0 | E5: 100 | F5: 0 | G5: 0 | H5: 0 | I5: 0 | J5: 0 | K5: 0 | L5: 0 | M5: =SUM(C5:L5) -> 3600 | N5: 合計 | O5: =SUM(O6:O9) -> 0 | R5: 1 | S5: =DSUM(仕入月合計データ!$B$3:$N$9771,仕入月合計データ!$M$3,R4:R5) -> 0 | U5: 151 | V5: =DSUM(仕入月合計データ!$B$3:$N$9771,仕入月合計データ!$M$3,U4:U5) -> 0 | X5: 226 | Y5: =DSUM(仕入月合計データ!$B$3:$N$9771,仕入月合計データ!$M$3,X4:X5) -> 0 | AA5: 291 | AB5: =DSUM(仕入月合計データ!$B$3:$N$9771,仕入月合計データ!$M$3,AA4:AA5) -> 0 | AD5: 502 | AE5: =DSUM(仕入月合計データ!$B$3:$N$9771,仕入月合計データ!$M$3,AD4:AD5) -> 0 | AG5: 1 | AH5: =DSUM(経費月合計データ!$B$3:$K$1000,経費月合計データ!$J$3,AG4:AG5) -> 0 | AJ5: 151 | AK5: =DSUM(経費月合計データ!$B$3:$K$1000,経費月合計データ!$J$3,AJ4:AJ5) -> 0 | AM5: 226 | AN5: =DSUM(経費月合計データ!$B$3:$K$1000,経費月合計データ!$J$3,AM4:AM5) -> 0 | AP5: 291 | AQ5: =DSUM(経費月合計データ!$B$3:$K$1000,経費月合計データ!$J$3,AP4:AP5) -> 0 | AS5: 502 | AT5: =DSUM(経費月合計データ!$B$3:$K$1000,経費月合計データ!$J$3,AS4:AS5) -> 0
B6: 0..21 | C6: =+部品本日入力!V4 -> 0 | D6: =+部品本日入力!V14 -> 0 | E6: =+部品本日入力!V24 -> 100 | F6: =+部品本日入力!V34 -> 0 | G6: =+部品本日入力!V44 -> 0 | H6: =+部品本日入力!V54 -> 0 | I6: =部品本日入力!V64 -> 0 | J6: =部品本日入力!V74 -> 0 | K6: =部品本日入力!V84 -> 0 | L6: =+部品本日入力!V94 -> 0 | M6: 100 | N6: P1 | O6: =+経費本日入力!O5 -> 0 | R6: CODE | U6: CODE | X6: CODE | AA6: CODE | AD6: CODE | AG6: CODE | AJ6: CODE | AM6: CODE | AP6: CODE | AS6: CODE
B7: 101..200 | C7: =+部品本日入力!V5 -> 3500 | D7: =+部品本日入力!V15 -> 0 | E7: =+部品本日入力!V25 -> 0 | F7: =+部品本日入力!V35 -> 0 | G7: =+部品本日入力!V45 -> 0 | H7: =+部品本日入力!V55 -> 0 | I7: =部品本日入力!V65 -> 0 | J7: =部品本日入力!V75 -> 0 | K7: =部品本日入力!V85 -> 0 | L7: =+部品本日入力!V95 -> 0 | M7: 3500 | N7: P2 | O7: =+経費本日入力!O7 -> 0 | R7: 2 | S7: =DSUM(仕入月合計データ!$B$3:$N$9771,仕入月合計データ!$M$3,R6:R7) -> 0 | U7: 152 | V7: =DSUM(仕入月合計データ!$B$3:$N$9771,仕入月合計データ!$M$3,U6:U7) -> 0 | X7: 227 | Y7: =DSUM(仕入月合計データ!$B$3:$N$9771,仕入月合計データ!$M$3,X6:X7) -> 0 | AA7: 292 | AB7: =DSUM(仕入月合計データ!$B$3:$N$9771,仕入月合計データ!$M$3,AA6:AA7) -> 0 | AD7: 503 | AE7: =DSUM(仕入月合計データ!$B$3:$N$9771,仕入月合計データ!$M$3,AD6:AD7) -> 0 | AG7: 2 | AH7: =DSUM(経費月合計データ!$B$3:$K$1000,経費月合計データ!$J$3,AG6:AG7) -> 0 | AJ7: 152 | AK7: =DSUM(経費月合計データ!$B$3:$K$1000,経費月合計データ!$J$3,AJ6:AJ7) -> 0 | AM7: 227 | AN7: =DSUM(経費月合計データ!$B$3:$K$1000,経費月合計データ!$J$3,AM6:AM7) -> 0 | AP7: 292 | AQ7: =DSUM(経費月合計データ!$B$3:$K$1000,経費月合計データ!$J$3,AP6:AP7) -> 0 | AS7: 503 | AT7: =DSUM(経費月合計データ!$B$3:$K$1000,経費月合計データ!$J$3,AS6:AS7) -> 0
B8: 201..300 | C8: =+部品本日入力!V6 -> 0 | D8: =+部品本日入力!V16 -> 0 | E8: =+部品本日入力!V26 -> 0 | F8: =+部品本日入力!V36 -> 0 | G8: =+部品本日入力!V46 -> 0 | H8: =+部品本日入力!V56 -> 0 | I8: =部品本日入力!V66 -> 0 | J8: =部品本日入力!V76 -> 0 | K8: =部品本日入力!V86 -> 0 | L8: =+部品本日入力!V96 -> 0 | M8: 0 | N8: P3 | O8: =+経費本日入力!O9 -> 0 | R8: CODE | U8: CODE | X8: CODE | AA8: CODE | AD8: CODE | AG8: CODE | AJ8: CODE | AM8: CODE | AP8: CODE | AS8: CODE
B9: 301..334 | C9: =+部品本日入力!V7 -> 0 | D9: =+部品本日入力!V17 -> 0 | E9: =+部品本日入力!V27 -> 0 | F9: =+部品本日入力!V37 -> 0 | G9: =+部品本日入力!V47 -> 0 | H9: =+部品本日入力!V57 -> 0 | I9: =部品本日入力!V67 -> 0 | J9: =部品本日入力!V77 -> 0 | K9: =部品本日入力!V87 -> 0 | L9: =+部品本日入力!V97 -> 0 | M9: 0 | N9: P4 | O9: =+経費本日入力!O11 -> 0 | R9: 3 | S9: =DSUM(仕入月合計データ!$B$3:$N$9771,仕入月合計データ!$M$3,R8:R9) -> 0 | U9: 153 | V9: =DSUM(仕入月合計データ!$B$3:$N$9771,仕入月合計データ!$M$3,U8:U9) -> 0 | X9: 228 | Y9: =DSUM(仕入月合計データ!$B$3:$N$9771,仕入月合計データ!$M$3,X8:X9) -> 0 | AA9: 293 | AB9: =DSUM(仕入月合計データ!$B$3:$N$9771,仕入月合計データ!$M$3,AA8:AA9) -> 0 | AD9: 504 | AE9: =DSUM(仕入月合計データ!$B$3:$N$9771,仕入月合計データ!$M$3,AD8:AD9) -> 0 | AG9: 3 | AH9: =DSUM(経費月合計データ!$B$3:$K$1000,経費月合計データ!$J$3,AG8:AG9) -> 0 | AJ9: 153 | AK9: =DSUM(経費月合計データ!$B$3:$K$1000,経費月合計データ!$J$3,AJ8:AJ9) -> 0 | AM9: 228 | AN9: =DSUM(経費月合計データ!$B$3:$K$1000,経費月合計データ!$J$3,AM8:AM9) -> 0 | AP9: 293 | AQ9: =DSUM(経費月合計データ!$B$3:$K$1000,経費月合計データ!$J$3,AP8:AP9) -> 0 | AS9: 504 | AT9: =DSUM(経費月合計データ!$B$3:$K$1000,経費月合計データ!$J$3,AS8:AS9) -> 0
B10: 401..426 | C10: =+部品本日入力!V8 -> 0 | D10: =+部品本日入力!V18 -> 0 | E10: =+部品本日入力!V28 -> 0 | F10: =+部品本日入力!V38 -> 0 | G10: =+部品本日入力!V48 -> 0 | H10: =+部品本日入力!V58 -> 0 | I10: =部品本日入力!V68 -> 0 | J10: =部品本日入力!V78 -> 0 | K10: =部品本日入力!V88 -> 0 | L10: =+部品本日入力!V98 -> 0 | M10: 0 | R10: CODE | U10: CODE | X10: CODE | AA10: CODE | AD10: CODE | AG10: CODE | AJ10: CODE | AM10: CODE | AP10: CODE | AS10: CODE
B11: 501..543 | C11: =+部品本日入力!V9 -> 0 | D11: =+部品本日入力!V19 -> 0 | E11: =+部品本日入力!V29 -> 0 | F11: =+部品本日入力!V39 -> 0 | G11: =+部品本日入力!V49 -> 0 | H11: =+部品本日入力!V59 -> 0 | I11: =部品本日入力!V69 -> 0 | J11: =部品本日入力!V79 -> 0 | K11: =部品本日入力!V89 -> 0 | L11: =+部品本日入力!V99 -> 0 | M11: 0 | R11: 4 | S11: =DSUM(仕入月合計データ!$B$3:$N$9771,仕入月合計データ!$M$3,R10:R11) -> 0 | U11: 154 | V11: =DSUM(仕入月合計データ!$B$3:$N$9771,仕入月合計データ!$M$3,U10:U11) -> 0 | X11: 229 | Y11: =DSUM(仕入月合計データ!$B$3:$N$9771,仕入月合計データ!$M$3,X10:X11) -> 0 | AA11: 294 | AB11: =DSUM(仕入月合計データ!$B$3:$N$9771,仕入月合計データ!$M$3,AA10:AA11) -> 0 | AD11: 505 | AE11: =DSUM(仕入月合計データ!$B$3:$N$9771,仕入月合計データ!$M$3,AD10:AD11) -> 0 | AG11: 4 | AH11: =DSUM(経費月合計データ!$B$3:$K$1000,経費月合計データ!$J$3,AG10:AG11) -> 0 | AJ11: 154 | AK11: =DSUM(経費月合計データ!$B$3:$K$1000,経費月合計データ!$J$3,AJ10:AJ11) -> 0 | AM11: 229 | AN11: =DSUM(経費月合計データ!$B$3:$K$1000,経費月合計データ!$J$3,AM10:AM11) -> 0 | AP11: 294 | AQ11: =DSUM(経費月合計データ!$B$3:$K$1000,経費月合計データ!$J$3,AP10:AP11) -> 0 | AS11: 505 | AT11: =DSUM(経費月合計データ!$B$3:$K$1000,経費月合計データ!$J$3,AS10:AS11) -> 0
B12: 601..635 | R12: CODE | U12: CODE | X12: CODE | AA12: CODE | AD12: CODE | AG12: CODE | AJ12: CODE | AM12: CODE | AP12: CODE | AS12: CODE
R13: 5 | S13: =DSUM(仕入月合計データ!$B$3:$N$9771,仕入月合計データ!$M$3,R12:R13) -> 0 | U13: 155 | V13: =DSUM(仕入月合計データ!$B$3:$N$9771,仕入月合計データ!$M$3,U12:U13) -> 0 | X13: 230 | Y13: =DSUM(仕入月合計データ!$B$3:$N$9771,仕入月合計データ!$M$3,X12:X13) -> 825 | AA13: 295 | AB13: =DSUM(仕入月合計データ!$B$3:$N$9771,仕入月合計データ!$M$3,AA12:AA13) -> 0 | AD13: 506 | AE13: =DSUM(仕入月合計データ!$B$3:$N$9771,仕入月合計データ!$M$3,AD12:AD13) -> 0 | AG13: 5 | AH13: =DSUM(経費月合計データ!$B$3:$K$1000,経費月合計データ!$J$3,AG12:AG13) -> 200 | AJ13: 155 | AK13: =DSUM(経費月合計データ!$B$3:$K$1000,経費月合計データ!$J$3,AJ12:AJ13) -> 0 | AM13: 230 | AN13: =DSUM(経費月合計データ!$B$3:$K$1000,経費月合計データ!$J$3,AM12:AM13) -> 0 | AP13: 295 | AQ13: =DSUM(経費月合計データ!$B$3:$K$1000,経費月合計データ!$J$3,AP12:AP13) -> 0 | AS13: 506 | AT13: =DSUM(経費月合計データ!$B$3:$K$1000,経費月合計データ!$J$3,AS12:AS13) -> 0
L14: 合計 | M14: =SUM(M6:M13) -> 3600 | N14: 総合計 | O14: =+M14+O5 -> 3600 | R14: CODE | U14: CODE | X14: CODE | AA14: CODE | AD14: CODE | AG14: CODE | AJ14: CODE | AM14: CODE | AP14: CODE | AS14: CODE
B15: 当月仕入分明細（仕入月合計データと経費月合計データを基に表示） | H15: （本日入力分は含まない） | R15: 6 | S15: =DSUM(仕入月合計データ!$B$3:$N$9771,仕入月合計データ!$M$3,R14:R15) -> 0 | U15: 156 | V15: =DSUM(仕入月合計データ!$B$3:$N$9771,仕入月合計データ!$M$3,U14:U15) -> 0 | X15: 231 | Y15: =DSUM(仕入月合計データ!$B$3:$N$9771,仕入月合計データ!$M$3,X14:X15) -> 0 | AA15: 296 | AB15: =DSUM(仕入月合計データ!$B$3:$N$9771,仕入月合計データ!$M$3,AA14:AA15) -> 0 | AD15: 507 | AE15: =DSUM(仕入月合計データ!$B$3:$N$9771,仕入月合計データ!$M$3,AD14:AD15) -> 0 | AG15: 6 | AH15: =DSUM(経費月合計データ!$B$3:$K$1000,経費月合計データ!$J$3,AG14:AG15) -> 800 | AJ15: 156 | AK15: =DSUM(経費月合計データ!$B$3:$K$1000,経費月合計データ!$J$3,AJ14:AJ15) -> 0 | AM15: 231 | AN15: =DSUM(経費月合計データ!$B$3:$K$1000,経費月合計データ!$J$3,AM14:AM15) -> 0 | AP15: 296 | AQ15: =DSUM(経費月合計データ!$B$3:$K$1000,経費月合計データ!$J$3,AP14:AP15) -> 0 | AS15: 507 | AT15: =DSUM(経費月合計データ!$B$3:$K$1000,経費月合計データ!$J$3,AS14:AS15) -> 0
C16: AA | D16: BB | E16: CC | F16: DD | G16: EE | H16: FF | I16: GG | J16: HH | K16: LL | L16: MM | M16: 列合計 | N16: 経費 | R16: CODE | U16: CODE | X16: CODE | AA16: CODE | AD16: CODE | AG16: CODE | AJ16: CODE | AM16: CODE | AP16: CODE | AS16: CODE
B17: 合計 | C17: =SUM(C18:C25) -> 4710 | D17: 1457 | E17: 882 | F17: 903 | G17: 1458 | H17: 945 | I17: 966 | J17: 987 | K17: 1008 | L17: 1029 | M17: =SUM(C17:L17) -> 14345 | R17: 7 | S17: =DSUM(仕入月合計データ!$B$3:$N$9771,仕入月合計データ!$M$3,R16:R17) -> 0 | U17: 157 | V17: =DSUM(仕入月合計データ!$B$3:$N$9771,仕入月合計データ!$M$3,U16:U17) -> 0 | X17: 232 | Y17: =DSUM(仕入月合計データ!$B$3:$N$9771,仕入月合計データ!$M$3,X16:X17) -> 0 | AA17: 297 | AB17: =DSUM(仕入月合計データ!$B$3:$N$9771,仕入月合計データ!$M$3,AA16:AA17) -> 0 | AD17: 508 | AE17: =DSUM(仕入月合計データ!$B$3:$N$9771,仕入月合計データ!$M$3,AD16:AD17) -> 0 | AG17: 7 | AH17: =DSUM(経費月合計データ!$B$3:$K$1000,経費月合計データ!$J$3,AG16:AG17) -> 1800 | AJ17: 157 | AK17: =DSUM(経費月合計データ!$B$3:$K$1000,経費月合計データ!$J$3,AJ16:AJ17) -> 0 | AM17: 232 | AN17: =DSUM(経費月合計データ!$B$3:$K$1000,経費月合計データ!$J$3,AM16:AM17) -> 0 | AP17: 297 | AQ17: =DSUM(経費月合計データ!$B$3:$K$1000,経費月合計データ!$J$3,AP16:AP17) -> 0 | AS17: 508 | AT17: =DSUM(経費月合計データ!$B$3:$K$1000,経費月合計データ!$J$3,AS16:AS17) -> 0
B18: 0..21 | C18: =+仕入月合計データ!U4 -> 240 | D18: =+仕入月合計データ!U14 -> 246 | E18: =+仕入月合計データ!U24 -> 252 | F18: =+仕入月合計データ!U34 -> 258 | G18: =+仕入月合計データ!U44 -> 264 | H18: =+仕入月合計データ!U54 -> 270 | I18: =仕入月合計データ!U64 -> 276 | J18: =仕入月合計データ!U74 -> 282 | K18: =仕入月合計データ!U84 -> 288 | L18: =+仕入月合計データ!U94 -> 294 | M18: 2670 | N18: P1 | O18: =+経費月合計データ!O5 -> 200 | R18: CODE | U18: CODE | X18: CODE | AA18: CODE | AD18: CODE | AG18: CODE | AJ18: CODE | AM18: CODE | AP18: CODE | AS18: CODE
B19: 101..200 | C19: =+仕入月合計データ!U5 -> 3720 | D19: =+仕入月合計データ!U15 -> 386 | E19: =+仕入月合計データ!U25 -> 66 | F19: =+仕入月合計データ!U35 -> 69 | G19: =+仕入月合計データ!U45 -> 324 | H19: =+仕入月合計データ!U55 -> 75 | I19: =仕入月合計データ!U65 -> 78 | J19: =仕入月合計データ!U75 -> 81 | K19: =仕入月合計データ!U85 -> 84 | L19: =+仕入月合計データ!U95 -> 87 | M19: 4970 | N19: P2 | O19: =+経費月合計データ!O7 -> 800 | R19: 8 | S19: =DSUM(仕入月合計データ!$B$3:$N$9771,仕入月合計データ!$M$3,R18:R19) -> 0 | U19: 158 | V19: =DSUM(仕入月合計データ!$B$3:$N$9771,仕入月合計データ!$M$3,U18:U19) -> 0 | X19: 233 | Y19: =DSUM(仕入月合計データ!$B$3:$N$9771,仕入月合計データ!$M$3,X18:X19) -> 0 | AA19: 298 | AB19: =DSUM(仕入月合計データ!$B$3:$N$9771,仕入月合計データ!$M$3,AA18:AA19) -> 0 | AD19: 509 | AE19: =DSUM(仕入月合計データ!$B$3:$N$9771,仕入月合計データ!$M$3,AD18:AD19) -> 0 | AG19: 8 | AH19: =DSUM(経費月合計データ!$B$3:$K$1000,経費月合計データ!$J$3,AG18:AG19) -> 3200 | AJ19: 158 | AK19: =DSUM(経費月合計データ!$B$3:$K$1000,経費月合計データ!$J$3,AJ18:AJ19) -> 0 | AM19: 233 | AN19: =DSUM(経費月合計データ!$B$3:$K$1000,経費月合計データ!$J$3,AM18:AM19) -> 0 | AP19: 298 | AQ19: =DSUM(経費月合計データ!$B$3:$K$1000,経費月合計データ!$J$3,AP18:AP19) -> 0 | AS19: 509 | AT19: =DSUM(経費月合計データ!$B$3:$K$1000,経費月合計データ!$J$3,AS18:AS19) -> 0
B20: 201..300 | C20: =+仕入月合計データ!U6 -> 360 | D20: =+仕入月合計データ!U16 -> 366 | E20: =+仕入月合計データ!U26 -> 96 | F20: =+仕入月合計データ!U36 -> 99 | G20: =+仕入月合計データ!U46 -> 384 | H20: =+仕入月合計データ!U56 -> 105 | I20: =仕入月合計データ!U66 -> 108 | J20: =仕入月合計データ!U76 -> 111 | K20: =仕入月合計データ!U86 -> 114 | L20: =+仕入月合計データ!U96 -> 117 | M20: 1860 | N20: P3 | O20: =+経費月合計データ!O9 -> 1800 | R20: CODE | U20: CODE | X20: CODE | AA20: CODE | AD20: CODE | AG20: CODE | AJ20: CODE | AM20: CODE | AP20: CODE | AS20: CODE
B21: 301..334 | C21: =+仕入月合計データ!U7 -> 120 | D21: =+仕入月合計データ!U17 -> 123 | E21: =+仕入月合計データ!U27 -> 126 | F21: =+仕入月合計データ!U37 -> 129 | G21: =+仕入月合計データ!U47 -> 132 | H21: =+仕入月合計データ!U57 -> 135 | I21: =仕入月合計データ!U67 -> 138 | J21: =仕入月合計データ!U77 -> 141 | K21: =仕入月合計データ!U87 -> 144 | L21: =+仕入月合計データ!U97 -> 147 | M21: 1335 | N21: P4 | O21: =+経費月合計データ!O11 -> 3200 | R21: 9 | S21: =DSUM(仕入月合計データ!$B$3:$N$9771,仕入月合計データ!$M$3,R20:R21) -> 0 | U21: 159 | V21: =DSUM(仕入月合計データ!$B$3:$N$9771,仕入月合計データ!$M$3,U20:U21) -> 0 | X21: 234 | Y21: =DSUM(仕入月合計データ!$B$3:$N$9771,仕入月合計データ!$M$3,X20:X21) -> 0 | AA21: 299 | AB21: =DSUM(仕入月合計データ!$B$3:$N$9771,仕入月合計データ!$M$3,AA20:AA21) -> 0 | AD21: 510 | AE21: =DSUM(仕入月合計データ!$B$3:$N$9771,仕入月合計データ!$M$3,AD20:AD21) -> 0 | AG21: 9 | AH21: =DSUM(経費月合計データ!$B$3:$K$1000,経費月合計データ!$J$3,AG20:AG21) -> 0 | AJ21: 159 | AK21: =DSUM(経費月合計データ!$B$3:$K$1000,経費月合計データ!$J$3,AJ20:AJ21) -> 0 | AM21: 234 | AN21: =DSUM(経費月合計データ!$B$3:$K$1000,経費月合計データ!$J$3,AM20:AM21) -> 0 | AP21: 299 | AQ21: =DSUM(経費月合計データ!$B$3:$K$1000,経費月合計データ!$J$3,AP20:AP21) -> 0 | AS21: 510 | AT21: =DSUM(経費月合計データ!$B$3:$K$1000,経費月合計データ!$J$3,AS20:AS21) -> 0
B22: 401..426 | C22: =+仕入月合計データ!U8 -> 150 | D22: =+仕入月合計データ!U18 -> 153 | E22: =+仕入月合計データ!U28 -> 156 | F22: =+仕入月合計データ!U38 -> 159 | G22: =+仕入月合計データ!U48 -> 162 | H22: =+仕入月合計データ!U58 -> 165 | I22: =仕入月合計データ!U68 -> 168 | J22: =仕入月合計データ!U78 -> 171 | K22: =仕入月合計データ!U88 -> 174 | L22: =+仕入月合計データ!U98 -> 177 | M22: 1635 | R22: CODE | U22: CODE | X22: CODE | AA22: CODE | AD22: CODE | AG22: CODE | AJ22: CODE | AM22: CODE | AP22: CODE | AS22: CODE
B23: 501..543 | C23: =+仕入月合計データ!U9 -> 120 | D23: =+仕入月合計データ!U19 -> 183 | E23: =+仕入月合計データ!U29 -> 186 | F23: =+仕入月合計データ!U39 -> 189 | G23: =+仕入月合計データ!U49 -> 192 | H23: =+仕入月合計データ!U59 -> 195 | I23: =仕入月合計データ!U69 -> 198 | J23: =仕入月合計データ!U79 -> 201 | K23: =仕入月合計データ!U89 -> 204 | L23: =+仕入月合計データ!U99 -> 207 | M23: 1875 | R23: 10 | S23: =DSUM(仕入月合計データ!$B$3:$N$9771,仕入月合計データ!$M$3,R22:R23) -> 0 | U23: 160 | V23: =DSUM(仕入月合計データ!$B$3:$N$9771,仕入月合計データ!$M$3,U22:U23) -> 0 | X23: 235 | Y23: =DSUM(仕入月合計データ!$B$3:$N$9771,仕入月合計データ!$M$3,X22:X23) -> 0 | AA23: 300 | AB23: =DSUM(仕入月合計データ!$B$3:$N$9771,仕入月合計データ!$M$3,AA22:AA23) -> 0 | AD23: 511 | AE23: =DSUM(仕入月合計データ!$B$3:$N$9771,仕入月合計データ!$M$3,AD22:AD23) -> 0 | AG23: 10 | AH23: =DSUM(経費月合計データ!$B$3:$K$1000,経費月合計データ!$J$3,AG22:AG23) -> 0 | AJ23: 160 | AK23: =DSUM(経費月合計データ!$B$3:$K$1000,経費月合計データ!$J$3,AJ22:AJ23) -> 0 | AM23: 235 | AN23: =DSUM(経費月合計データ!$B$3:$K$1000,経費月合計データ!$J$3,AM22:AM23) -> 0 | AP23: 300 | AQ23: =DSUM(経費月合計データ!$B$3:$K$1000,経費月合計データ!$J$3,AP22:AP23) -> 0 | AS23: 511 | AT23: =DSUM(経費月合計データ!$B$3:$K$1000,経費月合計データ!$J$3,AS22:AS23) -> 0
B24: 601..635 | R24: CODE | U24: CODE | X24: CODE | AA24: CODE | AD24: CODE | AG24: CODE | AJ24: CODE | AM24: CODE | AP24: CODE | AS24: CODE
R25: 11 | S25: =DSUM(仕入月合計データ!$B$3:$N$9771,仕入月合計データ!$M$3,R24:R25) -> 0 | U25: 161 | V25: =DSUM(仕入月合計データ!$B$3:$N$9771,仕入月合計データ!$M$3,U24:U25) -> 0 | X25: 236 | Y25: =DSUM(仕入月合計データ!$B$3:$N$9771,仕入月合計データ!$M$3,X24:X25) -> 0 | AA25: 301 | AB25: =DSUM(仕入月合計データ!$B$3:$N$9771,仕入月合計データ!$M$3,AA24:AA25) -> 0 | AD25: 512 | AE25: =DSUM(仕入月合計データ!$B$3:$N$9771,仕入月合計データ!$M$3,AD24:AD25) -> 0 | AG25: 11 | AH25: =DSUM(経費月合計データ!$B$3:$K$1000,経費月合計データ!$J$3,AG24:AG25) -> 0 | AJ25: 161 | AK25: =DSUM(経費月合計データ!$B$3:$K$1000,経費月合計データ!$J$3,AJ24:AJ25) -> 0 | AM25: 236 | AN25: =DSUM(経費月合計データ!$B$3:$K$1000,経費月合計データ!$J$3,AM24:AM25) -> 0 | AP25: 301 | AQ25: =DSUM(経費月合計データ!$B$3:$K$1000,経費月合計データ!$J$3,AP24:AP25) -> 0 | AS25: 512 | AT25: =DSUM(経費月合計データ!$B$3:$K$1000,経費月合計データ!$J$3,AS24:AS25) -> 0
L26: 合計 | M26: =SUM(M18:M25) -> 14345 | N26: 合計 | O26: =SUM(O18:O23) -> 6000 | R26: CODE | U26: CODE | X26: CODE | AA26: CODE | AD26: CODE | AG26: CODE | AJ26: CODE | AM26: CODE | AP26: CODE | AS26: CODE
N27: 総合計 | O27: =+O26+M26 -> 20345 | R27: 12 | S27: =DSUM(仕入月合計データ!$B$3:$N$9771,仕入月合計データ!$M$3,R26:R27) -> 0 | U27: 162 | V27: =DSUM(仕入月合計データ!$B$3:$N$9771,仕入月合計データ!$M$3,U26:U27) -> 0 | X27: 237 | Y27: =DSUM(仕入月合計データ!$B$3:$N$9771,仕入月合計データ!$M$3,X26:X27) -> 0 | AA27: 302 | AB27: =DSUM(仕入月合計データ!$B$3:$N$9771,仕入月合計データ!$M$3,AA26:AA27) -> 0 | AD27: 513 | AE27: =DSUM(仕入月合計データ!$B$3:$N$9771,仕入月合計データ!$M$3,AD26:AD27) -> 0 | AG27: 12 | AH27: =DSUM(経費月合計データ!$B$3:$K$1000,経費月合計データ!$J$3,AG26:AG27) -> 0 | AJ27: 162 | AK27: =DSUM(経費月合計データ!$B$3:$K$1000,経費月合計データ!$J$3,AJ26:AJ27) -> 0 | AM27: 237 | AN27: =DSUM(経費月合計データ!$B$3:$K$1000,経費月合計データ!$J$3,AM26:AM27) -> 0 | AP27: 302 | AQ27: =DSUM(経費月合計データ!$B$3:$K$1000,経費月合計データ!$J$3,AP26:AP27) -> 0 | AS27: 513 | AT27: =DSUM(経費月合計データ!$B$3:$K$1000,経費月合計データ!$J$3,AS26:AS27) -> 0
R28: CODE | U28: CODE | X28: CODE | AA28: CODE | AD28: CODE | AG28: CODE | AJ28: CODE | AM28: CODE | AP28: CODE | AS28: CODE
I29: データベースの当月仕入額 | M29: 部品仕入額 | N29: 経費仕入額 | O29: 総合計 | R29: 13 | S29: =DSUM(仕入月合計データ!$B$3:$N$9771,仕入月合計データ!$M$3,R28:R29) -> 0 | U29: 163 | V29: =DSUM(仕入月合計データ!$B$3:$N$9771,仕入月合計データ!$M$3,U28:U29) -> 0 | X29: 238 | Y29: =DSUM(仕入月合計データ!$B$3:$N$9771,仕入月合計データ!$M$3,X28:X29) -> 0 | AA29: 303 | AB29: =DSUM(仕入月合計データ!$B$3:$N$9771,仕入月合計データ!$M$3,AA28:AA29) -> 0 | AD29: 514 | AE29: =DSUM(仕入月合計データ!$B$3:$N$9771,仕入月合計データ!$M$3,AD28:AD29) -> 0 | AG29: 13 | AH29: =DSUM(経費月合計データ!$B$3:$K$1000,経費月合計データ!$J$3,AG28:AG29) -> 0 | AJ29: 163 | AK29: =DSUM(経費月合計データ!$B$3:$K$1000,経費月合計データ!$J$3,AJ28:AJ29) -> 0 | AM29: 238 | AN29: =DSUM(経費月合計データ!$B$3:$K$1000,経費月合計データ!$J$3,AM28:AM29) -> 0 | AP29: 303 | AQ29: =DSUM(経費月合計データ!$B$3:$K$1000,経費月合計データ!$J$3,AP28:AP29) -> 0 | AS29: 514 | AT29: =DSUM(経費月合計データ!$B$3:$K$1000,経費月合計データ!$J$3,AS28:AS29) -> 0
M30: =[3]当月!$J$2 -> 14345 | N30: =[4]当月!$J$2 -> 6000 | O30: =SUM(M30:N30) -> 20345 | R30: CODE | U30: CODE | X30: CODE | AA30: CODE | AD30: CODE | AG30: CODE | AJ30: CODE | AM30: CODE | AP30: CODE | AS30: CODE
R31: 14 | S31: =DSUM(仕入月合計データ!$B$3:$N$9771,仕入月合計データ!$M$3,R30:R31) -> 0 | U31: 164 | V31: =DSUM(仕入月合計データ!$B$3:$N$9771,仕入月合計データ!$M$3,U30:U31) -> 0 | X31: 239 | Y31: =DSUM(仕入月合計データ!$B$3:$N$9771,仕入月合計データ!$M$3,X30:X31) -> 0 | AA31: 304 | AB31: =DSUM(仕入月合計データ!$B$3:$N$9771,仕入月合計データ!$M$3,AA30:AA31) -> 0 | AD31: 515 | AE31: =DSUM(仕入月合計データ!$B$3:$N$9771,仕入月合計データ!$M$3,AD30:AD31) -> 0 | AG31: 14 | AH31: =DSUM(経費月合計データ!$B$3:$K$1000,経費月合計データ!$J$3,AG30:AG31) -> 0 | AJ31: 164 | AK31: =DSUM(経費月合計データ!$B$3:$K$1000,経費月合計データ!$J$3,AJ30:AJ31) -> 0 | AM31: 239 | AN31: =DSUM(経費月合計データ!$B$3:$K$1000,経費月合計データ!$J$3,AM30:AM31) -> 0 | AP31: 304 | AQ31: =DSUM(経費月合計データ!$B$3:$K$1000,経費月合計データ!$J$3,AP30:AP31) -> 0 | AS31: 515 | AT31: =DSUM(経費月合計データ!$B$3:$K$1000,経費月合計データ!$J$3,AS30:AS31) -> 0
I32: データベースファイルと仕入伝票入力ファイルの金額比較 | O32: =IF(O27=O30,"OK","エラー") -> OK | R32: CODE | U32: CODE | X32: CODE | AA32: CODE | AD32: CODE | AG32: CODE | AJ32: CODE | AM32: CODE | AP32: CODE | AS32: CODE
R33: 15 | S33: =DSUM(仕入月合計データ!$B$3:$N$9771,仕入月合計データ!$M$3,R32:R33) -> 0 | U33: 165 | V33: =DSUM(仕入月合計データ!$B$3:$N$9771,仕入月合計データ!$M$3,U32:U33) -> 0 | X33: 240 | Y33: =DSUM(仕入月合計データ!$B$3:$N$9771,仕入月合計データ!$M$3,X32:X33) -> 0 | AA33: 305 | AB33: =DSUM(仕入月合計データ!$B$3:$N$9771,仕入月合計データ!$M$3,AA32:AA33) -> 0 | AD33: 516 | AE33: =DSUM(仕入月合計データ!$B$3:$N$9771,仕入月合計データ!$M$3,AD32:AD33) -> 0 | AG33: 15 | AH33: =DSUM(経費月合計データ!$B$3:$K$1000,経費月合計データ!$J$3,AG32:AG33) -> 0 | AJ33: 165 | AK33: =DSUM(経費月合計データ!$B$3:$K$1000,経費月合計データ!$J$3,AJ32:AJ33) -> 0 | AM33: 240 | AN33: =DSUM(経費月合計データ!$B$3:$K$1000,経費月合計データ!$J$3,AM32:AM33) -> 0 | AP33: 305 | AQ33: =DSUM(経費月合計データ!$B$3:$K$1000,経費月合計データ!$J$3,AP32:AP33) -> 0 | AS33: 516 | AT33: =DSUM(経費月合計データ!$B$3:$K$1000,経費月合計データ!$J$3,AS32:AS33) -> 0
O34: =IF(M26-Y2=0,"","ERR") ->  | R34: CODE | U34: CODE | X34: CODE | AA34: CODE | AD34: CODE | AG34: CODE | AJ34: CODE | AM34: CODE | AP34: CODE | AS34: CODE
R35: 16 | S35: =DSUM(仕入月合計データ!$B$3:$N$9771,仕入月合計データ!$M$3,R34:R35) -> 435 | U35: 166 | V35: =DSUM(仕入月合計データ!$B$3:$N$9771,仕入月合計データ!$M$3,U34:U35) -> 3500 | X35: 241 | Y35: =DSUM(仕入月合計データ!$B$3:$N$9771,仕入月合計データ!$M$3,X34:X35) -> 0 | AA35: 306 | AB35: =DSUM(仕入月合計データ!$B$3:$N$9771,仕入月合計データ!$M$3,AA34:AA35) -> 0 | AD35: 517 | AE35: =DSUM(仕入月合計データ!$B$3:$N$9771,仕入月合計データ!$M$3,AD34:AD35) -> 0 | AG35: 16 | AH35: =DSUM(経費月合計データ!$B$3:$K$1000,経費月合計データ!$J$3,AG34:AG35) -> 0 | AJ35: 166 | AK35: =DSUM(経費月合計データ!$B$3:$K$1000,経費月合計データ!$J$3,AJ34:AJ35) -> 0 | AM35: 241 | AN35: =DSUM(経費月合計データ!$B$3:$K$1000,経費月合計データ!$J$3,AM34:AM35) -> 0 | AP35: 306 | AQ35: =DSUM(経費月合計データ!$B$3:$K$1000,経費月合計データ!$J$3,AP34:AP35) -> 0 | AS35: 517 | AT35: =DSUM(経費月合計データ!$B$3:$K$1000,経費月合計データ!$J$3,AS34:AS35) -> 0
R36: CODE | U36: CODE | X36: CODE | AA36: CODE | AD36: CODE | AG36: CODE | AJ36: CODE | AM36: CODE | AP36: CODE | AS36: CODE
R37: 17 | S37: =DSUM(仕入月合計データ!$B$3:$N$9771,仕入月合計データ!$M$3,R36:R37) -> 0 | U37: 167 | V37: =DSUM(仕入月合計データ!$B$3:$N$9771,仕入月合計データ!$M$3,U36:U37) -> 0 | X37: 242 | Y37: =DSUM(仕入月合計データ!$B$3:$N$9771,仕入月合計データ!$M$3,X36:X37) -> 0 | AA37: 307 | AB37: =DSUM(仕入月合計データ!$B$3:$N$9771,仕入月合計データ!$M$3,AA36:AA37) -> 0 | AD37: 518 | AE37: =DSUM(仕入月合計データ!$B$3:$N$9771,仕入月合計データ!$M$3,AD36:AD37) -> 0 | AG37: 17 | AH37: =DSUM(経費月合計データ!$B$3:$K$1000,経費月合計データ!$J$3,AG36:AG37) -> 0 | AJ37: 167 | AK37: =DSUM(経費月合計データ!$B$3:$K$1000,経費月合計データ!$J$3,AJ36:AJ37) -> 0 | AM37: 242 | AN37: =DSUM(経費月合計データ!$B$3:$K$1000,経費月合計データ!$J$3,AM36:AM37) -> 0 | AP37: 307 | AQ37: =DSUM(経費月合計データ!$B$3:$K$1000,経費月合計データ!$J$3,AP36:AP37) -> 0 | AS37: 518 | AT37: =DSUM(経費月合計データ!$B$3:$K$1000,経費月合計データ!$J$3,AS36:AS37) -> 0
R38: CODE | U38: CODE | X38: CODE | AA38: CODE | AD38: CODE | AG38: CODE | AJ38: CODE | AM38: CODE | AP38: CODE | AS38: CODE
R39: 18 | S39: =DSUM(仕入月合計データ!$B$3:$N$9771,仕入月合計データ!$M$3,R38:R39) -> 0 | U39: 168 | V39: =DSUM(仕入月合計データ!$B$3:$N$9771,仕入月合計データ!$M$3,U38:U39) -> 0 | X39: 243 | Y39: =DSUM(仕入月合計データ!$B$3:$N$9771,仕入月合計データ!$M$3,X38:X39) -> 0 | AA39: 308 | AB39: =DSUM(仕入月合計データ!$B$3:$N$9771,仕入月合計データ!$M$3,AA38:AA39) -> 0 | AD39: 519 | AE39: =DSUM(仕入月合計データ!$B$3:$N$9771,仕入月合計データ!$M$3,AD38:AD39) -> 0 | AG39: 18 | AH39: =DSUM(経費月合計データ!$B$3:$K$1000,経費月合計データ!$J$3,AG38:AG39) -> 0 | AJ39: 168 | AK39: =DSUM(経費月合計データ!$B$3:$K$1000,経費月合計データ!$J$3,AJ38:AJ39) -> 0 | AM39: 243 | AN39: =DSUM(経費月合計データ!$B$3:$K$1000,経費月合計データ!$J$3,AM38:AM39) -> 0 | AP39: 308 | AQ39: =DSUM(経費月合計データ!$B$3:$K$1000,経費月合計データ!$J$3,AP38:AP39) -> 0 | AS39: 519 | AT39: =DSUM(経費月合計データ!$B$3:$K$1000,経費月合計データ!$J$3,AS38:AS39) -> 0
R40: CODE | U40: CODE | X40: CODE | AA40: CODE | AD40: CODE | AG40: CODE | AJ40: CODE | AM40: CODE | AP40: CODE | AS40: CODE
R41: 19 | S41: =DSUM(仕入月合計データ!$B$3:$N$9771,仕入月合計データ!$M$3,R40:R41) -> 0 | U41: 169 | V41: =DSUM(仕入月合計データ!$B$3:$N$9771,仕入月合計データ!$M$3,U40:U41) -> 0 | X41: 244 | Y41: =DSUM(仕入月合計データ!$B$3:$N$9771,仕入月合計データ!$M$3,X40:X41) -> 0 | AA41: 309 | AB41: =DSUM(仕入月合計データ!$B$3:$N$9771,仕入月合計データ!$M$3,AA40:AA41) -> 0 | AD41: 520 | AE41: =DSUM(仕入月合計データ!$B$3:$N$9771,仕入月合計データ!$M$3,AD40:AD41) -> 0 | AG41: 19 | AH41: =DSUM(経費月合計データ!$B$3:$K$1000,経費月合計データ!$J$3,AG40:AG41) -> 0 | AJ41: 169 | AK41: =DSUM(経費月合計データ!$B$3:$K$1000,経費月合計データ!$J$3,AJ40:AJ41) -> 0 | AM41: 244 | AN41: =DSUM(経費月合計データ!$B$3:$K$1000,経費月合計データ!$J$3,AM40:AM41) -> 0 | AP41: 309 | AQ41: =DSUM(経費月合計データ!$B$3:$K$1000,経費月合計データ!$J$3,AP40:AP41) -> 0 | AS41: 520 | AT41: =DSUM(経費月合計データ!$B$3:$K$1000,経費月合計データ!$J$3,AS40:AS41) -> 0
R42: CODE | U42: CODE | X42: CODE | AA42: CODE | AD42: CODE | AG42: CODE | AJ42: CODE | AM42: CODE | AP42: CODE | AS42: CODE
R43: 20 | S43: =DSUM(仕入月合計データ!$B$3:$N$9771,仕入月合計データ!$M$3,R42:R43) -> 2235 | U43: 170 | V43: =DSUM(仕入月合計データ!$B$3:$N$9771,仕入月合計データ!$M$3,U42:U43) -> 0 | X43: 245 | Y43: =DSUM(仕入月合計データ!$B$3:$N$9771,仕入月合計データ!$M$3,X42:X43) -> 0 | AA43: 310 | AB43: =DSUM(仕入月合計データ!$B$3:$N$9771,仕入月合計データ!$M$3,AA42:AA43) -> 0 | AD43: 521 | AE43: =DSUM(仕入月合計データ!$B$3:$N$9771,仕入月合計データ!$M$3,AD42:AD43) -> 0 | AG43: 20 | AH43: =DSUM(経費月合計データ!$B$3:$K$1000,経費月合計データ!$J$3,AG42:AG43) -> 0 | AJ43: 170 | AK43: =DSUM(経費月合計データ!$B$3:$K$1000,経費月合計データ!$J$3,AJ42:AJ43) -> 0 | AM43: 245 | AN43: =DSUM(経費月合計データ!$B$3:$K$1000,経費月合計データ!$J$3,AM42:AM43) -> 0 | AP43: 310 | AQ43: =DSUM(経費月合計データ!$B$3:$K$1000,経費月合計データ!$J$3,AP42:AP43) -> 0 | AS43: 521 | AT43: =DSUM(経費月合計データ!$B$3:$K$1000,経費月合計データ!$J$3,AS42:AS43) -> 0
R44: CODE | U44: CODE | X44: CODE | AA44: CODE | AD44: CODE | AG44: CODE | AJ44: CODE | AM44: CODE | AP44: CODE | AS44: CODE
R45: 21 | S45: =DSUM(仕入月合計データ!$B$3:$N$9771,仕入月合計データ!$M$3,R44:R45) -> 0 | U45: 171 | V45: =DSUM(仕入月合計データ!$B$3:$N$9771,仕入月合計データ!$M$3,U44:U45) -> 0 | X45: 246 | Y45: =DSUM(仕入月合計データ!$B$3:$N$9771,仕入月合計データ!$M$3,X44:X45) -> 0 | AA45: 311 | AB45: =DSUM(仕入月合計データ!$B$3:$N$9771,仕入月合計データ!$M$3,AA44:AA45) -> 0 | AD45: 522 | AE45: =DSUM(仕入月合計データ!$B$3:$N$9771,仕入月合計データ!$M$3,AD44:AD45) -> 0 | AG45: 21 | AH45: =DSUM(経費月合計データ!$B$3:$K$1000,経費月合計データ!$J$3,AG44:AG45) -> 0 | AJ45: 171 | AK45: =DSUM(経費月合計データ!$B$3:$K$1000,経費月合計データ!$J$3,AJ44:AJ45) -> 0 | AM45: 246 | AN45: =DSUM(経費月合計データ!$B$3:$K$1000,経費月合計データ!$J$3,AM44:AM45) -> 0 | AP45: 311 | AQ45: =DSUM(経費月合計データ!$B$3:$K$1000,経費月合計データ!$J$3,AP44:AP45) -> 0 | AS45: 522 | AT45: =DSUM(経費月合計データ!$B$3:$K$1000,経費月合計データ!$J$3,AS44:AS45) -> 0
R46: CODE | U46: CODE | X46: CODE | AA46: CODE | AD46: CODE | AG46: CODE | AJ46: CODE | AM46: CODE | AP46: CODE | AS46: CODE
R47: 101 | S47: =DSUM(仕入月合計データ!$B$3:$N$9771,仕入月合計データ!$M$3,R46:R47) -> 0 | U47: 172 | V47: =DSUM(仕入月合計データ!$B$3:$N$9771,仕入月合計データ!$M$3,U46:U47) -> 0 | X47: 247 | Y47: =DSUM(仕入月合計データ!$B$3:$N$9771,仕入月合計データ!$M$3,X46:X47) -> 0 | AA47: 312 | AB47: =DSUM(仕入月合計データ!$B$3:$N$9771,仕入月合計データ!$M$3,AA46:AA47) -> 0 | AD47: 523 | AE47: =DSUM(仕入月合計データ!$B$3:$N$9771,仕入月合計データ!$M$3,AD46:AD47) -> 0 | AG47: 101 | AH47: =DSUM(経費月合計データ!$B$3:$K$1000,経費月合計データ!$J$3,AG46:AG47) -> 0 | AJ47: 172 | AK47: =DSUM(経費月合計データ!$B$3:$K$1000,経費月合計データ!$J$3,AJ46:AJ47) -> 0 | AM47: 247 | AN47: =DSUM(経費月合計データ!$B$3:$K$1000,経費月合計データ!$J$3,AM46:AM47) -> 0 | AP47: 312 | AQ47: =DSUM(経費月合計データ!$B$3:$K$1000,経費月合計データ!$J$3,AP46:AP47) -> 0 | AS47: 523 | AT47: =DSUM(経費月合計データ!$B$3:$K$1000,経費月合計データ!$J$3,AS46:AS47) -> 0
R48: CODE | U48: CODE | X48: CODE | AA48: CODE | AD48: CODE | AG48: CODE | AJ48: CODE | AM48: CODE | AP48: CODE | AS48: CODE
R49: 102 | S49: =DSUM(仕入月合計データ!$B$3:$N$9771,仕入月合計データ!$M$3,R48:R49) -> 0 | U49: 173 | V49: =DSUM(仕入月合計データ!$B$3:$N$9771,仕入月合計データ!$M$3,U48:U49) -> 0 | X49: 248 | Y49: =DSUM(仕入月合計データ!$B$3:$N$9771,仕入月合計データ!$M$3,X48:X49) -> 0 | AA49: 313 | AB49: =DSUM(仕入月合計データ!$B$3:$N$9771,仕入月合計データ!$M$3,AA48:AA49) -> 0 | AD49: 524 | AE49: =DSUM(仕入月合計データ!$B$3:$N$9771,仕入月合計データ!$M$3,AD48:AD49) -> 0 | AG49: 102 | AH49: =DSUM(経費月合計データ!$B$3:$K$1000,経費月合計データ!$J$3,AG48:AG49) -> 0 | AJ49: 173 | AK49: =DSUM(経費月合計データ!$B$3:$K$1000,経費月合計データ!$J$3,AJ48:AJ49) -> 0 | AM49: 248 | AN49: =DSUM(経費月合計データ!$B$3:$K$1000,経費月合計データ!$J$3,AM48:AM49) -> 0 | AP49: 313 | AQ49: =DSUM(経費月合計データ!$B$3:$K$1000,経費月合計データ!$J$3,AP48:AP49) -> 0 | AS49: 524 | AT49: =DSUM(経費月合計データ!$B$3:$K$1000,経費月合計データ!$J$3,AS48:AS49) -> 0
R50: CODE | U50: CODE | X50: CODE | AA50: CODE | AD50: CODE | AG50: CODE | AJ50: CODE | AM50: CODE | AP50: CODE | AS50: CODE
R51: 103 | S51: =DSUM(仕入月合計データ!$B$3:$N$9771,仕入月合計データ!$M$3,R50:R51) -> 0 | U51: 174 | V51: =DSUM(仕入月合計データ!$B$3:$N$9771,仕入月合計データ!$M$3,U50:U51) -> 0 | X51: 249 | Y51: =DSUM(仕入月合計データ!$B$3:$N$9771,仕入月合計データ!$M$3,X50:X51) -> 0 | AA51: 314 | AB51: =DSUM(仕入月合計データ!$B$3:$N$9771,仕入月合計データ!$M$3,AA50:AA51) -> 0 | AD51: 525 | AE51: =DSUM(仕入月合計データ!$B$3:$N$9771,仕入月合計データ!$M$3,AD50:AD51) -> 0 | AG51: 103 | AH51: =DSUM(経費月合計データ!$B$3:$K$1000,経費月合計データ!$J$3,AG50:AG51) -> 0 | AJ51: 174 | AK51: =DSUM(経費月合計データ!$B$3:$K$1000,経費月合計データ!$J$3,AJ50:AJ51) -> 0 | AM51: 249 | AN51: =DSUM(経費月合計データ!$B$3:$K$1000,経費月合計データ!$J$3,AM50:AM51) -> 0 | AP51: 314 | AQ51: =DSUM(経費月合計データ!$B$3:$K$1000,経費月合計データ!$J$3,AP50:AP51) -> 0 | AS51: 525 | AT51: =DSUM(経費月合計データ!$B$3:$K$1000,経費月合計データ!$J$3,AS50:AS51) -> 0
R52: CODE | U52: CODE | X52: CODE | AA52: CODE | AD52: CODE | AG52: CODE | AJ52: CODE | AM52: CODE | AP52: CODE | AS52: CODE
R53: 104 | S53: =DSUM(仕入月合計データ!$B$3:$N$9771,仕入月合計データ!$M$3,R52:R53) -> 0 | U53: 175 | V53: =DSUM(仕入月合計データ!$B$3:$N$9771,仕入月合計データ!$M$3,U52:U53) -> 0 | X53: 250 | Y53: =DSUM(仕入月合計データ!$B$3:$N$9771,仕入月合計データ!$M$3,X52:X53) -> 0 | AA53: 315 | AB53: =DSUM(仕入月合計データ!$B$3:$N$9771,仕入月合計データ!$M$3,AA52:AA53) -> 0 | AD53: 526 | AE53: =DSUM(仕入月合計データ!$B$3:$N$9771,仕入月合計データ!$M$3,AD52:AD53) -> 0 | AG53: 104 | AH53: =DSUM(経費月合計データ!$B$3:$K$1000,経費月合計データ!$J$3,AG52:AG53) -> 0 | AJ53: 175 | AK53: =DSUM(経費月合計データ!$B$3:$K$1000,経費月合計データ!$J$3,AJ52:AJ53) -> 0 | AM53: 250 | AN53: =DSUM(経費月合計データ!$B$3:$K$1000,経費月合計データ!$J$3,AM52:AM53) -> 0 | AP53: 315 | AQ53: =DSUM(経費月合計データ!$B$3:$K$1000,経費月合計データ!$J$3,AP52:AP53) -> 0 | AS53: 526 | AT53: =DSUM(経費月合計データ!$B$3:$K$1000,経費月合計データ!$J$3,AS52:AS53) -> 0
R54: CODE | U54: CODE | X54: CODE | AA54: CODE | AD54: CODE | AG54: CODE | AJ54: CODE | AM54: CODE | AP54: CODE | AS54: CODE
R55: 105 | S55: =DSUM(仕入月合計データ!$B$3:$N$9771,仕入月合計データ!$M$3,R54:R55) -> 0 | U55: 176 | V55: =DSUM(仕入月合計データ!$B$3:$N$9771,仕入月合計データ!$M$3,U54:U55) -> 0 | X55: 251 | Y55: =DSUM(仕入月合計データ!$B$3:$N$9771,仕入月合計データ!$M$3,X54:X55) -> 0 | AA55: 316 | AB55: =DSUM(仕入月合計データ!$B$3:$N$9771,仕入月合計データ!$M$3,AA54:AA55) -> 0 | AD55: 527 | AE55: =DSUM(仕入月合計データ!$B$3:$N$9771,仕入月合計データ!$M$3,AD54:AD55) -> 0 | AG55: 105 | AH55: =DSUM(経費月合計データ!$B$3:$K$1000,経費月合計データ!$J$3,AG54:AG55) -> 0 | AJ55: 176 | AK55: =DSUM(経費月合計データ!$B$3:$K$1000,経費月合計データ!$J$3,AJ54:AJ55) -> 0 | AM55: 251 | AN55: =DSUM(経費月合計データ!$B$3:$K$1000,経費月合計データ!$J$3,AM54:AM55) -> 0 | AP55: 316 | AQ55: =DSUM(経費月合計データ!$B$3:$K$1000,経費月合計データ!$J$3,AP54:AP55) -> 0 | AS55: 527 | AT55: =DSUM(経費月合計データ!$B$3:$K$1000,経費月合計データ!$J$3,AS54:AS55) -> 0
R56: CODE | U56: CODE | X56: CODE | AA56: CODE | AD56: CODE | AG56: CODE | AJ56: CODE | AM56: CODE | AP56: CODE | AS56: CODE
R57: 106 | S57: =DSUM(仕入月合計データ!$B$3:$N$9771,仕入月合計データ!$M$3,R56:R57) -> 0 | U57: 177 | V57: =DSUM(仕入月合計データ!$B$3:$N$9771,仕入月合計データ!$M$3,U56:U57) -> 0 | X57: 252 | Y57: =DSUM(仕入月合計データ!$B$3:$N$9771,仕入月合計データ!$M$3,X56:X57) -> 0 | AA57: 317 | AB57: =DSUM(仕入月合計データ!$B$3:$N$9771,仕入月合計データ!$M$3,AA56:AA57) -> 0 | AD57: 528 | AE57: =DSUM(仕入月合計データ!$B$3:$N$9771,仕入月合計データ!$M$3,AD56:AD57) -> 0 | AG57: 106 | AH57: =DSUM(経費月合計データ!$B$3:$K$1000,経費月合計データ!$J$3,AG56:AG57) -> 0 | AJ57: 177 | AK57: =DSUM(経費月合計データ!$B$3:$K$1000,経費月合計データ!$J$3,AJ56:AJ57) -> 0 | AM57: 252 | AN57: =DSUM(経費月合計データ!$B$3:$K$1000,経費月合計データ!$J$3,AM56:AM57) -> 0 | AP57: 317 | AQ57: =DSUM(経費月合計データ!$B$3:$K$1000,経費月合計データ!$J$3,AP56:AP57) -> 0 | AS57: 528 | AT57: =DSUM(経費月合計データ!$B$3:$K$1000,経費月合計データ!$J$3,AS56:AS57) -> 0
R58: CODE | U58: CODE | X58: CODE | AA58: CODE | AD58: CODE | AG58: CODE | AJ58: CODE | AM58: CODE | AP58: CODE | AS58: CODE
R59: 107 | S59: =DSUM(仕入月合計データ!$B$3:$N$9771,仕入月合計データ!$M$3,R58:R59) -> 0 | U59: 178 | V59: =DSUM(仕入月合計データ!$B$3:$N$9771,仕入月合計データ!$M$3,U58:U59) -> 0 | X59: 253 | Y59: =DSUM(仕入月合計データ!$B$3:$N$9771,仕入月合計データ!$M$3,X58:X59) -> 0 | AA59: 318 | AB59: =DSUM(仕入月合計データ!$B$3:$N$9771,仕入月合計データ!$M$3,AA58:AA59) -> 0 | AD59: 529 | AE59: =DSUM(仕入月合計データ!$B$3:$N$9771,仕入月合計データ!$M$3,AD58:AD59) -> 0 | AG59: 107 | AH59: =DSUM(経費月合計データ!$B$3:$K$1000,経費月合計データ!$J$3,AG58:AG59) -> 0 | AJ59: 178 | AK59: =DSUM(経費月合計データ!$B$3:$K$1000,経費月合計データ!$J$3,AJ58:AJ59) -> 0 | AM59: 253 | AN59: =DSUM(経費月合計データ!$B$3:$K$1000,経費月合計データ!$J$3,AM58:AM59) -> 0 | AP59: 318 | AQ59: =DSUM(経費月合計データ!$B$3:$K$1000,経費月合計データ!$J$3,AP58:AP59) -> 0 | AS59: 529 | AT59: =DSUM(経費月合計データ!$B$3:$K$1000,経費月合計データ!$J$3,AS58:AS59) -> 0
R60: CODE | U60: CODE | X60: CODE | AA60: CODE | AD60: CODE | AG60: CODE | AJ60: CODE | AM60: CODE | AP60: CODE | AS60: CODE
R61: 108 | S61: =DSUM(仕入月合計データ!$B$3:$N$9771,仕入月合計データ!$M$3,R60:R61) -> 0 | U61: 179 | V61: =DSUM(仕入月合計データ!$B$3:$N$9771,仕入月合計データ!$M$3,U60:U61) -> 0 | X61: 254 | Y61: =DSUM(仕入月合計データ!$B$3:$N$9771,仕入月合計データ!$M$3,X60:X61) -> 0 | AA61: 319 | AB61: =DSUM(仕入月合計データ!$B$3:$N$9771,仕入月合計データ!$M$3,AA60:AA61) -> 0 | AD61: 530 | AE61: =DSUM(仕入月合計データ!$B$3:$N$9771,仕入月合計データ!$M$3,AD60:AD61) -> 0 | AG61: 108 | AH61: =DSUM(経費月合計データ!$B$3:$K$1000,経費月合計データ!$J$3,AG60:AG61) -> 0 | AJ61: 179 | AK61: =DSUM(経費月合計データ!$B$3:$K$1000,経費月合計データ!$J$3,AJ60:AJ61) -> 0 | AM61: 254 | AN61: =DSUM(経費月合計データ!$B$3:$K$1000,経費月合計データ!$J$3,AM60:AM61) -> 0 | AP61: 319 | AQ61: =DSUM(経費月合計データ!$B$3:$K$1000,経費月合計データ!$J$3,AP60:AP61) -> 0 | AS61: 530 | AT61: =DSUM(経費月合計データ!$B$3:$K$1000,経費月合計データ!$J$3,AS60:AS61) -> 0
R62: CODE | U62: CODE | X62: CODE | AA62: CODE | AD62: CODE | AG62: CODE | AJ62: CODE | AM62: CODE | AP62: CODE | AS62: CODE
R63: 109 | S63: =DSUM(仕入月合計データ!$B$3:$N$9771,仕入月合計データ!$M$3,R62:R63) -> 0 | U63: 180 | V63: =DSUM(仕入月合計データ!$B$3:$N$9771,仕入月合計データ!$M$3,U62:U63) -> 0 | X63: 255 | Y63: =DSUM(仕入月合計データ!$B$3:$N$9771,仕入月合計データ!$M$3,X62:X63) -> 0 | AA63: 320 | AB63: =DSUM(仕入月合計データ!$B$3:$N$9771,仕入月合計データ!$M$3,AA62:AA63) -> 0 | AD63: 531 | AE63: =DSUM(仕入月合計データ!$B$3:$N$9771,仕入月合計データ!$M$3,AD62:AD63) -> 0 | AG63: 109 | AH63: =DSUM(経費月合計データ!$B$3:$K$1000,経費月合計データ!$J$3,AG62:AG63) -> 0 | AJ63: 180 | AK63: =DSUM(経費月合計データ!$B$3:$K$1000,経費月合計データ!$J$3,AJ62:AJ63) -> 0 | AM63: 255 | AN63: =DSUM(経費月合計データ!$B$3:$K$1000,経費月合計データ!$J$3,AM62:AM63) -> 0 | AP63: 320 | AQ63: =DSUM(経費月合計データ!$B$3:$K$1000,経費月合計データ!$J$3,AP62:AP63) -> 0 | AS63: 531 | AT63: =DSUM(経費月合計データ!$B$3:$K$1000,経費月合計データ!$J$3,AS62:AS63) -> 0
R64: CODE | U64: CODE | X64: CODE | AA64: CODE | AD64: CODE | AG64: CODE | AJ64: CODE | AM64: CODE | AP64: CODE | AS64: CODE
R65: 110 | S65: =DSUM(仕入月合計データ!$B$3:$N$9771,仕入月合計データ!$M$3,R64:R65) -> 735 | U65: 181 | V65: =DSUM(仕入月合計データ!$B$3:$N$9771,仕入月合計データ!$M$3,U64:U65) -> 0 | X65: 256 | Y65: =DSUM(仕入月合計データ!$B$3:$N$9771,仕入月合計データ!$M$3,X64:X65) -> 0 | AA65: 321 | AB65: =DSUM(仕入月合計データ!$B$3:$N$9771,仕入月合計データ!$M$3,AA64:AA65) -> 0 | AD65: 532 | AE65: =DSUM(仕入月合計データ!$B$3:$N$9771,仕入月合計データ!$M$3,AD64:AD65) -> 0 | AG65: 110 | AH65: =DSUM(経費月合計データ!$B$3:$K$1000,経費月合計データ!$J$3,AG64:AG65) -> 0 | AJ65: 181 | AK65: =DSUM(経費月合計データ!$B$3:$K$1000,経費月合計データ!$J$3,AJ64:AJ65) -> 0 | AM65: 256 | AN65: =DSUM(経費月合計データ!$B$3:$K$1000,経費月合計データ!$J$3,AM64:AM65) -> 0 | AP65: 321 | AQ65: =DSUM(経費月合計データ!$B$3:$K$1000,経費月合計データ!$J$3,AP64:AP65) -> 0 | AS65: 532 | AT65: =DSUM(経費月合計データ!$B$3:$K$1000,経費月合計データ!$J$3,AS64:AS65) -> 0
R66: CODE | U66: CODE | X66: CODE | AA66: CODE | AD66: CODE | AG66: CODE | AJ66: CODE | AM66: CODE | AP66: CODE | AS66: CODE
R67: 111 | S67: =DSUM(仕入月合計データ!$B$3:$N$9771,仕入月合計データ!$M$3,R66:R67) -> 0 | U67: 182 | V67: =DSUM(仕入月合計データ!$B$3:$N$9771,仕入月合計データ!$M$3,U66:U67) -> 0 | X67: 257 | Y67: =DSUM(仕入月合計データ!$B$3:$N$9771,仕入月合計データ!$M$3,X66:X67) -> 0 | AA67: 322 | AB67: =DSUM(仕入月合計データ!$B$3:$N$9771,仕入月合計データ!$M$3,AA66:AA67) -> 0 | AD67: 533 | AE67: =DSUM(仕入月合計データ!$B$3:$N$9771,仕入月合計データ!$M$3,AD66:AD67) -> 0 | AG67: 111 | AH67: =DSUM(経費月合計データ!$B$3:$K$1000,経費月合計データ!$J$3,AG66:AG67) -> 0 | AJ67: 182 | AK67: =DSUM(経費月合計データ!$B$3:$K$1000,経費月合計データ!$J$3,AJ66:AJ67) -> 0 | AM67: 257 | AN67: =DSUM(経費月合計データ!$B$3:$K$1000,経費月合計データ!$J$3,AM66:AM67) -> 0 | AP67: 322 | AQ67: =DSUM(経費月合計データ!$B$3:$K$1000,経費月合計データ!$J$3,AP66:AP67) -> 0 | AS67: 533 | AT67: =DSUM(経費月合計データ!$B$3:$K$1000,経費月合計データ!$J$3,AS66:AS67) -> 0
R68: CODE | U68: CODE | X68: CODE | AA68: CODE | AD68: CODE | AG68: CODE | AJ68: CODE | AM68: CODE | AP68: CODE | AS68: CODE
R69: 112 | S69: =DSUM(仕入月合計データ!$B$3:$N$9771,仕入月合計データ!$M$3,R68:R69) -> 0 | U69: 183 | V69: =DSUM(仕入月合計データ!$B$3:$N$9771,仕入月合計データ!$M$3,U68:U69) -> 0 | X69: 258 | Y69: =DSUM(仕入月合計データ!$B$3:$N$9771,仕入月合計データ!$M$3,X68:X69) -> 0 | AA69: 323 | AB69: =DSUM(仕入月合計データ!$B$3:$N$9771,仕入月合計データ!$M$3,AA68:AA69) -> 0 | AD69: 534 | AE69: =DSUM(仕入月合計データ!$B$3:$N$9771,仕入月合計データ!$M$3,AD68:AD69) -> 0 | AG69: 112 | AH69: =DSUM(経費月合計データ!$B$3:$K$1000,経費月合計データ!$J$3,AG68:AG69) -> 0 | AJ69: 183 | AK69: =DSUM(経費月合計データ!$B$3:$K$1000,経費月合計データ!$J$3,AJ68:AJ69) -> 0 | AM69: 258 | AN69: =DSUM(経費月合計データ!$B$3:$K$1000,経費月合計データ!$J$3,AM68:AM69) -> 0 | AP69: 323 | AQ69: =DSUM(経費月合計データ!$B$3:$K$1000,経費月合計データ!$J$3,AP68:AP69) -> 0 | AS69: 534 | AT69: =DSUM(経費月合計データ!$B$3:$K$1000,経費月合計データ!$J$3,AS68:AS69) -> 0
R70: CODE | U70: CODE | X70: CODE | AA70: CODE | AD70: CODE | AG70: CODE | AJ70: CODE | AM70: CODE | AP70: CODE | AS70: CODE
R71: 113 | S71: =DSUM(仕入月合計データ!$B$3:$N$9771,仕入月合計データ!$M$3,R70:R71) -> 0 | U71: 184 | V71: =DSUM(仕入月合計データ!$B$3:$N$9771,仕入月合計データ!$M$3,U70:U71) -> 0 | X71: 259 | Y71: =DSUM(仕入月合計データ!$B$3:$N$9771,仕入月合計データ!$M$3,X70:X71) -> 0 | AA71: 324 | AB71: =DSUM(仕入月合計データ!$B$3:$N$9771,仕入月合計データ!$M$3,AA70:AA71) -> 0 | AD71: 535 | AE71: =DSUM(仕入月合計データ!$B$3:$N$9771,仕入月合計データ!$M$3,AD70:AD71) -> 0 | AG71: 113 | AH71: =DSUM(経費月合計データ!$B$3:$K$1000,経費月合計データ!$J$3,AG70:AG71) -> 0 | AJ71: 184 | AK71: =DSUM(経費月合計データ!$B$3:$K$1000,経費月合計データ!$J$3,AJ70:AJ71) -> 0 | AM71: 259 | AN71: =DSUM(経費月合計データ!$B$3:$K$1000,経費月合計データ!$J$3,AM70:AM71) -> 0 | AP71: 324 | AQ71: =DSUM(経費月合計データ!$B$3:$K$1000,経費月合計データ!$J$3,AP70:AP71) -> 0 | AS71: 535 | AT71: =DSUM(経費月合計データ!$B$3:$K$1000,経費月合計データ!$J$3,AS70:AS71) -> 0
R72: CODE | U72: CODE | X72: CODE | AA72: CODE | AD72: CODE | AG72: CODE | AJ72: CODE | AM72: CODE | AP72: CODE | AS72: CODE
R73: 114 | S73: =DSUM(仕入月合計データ!$B$3:$N$9771,仕入月合計データ!$M$3,R72:R73) -> 0 | U73: 185 | V73: =DSUM(仕入月合計データ!$B$3:$N$9771,仕入月合計データ!$M$3,U72:U73) -> 0 | X73: 260 | Y73: =DSUM(仕入月合計データ!$B$3:$N$9771,仕入月合計データ!$M$3,X72:X73) -> 0 | AA73: 325 | AB73: =DSUM(仕入月合計データ!$B$3:$N$9771,仕入月合計データ!$M$3,AA72:AA73) -> 0 | AD73: 536 | AE73: =DSUM(仕入月合計データ!$B$3:$N$9771,仕入月合計データ!$M$3,AD72:AD73) -> 0 | AG73: 114 | AH73: =DSUM(経費月合計データ!$B$3:$K$1000,経費月合計データ!$J$3,AG72:AG73) -> 0 | AJ73: 185 | AK73: =DSUM(経費月合計データ!$B$3:$K$1000,経費月合計データ!$J$3,AJ72:AJ73) -> 0 | AM73: 260 | AN73: =DSUM(経費月合計データ!$B$3:$K$1000,経費月合計データ!$J$3,AM72:AM73) -> 0 | AP73: 325 | AQ73: =DSUM(経費月合計データ!$B$3:$K$1000,経費月合計データ!$J$3,AP72:AP73) -> 0 | AS73: 536 | AT73: =DSUM(経費月合計データ!$B$3:$K$1000,経費月合計データ!$J$3,AS72:AS73) -> 0
R74: CODE | U74: CODE | X74: CODE | AA74: CODE | AD74: CODE | AG74: CODE | AJ74: CODE | AM74: CODE | AP74: CODE | AS74: CODE
R75: 115 | S75: =DSUM(仕入月合計データ!$B$3:$N$9771,仕入月合計データ!$M$3,R74:R75) -> 0 | U75: 186 | V75: =DSUM(仕入月合計データ!$B$3:$N$9771,仕入月合計データ!$M$3,U74:U75) -> 0 | X75: 261 | Y75: =DSUM(仕入月合計データ!$B$3:$N$9771,仕入月合計データ!$M$3,X74:X75) -> 0 | AA75: 326 | AB75: =DSUM(仕入月合計データ!$B$3:$N$9771,仕入月合計データ!$M$3,AA74:AA75) -> 0 | AD75: 537 | AE75: =DSUM(仕入月合計データ!$B$3:$N$9771,仕入月合計データ!$M$3,AD74:AD75) -> 0 | AG75: 115 | AH75: =DSUM(経費月合計データ!$B$3:$K$1000,経費月合計データ!$J$3,AG74:AG75) -> 0 | AJ75: 186 | AK75: =DSUM(経費月合計データ!$B$3:$K$1000,経費月合計データ!$J$3,AJ74:AJ75) -> 0 | AM75: 261 | AN75: =DSUM(経費月合計データ!$B$3:$K$1000,経費月合計データ!$J$3,AM74:AM75) -> 0 | AP75: 326 | AQ75: =DSUM(経費月合計データ!$B$3:$K$1000,経費月合計データ!$J$3,AP74:AP75) -> 0 | AS75: 537 | AT75: =DSUM(経費月合計データ!$B$3:$K$1000,経費月合計データ!$J$3,AS74:AS75) -> 0
R76: CODE | U76: CODE | X76: CODE | AA76: CODE | AD76: CODE | AG76: CODE | AJ76: CODE | AM76: CODE | AP76: CODE | AS76: CODE
R77: 116 | S77: =DSUM(仕入月合計データ!$B$3:$N$9771,仕入月合計データ!$M$3,R76:R77) -> 0 | U77: 187 | V77: =DSUM(仕入月合計データ!$B$3:$N$9771,仕入月合計データ!$M$3,U76:U77) -> 0 | X77: 262 | Y77: =DSUM(仕入月合計データ!$B$3:$N$9771,仕入月合計データ!$M$3,X76:X77) -> 0 | AA77: 327 | AB77: =DSUM(仕入月合計データ!$B$3:$N$9771,仕入月合計データ!$M$3,AA76:AA77) -> 0 | AD77: 538 | AE77: =DSUM(仕入月合計データ!$B$3:$N$9771,仕入月合計データ!$M$3,AD76:AD77) -> 0 | AG77: 116 | AH77: =DSUM(経費月合計データ!$B$3:$K$1000,経費月合計データ!$J$3,AG76:AG77) -> 0 | AJ77: 187 | AK77: =DSUM(経費月合計データ!$B$3:$K$1000,経費月合計データ!$J$3,AJ76:AJ77) -> 0 | AM77: 262 | AN77: =DSUM(経費月合計データ!$B$3:$K$1000,経費月合計データ!$J$3,AM76:AM77) -> 0 | AP77: 327 | AQ77: =DSUM(経費月合計データ!$B$3:$K$1000,経費月合計データ!$J$3,AP76:AP77) -> 0 | AS77: 538 | AT77: =DSUM(経費月合計データ!$B$3:$K$1000,経費月合計データ!$J$3,AS76:AS77) -> 0
R78: CODE | U78: CODE | X78: CODE | AA78: CODE | AD78: CODE | AG78: CODE | AJ78: CODE | AM78: CODE | AP78: CODE | AS78: CODE
R79: 117 | S79: =DSUM(仕入月合計データ!$B$3:$N$9771,仕入月合計データ!$M$3,R78:R79) -> 0 | U79: 188 | V79: =DSUM(仕入月合計データ!$B$3:$N$9771,仕入月合計データ!$M$3,U78:U79) -> 0 | X79: 263 | Y79: =DSUM(仕入月合計データ!$B$3:$N$9771,仕入月合計データ!$M$3,X78:X79) -> 0 | AA79: 328 | AB79: =DSUM(仕入月合計データ!$B$3:$N$9771,仕入月合計データ!$M$3,AA78:AA79) -> 0 | AD79: 539 | AE79: =DSUM(仕入月合計データ!$B$3:$N$9771,仕入月合計データ!$M$3,AD78:AD79) -> 0 | AG79: 117 | AH79: =DSUM(経費月合計データ!$B$3:$K$1000,経費月合計データ!$J$3,AG78:AG79) -> 0 | AJ79: 188 | AK79: =DSUM(経費月合計データ!$B$3:$K$1000,経費月合計データ!$J$3,AJ78:AJ79) -> 0 | AM79: 263 | AN79: =DSUM(経費月合計データ!$B$3:$K$1000,経費月合計データ!$J$3,AM78:AM79) -> 0 | AP79: 328 | AQ79: =DSUM(経費月合計データ!$B$3:$K$1000,経費月合計データ!$J$3,AP78:AP79) -> 0 | AS79: 539 | AT79: =DSUM(経費月合計データ!$B$3:$K$1000,経費月合計データ!$J$3,AS78:AS79) -> 0
R80: CODE | U80: CODE | X80: CODE | AA80: CODE | AD80: CODE | AG80: CODE | AJ80: CODE | AM80: CODE | AP80: CODE | AS80: CODE
R81: 118 | S81: =DSUM(仕入月合計データ!$B$3:$N$9771,仕入月合計データ!$M$3,R80:R81) -> 0 | U81: 189 | V81: =DSUM(仕入月合計データ!$B$3:$N$9771,仕入月合計データ!$M$3,U80:U81) -> 0 | X81: 264 | Y81: =DSUM(仕入月合計データ!$B$3:$N$9771,仕入月合計データ!$M$3,X80:X81) -> 0 | AA81: 329 | AB81: =DSUM(仕入月合計データ!$B$3:$N$9771,仕入月合計データ!$M$3,AA80:AA81) -> 0 | AD81: 540 | AE81: =DSUM(仕入月合計データ!$B$3:$N$9771,仕入月合計データ!$M$3,AD80:AD81) -> 1875 | AG81: 118 | AH81: =DSUM(経費月合計データ!$B$3:$K$1000,経費月合計データ!$J$3,AG80:AG81) -> 0 | AJ81: 189 | AK81: =DSUM(経費月合計データ!$B$3:$K$1000,経費月合計データ!$J$3,AJ80:AJ81) -> 0 | AM81: 264 | AN81: =DSUM(経費月合計データ!$B$3:$K$1000,経費月合計データ!$J$3,AM80:AM81) -> 0 | AP81: 329 | AQ81: =DSUM(経費月合計データ!$B$3:$K$1000,経費月合計データ!$J$3,AP80:AP81) -> 0 | AS81: 540 | AT81: =DSUM(経費月合計データ!$B$3:$K$1000,経費月合計データ!$J$3,AS80:AS81) -> 0
R82: CODE | U82: CODE | X82: CODE | AA82: CODE | AD82: CODE | AG82: CODE | AJ82: CODE | AM82: CODE | AP82: CODE | AS82: CODE
R83: 119 | S83: =DSUM(仕入月合計データ!$B$3:$N$9771,仕入月合計データ!$M$3,R82:R83) -> 0 | U83: 190 | V83: =DSUM(仕入月合計データ!$B$3:$N$9771,仕入月合計データ!$M$3,U82:U83) -> 0 | X83: 265 | Y83: =DSUM(仕入月合計データ!$B$3:$N$9771,仕入月合計データ!$M$3,X82:X83) -> 0 | AA83: 330 | AB83: =DSUM(仕入月合計データ!$B$3:$N$9771,仕入月合計データ!$M$3,AA82:AA83) -> 1335 | AD83: 541 | AE83: =DSUM(仕入月合計データ!$B$3:$N$9771,仕入月合計データ!$M$3,AD82:AD83) -> 0 | AG83: 119 | AH83: =DSUM(経費月合計データ!$B$3:$K$1000,経費月合計データ!$J$3,AG82:AG83) -> 0 | AJ83: 190 | AK83: =DSUM(経費月合計データ!$B$3:$K$1000,経費月合計データ!$J$3,AJ82:AJ83) -> 0 | AM83: 265 | AN83: =DSUM(経費月合計データ!$B$3:$K$1000,経費月合計データ!$J$3,AM82:AM83) -> 0 | AP83: 330 | AQ83: =DSUM(経費月合計データ!$B$3:$K$1000,経費月合計データ!$J$3,AP82:AP83) -> 0 | AS83: 541 | AT83: =DSUM(経費月合計データ!$B$3:$K$1000,経費月合計データ!$J$3,AS82:AS83) -> 0
R84: CODE | U84: CODE | X84: CODE | AA84: CODE | AD84: CODE | AG84: CODE | AJ84: CODE | AM84: CODE | AP84: CODE | AS84: CODE
R85: 120 | S85: =DSUM(仕入月合計データ!$B$3:$N$9771,仕入月合計データ!$M$3,R84:R85) -> 735 | U85: 191 | V85: =DSUM(仕入月合計データ!$B$3:$N$9771,仕入月合計データ!$M$3,U84:U85) -> 0 | X85: 266 | Y85: =DSUM(仕入月合計データ!$B$3:$N$9771,仕入月合計データ!$M$3,X84:X85) -> 0 | AA85: 331 | AB85: =DSUM(仕入月合計データ!$B$3:$N$9771,仕入月合計データ!$M$3,AA84:AA85) -> 0 | AD85: 542 | AE85: =DSUM(仕入月合計データ!$B$3:$N$9771,仕入月合計データ!$M$3,AD84:AD85) -> 0 | AG85: 120 | AH85: =DSUM(経費月合計データ!$B$3:$K$1000,経費月合計データ!$J$3,AG84:AG85) -> 0 | AJ85: 191 | AK85: =DSUM(経費月合計データ!$B$3:$K$1000,経費月合計データ!$J$3,AJ84:AJ85) -> 0 | AM85: 266 | AN85: =DSUM(経費月合計データ!$B$3:$K$1000,経費月合計データ!$J$3,AM84:AM85) -> 0 | AP85: 331 | AQ85: =DSUM(経費月合計データ!$B$3:$K$1000,経費月合計データ!$J$3,AP84:AP85) -> 0 | AS85: 542 | AT85: =DSUM(経費月合計データ!$B$3:$K$1000,経費月合計データ!$J$3,AS84:AS85) -> 0
R86: CODE | U86: CODE | X86: CODE | AA86: CODE | AD86: CODE | AG86: CODE | AJ86: CODE | AM86: CODE | AP86: CODE | AS86: CODE
R87: 121 | S87: =DSUM(仕入月合計データ!$B$3:$N$9771,仕入月合計データ!$M$3,R86:R87) -> 0 | U87: 192 | V87: =DSUM(仕入月合計データ!$B$3:$N$9771,仕入月合計データ!$M$3,U86:U87) -> 0 | X87: 267 | Y87: =DSUM(仕入月合計データ!$B$3:$N$9771,仕入月合計データ!$M$3,X86:X87) -> 0 | AA87: 332 | AB87: =DSUM(仕入月合計データ!$B$3:$N$9771,仕入月合計データ!$M$3,AA86:AA87) -> 0 | AD87: 543 | AE87: =DSUM(仕入月合計データ!$B$3:$N$9771,仕入月合計データ!$M$3,AD86:AD87) -> 0 | AG87: 121 | AH87: =DSUM(経費月合計データ!$B$3:$K$1000,経費月合計データ!$J$3,AG86:AG87) -> 0 | AJ87: 192 | AK87: =DSUM(経費月合計データ!$B$3:$K$1000,経費月合計データ!$J$3,AJ86:AJ87) -> 0 | AM87: 267 | AN87: =DSUM(経費月合計データ!$B$3:$K$1000,経費月合計データ!$J$3,AM86:AM87) -> 0 | AP87: 332 | AQ87: =DSUM(経費月合計データ!$B$3:$K$1000,経費月合計データ!$J$3,AP86:AP87) -> 0 | AS87: 543 | AT87: =DSUM(経費月合計データ!$B$3:$K$1000,経費月合計データ!$J$3,AS86:AS87) -> 0
R88: CODE | U88: CODE | X88: CODE | AA88: CODE | AD88: CODE | AG88: CODE | AJ88: CODE | AM88: CODE | AP88: CODE | AS88: CODE
R89: 122 | S89: =DSUM(仕入月合計データ!$B$3:$N$9771,仕入月合計データ!$M$3,R88:R89) -> 0 | U89: 193 | V89: =DSUM(仕入月合計データ!$B$3:$N$9771,仕入月合計データ!$M$3,U88:U89) -> 0 | X89: 268 | Y89: =DSUM(仕入月合計データ!$B$3:$N$9771,仕入月合計データ!$M$3,X88:X89) -> 0 | AA89: 333 | AB89: =DSUM(仕入月合計データ!$B$3:$N$9771,仕入月合計データ!$M$3,AA88:AA89) -> 0 | AD89: 601 | AE89: =DSUM(仕入月合計データ!$B$3:$N$9771,仕入月合計データ!$M$3,AD88:AD89) -> 0 | AG89: 122 | AH89: =DSUM(経費月合計データ!$B$3:$K$1000,経費月合計データ!$J$3,AG88:AG89) -> 0 | AJ89: 193 | AK89: =DSUM(経費月合計データ!$B$3:$K$1000,経費月合計データ!$J$3,AJ88:AJ89) -> 0 | AM89: 268 | AN89: =DSUM(経費月合計データ!$B$3:$K$1000,経費月合計データ!$J$3,AM88:AM89) -> 0 | AP89: 333 | AQ89: =DSUM(経費月合計データ!$B$3:$K$1000,経費月合計データ!$J$3,AP88:AP89) -> 0 | AS89: 601 | AT89: =DSUM(経費月合計データ!$B$3:$K$1000,経費月合計データ!$J$3,AS88:AS89) -> 0
R90: CODE | U90: CODE | X90: CODE | AA90: CODE | AD90: CODE | AG90: CODE | AJ90: CODE | AM90: CODE | AP90: CODE | AS90: CODE
R91: 123 | S91: =DSUM(仕入月合計データ!$B$3:$N$9771,仕入月合計データ!$M$3,R90:R91) -> 0 | U91: 194 | V91: =DSUM(仕入月合計データ!$B$3:$N$9771,仕入月合計データ!$M$3,U90:U91) -> 0 | X91: 269 | Y91: =DSUM(仕入月合計データ!$B$3:$N$9771,仕入月合計データ!$M$3,X90:X91) -> 0 | AA91: 334 | AB91: =DSUM(仕入月合計データ!$B$3:$N$9771,仕入月合計データ!$M$3,AA90:AA91) -> 0 | AD91: 602 | AE91: =DSUM(仕入月合計データ!$B$3:$N$9771,仕入月合計データ!$M$3,AD90:AD91) -> 0 | AG91: 123 | AH91: =DSUM(経費月合計データ!$B$3:$K$1000,経費月合計データ!$J$3,AG90:AG91) -> 0 | AJ91: 194 | AK91: =DSUM(経費月合計データ!$B$3:$K$1000,経費月合計データ!$J$3,AJ90:AJ91) -> 0 | AM91: 269 | AN91: =DSUM(経費月合計データ!$B$3:$K$1000,経費月合計データ!$J$3,AM90:AM91) -> 0 | AP91: 334 | AQ91: =DSUM(経費月合計データ!$B$3:$K$1000,経費月合計データ!$J$3,AP90:AP91) -> 0 | AS91: 602 | AT91: =DSUM(経費月合計データ!$B$3:$K$1000,経費月合計データ!$J$3,AS90:AS91) -> 0
R92: CODE | U92: CODE | X92: CODE | AA92: CODE | AD92: CODE | AG92: CODE | AJ92: CODE | AM92: CODE | AP92: CODE | AS92: CODE
R93: 124 | S93: =DSUM(仕入月合計データ!$B$3:$N$9771,仕入月合計データ!$M$3,R92:R93) -> 0 | U93: 195 | V93: =DSUM(仕入月合計データ!$B$3:$N$9771,仕入月合計データ!$M$3,U92:U93) -> 0 | X93: 270 | Y93: =DSUM(仕入月合計データ!$B$3:$N$9771,仕入月合計データ!$M$3,X92:X93) -> 0 | AA93: 401 | AB93: =DSUM(仕入月合計データ!$B$3:$N$9771,仕入月合計データ!$M$3,AA92:AA93) -> 0 | AD93: 603 | AE93: =DSUM(仕入月合計データ!$B$3:$N$9771,仕入月合計データ!$M$3,AD92:AD93) -> 0 | AG93: 124 | AH93: =DSUM(経費月合計データ!$B$3:$K$1000,経費月合計データ!$J$3,AG92:AG93) -> 0 | AJ93: 195 | AK93: =DSUM(経費月合計データ!$B$3:$K$1000,経費月合計データ!$J$3,AJ92:AJ93) -> 0 | AM93: 270 | AN93: =DSUM(経費月合計データ!$B$3:$K$1000,経費月合計データ!$J$3,AM92:AM93) -> 0 | AP93: 401 | AQ93: =DSUM(経費月合計データ!$B$3:$K$1000,経費月合計データ!$J$3,AP92:AP93) -> 0 | AS93: 603 | AT93: =DSUM(経費月合計データ!$B$3:$K$1000,経費月合計データ!$J$3,AS92:AS93) -> 0
R94: CODE | U94: CODE | X94: CODE | AA94: CODE | AD94: CODE | AG94: CODE | AJ94: CODE | AM94: CODE | AP94: CODE | AS94: CODE
R95: 125 | S95: =DSUM(仕入月合計データ!$B$3:$N$9771,仕入月合計データ!$M$3,R94:R95) -> 0 | U95: 196 | V95: =DSUM(仕入月合計データ!$B$3:$N$9771,仕入月合計データ!$M$3,U94:U95) -> 0 | X95: 271 | Y95: =DSUM(仕入月合計データ!$B$3:$N$9771,仕入月合計データ!$M$3,X94:X95) -> 0 | AA95: 402 | AB95: =DSUM(仕入月合計データ!$B$3:$N$9771,仕入月合計データ!$M$3,AA94:AA95) -> 0 | AD95: 604 | AE95: =DSUM(仕入月合計データ!$B$3:$N$9771,仕入月合計データ!$M$3,AD94:AD95) -> 0 | AG95: 125 | AH95: =DSUM(経費月合計データ!$B$3:$K$1000,経費月合計データ!$J$3,AG94:AG95) -> 0 | AJ95: 196 | AK95: =DSUM(経費月合計データ!$B$3:$K$1000,経費月合計データ!$J$3,AJ94:AJ95) -> 0 | AM95: 271 | AN95: =DSUM(経費月合計データ!$B$3:$K$1000,経費月合計データ!$J$3,AM94:AM95) -> 0 | AP95: 402 | AQ95: =DSUM(経費月合計データ!$B$3:$K$1000,経費月合計データ!$J$3,AP94:AP95) -> 0 | AS95: 604 | AT95: =DSUM(経費月合計データ!$B$3:$K$1000,経費月合計データ!$J$3,AS94:AS95) -> 0
R96: CODE | U96: CODE | X96: CODE | AA96: CODE | AD96: CODE | AG96: CODE | AJ96: CODE | AM96: CODE | AP96: CODE | AS96: CODE
R97: 126 | S97: =DSUM(仕入月合計データ!$B$3:$N$9771,仕入月合計データ!$M$3,R96:R97) -> 0 | U97: 197 | V97: =DSUM(仕入月合計データ!$B$3:$N$9771,仕入月合計データ!$M$3,U96:U97) -> 0 | X97: 272 | Y97: =DSUM(仕入月合計データ!$B$3:$N$9771,仕入月合計データ!$M$3,X96:X97) -> 0 | AA97: 403 | AB97: =DSUM(仕入月合計データ!$B$3:$N$9771,仕入月合計データ!$M$3,AA96:AA97) -> 0 | AD97: 605 | AE97: =DSUM(仕入月合計データ!$B$3:$N$9771,仕入月合計データ!$M$3,AD96:AD97) -> 0 | AG97: 126 | AH97: =DSUM(経費月合計データ!$B$3:$K$1000,経費月合計データ!$J$3,AG96:AG97) -> 0 | AJ97: 197 | AK97: =DSUM(経費月合計データ!$B$3:$K$1000,経費月合計データ!$J$3,AJ96:AJ97) -> 0 | AM97: 272 | AN97: =DSUM(経費月合計データ!$B$3:$K$1000,経費月合計データ!$J$3,AM96:AM97) -> 0 | AP97: 403 | AQ97: =DSUM(経費月合計データ!$B$3:$K$1000,経費月合計データ!$J$3,AP96:AP97) -> 0 | AS97: 605 | AT97: =DSUM(経費月合計データ!$B$3:$K$1000,経費月合計データ!$J$3,AS96:AS97) -> 0
R98: CODE | U98: CODE | X98: CODE | AA98: CODE | AD98: CODE | AG98: CODE | AJ98: CODE | AM98: CODE | AP98: CODE | AS98: CODE
R99: 127 | S99: =DSUM(仕入月合計データ!$B$3:$N$9771,仕入月合計データ!$M$3,R98:R99) -> 0 | U99: 198 | V99: =DSUM(仕入月合計データ!$B$3:$N$9771,仕入月合計データ!$M$3,U98:U99) -> 0 | X99: 273 | Y99: =DSUM(仕入月合計データ!$B$3:$N$9771,仕入月合計データ!$M$3,X98:X99) -> 0 | AA99: 404 | AB99: =DSUM(仕入月合計データ!$B$3:$N$9771,仕入月合計データ!$M$3,AA98:AA99) -> 0 | AD99: 606 | AE99: =DSUM(仕入月合計データ!$B$3:$N$9771,仕入月合計データ!$M$3,AD98:AD99) -> 0 | AG99: 127 | AH99: =DSUM(経費月合計データ!$B$3:$K$1000,経費月合計データ!$J$3,AG98:AG99) -> 0 | AJ99: 198 | AK99: =DSUM(経費月合計データ!$B$3:$K$1000,経費月合計データ!$J$3,AJ98:AJ99) -> 0 | AM99: 273 | AN99: =DSUM(経費月合計データ!$B$3:$K$1000,経費月合計データ!$J$3,AM98:AM99) -> 0 | AP99: 404 | AQ99: =DSUM(経費月合計データ!$B$3:$K$1000,経費月合計データ!$J$3,AP98:AP99) -> 0 | AS99: 606 | AT99: =DSUM(経費月合計データ!$B$3:$K$1000,経費月合計データ!$J$3,AS98:AS99) -> 0
R100: CODE | U100: CODE | X100: CODE | AA100: CODE | AD100: CODE | AG100: CODE | AJ100: CODE | AM100: CODE | AP100: CODE | AS100: CODE
R101: 128 | S101: =DSUM(仕入月合計データ!$B$3:$N$9771,仕入月合計データ!$M$3,R100:R101) -> 0 | U101: 199 | V101: =DSUM(仕入月合計データ!$B$3:$N$9771,仕入月合計データ!$M$3,U100:U101) -> 0 | X101: 274 | Y101: =DSUM(仕入月合計データ!$B$3:$N$9771,仕入月合計データ!$M$3,X100:X101) -> 0 | AA101: 405 | AB101: =DSUM(仕入月合計データ!$B$3:$N$9771,仕入月合計データ!$M$3,AA100:AA101) -> 0 | AD101: 607 | AE101: =DSUM(仕入月合計データ!$B$3:$N$9771,仕入月合計データ!$M$3,AD100:AD101) -> 0 | AG101: 128 | AH101: =DSUM(経費月合計データ!$B$3:$K$1000,経費月合計データ!$J$3,AG100:AG101) -> 0 | AJ101: 199 | AK101: =DSUM(経費月合計データ!$B$3:$K$1000,経費月合計データ!$J$3,AJ100:AJ101) -> 0 | AM101: 274 | AN101: =DSUM(経費月合計データ!$B$3:$K$1000,経費月合計データ!$J$3,AM100:AM101) -> 0 | AP101: 405 | AQ101: =DSUM(経費月合計データ!$B$3:$K$1000,経費月合計データ!$J$3,AP100:AP101) -> 0 | AS101: 607 | AT101: =DSUM(経費月合計データ!$B$3:$K$1000,経費月合計データ!$J$3,AS100:AS101) -> 0
R102: CODE | U102: CODE | X102: CODE | AA102: CODE | AD102: CODE | AG102: CODE | AJ102: CODE | AM102: CODE | AP102: CODE | AS102: CODE
R103: 129 | S103: =DSUM(仕入月合計データ!$B$3:$N$9771,仕入月合計データ!$M$3,R102:R103) -> 0 | U103: 200 | V103: =DSUM(仕入月合計データ!$B$3:$N$9771,仕入月合計データ!$M$3,U102:U103) -> 0 | X103: 275 | Y103: =DSUM(仕入月合計データ!$B$3:$N$9771,仕入月合計データ!$M$3,X102:X103) -> 0 | AA103: 406 | AB103: =DSUM(仕入月合計データ!$B$3:$N$9771,仕入月合計データ!$M$3,AA102:AA103) -> 0 | AD103: 608 | AE103: =DSUM(仕入月合計データ!$B$3:$N$9771,仕入月合計データ!$M$3,AD102:AD103) -> 0 | AG103: 129 | AH103: =DSUM(経費月合計データ!$B$3:$K$1000,経費月合計データ!$J$3,AG102:AG103) -> 0 | AJ103: 200 | AK103: =DSUM(経費月合計データ!$B$3:$K$1000,経費月合計データ!$J$3,AJ102:AJ103) -> 0 | AM103: 275 | AN103: =DSUM(経費月合計データ!$B$3:$K$1000,経費月合計データ!$J$3,AM102:AM103) -> 0 | AP103: 406 | AQ103: =DSUM(経費月合計データ!$B$3:$K$1000,経費月合計データ!$J$3,AP102:AP103) -> 0 | AS103: 608 | AT103: =DSUM(経費月合計データ!$B$3:$K$1000,経費月合計データ!$J$3,AS102:AS103) -> 0
R104: CODE | U104: CODE | X104: CODE | AA104: CODE | AD104: CODE | AG104: CODE | AJ104: CODE | AM104: CODE | AP104: CODE | AS104: CODE
R105: 130 | S105: =DSUM(仕入月合計データ!$B$3:$N$9771,仕入月合計データ!$M$3,R104:R105) -> 0 | U105: 201 | V105: =DSUM(仕入月合計データ!$B$3:$N$9771,仕入月合計データ!$M$3,U104:U105) -> 0 | X105: 276 | Y105: =DSUM(仕入月合計データ!$B$3:$N$9771,仕入月合計データ!$M$3,X104:X105) -> 0 | AA105: 407 | AB105: =DSUM(仕入月合計データ!$B$3:$N$9771,仕入月合計データ!$M$3,AA104:AA105) -> 0 | AD105: 609 | AE105: =DSUM(仕入月合計データ!$B$3:$N$9771,仕入月合計データ!$M$3,AD104:AD105) -> 0 | AG105: 130 | AH105: =DSUM(経費月合計データ!$B$3:$K$1000,経費月合計データ!$J$3,AG104:AG105) -> 0 | AJ105: 201 | AK105: =DSUM(経費月合計データ!$B$3:$K$1000,経費月合計データ!$J$3,AJ104:AJ105) -> 0 | AM105: 276 | AN105: =DSUM(経費月合計データ!$B$3:$K$1000,経費月合計データ!$J$3,AM104:AM105) -> 0 | AP105: 407 | AQ105: =DSUM(経費月合計データ!$B$3:$K$1000,経費月合計データ!$J$3,AP104:AP105) -> 0 | AS105: 609 | AT105: =DSUM(経費月合計データ!$B$3:$K$1000,経費月合計データ!$J$3,AS104:AS105) -> 0
R106: CODE | U106: CODE | X106: CODE | AA106: CODE | AD106: CODE | AG106: CODE | AJ106: CODE | AM106: CODE | AP106: CODE | AS106: CODE
R107: 131 | S107: =DSUM(仕入月合計データ!$B$3:$N$9771,仕入月合計データ!$M$3,R106:R107) -> 0 | U107: 202 | V107: =DSUM(仕入月合計データ!$B$3:$N$9771,仕入月合計データ!$M$3,U106:U107) -> 0 | X107: 277 | Y107: =DSUM(仕入月合計データ!$B$3:$N$9771,仕入月合計データ!$M$3,X106:X107) -> 0 | AA107: 408 | AB107: =DSUM(仕入月合計データ!$B$3:$N$9771,仕入月合計データ!$M$3,AA106:AA107) -> 0 | AD107: 610 | AE107: =DSUM(仕入月合計データ!$B$3:$N$9771,仕入月合計データ!$M$3,AD106:AD107) -> 0 | AG107: 131 | AH107: =DSUM(経費月合計データ!$B$3:$K$1000,経費月合計データ!$J$3,AG106:AG107) -> 0 | AJ107: 202 | AK107: =DSUM(経費月合計データ!$B$3:$K$1000,経費月合計データ!$J$3,AJ106:AJ107) -> 0 | AM107: 277 | AN107: =DSUM(経費月合計データ!$B$3:$K$1000,経費月合計データ!$J$3,AM106:AM107) -> 0 | AP107: 408 | AQ107: =DSUM(経費月合計データ!$B$3:$K$1000,経費月合計データ!$J$3,AP106:AP107) -> 0 | AS107: 610 | AT107: =DSUM(経費月合計データ!$B$3:$K$1000,経費月合計データ!$J$3,AS106:AS107) -> 0
R108: CODE | U108: CODE | X108: CODE | AA108: CODE | AD108: CODE | AG108: CODE | AJ108: CODE | AM108: CODE | AP108: CODE | AS108: CODE
R109: 132 | S109: =DSUM(仕入月合計データ!$B$3:$N$9771,仕入月合計データ!$M$3,R108:R109) -> 0 | U109: 203 | V109: =DSUM(仕入月合計データ!$B$3:$N$9771,仕入月合計データ!$M$3,U108:U109) -> 0 | X109: 278 | Y109: =DSUM(仕入月合計データ!$B$3:$N$9771,仕入月合計データ!$M$3,X108:X109) -> 0 | AA109: 409 | AB109: =DSUM(仕入月合計データ!$B$3:$N$9771,仕入月合計データ!$M$3,AA108:AA109) -> 0 | AD109: 611 | AE109: =DSUM(仕入月合計データ!$B$3:$N$9771,仕入月合計データ!$M$3,AD108:AD109) -> 0 | AG109: 132 | AH109: =DSUM(経費月合計データ!$B$3:$K$1000,経費月合計データ!$J$3,AG108:AG109) -> 0 | AJ109: 203 | AK109: =DSUM(経費月合計データ!$B$3:$K$1000,経費月合計データ!$J$3,AJ108:AJ109) -> 0 | AM109: 278 | AN109: =DSUM(経費月合計データ!$B$3:$K$1000,経費月合計データ!$J$3,AM108:AM109) -> 0 | AP109: 409 | AQ109: =DSUM(経費月合計データ!$B$3:$K$1000,経費月合計データ!$J$3,AP108:AP109) -> 0 | AS109: 611 | AT109: =DSUM(経費月合計データ!$B$3:$K$1000,経費月合計データ!$J$3,AS108:AS109) -> 0
R110: CODE | U110: CODE | X110: CODE | AA110: CODE | AD110: CODE | AG110: CODE | AJ110: CODE | AM110: CODE | AP110: CODE | AS110: CODE
R111: 133 | S111: =DSUM(仕入月合計データ!$B$3:$N$9771,仕入月合計データ!$M$3,R110:R111) -> 0 | U111: 204 | V111: =DSUM(仕入月合計データ!$B$3:$N$9771,仕入月合計データ!$M$3,U110:U111) -> 0 | X111: 279 | Y111: =DSUM(仕入月合計データ!$B$3:$N$9771,仕入月合計データ!$M$3,X110:X111) -> 0 | AA111: 410 | AB111: =DSUM(仕入月合計データ!$B$3:$N$9771,仕入月合計データ!$M$3,AA110:AA111) -> 0 | AD111: 612 | AE111: =DSUM(仕入月合計データ!$B$3:$N$9771,仕入月合計データ!$M$3,AD110:AD111) -> 0 | AG111: 133 | AH111: =DSUM(経費月合計データ!$B$3:$K$1000,経費月合計データ!$J$3,AG110:AG111) -> 0 | AJ111: 204 | AK111: =DSUM(経費月合計データ!$B$3:$K$1000,経費月合計データ!$J$3,AJ110:AJ111) -> 0 | AM111: 279 | AN111: =DSUM(経費月合計データ!$B$3:$K$1000,経費月合計データ!$J$3,AM110:AM111) -> 0 | AP111: 410 | AQ111: =DSUM(経費月合計データ!$B$3:$K$1000,経費月合計データ!$J$3,AP110:AP111) -> 0 | AS111: 612 | AT111: =DSUM(経費月合計データ!$B$3:$K$1000,経費月合計データ!$J$3,AS110:AS111) -> 0
R112: CODE | U112: CODE | X112: CODE | AA112: CODE | AD112: CODE | AG112: CODE | AJ112: CODE | AM112: CODE | AP112: CODE | AS112: CODE
R113: 134 | S113: =DSUM(仕入月合計データ!$B$3:$N$9771,仕入月合計データ!$M$3,R112:R113) -> 0 | U113: 205 | V113: =DSUM(仕入月合計データ!$B$3:$N$9771,仕入月合計データ!$M$3,U112:U113) -> 0 | X113: 280 | Y113: =DSUM(仕入月合計データ!$B$3:$N$9771,仕入月合計データ!$M$3,X112:X113) -> 0 | AA113: 411 | AB113: =DSUM(仕入月合計データ!$B$3:$N$9771,仕入月合計データ!$M$3,AA112:AA113) -> 0 | AD113: 613 | AE113: =DSUM(仕入月合計データ!$B$3:$N$9771,仕入月合計データ!$M$3,AD112:AD113) -> 0 | AG113: 134 | AH113: =DSUM(経費月合計データ!$B$3:$K$1000,経費月合計データ!$J$3,AG112:AG113) -> 0 | AJ113: 205 | AK113: =DSUM(経費月合計データ!$B$3:$K$1000,経費月合計データ!$J$3,AJ112:AJ113) -> 0 | AM113: 280 | AN113: =DSUM(経費月合計データ!$B$3:$K$1000,経費月合計データ!$J$3,AM112:AM113) -> 0 | AP113: 411 | AQ113: =DSUM(経費月合計データ!$B$3:$K$1000,経費月合計データ!$J$3,AP112:AP113) -> 0 | AS113: 613 | AT113: =DSUM(経費月合計データ!$B$3:$K$1000,経費月合計データ!$J$3,AS112:AS113) -> 0
R114: CODE | U114: CODE | X114: CODE | AA114: CODE | AD114: CODE | AG114: CODE | AJ114: CODE | AM114: CODE | AP114: CODE | AS114: CODE
R115: 135 | S115: =DSUM(仕入月合計データ!$B$3:$N$9771,仕入月合計データ!$M$3,R114:R115) -> 0 | U115: 206 | V115: =DSUM(仕入月合計データ!$B$3:$N$9771,仕入月合計データ!$M$3,U114:U115) -> 0 | X115: 281 | Y115: =DSUM(仕入月合計データ!$B$3:$N$9771,仕入月合計データ!$M$3,X114:X115) -> 0 | AA115: 412 | AB115: =DSUM(仕入月合計データ!$B$3:$N$9771,仕入月合計データ!$M$3,AA114:AA115) -> 0 | AD115: 614 | AE115: =DSUM(仕入月合計データ!$B$3:$N$9771,仕入月合計データ!$M$3,AD114:AD115) -> 0 | AG115: 135 | AH115: =DSUM(経費月合計データ!$B$3:$K$1000,経費月合計データ!$J$3,AG114:AG115) -> 0 | AJ115: 206 | AK115: =DSUM(経費月合計データ!$B$3:$K$1000,経費月合計データ!$J$3,AJ114:AJ115) -> 0 | AM115: 281 | AN115: =DSUM(経費月合計データ!$B$3:$K$1000,経費月合計データ!$J$3,AM114:AM115) -> 0 | AP115: 412 | AQ115: =DSUM(経費月合計データ!$B$3:$K$1000,経費月合計データ!$J$3,AP114:AP115) -> 0 | AS115: 614 | AT115: =DSUM(経費月合計データ!$B$3:$K$1000,経費月合計データ!$J$3,AS114:AS115) -> 0
R116: CODE | U116: CODE | X116: CODE | AA116: CODE | AD116: CODE | AG116: CODE | AJ116: CODE | AM116: CODE | AP116: CODE | AS116: CODE
R117: 136 | S117: =DSUM(仕入月合計データ!$B$3:$N$9771,仕入月合計データ!$M$3,R116:R117) -> 0 | U117: 207 | V117: =DSUM(仕入月合計データ!$B$3:$N$9771,仕入月合計データ!$M$3,U116:U117) -> 0 | X117: 282 | Y117: =DSUM(仕入月合計データ!$B$3:$N$9771,仕入月合計データ!$M$3,X116:X117) -> 0 | AA117: 413 | AB117: =DSUM(仕入月合計データ!$B$3:$N$9771,仕入月合計データ!$M$3,AA116:AA117) -> 0 | AD117: 615 | AE117: =DSUM(仕入月合計データ!$B$3:$N$9771,仕入月合計データ!$M$3,AD116:AD117) -> 0 | AG117: 136 | AH117: =DSUM(経費月合計データ!$B$3:$K$1000,経費月合計データ!$J$3,AG116:AG117) -> 0 | AJ117: 207 | AK117: =DSUM(経費月合計データ!$B$3:$K$1000,経費月合計データ!$J$3,AJ116:AJ117) -> 0 | AM117: 282 | AN117: =DSUM(経費月合計データ!$B$3:$K$1000,経費月合計データ!$J$3,AM116:AM117) -> 0 | AP117: 413 | AQ117: =DSUM(経費月合計データ!$B$3:$K$1000,経費月合計データ!$J$3,AP116:AP117) -> 0 | AS117: 615 | AT117: =DSUM(経費月合計データ!$B$3:$K$1000,経費月合計データ!$J$3,AS116:AS117) -> 0
R118: CODE | U118: CODE | X118: CODE | AA118: CODE | AD118: CODE | AG118: CODE | AJ118: CODE | AM118: CODE | AP118: CODE | AS118: CODE
R119: 137 | S119: =DSUM(仕入月合計データ!$B$3:$N$9771,仕入月合計データ!$M$3,R118:R119) -> 0 | U119: 208 | V119: =DSUM(仕入月合計データ!$B$3:$N$9771,仕入月合計データ!$M$3,U118:U119) -> 0 | X119: 283 | Y119: =DSUM(仕入月合計データ!$B$3:$N$9771,仕入月合計データ!$M$3,X118:X119) -> 0 | AA119: 414 | AB119: =DSUM(仕入月合計データ!$B$3:$N$9771,仕入月合計データ!$M$3,AA118:AA119) -> 0 | AD119: 616 | AE119: =DSUM(仕入月合計データ!$B$3:$N$9771,仕入月合計データ!$M$3,AD118:AD119) -> 0 | AG119: 137 | AH119: =DSUM(経費月合計データ!$B$3:$K$1000,経費月合計データ!$J$3,AG118:AG119) -> 0 | AJ119: 208 | AK119: =DSUM(経費月合計データ!$B$3:$K$1000,経費月合計データ!$J$3,AJ118:AJ119) -> 0 | AM119: 283 | AN119: =DSUM(経費月合計データ!$B$3:$K$1000,経費月合計データ!$J$3,AM118:AM119) -> 0 | AP119: 414 | AQ119: =DSUM(経費月合計データ!$B$3:$K$1000,経費月合計データ!$J$3,AP118:AP119) -> 0 | AS119: 616 | AT119: =DSUM(経費月合計データ!$B$3:$K$1000,経費月合計データ!$J$3,AS118:AS119) -> 0
R120: CODE | U120: CODE | X120: CODE | AA120: CODE | AD120: CODE | AG120: CODE | AJ120: CODE | AM120: CODE | AP120: CODE | AS120: CODE
R121: 138 | S121: =DSUM(仕入月合計データ!$B$3:$N$9771,仕入月合計データ!$M$3,R120:R121) -> 0 | U121: 209 | V121: =DSUM(仕入月合計データ!$B$3:$N$9771,仕入月合計データ!$M$3,U120:U121) -> 0 | X121: 284 | Y121: =DSUM(仕入月合計データ!$B$3:$N$9771,仕入月合計データ!$M$3,X120:X121) -> 0 | AA121: 415 | AB121: =DSUM(仕入月合計データ!$B$3:$N$9771,仕入月合計データ!$M$3,AA120:AA121) -> 0 | AD121: 617 | AE121: =DSUM(仕入月合計データ!$B$3:$N$9771,仕入月合計データ!$M$3,AD120:AD121) -> 0 | AG121: 138 | AH121: =DSUM(経費月合計データ!$B$3:$K$1000,経費月合計データ!$J$3,AG120:AG121) -> 0 | AJ121: 209 | AK121: =DSUM(経費月合計データ!$B$3:$K$1000,経費月合計データ!$J$3,AJ120:AJ121) -> 0 | AM121: 284 | AN121: =DSUM(経費月合計データ!$B$3:$K$1000,経費月合計データ!$J$3,AM120:AM121) -> 0 | AP121: 415 | AQ121: =DSUM(経費月合計データ!$B$3:$K$1000,経費月合計データ!$J$3,AP120:AP121) -> 0 | AS121: 617 | AT121: =DSUM(経費月合計データ!$B$3:$K$1000,経費月合計データ!$J$3,AS120:AS121) -> 0
R122: CODE | U122: CODE | X122: CODE | AA122: CODE | AD122: CODE | AG122: CODE | AJ122: CODE | AM122: CODE | AP122: CODE | AS122: CODE
R123: 139 | S123: =DSUM(仕入月合計データ!$B$3:$N$9771,仕入月合計データ!$M$3,R122:R123) -> 0 | U123: 210 | V123: =DSUM(仕入月合計データ!$B$3:$N$9771,仕入月合計データ!$M$3,U122:U123) -> 0 | X123: 285 | Y123: =DSUM(仕入月合計データ!$B$3:$N$9771,仕入月合計データ!$M$3,X122:X123) -> 0 | AA123: 416 | AB123: =DSUM(仕入月合計データ!$B$3:$N$9771,仕入月合計データ!$M$3,AA122:AA123) -> 0 | AD123: 618 | AE123: =DSUM(仕入月合計データ!$B$3:$N$9771,仕入月合計データ!$M$3,AD122:AD123) -> 0 | AG123: 139 | AH123: =DSUM(経費月合計データ!$B$3:$K$1000,経費月合計データ!$J$3,AG122:AG123) -> 0 | AJ123: 210 | AK123: =DSUM(経費月合計データ!$B$3:$K$1000,経費月合計データ!$J$3,AJ122:AJ123) -> 0 | AM123: 285 | AN123: =DSUM(経費月合計データ!$B$3:$K$1000,経費月合計データ!$J$3,AM122:AM123) -> 0 | AP123: 416 | AQ123: =DSUM(経費月合計データ!$B$3:$K$1000,経費月合計データ!$J$3,AP122:AP123) -> 0 | AS123: 618 | AT123: =DSUM(経費月合計データ!$B$3:$K$1000,経費月合計データ!$J$3,AS122:AS123) -> 0
R124: CODE | U124: CODE | X124: CODE | AA124: CODE | AD124: CODE | AG124: CODE | AJ124: CODE | AM124: CODE | AP124: CODE | AS124: CODE
R125: 140 | S125: =DSUM(仕入月合計データ!$B$3:$N$9771,仕入月合計データ!$M$3,R124:R125) -> 0 | U125: 211 | V125: =DSUM(仕入月合計データ!$B$3:$N$9771,仕入月合計データ!$M$3,U124:U125) -> 0 | X125: 286 | Y125: =DSUM(仕入月合計データ!$B$3:$N$9771,仕入月合計データ!$M$3,X124:X125) -> 0 | AA125: 417 | AB125: =DSUM(仕入月合計データ!$B$3:$N$9771,仕入月合計データ!$M$3,AA124:AA125) -> 0 | AD125: 619 | AE125: =DSUM(仕入月合計データ!$B$3:$N$9771,仕入月合計データ!$M$3,AD124:AD125) -> 0 | AG125: 140 | AH125: =DSUM(経費月合計データ!$B$3:$K$1000,経費月合計データ!$J$3,AG124:AG125) -> 0 | AJ125: 211 | AK125: =DSUM(経費月合計データ!$B$3:$K$1000,経費月合計データ!$J$3,AJ124:AJ125) -> 0 | AM125: 286 | AN125: =DSUM(経費月合計データ!$B$3:$K$1000,経費月合計データ!$J$3,AM124:AM125) -> 0 | AP125: 417 | AQ125: =DSUM(経費月合計データ!$B$3:$K$1000,経費月合計データ!$J$3,AP124:AP125) -> 0 | AS125: 619 | AT125: =DSUM(経費月合計データ!$B$3:$K$1000,経費月合計データ!$J$3,AS124:AS125) -> 0
R126: CODE | U126: CODE | X126: CODE | AA126: CODE | AD126: CODE | AG126: CODE | AJ126: CODE | AM126: CODE | AP126: CODE | AS126: CODE
R127: 141 | S127: =DSUM(仕入月合計データ!$B$3:$N$9771,仕入月合計データ!$M$3,R126:R127) -> 0 | U127: 212 | V127: =DSUM(仕入月合計データ!$B$3:$N$9771,仕入月合計データ!$M$3,U126:U127) -> 0 | X127: 287 | Y127: =DSUM(仕入月合計データ!$B$3:$N$9771,仕入月合計データ!$M$3,X126:X127) -> 0 | AA127: 418 | AB127: =DSUM(仕入月合計データ!$B$3:$N$9771,仕入月合計データ!$M$3,AA126:AA127) -> 0 | AD127: 620 | AE127: =DSUM(仕入月合計データ!$B$3:$N$9771,仕入月合計データ!$M$3,AD126:AD127) -> 0 | AG127: 141 | AH127: =DSUM(経費月合計データ!$B$3:$K$1000,経費月合計データ!$J$3,AG126:AG127) -> 0 | AJ127: 212 | AK127: =DSUM(経費月合計データ!$B$3:$K$1000,経費月合計データ!$J$3,AJ126:AJ127) -> 0 | AM127: 287 | AN127: =DSUM(経費月合計データ!$B$3:$K$1000,経費月合計データ!$J$3,AM126:AM127) -> 0 | AP127: 418 | AQ127: =DSUM(経費月合計データ!$B$3:$K$1000,経費月合計データ!$J$3,AP126:AP127) -> 0 | AS127: 620 | AT127: =DSUM(経費月合計データ!$B$3:$K$1000,経費月合計データ!$J$3,AS126:AS127) -> 0
R128: CODE | U128: CODE | X128: CODE | AA128: CODE | AD128: CODE | AG128: CODE | AJ128: CODE | AM128: CODE | AP128: CODE | AS128: CODE
R129: 142 | S129: =DSUM(仕入月合計データ!$B$3:$N$9771,仕入月合計データ!$M$3,R128:R129) -> 0 | U129: 213 | V129: =DSUM(仕入月合計データ!$B$3:$N$9771,仕入月合計データ!$M$3,U128:U129) -> 0 | X129: 288 | Y129: =DSUM(仕入月合計データ!$B$3:$N$9771,仕入月合計データ!$M$3,X128:X129) -> 0 | AA129: 419 | AB129: =DSUM(仕入月合計データ!$B$3:$N$9771,仕入月合計データ!$M$3,AA128:AA129) -> 0 | AD129: 621 | AE129: =DSUM(仕入月合計データ!$B$3:$N$9771,仕入月合計データ!$M$3,AD128:AD129) -> 0 | AG129: 142 | AH129: =DSUM(経費月合計データ!$B$3:$K$1000,経費月合計データ!$J$3,AG128:AG129) -> 0 | AJ129: 213 | AK129: =DSUM(経費月合計データ!$B$3:$K$1000,経費月合計データ!$J$3,AJ128:AJ129) -> 0 | AM129: 288 | AN129: =DSUM(経費月合計データ!$B$3:$K$1000,経費月合計データ!$J$3,AM128:AM129) -> 0 | AP129: 419 | AQ129: =DSUM(経費月合計データ!$B$3:$K$1000,経費月合計データ!$J$3,AP128:AP129) -> 0 | AS129: 621 | AT129: =DSUM(経費月合計データ!$B$3:$K$1000,経費月合計データ!$J$3,AS128:AS129) -> 0
R130: CODE | U130: CODE | X130: CODE | AA130: CODE | AD130: CODE | AG130: CODE | AJ130: CODE | AM130: CODE | AP130: CODE | AS130: CODE
R131: 143 | S131: =DSUM(仕入月合計データ!$B$3:$N$9771,仕入月合計データ!$M$3,R130:R131) -> 0 | U131: 214 | V131: =DSUM(仕入月合計データ!$B$3:$N$9771,仕入月合計データ!$M$3,U130:U131) -> 0 | X131: 289 | Y131: =DSUM(仕入月合計データ!$B$3:$N$9771,仕入月合計データ!$M$3,X130:X131) -> 0 | AA131: 420 | AB131: =DSUM(仕入月合計データ!$B$3:$N$9771,仕入月合計データ!$M$3,AA130:AA131) -> 0 | AD131: 622 | AE131: =DSUM(仕入月合計データ!$B$3:$N$9771,仕入月合計データ!$M$3,AD130:AD131) -> 0 | AG131: 143 | AH131: =DSUM(経費月合計データ!$B$3:$K$1000,経費月合計データ!$J$3,AG130:AG131) -> 0 | AJ131: 214 | AK131: =DSUM(経費月合計データ!$B$3:$K$1000,経費月合計データ!$J$3,AJ130:AJ131) -> 0 | AM131: 289 | AN131: =DSUM(経費月合計データ!$B$3:$K$1000,経費月合計データ!$J$3,AM130:AM131) -> 0 | AP131: 420 | AQ131: =DSUM(経費月合計データ!$B$3:$K$1000,経費月合計データ!$J$3,AP130:AP131) -> 0 | AS131: 622 | AT131: =DSUM(経費月合計データ!$B$3:$K$1000,経費月合計データ!$J$3,AS130:AS131) -> 0
R132: CODE | U132: CODE | X132: CODE | AA132: CODE | AD132: CODE | AG132: CODE | AJ132: CODE | AM132: CODE | AP132: CODE | AS132: CODE
R133: 144 | S133: =DSUM(仕入月合計データ!$B$3:$N$9771,仕入月合計データ!$M$3,R132:R133) -> 0 | U133: 215 | V133: =DSUM(仕入月合計データ!$B$3:$N$9771,仕入月合計データ!$M$3,U132:U133) -> 0 | X133: 290 | Y133: =DSUM(仕入月合計データ!$B$3:$N$9771,仕入月合計データ!$M$3,X132:X133) -> 0 | AA133: 421 | AB133: =DSUM(仕入月合計データ!$B$3:$N$9771,仕入月合計データ!$M$3,AA132:AA133) -> 0 | AD133: 623 | AE133: =DSUM(仕入月合計データ!$B$3:$N$9771,仕入月合計データ!$M$3,AD132:AD133) -> 0 | AG133: 144 | AH133: =DSUM(経費月合計データ!$B$3:$K$1000,経費月合計データ!$J$3,AG132:AG133) -> 0 | AJ133: 215 | AK133: =DSUM(経費月合計データ!$B$3:$K$1000,経費月合計データ!$J$3,AJ132:AJ133) -> 0 | AM133: 290 | AN133: =DSUM(経費月合計データ!$B$3:$K$1000,経費月合計データ!$J$3,AM132:AM133) -> 0 | AP133: 421 | AQ133: =DSUM(経費月合計データ!$B$3:$K$1000,経費月合計データ!$J$3,AP132:AP133) -> 0 | AS133: 623 | AT133: =DSUM(経費月合計データ!$B$3:$K$1000,経費月合計データ!$J$3,AS132:AS133) -> 0
R134: CODE | U134: CODE | AA134: CODE | AD134: CODE | AG134: CODE | AJ134: CODE | AP134: CODE | AS134: CODE
R135: 145 | S135: =DSUM(仕入月合計データ!$B$3:$N$9771,仕入月合計データ!$M$3,R134:R135) -> 0 | U135: 216 | V135: =DSUM(仕入月合計データ!$B$3:$N$9771,仕入月合計データ!$M$3,U134:U135) -> 0 | AA135: 422 | AB135: =DSUM(仕入月合計データ!$B$3:$N$9771,仕入月合計データ!$M$3,AA134:AA135) -> 0 | AD135: 624 | AE135: =DSUM(仕入月合計データ!$B$3:$N$9771,仕入月合計データ!$M$3,AD134:AD135) -> 0 | AG135: 145 | AH135: =DSUM(経費月合計データ!$B$3:$K$1000,経費月合計データ!$J$3,AG134:AG135) -> 0 | AJ135: 216 | AK135: =DSUM(経費月合計データ!$B$3:$K$1000,経費月合計データ!$J$3,AJ134:AJ135) -> 0 | AP135: 422 | AQ135: =DSUM(経費月合計データ!$B$3:$K$1000,経費月合計データ!$J$3,AP134:AP135) -> 0 | AS135: 624 | AT135: =DSUM(経費月合計データ!$B$3:$K$1000,経費月合計データ!$J$3,AS134:AS135) -> 0
R136: CODE | U136: CODE | AA136: CODE | AD136: CODE | AG136: CODE | AJ136: CODE | AP136: CODE | AS136: CODE
R137: 146 | S137: =DSUM(仕入月合計データ!$B$3:$N$9771,仕入月合計データ!$M$3,R136:R137) -> 0 | U137: 217 | V137: =DSUM(仕入月合計データ!$B$3:$N$9771,仕入月合計データ!$M$3,U136:U137) -> 0 | AA137: 423 | AB137: =DSUM(仕入月合計データ!$B$3:$N$9771,仕入月合計データ!$M$3,AA136:AA137) -> 0 | AD137: 625 | AE137: =DSUM(仕入月合計データ!$B$3:$N$9771,仕入月合計データ!$M$3,AD136:AD137) -> 0 | AG137: 146 | AH137: =DSUM(経費月合計データ!$B$3:$K$1000,経費月合計データ!$J$3,AG136:AG137) -> 0 | AJ137: 217 | AK137: =DSUM(経費月合計データ!$B$3:$K$1000,経費月合計データ!$J$3,AJ136:AJ137) -> 0 | AP137: 423 | AQ137: =DSUM(経費月合計データ!$B$3:$K$1000,経費月合計データ!$J$3,AP136:AP137) -> 0 | AS137: 625 | AT137: =DSUM(経費月合計データ!$B$3:$K$1000,経費月合計データ!$J$3,AS136:AS137) -> 0
R138: CODE | U138: CODE | AA138: CODE | AD138: CODE | AG138: CODE | AJ138: CODE | AP138: CODE | AS138: CODE
R139: 147 | S139: =DSUM(仕入月合計データ!$B$3:$N$9771,仕入月合計データ!$M$3,R138:R139) -> 0 | U139: 218 | V139: =DSUM(仕入月合計データ!$B$3:$N$9771,仕入月合計データ!$M$3,U138:U139) -> 0 | AA139: 424 | AB139: =DSUM(仕入月合計データ!$B$3:$N$9771,仕入月合計データ!$M$3,AA138:AA139) -> 0 | AD139: 626 | AE139: =DSUM(仕入月合計データ!$B$3:$N$9771,仕入月合計データ!$M$3,AD138:AD139) -> 0 | AG139: 147 | AH139: =DSUM(経費月合計データ!$B$3:$K$1000,経費月合計データ!$J$3,AG138:AG139) -> 0 | AJ139: 218 | AK139: =DSUM(経費月合計データ!$B$3:$K$1000,経費月合計データ!$J$3,AJ138:AJ139) -> 0 | AP139: 424 | AQ139: =DSUM(経費月合計データ!$B$3:$K$1000,経費月合計データ!$J$3,AP138:AP139) -> 0 | AS139: 626 | AT139: =DSUM(経費月合計データ!$B$3:$K$1000,経費月合計データ!$J$3,AS138:AS139) -> 0
R140: CODE | U140: CODE | AA140: CODE | AD140: CODE | AG140: CODE | AJ140: CODE | AP140: CODE | AS140: CODE
R141: 148 | S141: =DSUM(仕入月合計データ!$B$3:$N$9771,仕入月合計データ!$M$3,R140:R141) -> 0 | U141: 219 | V141: =DSUM(仕入月合計データ!$B$3:$N$9771,仕入月合計データ!$M$3,U140:U141) -> 0 | AA141: 425 | AB141: =DSUM(仕入月合計データ!$B$3:$N$9771,仕入月合計データ!$M$3,AA140:AA141) -> 1635 | AD141: 627 | AE141: =DSUM(仕入月合計データ!$B$3:$N$9771,仕入月合計データ!$M$3,AD140:AD141) -> 0 | AG141: 148 | AH141: =DSUM(経費月合計データ!$B$3:$K$1000,経費月合計データ!$J$3,AG140:AG141) -> 0 | AJ141: 219 | AK141: =DSUM(経費月合計データ!$B$3:$K$1000,経費月合計データ!$J$3,AJ140:AJ141) -> 0 | AP141: 425 | AQ141: =DSUM(経費月合計データ!$B$3:$K$1000,経費月合計データ!$J$3,AP140:AP141) -> 0 | AS141: 627 | AT141: =DSUM(経費月合計データ!$B$3:$K$1000,経費月合計データ!$J$3,AS140:AS141) -> 0
R142: CODE | U142: CODE | AA142: CODE | AD142: CODE | AG142: CODE | AJ142: CODE | AP142: CODE | AS142: CODE
R143: 149 | S143: =DSUM(仕入月合計データ!$B$3:$N$9771,仕入月合計データ!$M$3,R142:R143) -> 0 | U143: 220 | V143: =DSUM(仕入月合計データ!$B$3:$N$9771,仕入月合計データ!$M$3,U142:U143) -> 1035 | AA143: 426 | AB143: =DSUM(仕入月合計データ!$B$3:$N$9771,仕入月合計データ!$M$3,AA142:AA143) -> 0 | AD143: 628 | AE143: =DSUM(仕入月合計データ!$B$3:$N$9771,仕入月合計データ!$M$3,AD142:AD143) -> 0 | AG143: 149 | AH143: =DSUM(経費月合計データ!$B$3:$K$1000,経費月合計データ!$J$3,AG142:AG143) -> 0 | AJ143: 220 | AK143: =DSUM(経費月合計データ!$B$3:$K$1000,経費月合計データ!$J$3,AJ142:AJ143) -> 0 | AP143: 426 | AQ143: =DSUM(経費月合計データ!$B$3:$K$1000,経費月合計データ!$J$3,AP142:AP143) -> 0 | AS143: 628 | AT143: =DSUM(経費月合計データ!$B$3:$K$1000,経費月合計データ!$J$3,AS142:AS143) -> 0
R144: CODE | U144: CODE | AD144: CODE | AG144: CODE | AJ144: CODE | AP144: CODE | AS144: CODE
R145: 150 | S145: =DSUM(仕入月合計データ!$B$3:$N$9771,仕入月合計データ!$M$3,R144:R145) -> 0 | U145: 221 | V145: =DSUM(仕入月合計データ!$B$3:$N$9771,仕入月合計データ!$M$3,U144:U145) -> 0 | AD145: 629 | AE145: =DSUM(仕入月合計データ!$B$3:$N$9771,仕入月合計データ!$M$3,AD144:AD145) -> 0 | AG145: 150 | AH145: =DSUM(経費月合計データ!$B$3:$K$1000,経費月合計データ!$J$3,AG144:AG145) -> 0 | AJ145: 221 | AK145: =DSUM(経費月合計データ!$B$3:$K$1000,経費月合計データ!$J$3,AJ144:AJ145) -> 0 | AP145: 501 | AQ145: =DSUM(経費月合計データ!$B$3:$K$1000,経費月合計データ!$J$3,AP144:AP145) -> 0 | AS145: 629 | AT145: =DSUM(経費月合計データ!$B$3:$K$1000,経費月合計データ!$J$3,AS144:AS145) -> 0
U146: CODE | AD146: CODE | AJ146: CODE | AS146: CODE
U147: 222 | V147: =DSUM(仕入月合計データ!$B$3:$N$9771,仕入月合計データ!$M$3,U146:U147) -> 0 | AD147: 630 | AE147: =DSUM(仕入月合計データ!$B$3:$N$9771,仕入月合計データ!$M$3,AD146:AD147) -> 0 | AJ147: 222 | AK147: =DSUM(経費月合計データ!$B$3:$K$1000,経費月合計データ!$J$3,AJ146:AJ147) -> 0 | AS147: 630 | AT147: =DSUM(経費月合計データ!$B$3:$K$1000,経費月合計データ!$J$3,AS146:AS147) -> 0
U148: CODE | AD148: CODE | AJ148: CODE | AS148: CODE
U149: 223 | V149: =DSUM(仕入月合計データ!$B$3:$N$9771,仕入月合計データ!$M$3,U148:U149) -> 0 | AD149: 631 | AE149: =DSUM(仕入月合計データ!$B$3:$N$9771,仕入月合計データ!$M$3,AD148:AD149) -> 0 | AJ149: 223 | AK149: =DSUM(経費月合計データ!$B$3:$K$1000,経費月合計データ!$J$3,AJ148:AJ149) -> 0 | AS149: 631 | AT149: =DSUM(経費月合計データ!$B$3:$K$1000,経費月合計データ!$J$3,AS148:AS149) -> 0
U150: CODE | AD150: CODE | AJ150: CODE | AS150: CODE
U151: 224 | V151: =DSUM(仕入月合計データ!$B$3:$N$9771,仕入月合計データ!$M$3,U150:U151) -> 0 | AD151: 632 | AE151: =DSUM(仕入月合計データ!$B$3:$N$9771,仕入月合計データ!$M$3,AD150:AD151) -> 0 | AJ151: 224 | AK151: =DSUM(経費月合計データ!$B$3:$K$1000,経費月合計データ!$J$3,AJ150:AJ151) -> 0 | AS151: 632 | AT151: =DSUM(経費月合計データ!$B$3:$K$1000,経費月合計データ!$J$3,AS150:AS151) -> 0
U152: CODE | AD152: CODE | AJ152: CODE | AS152: CODE
U153: 225 | V153: =DSUM(仕入月合計データ!$B$3:$N$9771,仕入月合計データ!$M$3,U152:U153) -> 0 | AD153: 633 | AE153: =DSUM(仕入月合計データ!$B$3:$N$9771,仕入月合計データ!$M$3,AD152:AD153) -> 0 | AJ153: 225 | AK153: =DSUM(経費月合計データ!$B$3:$K$1000,経費月合計データ!$J$3,AJ152:AJ153) -> 0 | AS153: 633 | AT153: =DSUM(経費月合計データ!$B$3:$K$1000,経費月合計データ!$J$3,AS152:AS153) -> 0
AD154: CODE | AS154: CODE
AD155: 634 | AE155: =DSUM(仕入月合計データ!$B$3:$N$9771,仕入月合計データ!$M$3,AD154:AD155) -> 0 | AS155: 634 | AT155: =DSUM(経費月合計データ!$B$3:$K$1000,経費月合計データ!$J$3,AS154:AS155) -> 0
AD156: CODE | AS156: CODE
AD157: 635 | AE157: =DSUM(仕入月合計データ!$B$3:$N$9771,仕入月合計データ!$M$3,AD156:AD157) -> 0 | AS157: 635 | AT157: =DSUM(経費月合計データ!$B$3:$K$1000,経費月合計データ!$J$3,AS156:AS157) -> 0

Sheet 計算2
C2: 仕入先別仕入金額用 | F2: 本日入力部品 | I2: 合計 | J2: =SUM(D5:D400)+SUM(G5:G400)+SUM(J5:J400)+SUM(M5:M400)+SUM(P5:P400) -> 3600 | R2: 仕入先別仕入金額用 | U2: 本日入力経費 | X2: 合計 | Y2: =SUM(S5:S400)+SUM(V5:V400)+SUM(Y5:Y400)+SUM(AB5:AB400)+SUM(AE5:AE400) -> 0
C4: CODE | F4: CODE | I4: CODE | L4: CODE | O4: CODE | R4: CODE | U4: CODE | X4: CODE | AA4: CODE | AD4: CODE
C5: 1 | D5: =DSUM(部品本日入力!$B$3:$N$5008,部品本日入力!$M$3,C4:C5) -> 0 | F5: 151 | G5: =DSUM(部品本日入力!$B$3:$N$5008,部品本日入力!$M$3,F4:F5) -> 0 | I5: 226 | J5: =DSUM(部品本日入力!$B$3:$N$5008,部品本日入力!$M$3,I4:I5) -> 0 | L5: 291 | M5: =DSUM(部品本日入力!$B$3:$N$5008,部品本日入力!$M$3,L4:L5) -> 0 | O5: 502 | P5: =DSUM(部品本日入力!$B$3:$N$5008,部品本日入力!$M$3,O4:O5) -> 0 | R5: 1 | S5: =DSUM(経費本日入力!$B$3:$K$2000,経費本日入力!$J$3,R4:R5) -> 0 | U5: 151 | V5: =DSUM(経費本日入力!$B$3:$K$2000,経費本日入力!$J$3,U4:U5) -> 0 | X5: 226 | Y5: =DSUM(経費本日入力!$B$3:$K$2000,経費本日入力!$J$3,X4:X5) -> 0 | AA5: 291 | AB5: =DSUM(経費本日入力!$B$3:$K$2000,経費本日入力!$J$3,AA4:AA5) -> 0 | AD5: 502 | AE5: =DSUM(経費本日入力!$B$3:$K$2000,経費本日入力!$J$3,AD4:AD5) -> 0
C6: CODE | F6: CODE | I6: CODE | L6: CODE | O6: CODE | R6: CODE | U6: CODE | X6: CODE | AA6: CODE | AD6: CODE
C7: 2 | D7: =DSUM(部品本日入力!$B$3:$N$5008,部品本日入力!$M$3,C6:C7) -> 0 | F7: 152 | G7: =DSUM(部品本日入力!$B$3:$N$5008,部品本日入力!$M$3,F6:F7) -> 0 | I7: 227 | J7: =DSUM(部品本日入力!$B$3:$N$5008,部品本日入力!$M$3,I6:I7) -> 0 | L7: 292 | M7: =DSUM(部品本日入力!$B$3:$N$5008,部品本日入力!$M$3,L6:L7) -> 0 | O7: 503 | P7: =DSUM(部品本日入力!$B$3:$N$5008,部品本日入力!$M$3,O6:O7) -> 0 | R7: 2 | S7: =DSUM(経費本日入力!$B$3:$K$2000,経費本日入力!$J$3,R6:R7) -> 0 | U7: 152 | V7: =DSUM(経費本日入力!$B$3:$K$2000,経費本日入力!$J$3,U6:U7) -> 0 | X7: 227 | Y7: =DSUM(経費本日入力!$B$3:$K$2000,経費本日入力!$J$3,X6:X7) -> 0 | AA7: 292 | AB7: =DSUM(経費本日入力!$B$3:$K$2000,経費本日入力!$J$3,AA6:AA7) -> 0 | AD7: 503 | AE7: =DSUM(経費本日入力!$B$3:$K$2000,経費本日入力!$J$3,AD6:AD7) -> 0
C8: CODE | F8: CODE | I8: CODE | L8: CODE | O8: CODE | R8: CODE | U8: CODE | X8: CODE | AA8: CODE | AD8: CODE
C9: 3 | D9: =DSUM(部品本日入力!$B$3:$N$5008,部品本日入力!$M$3,C8:C9) -> 0 | F9: 153 | G9: =DSUM(部品本日入力!$B$3:$N$5008,部品本日入力!$M$3,F8:F9) -> 0 | I9: 228 | J9: =DSUM(部品本日入力!$B$3:$N$5008,部品本日入力!$M$3,I8:I9) -> 0 | L9: 293 | M9: =DSUM(部品本日入力!$B$3:$N$5008,部品本日入力!$M$3,L8:L9) -> 0 | O9: 504 | P9: =DSUM(部品本日入力!$B$3:$N$5008,部品本日入力!$M$3,O8:O9) -> 0 | R9: 3 | S9: =DSUM(経費本日入力!$B$3:$K$2000,経費本日入力!$J$3,R8:R9) -> 0 | U9: 153 | V9: =DSUM(経費本日入力!$B$3:$K$2000,経費本日入力!$J$3,U8:U9) -> 0 | X9: 228 | Y9: =DSUM(経費本日入力!$B$3:$K$2000,経費本日入力!$J$3,X8:X9) -> 0 | AA9: 293 | AB9: =DSUM(経費本日入力!$B$3:$K$2000,経費本日入力!$J$3,AA8:AA9) -> 0 | AD9: 504 | AE9: =DSUM(経費本日入力!$B$3:$K$2000,経費本日入力!$J$3,AD8:AD9) -> 0
C10: CODE | F10: CODE | I10: CODE | L10: CODE | O10: CODE | R10: CODE | U10: CODE | X10: CODE | AA10: CODE | AD10: CODE
C11: 4 | D11: =DSUM(部品本日入力!$B$3:$N$5008,部品本日入力!$M$3,C10:C11) -> 0 | F11: 154 | G11: =DSUM(部品本日入力!$B$3:$N$5008,部品本日入力!$M$3,F10:F11) -> 0 | I11: 229 | J11: =DSUM(部品本日入力!$B$3:$N$5008,部品本日入力!$M$3,I10:I11) -> 0 | L11: 294 | M11: =DSUM(部品本日入力!$B$3:$N$5008,部品本日入力!$M$3,L10:L11) -> 0 | O11: 505 | P11: =DSUM(部品本日入力!$B$3:$N$5008,部品本日入力!$M$3,O10:O11) -> 0 | R11: 4 | S11: =DSUM(経費本日入力!$B$3:$K$2000,経費本日入力!$J$3,R10:R11) -> 0 | U11: 154 | V11: =DSUM(経費本日入力!$B$3:$K$2000,経費本日入力!$J$3,U10:U11) -> 0 | X11: 229 | Y11: =DSUM(経費本日入力!$B$3:$K$2000,経費本日入力!$J$3,X10:X11) -> 0 | AA11: 294 | AB11: =DSUM(経費本日入力!$B$3:$K$2000,経費本日入力!$J$3,AA10:AA11) -> 0 | AD11: 505 | AE11: =DSUM(経費本日入力!$B$3:$K$2000,経費本日入力!$J$3,AD10:AD11) -> 0
C12: CODE | F12: CODE | I12: CODE | L12: CODE | O12: CODE | R12: CODE | U12: CODE | X12: CODE | AA12: CODE | AD12: CODE
C13: 5 | D13: =DSUM(部品本日入力!$B$3:$N$5008,部品本日入力!$M$3,C12:C13) -> 0 | F13: 155 | G13: =DSUM(部品本日入力!$B$3:$N$5008,部品本日入力!$M$3,F12:F13) -> 0 | I13: 230 | J13: =DSUM(部品本日入力!$B$3:$N$5008,部品本日入力!$M$3,I12:I13) -> 0 | L13: 295 | M13: =DSUM(部品本日入力!$B$3:$N$5008,部品本日入力!$M$3,L12:L13) -> 0 | O13: 506 | P13: =DSUM(部品本日入力!$B$3:$N$5008,部品本日入力!$M$3,O12:O13) -> 0 | R13: 5 | S13: =DSUM(経費本日入力!$B$3:$K$2000,経費本日入力!$J$3,R12:R13) -> 0 | U13: 155 | V13: =DSUM(経費本日入力!$B$3:$K$2000,経費本日入力!$J$3,U12:U13) -> 0 | X13: 230 | Y13: =DSUM(経費本日入力!$B$3:$K$2000,経費本日入力!$J$3,X12:X13) -> 0 | AA13: 295 | AB13: =DSUM(経費本日入力!$B$3:$K$2000,経費本日入力!$J$3,AA12:AA13) -> 0 | AD13: 506 | AE13: =DSUM(経費本日入力!$B$3:$K$2000,経費本日入力!$J$3,AD12:AD13) -> 0
C14: CODE | F14: CODE | I14: CODE | L14: CODE | O14: CODE | R14: CODE | U14: CODE | X14: CODE | AA14: CODE | AD14: CODE
C15: 6 | D15: =DSUM(部品本日入力!$B$3:$N$5008,部品本日入力!$M$3,C14:C15) -> 100 | F15: 156 | G15: =DSUM(部品本日入力!$B$3:$N$5008,部品本日入力!$M$3,F14:F15) -> 0 | I15: 231 | J15: =DSUM(部品本日入力!$B$3:$N$5008,部品本日入力!$M$3,I14:I15) -> 0 | L15: 296 | M15: =DSUM(部品本日入力!$B$3:$N$5008,部品本日入力!$M$3,L14:L15) -> 0 | O15: 507 | P15: =DSUM(部品本日入力!$B$3:$N$5008,部品本日入力!$M$3,O14:O15) -> 0 | R15: 6 | S15: =DSUM(経費本日入力!$B$3:$K$2000,経費本日入力!$J$3,R14:R15) -> 0 | U15: 156 | V15: =DSUM(経費本日入力!$B$3:$K$2000,経費本日入力!$J$3,U14:U15) -> 0 | X15: 231 | Y15: =DSUM(経費本日入力!$B$3:$K$2000,経費本日入力!$J$3,X14:X15) -> 0 | AA15: 296 | AB15: =DSUM(経費本日入力!$B$3:$K$2000,経費本日入力!$J$3,AA14:AA15) -> 0 | AD15: 507 | AE15: =DSUM(経費本日入力!$B$3:$K$2000,経費本日入力!$J$3,AD14:AD15) -> 0
C16: CODE | F16: CODE | I16: CODE | L16: CODE | O16: CODE | R16: CODE | U16: CODE | X16: CODE | AA16: CODE | AD16: CODE
C17: 7 | D17: =DSUM(部品本日入力!$B$3:$N$5008,部品本日入力!$M$3,C16:C17) -> 0 | F17: 157 | G17: =DSUM(部品本日入力!$B$3:$N$5008,部品本日入力!$M$3,F16:F17) -> 0 | I17: 232 | J17: =DSUM(部品本日入力!$B$3:$N$5008,部品本日入力!$M$3,I16:I17) -> 0 | L17: 297 | M17: =DSUM(部品本日入力!$B$3:$N$5008,部品本日入力!$M$3,L16:L17) -> 0 | O17: 508 | P17: =DSUM(部品本日入力!$B$3:$N$5008,部品本日入力!$M$3,O16:O17) -> 0 | R17: 7 | S17: =DSUM(経費本日入力!$B$3:$K$2000,経費本日入力!$J$3,R16:R17) -> 0 | U17: 157 | V17: =DSUM(経費本日入力!$B$3:$K$2000,経費本日入力!$J$3,U16:U17) -> 0 | X17: 232 | Y17: =DSUM(経費本日入力!$B$3:$K$2000,経費本日入力!$J$3,X16:X17) -> 0 | AA17: 297 | AB17: =DSUM(経費本日入力!$B$3:$K$2000,経費本日入力!$J$3,AA16:AA17) -> 0 | AD17: 508 | AE17: =DSUM(経費本日入力!$B$3:$K$2000,経費本日入力!$J$3,AD16:AD17) -> 0
C18: CODE | F18: CODE | I18: CODE | L18: CODE | O18: CODE | R18: CODE | U18: CODE | X18: CODE | AA18: CODE | AD18: CODE
C19: 8 | D19: =DSUM(部品本日入力!$B$3:$N$5008,部品本日入力!$M$3,C18:C19) -> 0 | F19: 158 | G19: =DSUM(部品本日入力!$B$3:$N$5008,部品本日入力!$M$3,F18:F19) -> 0 | I19: 233 | J19: =DSUM(部品本日入力!$B$3:$N$5008,部品本日入力!$M$3,I18:I19) -> 0 | L19: 298 | M19: =DSUM(部品本日入力!$B$3:$N$5008,部品本日入力!$M$3,L18:L19) -> 0 | O19: 509 | P19: =DSUM(部品本日入力!$B$3:$N$5008,部品本日入力!$M$3,O18:O19) -> 0 | R19: 8 | S19: =DSUM(経費本日入力!$B$3:$K$2000,経費本日入力!$J$3,R18:R19) -> 0 | U19: 158 | V19: =DSUM(経費本日入力!$B$3:$K$2000,経費本日入力!$J$3,U18:U19) -> 0 | X19: 233 | Y19: =DSUM(経費本日入力!$B$3:$K$2000,経費本日入力!$J$3,X18:X19) -> 0 | AA19: 298 | AB19: =DSUM(経費本日入力!$B$3:$K$2000,経費本日入力!$J$3,AA18:AA19) -> 0 | AD19: 509 | AE19: =DSUM(経費本日入力!$B$3:$K$2000,経費本日入力!$J$3,AD18:AD19) -> 0
C20: CODE | F20: CODE | I20: CODE | L20: CODE | O20: CODE | R20: CODE | U20: CODE | X20: CODE | AA20: CODE | AD20: CODE
C21: 9 | D21: =DSUM(部品本日入力!$B$3:$N$5008,部品本日入力!$M$3,C20:C21) -> 0 | F21: 159 | G21: =DSUM(部品本日入力!$B$3:$N$5008,部品本日入力!$M$3,F20:F21) -> 0 | I21: 234 | J21: =DSUM(部品本日入力!$B$3:$N$5008,部品本日入力!$M$3,I20:I21) -> 0 | L21: 299 | M21: =DSUM(部品本日入力!$B$3:$N$5008,部品本日入力!$M$3,L20:L21) -> 0 | O21: 510 | P21: =DSUM(部品本日入力!$B$3:$N$5008,部品本日入力!$M$3,O20:O21) -> 0 | R21: 9 | S21: =DSUM(経費本日入力!$B$3:$K$2000,経費本日入力!$J$3,R20:R21) -> 0 | U21: 159 | V21: =DSUM(経費本日入力!$B$3:$K$2000,経費本日入力!$J$3,U20:U21) -> 0 | X21: 234 | Y21: =DSUM(経費本日入力!$B$3:$K$2000,経費本日入力!$J$3,X20:X21) -> 0 | AA21: 299 | AB21: =DSUM(経費本日入力!$B$3:$K$2000,経費本日入力!$J$3,AA20:AA21) -> 0 | AD21: 510 | AE21: =DSUM(経費本日入力!$B$3:$K$2000,経費本日入力!$J$3,AD20:AD21) -> 0
C22: CODE | F22: CODE | I22: CODE | L22: CODE | O22: CODE | R22: CODE | U22: CODE | X22: CODE | AA22: CODE | AD22: CODE
C23: 10 | D23: =DSUM(部品本日入力!$B$3:$N$5008,部品本日入力!$M$3,C22:C23) -> 0 | F23: 160 | G23: =DSUM(部品本日入力!$B$3:$N$5008,部品本日入力!$M$3,F22:F23) -> 0 | I23: 235 | J23: =DSUM(部品本日入力!$B$3:$N$5008,部品本日入力!$M$3,I22:I23) -> 0 | L23: 300 | M23: =DSUM(部品本日入力!$B$3:$N$5008,部品本日入力!$M$3,L22:L23) -> 0 | O23: 511 | P23: =DSUM(部品本日入力!$B$3:$N$5008,部品本日入力!$M$3,O22:O23) -> 0 | R23: 10 | S23: =DSUM(経費本日入力!$B$3:$K$2000,経費本日入力!$J$3,R22:R23) -> 0 | U23: 160 | V23: =DSUM(経費本日入力!$B$3:$K$2000,経費本日入力!$J$3,U22:U23) -> 0 | X23: 235 | Y23: =DSUM(経費本日入力!$B$3:$K$2000,経費本日入力!$J$3,X22:X23) -> 0 | AA23: 300 | AB23: =DSUM(経費本日入力!$B$3:$K$2000,経費本日入力!$J$3,AA22:AA23) -> 0 | AD23: 511 | AE23: =DSUM(経費本日入力!$B$3:$K$2000,経費本日入力!$J$3,AD22:AD23) -> 0
C24: CODE | F24: CODE | I24: CODE | L24: CODE | O24: CODE | R24: CODE | U24: CODE | X24: CODE | AA24: CODE | AD24: CODE
C25: 11 | D25: =DSUM(部品本日入力!$B$3:$N$5008,部品本日入力!$M$3,C24:C25) -> 0 | F25: 161 | G25: =DSUM(部品本日入力!$B$3:$N$5008,部品本日入力!$M$3,F24:F25) -> 0 | I25: 236 | J25: =DSUM(部品本日入力!$B$3:$N$5008,部品本日入力!$M$3,I24:I25) -> 0 | L25: 301 | M25: =DSUM(部品本日入力!$B$3:$N$5008,部品本日入力!$M$3,L24:L25) -> 0 | O25: 512 | P25: =DSUM(部品本日入力!$B$3:$N$5008,部品本日入力!$M$3,O24:O25) -> 0 | R25: 11 | S25: =DSUM(経費本日入力!$B$3:$K$2000,経費本日入力!$J$3,R24:R25) -> 0 | U25: 161 | V25: =DSUM(経費本日入力!$B$3:$K$2000,経費本日入力!$J$3,U24:U25) -> 0 | X25: 236 | Y25: =DSUM(経費本日入力!$B$3:$K$2000,経費本日入力!$J$3,X24:X25) -> 0 | AA25: 301 | AB25: =DSUM(経費本日入力!$B$3:$K$2000,経費本日入力!$J$3,AA24:AA25) -> 0 | AD25: 512 | AE25: =DSUM(経費本日入力!$B$3:$K$2000,経費本日入力!$J$3,AD24:AD25) -> 0
C26: CODE | F26: CODE | I26: CODE | L26: CODE | O26: CODE | R26: CODE | U26: CODE | X26: CODE | AA26: CODE | AD26: CODE
C27: 12 | D27: =DSUM(部品本日入力!$B$3:$N$5008,部品本日入力!$M$3,C26:C27) -> 0 | F27: 162 | G27: =DSUM(部品本日入力!$B$3:$N$5008,部品本日入力!$M$3,F26:F27) -> 0 | I27: 237 | J27: =DSUM(部品本日入力!$B$3:$N$5008,部品本日入力!$M$3,I26:I27) -> 0 | L27: 302 | M27: =DSUM(部品本日入力!$B$3:$N$5008,部品本日入力!$M$3,L26:L27) -> 0 | O27: 513 | P27: =DSUM(部品本日入力!$B$3:$N$5008,部品本日入力!$M$3,O26:O27) -> 0 | R27: 12 | S27: =DSUM(経費本日入力!$B$3:$K$2000,経費本日入力!$J$3,R26:R27) -> 0 | U27: 162 | V27: =DSUM(経費本日入力!$B$3:$K$2000,経費本日入力!$J$3,U26:U27) -> 0 | X27: 237 | Y27: =DSUM(経費本日入力!$B$3:$K$2000,経費本日入力!$J$3,X26:X27) -> 0 | AA27: 302 | AB27: =DSUM(経費本日入力!$B$3:$K$2000,経費本日入力!$J$3,AA26:AA27) -> 0 | AD27: 513 | AE27: =DSUM(経費本日入力!$B$3:$K$2000,経費本日入力!$J$3,AD26:AD27) -> 0
C28: CODE | F28: CODE | I28: CODE | L28: CODE | O28: CODE | R28: CODE | U28: CODE | X28: CODE | AA28: CODE | AD28: CODE
C29: 13 | D29: =DSUM(部品本日入力!$B$3:$N$5008,部品本日入力!$M$3,C28:C29) -> 0 | F29: 163 | G29: =DSUM(部品本日入力!$B$3:$N$5008,部品本日入力!$M$3,F28:F29) -> 0 | I29: 238 | J29: =DSUM(部品本日入力!$B$3:$N$5008,部品本日入力!$M$3,I28:I29) -> 0 | L29: 303 | M29: =DSUM(部品本日入力!$B$3:$N$5008,部品本日入力!$M$3,L28:L29) -> 0 | O29: 514 | P29: =DSUM(部品本日入力!$B$3:$N$5008,部品本日入力!$M$3,O28:O29) -> 0 | R29: 13 | S29: =DSUM(経費本日入力!$B$3:$K$2000,経費本日入力!$J$3,R28:R29) -> 0 | U29: 163 | V29: =DSUM(経費本日入力!$B$3:$K$2000,経費本日入力!$J$3,U28:U29) -> 0 | X29: 238 | Y29: =DSUM(経費本日入力!$B$3:$K$2000,経費本日入力!$J$3,X28:X29) -> 0 | AA29: 303 | AB29: =DSUM(経費本日入力!$B$3:$K$2000,経費本日入力!$J$3,AA28:AA29) -> 0 | AD29: 514 | AE29: =DSUM(経費本日入力!$B$3:$K$2000,経費本日入力!$J$3,AD28:AD29) -> 0
C30: CODE | F30: CODE | I30: CODE | L30: CODE | O30: CODE | R30: CODE | U30: CODE | X30: CODE | AA30: CODE | AD30: CODE
C31: 14 | D31: =DSUM(部品本日入力!$B$3:$N$5008,部品本日入力!$M$3,C30:C31) -> 0 | F31: 164 | G31: =DSUM(部品本日入力!$B$3:$N$5008,部品本日入力!$M$3,F30:F31) -> 0 | I31: 239 | J31: =DSUM(部品本日入力!$B$3:$N$5008,部品本日入力!$M$3,I30:I31) -> 0 | L31: 304 | M31: =DSUM(部品本日入力!$B$3:$N$5008,部品本日入力!$M$3,L30:L31) -> 0 | O31: 515 | P31: =DSUM(部品本日入力!$B$3:$N$5008,部品本日入力!$M$3,O30:O31) -> 0 | R31: 14 | S31: =DSUM(経費本日入力!$B$3:$K$2000,経費本日入力!$J$3,R30:R31) -> 0 | U31: 164 | V31: =DSUM(経費本日入力!$B$3:$K$2000,経費本日入力!$J$3,U30:U31) -> 0 | X31: 239 | Y31: =DSUM(経費本日入力!$B$3:$K$2000,経費本日入力!$J$3,X30:X31) -> 0 | AA31: 304 | AB31: =DSUM(経費本日入力!$B$3:$K$2000,経費本日入力!$J$3,AA30:AA31) -> 0 | AD31: 515 | AE31: =DSUM(経費本日入力!$B$3:$K$2000,経費本日入力!$J$3,AD30:AD31) -> 0
C32: CODE | F32: CODE | I32: CODE | L32: CODE | O32: CODE | R32: CODE | U32: CODE | X32: CODE | AA32: CODE | AD32: CODE
C33: 15 | D33: =DSUM(部品本日入力!$B$3:$N$5008,部品本日入力!$M$3,C32:C33) -> 0 | F33: 165 | G33: =DSUM(部品本日入力!$B$3:$N$5008,部品本日入力!$M$3,F32:F33) -> 0 | I33: 240 | J33: =DSUM(部品本日入力!$B$3:$N$5008,部品本日入力!$M$3,I32:I33) -> 0 | L33: 305 | M33: =DSUM(部品本日入力!$B$3:$N$5008,部品本日入力!$M$3,L32:L33) -> 0 | O33: 516 | P33: =DSUM(部品本日入力!$B$3:$N$5008,部品本日入力!$M$3,O32:O33) -> 0 | R33: 15 | S33: =DSUM(経費本日入力!$B$3:$K$2000,経費本日入力!$J$3,R32:R33) -> 0 | U33: 165 | V33: =DSUM(経費本日入力!$B$3:$K$2000,経費本日入力!$J$3,U32:U33) -> 0 | X33: 240 | Y33: =DSUM(経費本日入力!$B$3:$K$2000,経費本日入力!$J$3,X32:X33) -> 0 | AA33: 305 | AB33: =DSUM(経費本日入力!$B$3:$K$2000,経費本日入力!$J$3,AA32:AA33) -> 0 | AD33: 516 | AE33: =DSUM(経費本日入力!$B$3:$K$2000,経費本日入力!$J$3,AD32:AD33) -> 0
C34: CODE | F34: CODE | I34: CODE | L34: CODE | O34: CODE | R34: CODE | U34: CODE | X34: CODE | AA34: CODE | AD34: CODE
C35: 16 | D35: =DSUM(部品本日入力!$B$3:$N$5008,部品本日入力!$M$3,C34:C35) -> 0 | F35: 166 | G35: =DSUM(部品本日入力!$B$3:$N$5008,部品本日入力!$M$3,F34:F35) -> 3500 | I35: 241 | J35: =DSUM(部品本日入力!$B$3:$N$5008,部品本日入力!$M$3,I34:I35) -> 0 | L35: 306 | M35: =DSUM(部品本日入力!$B$3:$N$5008,部品本日入力!$M$3,L34:L35) -> 0 | O35: 517 | P35: =DSUM(部品本日入力!$B$3:$N$5008,部品本日入力!$M$3,O34:O35) -> 0 | R35: 16 | S35: =DSUM(経費本日入力!$B$3:$K$2000,経費本日入力!$J$3,R34:R35) -> 0 | U35: 166 | V35: =DSUM(経費本日入力!$B$3:$K$2000,経費本日入力!$J$3,U34:U35) -> 0 | X35: 241 | Y35: =DSUM(経費本日入力!$B$3:$K$2000,経費本日入力!$J$3,X34:X35) -> 0 | AA35: 306 | AB35: =DSUM(経費本日入力!$B$3:$K$2000,経費本日入力!$J$3,AA34:AA35) -> 0 | AD35: 517 | AE35: =DSUM(経費本日入力!$B$3:$K$2000,経費本日入力!$J$3,AD34:AD35) -> 0
C36: CODE | F36: CODE | I36: CODE | L36: CODE | O36: CODE | R36: CODE | U36: CODE | X36: CODE | AA36: CODE | AD36: CODE
C37: 17 | D37: =DSUM(部品本日入力!$B$3:$N$5008,部品本日入力!$M$3,C36:C37) -> 0 | F37: 167 | G37: =DSUM(部品本日入力!$B$3:$N$5008,部品本日入力!$M$3,F36:F37) -> 0 | I37: 242 | J37: =DSUM(部品本日入力!$B$3:$N$5008,部品本日入力!$M$3,I36:I37) -> 0 | L37: 307 | M37: =DSUM(部品本日入力!$B$3:$N$5008,部品本日入力!$M$3,L36:L37) -> 0 | O37: 518 | P37: =DSUM(部品本日入力!$B$3:$N$5008,部品本日入力!$M$3,O36:O37) -> 0 | R37: 17 | S37: =DSUM(経費本日入力!$B$3:$K$2000,経費本日入力!$J$3,R36:R37) -> 0 | U37: 167 | V37: =DSUM(経費本日入力!$B$3:$K$2000,経費本日入力!$J$3,U36:U37) -> 0 | X37: 242 | Y37: =DSUM(経費本日入力!$B$3:$K$2000,経費本日入力!$J$3,X36:X37) -> 0 | AA37: 307 | AB37: =DSUM(経費本日入力!$B$3:$K$2000,経費本日入力!$J$3,AA36:AA37) -> 0 | AD37: 518 | AE37: =DSUM(経費本日入力!$B$3:$K$2000,経費本日入力!$J$3,AD36:AD37) -> 0
C38: CODE | F38: CODE | I38: CODE | L38: CODE | O38: CODE | R38: CODE | U38: CODE | X38: CODE | AA38: CODE | AD38: CODE
C39: 18 | D39: =DSUM(部品本日入力!$B$3:$N$5008,部品本日入力!$M$3,C38:C39) -> 0 | F39: 168 | G39: =DSUM(部品本日入力!$B$3:$N$5008,部品本日入力!$M$3,F38:F39) -> 0 | I39: 243 | J39: =DSUM(部品本日入力!$B$3:$N$5008,部品本日入力!$M$3,I38:I39) -> 0 | L39: 308 | M39: =DSUM(部品本日入力!$B$3:$N$5008,部品本日入力!$M$3,L38:L39) -> 0 | O39: 519 | P39: =DSUM(部品本日入力!$B$3:$N$5008,部品本日入力!$M$3,O38:O39) -> 0 | R39: 18 | S39: =DSUM(経費本日入力!$B$3:$K$2000,経費本日入力!$J$3,R38:R39) -> 0 | U39: 168 | V39: =DSUM(経費本日入力!$B$3:$K$2000,経費本日入力!$J$3,U38:U39) -> 0 | X39: 243 | Y39: =DSUM(経費本日入力!$B$3:$K$2000,経費本日入力!$J$3,X38:X39) -> 0 | AA39: 308 | AB39: =DSUM(経費本日入力!$B$3:$K$2000,経費本日入力!$J$3,AA38:AA39) -> 0 | AD39: 519 | AE39: =DSUM(経費本日入力!$B$3:$K$2000,経費本日入力!$J$3,AD38:AD39) -> 0
C40: CODE | F40: CODE | I40: CODE | L40: CODE | O40: CODE | R40: CODE | U40: CODE | X40: CODE | AA40: CODE | AD40: CODE
C41: 19 | D41: =DSUM(部品本日入力!$B$3:$N$5008,部品本日入力!$M$3,C40:C41) -> 0 | F41: 169 | G41: =DSUM(部品本日入力!$B$3:$N$5008,部品本日入力!$M$3,F40:F41) -> 0 | I41: 244 | J41: =DSUM(部品本日入力!$B$3:$N$5008,部品本日入力!$M$3,I40:I41) -> 0 | L41: 309 | M41: =DSUM(部品本日入力!$B$3:$N$5008,部品本日入力!$M$3,L40:L41) -> 0 | O41: 520 | P41: =DSUM(部品本日入力!$B$3:$N$5008,部品本日入力!$M$3,O40:O41) -> 0 | R41: 19 | S41: =DSUM(経費本日入力!$B$3:$K$2000,経費本日入力!$J$3,R40:R41) -> 0 | U41: 169 | V41: =DSUM(経費本日入力!$B$3:$K$2000,経費本日入力!$J$3,U40:U41) -> 0 | X41: 244 | Y41: =DSUM(経費本日入力!$B$3:$K$2000,経費本日入力!$J$3,X40:X41) -> 0 | AA41: 309 | AB41: =DSUM(経費本日入力!$B$3:$K$2000,経費本日入力!$J$3,AA40:AA41) -> 0 | AD41: 520 | AE41: =DSUM(経費本日入力!$B$3:$K$2000,経費本日入力!$J$3,AD40:AD41) -> 0
C42: CODE | F42: CODE | I42: CODE | L42: CODE | O42: CODE | R42: CODE | U42: CODE | X42: CODE | AA42: CODE | AD42: CODE
C43: 20 | D43: =DSUM(部品本日入力!$B$3:$N$5008,部品本日入力!$M$3,C42:C43) -> 0 | F43: 170 | G43: =DSUM(部品本日入力!$B$3:$N$5008,部品本日入力!$M$3,F42:F43) -> 0 | I43: 245 | J43: =DSUM(部品本日入力!$B$3:$N$5008,部品本日入力!$M$3,I42:I43) -> 0 | L43: 310 | M43: =DSUM(部品本日入力!$B$3:$N$5008,部品本日入力!$M$3,L42:L43) -> 0 | O43: 521 | P43: =DSUM(部品本日入力!$B$3:$N$5008,部品本日入力!$M$3,O42:O43) -> 0 | R43: 20 | S43: =DSUM(経費本日入力!$B$3:$K$2000,経費本日入力!$J$3,R42:R43) -> 0 | U43: 170 | V43: =DSUM(経費本日入力!$B$3:$K$2000,経費本日入力!$J$3,U42:U43) -> 0 | X43: 245 | Y43: =DSUM(経費本日入力!$B$3:$K$2000,経費本日入力!$J$3,X42:X43) -> 0 | AA43: 310 | AB43: =DSUM(経費本日入力!$B$3:$K$2000,経費本日入力!$J$3,AA42:AA43) -> 0 | AD43: 521 | AE43: =DSUM(経費本日入力!$B$3:$K$2000,経費本日入力!$J$3,AD42:AD43) -> 0
C44: CODE | F44: CODE | I44: CODE | L44: CODE | O44: CODE | R44: CODE | U44: CODE | X44: CODE | AA44: CODE | AD44: CODE
C45: 21 | D45: =DSUM(部品本日入力!$B$3:$N$5008,部品本日入力!$M$3,C44:C45) -> 0 | F45: 171 | G45: =DSUM(部品本日入力!$B$3:$N$5008,部品本日入力!$M$3,F44:F45) -> 0 | I45: 246 | J45: =DSUM(部品本日入力!$B$3:$N$5008,部品本日入力!$M$3,I44:I45) -> 0 | L45: 311 | M45: =DSUM(部品本日入力!$B$3:$N$5008,部品本日入力!$M$3,L44:L45) -> 0 | O45: 522 | P45: =DSUM(部品本日入力!$B$3:$N$5008,部品本日入力!$M$3,O44:O45) -> 0 | R45: 21 | S45: =DSUM(経費本日入力!$B$3:$K$2000,経費本日入力!$J$3,R44:R45) -> 0 | U45: 171 | V45: =DSUM(経費本日入力!$B$3:$K$2000,経費本日入力!$J$3,U44:U45) -> 0 | X45: 246 | Y45: =DSUM(経費本日入力!$B$3:$K$2000,経費本日入力!$J$3,X44:X45) -> 0 | AA45: 311 | AB45: =DSUM(経費本日入力!$B$3:$K$2000,経費本日入力!$J$3,AA44:AA45) -> 0 | AD45: 522 | AE45: =DSUM(経費本日入力!$B$3:$K$2000,経費本日入力!$J$3,AD44:AD45) -> 0
C46: CODE | F46: CODE | I46: CODE | L46: CODE | O46: CODE | R46: CODE | U46: CODE | X46: CODE | AA46: CODE | AD46: CODE
C47: 101 | D47: =DSUM(部品本日入力!$B$3:$N$5008,部品本日入力!$M$3,C46:C47) -> 0 | F47: 172 | G47: =DSUM(部品本日入力!$B$3:$N$5008,部品本日入力!$M$3,F46:F47) -> 0 | I47: 247 | J47: =DSUM(部品本日入力!$B$3:$N$5008,部品本日入力!$M$3,I46:I47) -> 0 | L47: 312 | M47: =DSUM(部品本日入力!$B$3:$N$5008,部品本日入力!$M$3,L46:L47) -> 0 | O47: 523 | P47: =DSUM(部品本日入力!$B$3:$N$5008,部品本日入力!$M$3,O46:O47) -> 0 | R47: 101 | S47: =DSUM(経費本日入力!$B$3:$K$2000,経費本日入力!$J$3,R46:R47) -> 0 | U47: 172 | V47: =DSUM(経費本日入力!$B$3:$K$2000,経費本日入力!$J$3,U46:U47) -> 0 | X47: 247 | Y47: =DSUM(経費本日入力!$B$3:$K$2000,経費本日入力!$J$3,X46:X47) -> 0 | AA47: 312 | AB47: =DSUM(経費本日入力!$B$3:$K$2000,経費本日入力!$J$3,AA46:AA47) -> 0 | AD47: 523 | AE47: =DSUM(経費本日入力!$B$3:$K$2000,経費本日入力!$J$3,AD46:AD47) -> 0
C48: CODE | F48: CODE | I48: CODE | L48: CODE | O48: CODE | R48: CODE | U48: CODE | X48: CODE | AA48: CODE | AD48: CODE
C49: 102 | D49: =DSUM(部品本日入力!$B$3:$N$5008,部品本日入力!$M$3,C48:C49) -> 0 | F49: 173 | G49: =DSUM(部品本日入力!$B$3:$N$5008,部品本日入力!$M$3,F48:F49) -> 0 | I49: 248 | J49: =DSUM(部品本日入力!$B$3:$N$5008,部品本日入力!$M$3,I48:I49) -> 0 | L49: 313 | M49: =DSUM(部品本日入力!$B$3:$N$5008,部品本日入力!$M$3,L48:L49) -> 0 | O49: 524 | P49: =DSUM(部品本日入力!$B$3:$N$5008,部品本日入力!$M$3,O48:O49) -> 0 | R49: 102 | S49: =DSUM(経費本日入力!$B$3:$K$2000,経費本日入力!$J$3,R48:R49) -> 0 | U49: 173 | V49: =DSUM(経費本日入力!$B$3:$K$2000,経費本日入力!$J$3,U48:U49) -> 0 | X49: 248 | Y49: =DSUM(経費本日入力!$B$3:$K$2000,経費本日入力!$J$3,X48:X49) -> 0 | AA49: 313 | AB49: =DSUM(経費本日入力!$B$3:$K$2000,経費本日入力!$J$3,AA48:AA49) -> 0 | AD49: 524 | AE49: =DSUM(経費本日入力!$B$3:$K$2000,経費本日入力!$J$3,AD48:AD49) -> 0
C50: CODE | F50: CODE | I50: CODE | L50: CODE | O50: CODE | R50: CODE | U50: CODE | X50: CODE | AA50: CODE | AD50: CODE
C51: 103 | D51: =DSUM(部品本日入力!$B$3:$N$5008,部品本日入力!$M$3,C50:C51) -> 0 | F51: 174 | G51: =DSUM(部品本日入力!$B$3:$N$5008,部品本日入力!$M$3,F50:F51) -> 0 | I51: 249 | J51: =DSUM(部品本日入力!$B$3:$N$5008,部品本日入力!$M$3,I50:I51) -> 0 | L51: 314 | M51: =DSUM(部品本日入力!$B$3:$N$5008,部品本日入力!$M$3,L50:L51) -> 0 | O51: 525 | P51: =DSUM(部品本日入力!$B$3:$N$5008,部品本日入力!$M$3,O50:O51) -> 0 | R51: 103 | S51: =DSUM(経費本日入力!$B$3:$K$2000,経費本日入力!$J$3,R50:R51) -> 0 | U51: 174 | V51: =DSUM(経費本日入力!$B$3:$K$2000,経費本日入力!$J$3,U50:U51) -> 0 | X51: 249 | Y51: =DSUM(経費本日入力!$B$3:$K$2000,経費本日入力!$J$3,X50:X51) -> 0 | AA51: 314 | AB51: =DSUM(経費本日入力!$B$3:$K$2000,経費本日入力!$J$3,AA50:AA51) -> 0 | AD51: 525 | AE51: =DSUM(経費本日入力!$B$3:$K$2000,経費本日入力!$J$3,AD50:AD51) -> 0
C52: CODE | F52: CODE | I52: CODE | L52: CODE | O52: CODE | R52: CODE | U52: CODE | X52: CODE | AA52: CODE | AD52: CODE
C53: 104 | D53: =DSUM(部品本日入力!$B$3:$N$5008,部品本日入力!$M$3,C52:C53) -> 0 | F53: 175 | G53: =DSUM(部品本日入力!$B$3:$N$5008,部品本日入力!$M$3,F52:F53) -> 0 | I53: 250 | J53: =DSUM(部品本日入力!$B$3:$N$5008,部品本日入力!$M$3,I52:I53) -> 0 | L53: 315 | M53: =DSUM(部品本日入力!$B$3:$N$5008,部品本日入力!$M$3,L52:L53) -> 0 | O53: 526 | P53: =DSUM(部品本日入力!$B$3:$N$5008,部品本日入力!$M$3,O52:O53) -> 0 | R53: 104 | S53: =DSUM(経費本日入力!$B$3:$K$2000,経費本日入力!$J$3,R52:R53) -> 0 | U53: 175 | V53: =DSUM(経費本日入力!$B$3:$K$2000,経費本日入力!$J$3,U52:U53) -> 0 | X53: 250 | Y53: =DSUM(経費本日入力!$B$3:$K$2000,経費本日入力!$J$3,X52:X53) -> 0 | AA53: 315 | AB53: =DSUM(経費本日入力!$B$3:$K$2000,経費本日入力!$J$3,AA52:AA53) -> 0 | AD53: 526 | AE53: =DSUM(経費本日入力!$B$3:$K$2000,経費本日入力!$J$3,AD52:AD53) -> 0
C54: CODE | F54: CODE | I54: CODE | L54: CODE | O54: CODE | R54: CODE | U54: CODE | X54: CODE | AA54: CODE | AD54: CODE
C55: 105 | D55: =DSUM(部品本日入力!$B$3:$N$5008,部品本日入力!$M$3,C54:C55) -> 0 | F55: 176 | G55: =DSUM(部品本日入力!$B$3:$N$5008,部品本日入力!$M$3,F54:F55) -> 0 | I55: 251 | J55: =DSUM(部品本日入力!$B$3:$N$5008,部品本日入力!$M$3,I54:I55) -> 0 | L55: 316 | M55: =DSUM(部品本日入力!$B$3:$N$5008,部品本日入力!$M$3,L54:L55) -> 0 | O55: 527 | P55: =DSUM(部品本日入力!$B$3:$N$5008,部品本日入力!$M$3,O54:O55) -> 0 | R55: 105 | S55: =DSUM(経費本日入力!$B$3:$K$2000,経費本日入力!$J$3,R54:R55) -> 0 | U55: 176 | V55: =DSUM(経費本日入力!$B$3:$K$2000,経費本日入力!$J$3,U54:U55) -> 0 | X55: 251 | Y55: =DSUM(経費本日入力!$B$3:$K$2000,経費本日入力!$J$3,X54:X55) -> 0 | AA55: 316 | AB55: =DSUM(経費本日入力!$B$3:$K$2000,経費本日入力!$J$3,AA54:AA55) -> 0 | AD55: 527 | AE55: =DSUM(経費本日入力!$B$3:$K$2000,経費本日入力!$J$3,AD54:AD55) -> 0
C56: CODE | F56: CODE | I56: CODE | L56: CODE | O56: CODE | R56: CODE | U56: CODE | X56: CODE | AA56: CODE | AD56: CODE
C57: 106 | D57: =DSUM(部品本日入力!$B$3:$N$5008,部品本日入力!$M$3,C56:C57) -> 0 | F57: 177 | G57: =DSUM(部品本日入力!$B$3:$N$5008,部品本日入力!$M$3,F56:F57) -> 0 | I57: 252 | J57: =DSUM(部品本日入力!$B$3:$N$5008,部品本日入力!$M$3,I56:I57) -> 0 | L57: 317 | M57: =DSUM(部品本日入力!$B$3:$N$5008,部品本日入力!$M$3,L56:L57) -> 0 | O57: 528 | P57: =DSUM(部品本日入力!$B$3:$N$5008,部品本日入力!$M$3,O56:O57) -> 0 | R57: 106 | S57: =DSUM(経費本日入力!$B$3:$K$2000,経費本日入力!$J$3,R56:R57) -> 0 | U57: 177 | V57: =DSUM(経費本日入力!$B$3:$K$2000,経費本日入力!$J$3,U56:U57) -> 0 | X57: 252 | Y57: =DSUM(経費本日入力!$B$3:$K$2000,経費本日入力!$J$3,X56:X57) -> 0 | AA57: 317 | AB57: =DSUM(経費本日入力!$B$3:$K$2000,経費本日入力!$J$3,AA56:AA57) -> 0 | AD57: 528 | AE57: =DSUM(経費本日入力!$B$3:$K$2000,経費本日入力!$J$3,AD56:AD57) -> 0
C58: CODE | F58: CODE | I58: CODE | L58: CODE | O58: CODE | R58: CODE | U58: CODE | X58: CODE | AA58: CODE | AD58: CODE
C59: 107 | D59: =DSUM(部品本日入力!$B$3:$N$5008,部品本日入力!$M$3,C58:C59) -> 0 | F59: 178 | G59: =DSUM(部品本日入力!$B$3:$N$5008,部品本日入力!$M$3,F58:F59) -> 0 | I59: 253 | J59: =DSUM(部品本日入力!$B$3:$N$5008,部品本日入力!$M$3,I58:I59) -> 0 | L59: 318 | M59: =DSUM(部品本日入力!$B$3:$N$5008,部品本日入力!$M$3,L58:L59) -> 0 | O59: 529 | P59: =DSUM(部品本日入力!$B$3:$N$5008,部品本日入力!$M$3,O58:O59) -> 0 | R59: 107 | S59: =DSUM(経費本日入力!$B$3:$K$2000,経費本日入力!$J$3,R58:R59) -> 0 | U59: 178 | V59: =DSUM(経費本日入力!$B$3:$K$2000,経費本日入力!$J$3,U58:U59) -> 0 | X59: 253 | Y59: =DSUM(経費本日入力!$B$3:$K$2000,経費本日入力!$J$3,X58:X59) -> 0 | AA59: 318 | AB59: =DSUM(経費本日入力!$B$3:$K$2000,経費本日入力!$J$3,AA58:AA59) -> 0 | AD59: 529 | AE59: =DSUM(経費本日入力!$B$3:$K$2000,経費本日入力!$J$3,AD58:AD59) -> 0
C60: CODE | F60: CODE | I60: CODE | L60: CODE | O60: CODE | R60: CODE | U60: CODE | X60: CODE | AA60: CODE | AD60: CODE
C61: 108 | D61: =DSUM(部品本日入力!$B$3:$N$5008,部品本日入力!$M$3,C60:C61) -> 0 | F61: 179 | G61: =DSUM(部品本日入力!$B$3:$N$5008,部品本日入力!$M$3,F60:F61) -> 0 | I61: 254 | J61: =DSUM(部品本日入力!$B$3:$N$5008,部品本日入力!$M$3,I60:I61) -> 0 | L61: 319 | M61: =DSUM(部品本日入力!$B$3:$N$5008,部品本日入力!$M$3,L60:L61) -> 0 | O61: 530 | P61: =DSUM(部品本日入力!$B$3:$N$5008,部品本日入力!$M$3,O60:O61) -> 0 | R61: 108 | S61: =DSUM(経費本日入力!$B$3:$K$2000,経費本日入力!$J$3,R60:R61) -> 0 | U61: 179 | V61: =DSUM(経費本日入力!$B$3:$K$2000,経費本日入力!$J$3,U60:U61) -> 0 | X61: 254 | Y61: =DSUM(経費本日入力!$B$3:$K$2000,経費本日入力!$J$3,X60:X61) -> 0 | AA61: 319 | AB61: =DSUM(経費本日入力!$B$3:$K$2000,経費本日入力!$J$3,AA60:AA61) -> 0 | AD61: 530 | AE61: =DSUM(経費本日入力!$B$3:$K$2000,経費本日入力!$J$3,AD60:AD61) -> 0
C62: CODE | F62: CODE | I62: CODE | L62: CODE | O62: CODE | R62: CODE | U62: CODE | X62: CODE | AA62: CODE | AD62: CODE
C63: 109 | D63: =DSUM(部品本日入力!$B$3:$N$5008,部品本日入力!$M$3,C62:C63) -> 0 | F63: 180 | G63: =DSUM(部品本日入力!$B$3:$N$5008,部品本日入力!$M$3,F62:F63) -> 0 | I63: 255 | J63: =DSUM(部品本日入力!$B$3:$N$5008,部品本日入力!$M$3,I62:I63) -> 0 | L63: 320 | M63: =DSUM(部品本日入力!$B$3:$N$5008,部品本日入力!$M$3,L62:L63) -> 0 | O63: 531 | P63: =DSUM(部品本日入力!$B$3:$N$5008,部品本日入力!$M$3,O62:O63) -> 0 | R63: 109 | S63: =DSUM(経費本日入力!$B$3:$K$2000,経費本日入力!$J$3,R62:R63) -> 0 | U63: 180 | V63: =DSUM(経費本日入力!$B$3:$K$2000,経費本日入力!$J$3,U62:U63) -> 0 | X63: 255 | Y63: =DSUM(経費本日入力!$B$3:$K$2000,経費本日入力!$J$3,X62:X63) -> 0 | AA63: 320 | AB63: =DSUM(経費本日入力!$B$3:$K$2000,経費本日入力!$J$3,AA62:AA63) -> 0 | AD63: 531 | AE63: =DSUM(経費本日入力!$B$3:$K$2000,経費本日入力!$J$3,AD62:AD63) -> 0
C64: CODE | F64: CODE | I64: CODE | L64: CODE | O64: CODE | R64: CODE | U64: CODE | X64: CODE | AA64: CODE | AD64: CODE
C65: 110 | D65: =DSUM(部品本日入力!$B$3:$N$5008,部品本日入力!$M$3,C64:C65) -> 0 | F65: 181 | G65: =DSUM(部品本日入力!$B$3:$N$5008,部品本日入力!$M$3,F64:F65) -> 0 | I65: 256 | J65: =DSUM(部品本日入力!$B$3:$N$5008,部品本日入力!$M$3,I64:I65) -> 0 | L65: 321 | M65: =DSUM(部品本日入力!$B$3:$N$5008,部品本日入力!$M$3,L64:L65) -> 0 | O65: 532 | P65: =DSUM(部品本日入力!$B$3:$N$5008,部品本日入力!$M$3,O64:O65) -> 0 | R65: 110 | S65: =DSUM(経費本日入力!$B$3:$K$2000,経費本日入力!$J$3,R64:R65) -> 0 | U65: 181 | V65: =DSUM(経費本日入力!$B$3:$K$2000,経費本日入力!$J$3,U64:U65) -> 0 | X65: 256 | Y65: =DSUM(経費本日入力!$B$3:$K$2000,経費本日入力!$J$3,X64:X65) -> 0 | AA65: 321 | AB65: =DSUM(経費本日入力!$B$3:$K$2000,経費本日入力!$J$3,AA64:AA65) -> 0 | AD65: 532 | AE65: =DSUM(経費本日入力!$B$3:$K$2000,経費本日入力!$J$3,AD64:AD65) -> 0
C66: CODE | F66: CODE | I66: CODE | L66: CODE | O66: CODE | R66: CODE | U66: CODE | X66: CODE | AA66: CODE | AD66: CODE
C67: 111 | D67: =DSUM(部品本日入力!$B$3:$N$5008,部品本日入力!$M$3,C66:C67) -> 0 | F67: 182 | G67: =DSUM(部品本日入力!$B$3:$N$5008,部品本日入力!$M$3,F66:F67) -> 0 | I67: 257 | J67: =DSUM(部品本日入力!$B$3:$N$5008,部品本日入力!$M$3,I66:I67) -> 0 | L67: 322 | M67: =DSUM(部品本日入力!$B$3:$N$5008,部品本日入力!$M$3,L66:L67) -> 0 | O67: 533 | P67: =DSUM(部品本日入力!$B$3:$N$5008,部品本日入力!$M$3,O66:O67) -> 0 | R67: 111 | S67: =DSUM(経費本日入力!$B$3:$K$2000,経費本日入力!$J$3,R66:R67) -> 0 | U67: 182 | V67: =DSUM(経費本日入力!$B$3:$K$2000,経費本日入力!$J$3,U66:U67) -> 0 | X67: 257 | Y67: =DSUM(経費本日入力!$B$3:$K$2000,経費本日入力!$J$3,X66:X67) -> 0 | AA67: 322 | AB67: =DSUM(経費本日入力!$B$3:$K$2000,経費本日入力!$J$3,AA66:AA67) -> 0 | AD67: 533 | AE67: =DSUM(経費本日入力!$B$3:$K$2000,経費本日入力!$J$3,AD66:AD67) -> 0
C68: CODE | F68: CODE | I68: CODE | L68: CODE | O68: CODE | R68: CODE | U68: CODE | X68: CODE | AA68: CODE | AD68: CODE
C69: 112 | D69: =DSUM(部品本日入力!$B$3:$N$5008,部品本日入力!$M$3,C68:C69) -> 0 | F69: 183 | G69: =DSUM(部品本日入力!$B$3:$N$5008,部品本日入力!$M$3,F68:F69) -> 0 | I69: 258 | J69: =DSUM(部品本日入力!$B$3:$N$5008,部品本日入力!$M$3,I68:I69) -> 0 | L69: 323 | M69: =DSUM(部品本日入力!$B$3:$N$5008,部品本日入力!$M$3,L68:L69) -> 0 | O69: 534 | P69: =DSUM(部品本日入力!$B$3:$N$5008,部品本日入力!$M$3,O68:O69) -> 0 | R69: 112 | S69: =DSUM(経費本日入力!$B$3:$K$2000,経費本日入力!$J$3,R68:R69) -> 0 | U69: 183 | V69: =DSUM(経費本日入力!$B$3:$K$2000,経費本日入力!$J$3,U68:U69) -> 0 | X69: 258 | Y69: =DSUM(経費本日入力!$B$3:$K$2000,経費本日入力!$J$3,X68:X69) -> 0 | AA69: 323 | AB69: =DSUM(経費本日入力!$B$3:$K$2000,経費本日入力!$J$3,AA68:AA69) -> 0 | AD69: 534 | AE69: =DSUM(経費本日入力!$B$3:$K$2000,経費本日入力!$J$3,AD68:AD69) -> 0
C70: CODE | F70: CODE | I70: CODE | L70: CODE | O70: CODE | R70: CODE | U70: CODE | X70: CODE | AA70: CODE | AD70: CODE
C71: 113 | D71: =DSUM(部品本日入力!$B$3:$N$5008,部品本日入力!$M$3,C70:C71) -> 0 | F71: 184 | G71: =DSUM(部品本日入力!$B$3:$N$5008,部品本日入力!$M$3,F70:F71) -> 0 | I71: 259 | J71: =DSUM(部品本日入力!$B$3:$N$5008,部品本日入力!$M$3,I70:I71) -> 0 | L71: 324 | M71: =DSUM(部品本日入力!$B$3:$N$5008,部品本日入力!$M$3,L70:L71) -> 0 | O71: 535 | P71: =DSUM(部品本日入力!$B$3:$N$5008,部品本日入力!$M$3,O70:O71) -> 0 | R71: 113 | S71: =DSUM(経費本日入力!$B$3:$K$2000,経費本日入力!$J$3,R70:R71) -> 0 | U71: 184 | V71: =DSUM(経費本日入力!$B$3:$K$2000,経費本日入力!$J$3,U70:U71) -> 0 | X71: 259 | Y71: =DSUM(経費本日入力!$B$3:$K$2000,経費本日入力!$J$3,X70:X71) -> 0 | AA71: 324 | AB71: =DSUM(経費本日入力!$B$3:$K$2000,経費本日入力!$J$3,AA70:AA71) -> 0 | AD71: 535 | AE71: =DSUM(経費本日入力!$B$3:$K$2000,経費本日入力!$J$3,AD70:AD71) -> 0
C72: CODE | F72: CODE | I72: CODE | L72: CODE | O72: CODE | R72: CODE | U72: CODE | X72: CODE | AA72: CODE | AD72: CODE
C73: 114 | D73: =DSUM(部品本日入力!$B$3:$N$5008,部品本日入力!$M$3,C72:C73) -> 0 | F73: 185 | G73: =DSUM(部品本日入力!$B$3:$N$5008,部品本日入力!$M$3,F72:F73) -> 0 | I73: 260 | J73: =DSUM(部品本日入力!$B$3:$N$5008,部品本日入力!$M$3,I72:I73) -> 0 | L73: 325 | M73: =DSUM(部品本日入力!$B$3:$N$5008,部品本日入力!$M$3,L72:L73) -> 0 | O73: 536 | P73: =DSUM(部品本日入力!$B$3:$N$5008,部品本日入力!$M$3,O72:O73) -> 0 | R73: 114 | S73: =DSUM(経費本日入力!$B$3:$K$2000,経費本日入力!$J$3,R72:R73) -> 0 | U73: 185 | V73: =DSUM(経費本日入力!$B$3:$K$2000,経費本日入力!$J$3,U72:U73) -> 0 | X73: 260 | Y73: =DSUM(経費本日入力!$B$3:$K$2000,経費本日入力!$J$3,X72:X73) -> 0 | AA73: 325 | AB73: =DSUM(経費本日入力!$B$3:$K$2000,経費本日入力!$J$3,AA72:AA73) -> 0 | AD73: 536 | AE73: =DSUM(経費本日入力!$B$3:$K$2000,経費本日入力!$J$3,AD72:AD73) -> 0
C74: CODE | F74: CODE | I74: CODE | L74: CODE | O74: CODE | R74: CODE | U74: CODE | X74: CODE | AA74: CODE | AD74: CODE
C75: 115 | D75: =DSUM(部品本日入力!$B$3:$N$5008,部品本日入力!$M$3,C74:C75) -> 0 | F75: 186 | G75: =DSUM(部品本日入力!$B$3:$N$5008,部品本日入力!$M$3,F74:F75) -> 0 | I75: 261 | J75: =DSUM(部品本日入力!$B$3:$N$5008,部品本日入力!$M$3,I74:I75) -> 0 | L75: 326 | M75: =DSUM(部品本日入力!$B$3:$N$5008,部品本日入力!$M$3,L74:L75) -> 0 | O75: 537 | P75: =DSUM(部品本日入力!$B$3:$N$5008,部品本日入力!$M$3,O74:O75) -> 0 | R75: 115 | S75: =DSUM(経費本日入力!$B$3:$K$2000,経費本日入力!$J$3,R74:R75) -> 0 | U75: 186 | V75: =DSUM(経費本日入力!$B$3:$K$2000,経費本日入力!$J$3,U74:U75) -> 0 | X75: 261 | Y75: =DSUM(経費本日入力!$B$3:$K$2000,経費本日入力!$J$3,X74:X75) -> 0 | AA75: 326 | AB75: =DSUM(経費本日入力!$B$3:$K$2000,経費本日入力!$J$3,AA74:AA75) -> 0 | AD75: 537 | AE75: =DSUM(経費本日入力!$B$3:$K$2000,経費本日入力!$J$3,AD74:AD75) -> 0
C76: CODE | F76: CODE | I76: CODE | L76: CODE | O76: CODE | R76: CODE | U76: CODE | X76: CODE | AA76: CODE | AD76: CODE
C77: 116 | D77: =DSUM(部品本日入力!$B$3:$N$5008,部品本日入力!$M$3,C76:C77) -> 0 | F77: 187 | G77: =DSUM(部品本日入力!$B$3:$N$5008,部品本日入力!$M$3,F76:F77) -> 0 | I77: 262 | J77: =DSUM(部品本日入力!$B$3:$N$5008,部品本日入力!$M$3,I76:I77) -> 0 | L77: 327 | M77: =DSUM(部品本日入力!$B$3:$N$5008,部品本日入力!$M$3,L76:L77) -> 0 | O77: 538 | P77: =DSUM(部品本日入力!$B$3:$N$5008,部品本日入力!$M$3,O76:O77) -> 0 | R77: 116 | S77: =DSUM(経費本日入力!$B$3:$K$2000,経費本日入力!$J$3,R76:R77) -> 0 | U77: 187 | V77: =DSUM(経費本日入力!$B$3:$K$2000,経費本日入力!$J$3,U76:U77) -> 0 | X77: 262 | Y77: =DSUM(経費本日入力!$B$3:$K$2000,経費本日入力!$J$3,X76:X77) -> 0 | AA77: 327 | AB77: =DSUM(経費本日入力!$B$3:$K$2000,経費本日入力!$J$3,AA76:AA77) -> 0 | AD77: 538 | AE77: =DSUM(経費本日入力!$B$3:$K$2000,経費本日入力!$J$3,AD76:AD77) -> 0
C78: CODE | F78: CODE | I78: CODE | L78: CODE | O78: CODE | R78: CODE | U78: CODE | X78: CODE | AA78: CODE | AD78: CODE
C79: 117 | D79: =DSUM(部品本日入力!$B$3:$N$5008,部品本日入力!$M$3,C78:C79) -> 0 | F79: 188 | G79: =DSUM(部品本日入力!$B$3:$N$5008,部品本日入力!$M$3,F78:F79) -> 0 | I79: 263 | J79: =DSUM(部品本日入力!$B$3:$N$5008,部品本日入力!$M$3,I78:I79) -> 0 | L79: 328 | M79: =DSUM(部品本日入力!$B$3:$N$5008,部品本日入力!$M$3,L78:L79) -> 0 | O79: 539 | P79: =DSUM(部品本日入力!$B$3:$N$5008,部品本日入力!$M$3,O78:O79) -> 0 | R79: 117 | S79: =DSUM(経費本日入力!$B$3:$K$2000,経費本日入力!$J$3,R78:R79) -> 0 | U79: 188 | V79: =DSUM(経費本日入力!$B$3:$K$2000,経費本日入力!$J$3,U78:U79) -> 0 | X79: 263 | Y79: =DSUM(経費本日入力!$B$3:$K$2000,経費本日入力!$J$3,X78:X79) -> 0 | AA79: 328 | AB79: =DSUM(経費本日入力!$B$3:$K$2000,経費本日入力!$J$3,AA78:AA79) -> 0 | AD79: 539 | AE79: =DSUM(経費本日入力!$B$3:$K$2000,経費本日入力!$J$3,AD78:AD79) -> 0
C80: CODE | F80: CODE | I80: CODE | L80: CODE | O80: CODE | R80: CODE | U80: CODE | X80: CODE | AA80: CODE | AD80: CODE
C81: 118 | D81: =DSUM(部品本日入力!$B$3:$N$5008,部品本日入力!$M$3,C80:C81) -> 0 | F81: 189 | G81: =DSUM(部品本日入力!$B$3:$N$5008,部品本日入力!$M$3,F80:F81) -> 0 | I81: 264 | J81: =DSUM(部品本日入力!$B$3:$N$5008,部品本日入力!$M$3,I80:I81) -> 0 | L81: 329 | M81: =DSUM(部品本日入力!$B$3:$N$5008,部品本日入力!$M$3,L80:L81) -> 0 | O81: 540 | P81: =DSUM(部品本日入力!$B$3:$N$5008,部品本日入力!$M$3,O80:O81) -> 0 | R81: 118 | S81: =DSUM(経費本日入力!$B$3:$K$2000,経費本日入力!$J$3,R80:R81) -> 0 | U81: 189 | V81: =DSUM(経費本日入力!$B$3:$K$2000,経費本日入力!$J$3,U80:U81) -> 0 | X81: 264 | Y81: =DSUM(経費本日入力!$B$3:$K$2000,経費本日入力!$J$3,X80:X81) -> 0 | AA81: 329 | AB81: =DSUM(経費本日入力!$B$3:$K$2000,経費本日入力!$J$3,AA80:AA81) -> 0 | AD81: 540 | AE81: =DSUM(経費本日入力!$B$3:$K$2000,経費本日入力!$J$3,AD80:AD81) -> 0
C82: CODE | F82: CODE | I82: CODE | L82: CODE | O82: CODE | R82: CODE | U82: CODE | X82: CODE | AA82: CODE | AD82: CODE
C83: 119 | D83: =DSUM(部品本日入力!$B$3:$N$5008,部品本日入力!$M$3,C82:C83) -> 0 | F83: 190 | G83: =DSUM(部品本日入力!$B$3:$N$5008,部品本日入力!$M$3,F82:F83) -> 0 | I83: 265 | J83: =DSUM(部品本日入力!$B$3:$N$5008,部品本日入力!$M$3,I82:I83) -> 0 | L83: 330 | M83: =DSUM(部品本日入力!$B$3:$N$5008,部品本日入力!$M$3,L82:L83) -> 0 | O83: 541 | P83: =DSUM(部品本日入力!$B$3:$N$5008,部品本日入力!$M$3,O82:O83) -> 0 | R83: 119 | S83: =DSUM(経費本日入力!$B$3:$K$2000,経費本日入力!$J$3,R82:R83) -> 0 | U83: 190 | V83: =DSUM(経費本日入力!$B$3:$K$2000,経費本日入力!$J$3,U82:U83) -> 0 | X83: 265 | Y83: =DSUM(経費本日入力!$B$3:$K$2000,経費本日入力!$J$3,X82:X83) -> 0 | AA83: 330 | AB83: =DSUM(経費本日入力!$B$3:$K$2000,経費本日入力!$J$3,AA82:AA83) -> 0 | AD83: 541 | AE83: =DSUM(経費本日入力!$B$3:$K$2000,経費本日入力!$J$3,AD82:AD83) -> 0
C84: CODE | F84: CODE | I84: CODE | L84: CODE | O84: CODE | R84: CODE | U84: CODE | X84: CODE | AA84: CODE | AD84: CODE
C85: 120 | D85: =DSUM(部品本日入力!$B$3:$N$5008,部品本日入力!$M$3,C84:C85) -> 0 | F85: 191 | G85: =DSUM(部品本日入力!$B$3:$N$5008,部品本日入力!$M$3,F84:F85) -> 0 | I85: 266 | J85: =DSUM(部品本日入力!$B$3:$N$5008,部品本日入力!$M$3,I84:I85) -> 0 | L85: 331 | M85: =DSUM(部品本日入力!$B$3:$N$5008,部品本日入力!$M$3,L84:L85) -> 0 | O85: 542 | P85: =DSUM(部品本日入力!$B$3:$N$5008,部品本日入力!$M$3,O84:O85) -> 0 | R85: 120 | S85: =DSUM(経費本日入力!$B$3:$K$2000,経費本日入力!$J$3,R84:R85) -> 0 | U85: 191 | V85: =DSUM(経費本日入力!$B$3:$K$2000,経費本日入力!$J$3,U84:U85) -> 0 | X85: 266 | Y85: =DSUM(経費本日入力!$B$3:$K$2000,経費本日入力!$J$3,X84:X85) -> 0 | AA85: 331 | AB85: =DSUM(経費本日入力!$B$3:$K$2000,経費本日入力!$J$3,AA84:AA85) -> 0 | AD85: 542 | AE85: =DSUM(経費本日入力!$B$3:$K$2000,経費本日入力!$J$3,AD84:AD85) -> 0
C86: CODE | F86: CODE | I86: CODE | L86: CODE | O86: CODE | R86: CODE | U86: CODE | X86: CODE | AA86: CODE | AD86: CODE
C87: 121 | D87: =DSUM(部品本日入力!$B$3:$N$5008,部品本日入力!$M$3,C86:C87) -> 0 | F87: 192 | G87: =DSUM(部品本日入力!$B$3:$N$5008,部品本日入力!$M$3,F86:F87) -> 0 | I87: 267 | J87: =DSUM(部品本日入力!$B$3:$N$5008,部品本日入力!$M$3,I86:I87) -> 0 | L87: 332 | M87: =DSUM(部品本日入力!$B$3:$N$5008,部品本日入力!$M$3,L86:L87) -> 0 | O87: 543 | P87: =DSUM(部品本日入力!$B$3:$N$5008,部品本日入力!$M$3,O86:O87) -> 0 | R87: 121 | S87: =DSUM(経費本日入力!$B$3:$K$2000,経費本日入力!$J$3,R86:R87) -> 0 | U87: 192 | V87: =DSUM(経費本日入力!$B$3:$K$2000,経費本日入力!$J$3,U86:U87) -> 0 | X87: 267 | Y87: =DSUM(経費本日入力!$B$3:$K$2000,経費本日入力!$J$3,X86:X87) -> 0 | AA87: 332 | AB87: =DSUM(経費本日入力!$B$3:$K$2000,経費本日入力!$J$3,AA86:AA87) -> 0 | AD87: 543 | AE87: =DSUM(経費本日入力!$B$3:$K$2000,経費本日入力!$J$3,AD86:AD87) -> 0
C88: CODE | F88: CODE | I88: CODE | L88: CODE | O88: CODE | R88: CODE | U88: CODE | X88: CODE | AA88: CODE | AD88: CODE
C89: 122 | D89: =DSUM(部品本日入力!$B$3:$N$5008,部品本日入力!$M$3,C88:C89) -> 0 | F89: 193 | G89: =DSUM(部品本日入力!$B$3:$N$5008,部品本日入力!$M$3,F88:F89) -> 0 | I89: 268 | J89: =DSUM(部品本日入力!$B$3:$N$5008,部品本日入力!$M$3,I88:I89) -> 0 | L89: 333 | M89: =DSUM(部品本日入力!$B$3:$N$5008,部品本日入力!$M$3,L88:L89) -> 0 | O89: 601 | P89: =DSUM(部品本日入力!$B$3:$N$5008,部品本日入力!$M$3,O88:O89) -> 0 | R89: 122 | S89: =DSUM(経費本日入力!$B$3:$K$2000,経費本日入力!$J$3,R88:R89) -> 0 | U89: 193 | V89: =DSUM(経費本日入力!$B$3:$K$2000,経費本日入力!$J$3,U88:U89) -> 0 | X89: 268 | Y89: =DSUM(経費本日入力!$B$3:$K$2000,経費本日入力!$J$3,X88:X89) -> 0 | AA89: 333 | AB89: =DSUM(経費本日入力!$B$3:$K$2000,経費本日入力!$J$3,AA88:AA89) -> 0 | AD89: 601 | AE89: =DSUM(経費本日入力!$B$3:$K$2000,経費本日入力!$J$3,AD88:AD89) -> 0
C90: CODE | F90: CODE | I90: CODE | L90: CODE | O90: CODE | R90: CODE | U90: CODE | X90: CODE | AA90: CODE | AD90: CODE
C91: 123 | D91: =DSUM(部品本日入力!$B$3:$N$5008,部品本日入力!$M$3,C90:C91) -> 0 | F91: 194 | G91: =DSUM(部品本日入力!$B$3:$N$5008,部品本日入力!$M$3,F90:F91) -> 0 | I91: 269 | J91: =DSUM(部品本日入力!$B$3:$N$5008,部品本日入力!$M$3,I90:I91) -> 0 | L91: 334 | M91: =DSUM(部品本日入力!$B$3:$N$5008,部品本日入力!$M$3,L90:L91) -> 0 | O91: 602 | P91: =DSUM(部品本日入力!$B$3:$N$5008,部品本日入力!$M$3,O90:O91) -> 0 | R91: 123 | S91: =DSUM(経費本日入力!$B$3:$K$2000,経費本日入力!$J$3,R90:R91) -> 0 | U91: 194 | V91: =DSUM(経費本日入力!$B$3:$K$2000,経費本日入力!$J$3,U90:U91) -> 0 | X91: 269 | Y91: =DSUM(経費本日入力!$B$3:$K$2000,経費本日入力!$J$3,X90:X91) -> 0 | AA91: 334 | AB91: =DSUM(経費本日入力!$B$3:$K$2000,経費本日入力!$J$3,AA90:AA91) -> 0 | AD91: 602 | AE91: =DSUM(経費本日入力!$B$3:$K$2000,経費本日入力!$J$3,AD90:AD91) -> 0
C92: CODE | F92: CODE | I92: CODE | L92: CODE | O92: CODE | R92: CODE | U92: CODE | X92: CODE | AA92: CODE | AD92: CODE
C93: 124 | D93: =DSUM(部品本日入力!$B$3:$N$5008,部品本日入力!$M$3,C92:C93) -> 0 | F93: 195 | G93: =DSUM(部品本日入力!$B$3:$N$5008,部品本日入力!$M$3,F92:F93) -> 0 | I93: 270 | J93: =DSUM(部品本日入力!$B$3:$N$5008,部品本日入力!$M$3,I92:I93) -> 0 | L93: 400 | M93: =DSUM(部品本日入力!$B$3:$N$5008,部品本日入力!$M$3,L92:L93) -> 0 | O93: 603 | P93: =DSUM(部品本日入力!$B$3:$N$5008,部品本日入力!$M$3,O92:O93) -> 0 | R93: 124 | S93: =DSUM(経費本日入力!$B$3:$K$2000,経費本日入力!$J$3,R92:R93) -> 0 | U93: 195 | V93: =DSUM(経費本日入力!$B$3:$K$2000,経費本日入力!$J$3,U92:U93) -> 0 | X93: 270 | Y93: =DSUM(経費本日入力!$B$3:$K$2000,経費本日入力!$J$3,X92:X93) -> 0 | AA93: 401 | AB93: =DSUM(経費本日入力!$B$3:$K$2000,経費本日入力!$J$3,AA92:AA93) -> 0 | AD93: 603 | AE93: =DSUM(経費本日入力!$B$3:$K$2000,経費本日入力!$J$3,AD92:AD93) -> 0
C94: CODE | F94: CODE | I94: CODE | L94: CODE | O94: CODE | R94: CODE | U94: CODE | X94: CODE | AA94: CODE | AD94: CODE
C95: 125 | D95: =DSUM(部品本日入力!$B$3:$N$5008,部品本日入力!$M$3,C94:C95) -> 0 | F95: 196 | G95: =DSUM(部品本日入力!$B$3:$N$5008,部品本日入力!$M$3,F94:F95) -> 0 | I95: 271 | J95: =DSUM(部品本日入力!$B$3:$N$5008,部品本日入力!$M$3,I94:I95) -> 0 | L95: 401 | M95: =DSUM(部品本日入力!$B$3:$N$5008,部品本日入力!$M$3,L94:L95) -> 0 | O95: 604 | P95: =DSUM(部品本日入力!$B$3:$N$5008,部品本日入力!$M$3,O94:O95) -> 0 | R95: 125 | S95: =DSUM(経費本日入力!$B$3:$K$2000,経費本日入力!$J$3,R94:R95) -> 0 | U95: 196 | V95: =DSUM(経費本日入力!$B$3:$K$2000,経費本日入力!$J$3,U94:U95) -> 0 | X95: 271 | Y95: =DSUM(経費本日入力!$B$3:$K$2000,経費本日入力!$J$3,X94:X95) -> 0 | AA95: 402 | AB95: =DSUM(経費本日入力!$B$3:$K$2000,経費本日入力!$J$3,AA94:AA95) -> 0 | AD95: 604 | AE95: =DSUM(経費本日入力!$B$3:$K$2000,経費本日入力!$J$3,AD94:AD95) -> 0
C96: CODE | F96: CODE | I96: CODE | L96: CODE | O96: CODE | R96: CODE | U96: CODE | X96: CODE | AA96: CODE | AD96: CODE
C97: 126 | D97: =DSUM(部品本日入力!$B$3:$N$5008,部品本日入力!$M$3,C96:C97) -> 0 | F97: 197 | G97: =DSUM(部品本日入力!$B$3:$N$5008,部品本日入力!$M$3,F96:F97) -> 0 | I97: 272 | J97: =DSUM(部品本日入力!$B$3:$N$5008,部品本日入力!$M$3,I96:I97) -> 0 | L97: 402 | M97: =DSUM(部品本日入力!$B$3:$N$5008,部品本日入力!$M$3,L96:L97) -> 0 | O97: 605 | P97: =DSUM(部品本日入力!$B$3:$N$5008,部品本日入力!$M$3,O96:O97) -> 0 | R97: 126 | S97: =DSUM(経費本日入力!$B$3:$K$2000,経費本日入力!$J$3,R96:R97) -> 0 | U97: 197 | V97: =DSUM(経費本日入力!$B$3:$K$2000,経費本日入力!$J$3,U96:U97) -> 0 | X97: 272 | Y97: =DSUM(経費本日入力!$B$3:$K$2000,経費本日入力!$J$3,X96:X97) -> 0 | AA97: 403 | AB97: =DSUM(経費本日入力!$B$3:$K$2000,経費本日入力!$J$3,AA96:AA97) -> 0 | AD97: 605 | AE97: =DSUM(経費本日入力!$B$3:$K$2000,経費本日入力!$J$3,AD96:AD97) -> 0
C98: CODE | F98: CODE | I98: CODE | L98: CODE | O98: CODE | R98: CODE | U98: CODE | X98: CODE | AA98: CODE | AD98: CODE
C99: 127 | D99: =DSUM(部品本日入力!$B$3:$N$5008,部品本日入力!$M$3,C98:C99) -> 0 | F99: 198 | G99: =DSUM(部品本日入力!$B$3:$N$5008,部品本日入力!$M$3,F98:F99) -> 0 | I99: 273 | J99: =DSUM(部品本日入力!$B$3:$N$5008,部品本日入力!$M$3,I98:I99) -> 0 | L99: 403 | M99: =DSUM(部品本日入力!$B$3:$N$5008,部品本日入力!$M$3,L98:L99) -> 0 | O99: 606 | P99: =DSUM(部品本日入力!$B$3:$N$5008,部品本日入力!$M$3,O98:O99) -> 0 | R99: 127 | S99: =DSUM(経費本日入力!$B$3:$K$2000,経費本日入力!$J$3,R98:R99) -> 0 | U99: 198 | V99: =DSUM(経費本日入力!$B$3:$K$2000,経費本日入力!$J$3,U98:U99) -> 0 | X99: 273 | Y99: =DSUM(経費本日入力!$B$3:$K$2000,経費本日入力!$J$3,X98:X99) -> 0 | AA99: 404 | AB99: =DSUM(経費本日入力!$B$3:$K$2000,経費本日入力!$J$3,AA98:AA99) -> 0 | AD99: 606 | AE99: =DSUM(経費本日入力!$B$3:$K$2000,経費本日入力!$J$3,AD98:AD99) -> 0
C100: CODE | F100: CODE | I100: CODE | L100: CODE | O100: CODE | R100: CODE | U100: CODE | X100: CODE | AA100: CODE | AD100: CODE
C101: 128 | D101: =DSUM(部品本日入力!$B$3:$N$5008,部品本日入力!$M$3,C100:C101) -> 0 | F101: 199 | G101: =DSUM(部品本日入力!$B$3:$N$5008,部品本日入力!$M$3,F100:F101) -> 0 | I101: 274 | J101: =DSUM(部品本日入力!$B$3:$N$5008,部品本日入力!$M$3,I100:I101) -> 0 | L101: 404 | M101: =DSUM(部品本日入力!$B$3:$N$5008,部品本日入力!$M$3,L100:L101) -> 0 | O101: 607 | P101: =DSUM(部品本日入力!$B$3:$N$5008,部品本日入力!$M$3,O100:O101) -> 0 | R101: 128 | S101: =DSUM(経費本日入力!$B$3:$K$2000,経費本日入力!$J$3,R100:R101) -> 0 | U101: 199 | V101: =DSUM(経費本日入力!$B$3:$K$2000,経費本日入力!$J$3,U100:U101) -> 0 | X101: 274 | Y101: =DSUM(経費本日入力!$B$3:$K$2000,経費本日入力!$J$3,X100:X101) -> 0 | AA101: 405 | AB101: =DSUM(経費本日入力!$B$3:$K$2000,経費本日入力!$J$3,AA100:AA101) -> 0 | AD101: 607 | AE101: =DSUM(経費本日入力!$B$3:$K$2000,経費本日入力!$J$3,AD100:AD101) -> 0
C102: CODE | F102: CODE | I102: CODE | L102: CODE | O102: CODE | R102: CODE | U102: CODE | X102: CODE | AA102: CODE | AD102: CODE
C103: 129 | D103: =DSUM(部品本日入力!$B$3:$N$5008,部品本日入力!$M$3,C102:C103) -> 0 | F103: 200 | G103: =DSUM(部品本日入力!$B$3:$N$5008,部品本日入力!$M$3,F102:F103) -> 0 | I103: 275 | J103: =DSUM(部品本日入力!$B$3:$N$5008,部品本日入力!$M$3,I102:I103) -> 0 | L103: 405 | M103: =DSUM(部品本日入力!$B$3:$N$5008,部品本日入力!$M$3,L102:L103) -> 0 | O103: 608 | P103: =DSUM(部品本日入力!$B$3:$N$5008,部品本日入力!$M$3,O102:O103) -> 0 | R103: 129 | S103: =DSUM(経費本日入力!$B$3:$K$2000,経費本日入力!$J$3,R102:R103) -> 0 | U103: 200 | V103: =DSUM(経費本日入力!$B$3:$K$2000,経費本日入力!$J$3,U102:U103) -> 0 | X103: 275 | Y103: =DSUM(経費本日入力!$B$3:$K$2000,経費本日入力!$J$3,X102:X103) -> 0 | AA103: 406 | AB103: =DSUM(経費本日入力!$B$3:$K$2000,経費本日入力!$J$3,AA102:AA103) -> 0 | AD103: 608 | AE103: =DSUM(経費本日入力!$B$3:$K$2000,経費本日入力!$J$3,AD102:AD103) -> 0
C104: CODE | F104: CODE | I104: CODE | L104: CODE | O104: CODE | R104: CODE | U104: CODE | X104: CODE | AA104: CODE | AD104: CODE
C105: 130 | D105: =DSUM(部品本日入力!$B$3:$N$5008,部品本日入力!$M$3,C104:C105) -> 0 | F105: 201 | G105: =DSUM(部品本日入力!$B$3:$N$5008,部品本日入力!$M$3,F104:F105) -> 0 | I105: 276 | J105: =DSUM(部品本日入力!$B$3:$N$5008,部品本日入力!$M$3,I104:I105) -> 0 | L105: 406 | M105: =DSUM(部品本日入力!$B$3:$N$5008,部品本日入力!$M$3,L104:L105) -> 0 | O105: 609 | P105: =DSUM(部品本日入力!$B$3:$N$5008,部品本日入力!$M$3,O104:O105) -> 0 | R105: 130 | S105: =DSUM(経費本日入力!$B$3:$K$2000,経費本日入力!$J$3,R104:R105) -> 0 | U105: 201 | V105: =DSUM(経費本日入力!$B$3:$K$2000,経費本日入力!$J$3,U104:U105) -> 0 | X105: 276 | Y105: =DSUM(経費本日入力!$B$3:$K$2000,経費本日入力!$J$3,X104:X105) -> 0 | AA105: 407 | AB105: =DSUM(経費本日入力!$B$3:$K$2000,経費本日入力!$J$3,AA104:AA105) -> 0 | AD105: 609 | AE105: =DSUM(経費本日入力!$B$3:$K$2000,経費本日入力!$J$3,AD104:AD105) -> 0
C106: CODE | F106: CODE | I106: CODE | L106: CODE | O106: CODE | R106: CODE | U106: CODE | X106: CODE | AA106: CODE | AD106: CODE
C107: 131 | D107: =DSUM(部品本日入力!$B$3:$N$5008,部品本日入力!$M$3,C106:C107) -> 0 | F107: 202 | G107: =DSUM(部品本日入力!$B$3:$N$5008,部品本日入力!$M$3,F106:F107) -> 0 | I107: 277 | J107: =DSUM(部品本日入力!$B$3:$N$5008,部品本日入力!$M$3,I106:I107) -> 0 | L107: 407 | M107: =DSUM(部品本日入力!$B$3:$N$5008,部品本日入力!$M$3,L106:L107) -> 0 | O107: 610 | P107: =DSUM(部品本日入力!$B$3:$N$5008,部品本日入力!$M$3,O106:O107) -> 0 | R107: 131 | S107: =DSUM(経費本日入力!$B$3:$K$2000,経費本日入力!$J$3,R106:R107) -> 0 | U107: 202 | V107: =DSUM(経費本日入力!$B$3:$K$2000,経費本日入力!$J$3,U106:U107) -> 0 | X107: 277 | Y107: =DSUM(経費本日入力!$B$3:$K$2000,経費本日入力!$J$3,X106:X107) -> 0 | AA107: 408 | AB107: =DSUM(経費本日入力!$B$3:$K$2000,経費本日入力!$J$3,AA106:AA107) -> 0 | AD107: 610 | AE107: =DSUM(経費本日入力!$B$3:$K$2000,経費本日入力!$J$3,AD106:AD107) -> 0
C108: CODE | F108: CODE | I108: CODE | L108: CODE | O108: CODE | R108: CODE | U108: CODE | X108: CODE | AA108: CODE | AD108: CODE
C109: 132 | D109: =DSUM(部品本日入力!$B$3:$N$5008,部品本日入力!$M$3,C108:C109) -> 0 | F109: 203 | G109: =DSUM(部品本日入力!$B$3:$N$5008,部品本日入力!$M$3,F108:F109) -> 0 | I109: 278 | J109: =DSUM(部品本日入力!$B$3:$N$5008,部品本日入力!$M$3,I108:I109) -> 0 | L109: 408 | M109: =DSUM(部品本日入力!$B$3:$N$5008,部品本日入力!$M$3,L108:L109) -> 0 | O109: 611 | P109: =DSUM(部品本日入力!$B$3:$N$5008,部品本日入力!$M$3,O108:O109) -> 0 | R109: 132 | S109: =DSUM(経費本日入力!$B$3:$K$2000,経費本日入力!$J$3,R108:R109) -> 0 | U109: 203 | V109: =DSUM(経費本日入力!$B$3:$K$2000,経費本日入力!$J$3,U108:U109) -> 0 | X109: 278 | Y109: =DSUM(経費本日入力!$B$3:$K$2000,経費本日入力!$J$3,X108:X109) -> 0 | AA109: 409 | AB109: =DSUM(経費本日入力!$B$3:$K$2000,経費本日入力!$J$3,AA108:AA109) -> 0 | AD109: 611 | AE109: =DSUM(経費本日入力!$B$3:$K$2000,経費本日入力!$J$3,AD108:AD109) -> 0
C110: CODE | F110: CODE | I110: CODE | L110: CODE | O110: CODE | R110: CODE | U110: CODE | X110: CODE | AA110: CODE | AD110: CODE
C111: 133 | D111: =DSUM(部品本日入力!$B$3:$N$5008,部品本日入力!$M$3,C110:C111) -> 0 | F111: 204 | G111: =DSUM(部品本日入力!$B$3:$N$5008,部品本日入力!$M$3,F110:F111) -> 0 | I111: 279 | J111: =DSUM(部品本日入力!$B$3:$N$5008,部品本日入力!$M$3,I110:I111) -> 0 | L111: 409 | M111: =DSUM(部品本日入力!$B$3:$N$5008,部品本日入力!$M$3,L110:L111) -> 0 | O111: 612 | P111: =DSUM(部品本日入力!$B$3:$N$5008,部品本日入力!$M$3,O110:O111) -> 0 | R111: 133 | S111: =DSUM(経費本日入力!$B$3:$K$2000,経費本日入力!$J$3,R110:R111) -> 0 | U111: 204 | V111: =DSUM(経費本日入力!$B$3:$K$2000,経費本日入力!$J$3,U110:U111) -> 0 | X111: 279 | Y111: =DSUM(経費本日入力!$B$3:$K$2000,経費本日入力!$J$3,X110:X111) -> 0 | AA111: 410 | AB111: =DSUM(経費本日入力!$B$3:$K$2000,経費本日入力!$J$3,AA110:AA111) -> 0 | AD111: 612 | AE111: =DSUM(経費本日入力!$B$3:$K$2000,経費本日入力!$J$3,AD110:AD111) -> 0
C112: CODE | F112: CODE | I112: CODE | L112: CODE | O112: CODE | R112: CODE | U112: CODE | X112: CODE | AA112: CODE | AD112: CODE
C113: 134 | D113: =DSUM(部品本日入力!$B$3:$N$5008,部品本日入力!$M$3,C112:C113) -> 0 | F113: 205 | G113: =DSUM(部品本日入力!$B$3:$N$5008,部品本日入力!$M$3,F112:F113) -> 0 | I113: 280 | J113: =DSUM(部品本日入力!$B$3:$N$5008,部品本日入力!$M$3,I112:I113) -> 0 | L113: 410 | M113: =DSUM(部品本日入力!$B$3:$N$5008,部品本日入力!$M$3,L112:L113) -> 0 | O113: 613 | P113: =DSUM(部品本日入力!$B$3:$N$5008,部品本日入力!$M$3,O112:O113) -> 0 | R113: 134 | S113: =DSUM(経費本日入力!$B$3:$K$2000,経費本日入力!$J$3,R112:R113) -> 0 | U113: 205 | V113: =DSUM(経費本日入力!$B$3:$K$2000,経費本日入力!$J$3,U112:U113) -> 0 | X113: 280 | Y113: =DSUM(経費本日入力!$B$3:$K$2000,経費本日入力!$J$3,X112:X113) -> 0 | AA113: 411 | AB113: =DSUM(経費本日入力!$B$3:$K$2000,経費本日入力!$J$3,AA112:AA113) -> 0 | AD113: 613 | AE113: =DSUM(経費本日入力!$B$3:$K$2000,経費本日入力!$J$3,AD112:AD113) -> 0
C114: CODE | F114: CODE | I114: CODE | L114: CODE | O114: CODE | R114: CODE | U114: CODE | X114: CODE | AA114: CODE | AD114: CODE
C115: 135 | D115: =DSUM(部品本日入力!$B$3:$N$5008,部品本日入力!$M$3,C114:C115) -> 0 | F115: 206 | G115: =DSUM(部品本日入力!$B$3:$N$5008,部品本日入力!$M$3,F114:F115) -> 0 | I115: 281 | J115: =DSUM(部品本日入力!$B$3:$N$5008,部品本日入力!$M$3,I114:I115) -> 0 | L115: 411 | M115: =DSUM(部品本日入力!$B$3:$N$5008,部品本日入力!$M$3,L114:L115) -> 0 | O115: 614 | P115: =DSUM(部品本日入力!$B$3:$N$5008,部品本日入力!$M$3,O114:O115) -> 0 | R115: 135 | S115: =DSUM(経費本日入力!$B$3:$K$2000,経費本日入力!$J$3,R114:R115) -> 0 | U115: 206 | V115: =DSUM(経費本日入力!$B$3:$K$2000,経費本日入力!$J$3,U114:U115) -> 0 | X115: 281 | Y115: =DSUM(経費本日入力!$B$3:$K$2000,経費本日入力!$J$3,X114:X115) -> 0 | AA115: 412 | AB115: =DSUM(経費本日入力!$B$3:$K$2000,経費本日入力!$J$3,AA114:AA115) -> 0 | AD115: 614 | AE115: =DSUM(経費本日入力!$B$3:$K$2000,経費本日入力!$J$3,AD114:AD115) -> 0
C116: CODE | F116: CODE | I116: CODE | L116: CODE | O116: CODE | R116: CODE | U116: CODE | X116: CODE | AA116: CODE | AD116: CODE
C117: 136 | D117: =DSUM(部品本日入力!$B$3:$N$5008,部品本日入力!$M$3,C116:C117) -> 0 | F117: 207 | G117: =DSUM(部品本日入力!$B$3:$N$5008,部品本日入力!$M$3,F116:F117) -> 0 | I117: 282 | J117: =DSUM(部品本日入力!$B$3:$N$5008,部品本日入力!$M$3,I116:I117) -> 0 | L117: 412 | M117: =DSUM(部品本日入力!$B$3:$N$5008,部品本日入力!$M$3,L116:L117) -> 0 | O117: 615 | P117: =DSUM(部品本日入力!$B$3:$N$5008,部品本日入力!$M$3,O116:O117) -> 0 | R117: 136 | S117: =DSUM(経費本日入力!$B$3:$K$2000,経費本日入力!$J$3,R116:R117) -> 0 | U117: 207 | V117: =DSUM(経費本日入力!$B$3:$K$2000,経費本日入力!$J$3,U116:U117) -> 0 | X117: 282 | Y117: =DSUM(経費本日入力!$B$3:$K$2000,経費本日入力!$J$3,X116:X117) -> 0 | AA117: 413 | AB117: =DSUM(経費本日入力!$B$3:$K$2000,経費本日入力!$J$3,AA116:AA117) -> 0 | AD117: 615 | AE117: =DSUM(経費本日入力!$B$3:$K$2000,経費本日入力!$J$3,AD116:AD117) -> 0
C118: CODE | F118: CODE | I118: CODE | L118: CODE | O118: CODE | R118: CODE | U118: CODE | X118: CODE | AA118: CODE | AD118: CODE
C119: 137 | D119: =DSUM(部品本日入力!$B$3:$N$5008,部品本日入力!$M$3,C118:C119) -> 0 | F119: 208 | G119: =DSUM(部品本日入力!$B$3:$N$5008,部品本日入力!$M$3,F118:F119) -> 0 | I119: 283 | J119: =DSUM(部品本日入力!$B$3:$N$5008,部品本日入力!$M$3,I118:I119) -> 0 | L119: 413 | M119: =DSUM(部品本日入力!$B$3:$N$5008,部品本日入力!$M$3,L118:L119) -> 0 | O119: 616 | P119: =DSUM(部品本日入力!$B$3:$N$5008,部品本日入力!$M$3,O118:O119) -> 0 | R119: 137 | S119: =DSUM(経費本日入力!$B$3:$K$2000,経費本日入力!$J$3,R118:R119) -> 0 | U119: 208 | V119: =DSUM(経費本日入力!$B$3:$K$2000,経費本日入力!$J$3,U118:U119) -> 0 | X119: 283 | Y119: =DSUM(経費本日入力!$B$3:$K$2000,経費本日入力!$J$3,X118:X119) -> 0 | AA119: 414 | AB119: =DSUM(経費本日入力!$B$3:$K$2000,経費本日入力!$J$3,AA118:AA119) -> 0 | AD119: 616 | AE119: =DSUM(経費本日入力!$B$3:$K$2000,経費本日入力!$J$3,AD118:AD119) -> 0
C120: CODE | F120: CODE | I120: CODE | L120: CODE | O120: CODE | R120: CODE | U120: CODE | X120: CODE | AA120: CODE | AD120: CODE
C121: 138 | D121: =DSUM(部品本日入力!$B$3:$N$5008,部品本日入力!$M$3,C120:C121) -> 0 | F121: 209 | G121: =DSUM(部品本日入力!$B$3:$N$5008,部品本日入力!$M$3,F120:F121) -> 0 | I121: 284 | J121: =DSUM(部品本日入力!$B$3:$N$5008,部品本日入力!$M$3,I120:I121) -> 0 | L121: 414 | M121: =DSUM(部品本日入力!$B$3:$N$5008,部品本日入力!$M$3,L120:L121) -> 0 | O121: 617 | P121: =DSUM(部品本日入力!$B$3:$N$5008,部品本日入力!$M$3,O120:O121) -> 0 | R121: 138 | S121: =DSUM(経費本日入力!$B$3:$K$2000,経費本日入力!$J$3,R120:R121) -> 0 | U121: 209 | V121: =DSUM(経費本日入力!$B$3:$K$2000,経費本日入力!$J$3,U120:U121) -> 0 | X121: 284 | Y121: =DSUM(経費本日入力!$B$3:$K$2000,経費本日入力!$J$3,X120:X121) -> 0 | AA121: 415 | AB121: =DSUM(経費本日入力!$B$3:$K$2000,経費本日入力!$J$3,AA120:AA121) -> 0 | AD121: 617 | AE121: =DSUM(経費本日入力!$B$3:$K$2000,経費本日入力!$J$3,AD120:AD121) -> 0
C122: CODE | F122: CODE | I122: CODE | L122: CODE | O122: CODE | R122: CODE | U122: CODE | X122: CODE | AA122: CODE | AD122: CODE
C123: 139 | D123: =DSUM(部品本日入力!$B$3:$N$5008,部品本日入力!$M$3,C122:C123) -> 0 | F123: 210 | G123: =DSUM(部品本日入力!$B$3:$N$5008,部品本日入力!$M$3,F122:F123) -> 0 | I123: 285 | J123: =DSUM(部品本日入力!$B$3:$N$5008,部品本日入力!$M$3,I122:I123) -> 0 | L123: 415 | M123: =DSUM(部品本日入力!$B$3:$N$5008,部品本日入力!$M$3,L122:L123) -> 0 | O123: 618 | P123: =DSUM(部品本日入力!$B$3:$N$5008,部品本日入力!$M$3,O122:O123) -> 0 | R123: 139 | S123: =DSUM(経費本日入力!$B$3:$K$2000,経費本日入力!$J$3,R122:R123) -> 0 | U123: 210 | V123: =DSUM(経費本日入力!$B$3:$K$2000,経費本日入力!$J$3,U122:U123) -> 0 | X123: 285 | Y123: =DSUM(経費本日入力!$B$3:$K$2000,経費本日入力!$J$3,X122:X123) -> 0 | AA123: 416 | AB123: =DSUM(経費本日入力!$B$3:$K$2000,経費本日入力!$J$3,AA122:AA123) -> 0 | AD123: 618 | AE123: =DSUM(経費本日入力!$B$3:$K$2000,経費本日入力!$J$3,AD122:AD123) -> 0
C124: CODE | F124: CODE | I124: CODE | L124: CODE | O124: CODE | R124: CODE | U124: CODE | X124: CODE | AA124: CODE | AD124: CODE
C125: 140 | D125: =DSUM(部品本日入力!$B$3:$N$5008,部品本日入力!$M$3,C124:C125) -> 0 | F125: 211 | G125: =DSUM(部品本日入力!$B$3:$N$5008,部品本日入力!$M$3,F124:F125) -> 0 | I125: 286 | J125: =DSUM(部品本日入力!$B$3:$N$5008,部品本日入力!$M$3,I124:I125) -> 0 | L125: 416 | M125: =DSUM(部品本日入力!$B$3:$N$5008,部品本日入力!$M$3,L124:L125) -> 0 | O125: 619 | P125: =DSUM(部品本日入力!$B$3:$N$5008,部品本日入力!$M$3,O124:O125) -> 0 | R125: 140 | S125: =DSUM(経費本日入力!$B$3:$K$2000,経費本日入力!$J$3,R124:R125) -> 0 | U125: 211 | V125: =DSUM(経費本日入力!$B$3:$K$2000,経費本日入力!$J$3,U124:U125) -> 0 | X125: 286 | Y125: =DSUM(経費本日入力!$B$3:$K$2000,経費本日入力!$J$3,X124:X125) -> 0 | AA125: 417 | AB125: =DSUM(経費本日入力!$B$3:$K$2000,経費本日入力!$J$3,AA124:AA125) -> 0 | AD125: 619 | AE125: =DSUM(経費本日入力!$B$3:$K$2000,経費本日入力!$J$3,AD124:AD125) -> 0
C126: CODE | F126: CODE | I126: CODE | L126: CODE | O126: CODE | R126: CODE | U126: CODE | X126: CODE | AA126: CODE | AD126: CODE
C127: 141 | D127: =DSUM(部品本日入力!$B$3:$N$5008,部品本日入力!$M$3,C126:C127) -> 0 | F127: 212 | G127: =DSUM(部品本日入力!$B$3:$N$5008,部品本日入力!$M$3,F126:F127) -> 0 | I127: 287 | J127: =DSUM(部品本日入力!$B$3:$N$5008,部品本日入力!$M$3,I126:I127) -> 0 | L127: 417 | M127: =DSUM(部品本日入力!$B$3:$N$5008,部品本日入力!$M$3,L126:L127) -> 0 | O127: 620 | P127: =DSUM(部品本日入力!$B$3:$N$5008,部品本日入力!$M$3,O126:O127) -> 0 | R127: 141 | S127: =DSUM(経費本日入力!$B$3:$K$2000,経費本日入力!$J$3,R126:R127) -> 0 | U127: 212 | V127: =DSUM(経費本日入力!$B$3:$K$2000,経費本日入力!$J$3,U126:U127) -> 0 | X127: 287 | Y127: =DSUM(経費本日入力!$B$3:$K$2000,経費本日入力!$J$3,X126:X127) -> 0 | AA127: 418 | AB127: =DSUM(経費本日入力!$B$3:$K$2000,経費本日入力!$J$3,AA126:AA127) -> 0 | AD127: 620 | AE127: =DSUM(経費本日入力!$B$3:$K$2000,経費本日入力!$J$3,AD126:AD127) -> 0
C128: CODE | F128: CODE | I128: CODE | L128: CODE | O128: CODE | R128: CODE | U128: CODE | X128: CODE | AA128: CODE | AD128: CODE
C129: 142 | D129: =DSUM(部品本日入力!$B$3:$N$5008,部品本日入力!$M$3,C128:C129) -> 0 | F129: 213 | G129: =DSUM(部品本日入力!$B$3:$N$5008,部品本日入力!$M$3,F128:F129) -> 0 | I129: 288 | J129: =DSUM(部品本日入力!$B$3:$N$5008,部品本日入力!$M$3,I128:I129) -> 0 | L129: 418 | M129: =DSUM(部品本日入力!$B$3:$N$5008,部品本日入力!$M$3,L128:L129) -> 0 | O129: 621 | P129: =DSUM(部品本日入力!$B$3:$N$5008,部品本日入力!$M$3,O128:O129) -> 0 | R129: 142 | S129: =DSUM(経費本日入力!$B$3:$K$2000,経費本日入力!$J$3,R128:R129) -> 0 | U129: 213 | V129: =DSUM(経費本日入力!$B$3:$K$2000,経費本日入力!$J$3,U128:U129) -> 0 | X129: 288 | Y129: =DSUM(経費本日入力!$B$3:$K$2000,経費本日入力!$J$3,X128:X129) -> 0 | AA129: 419 | AB129: =DSUM(経費本日入力!$B$3:$K$2000,経費本日入力!$J$3,AA128:AA129) -> 0 | AD129: 621 | AE129: =DSUM(経費本日入力!$B$3:$K$2000,経費本日入力!$J$3,AD128:AD129) -> 0
C130: CODE | F130: CODE | I130: CODE | L130: CODE | O130: CODE | R130: CODE | U130: CODE | X130: CODE | AA130: CODE | AD130: CODE
C131: 143 | D131: =DSUM(部品本日入力!$B$3:$N$5008,部品本日入力!$M$3,C130:C131) -> 0 | F131: 214 | G131: =DSUM(部品本日入力!$B$3:$N$5008,部品本日入力!$M$3,F130:F131) -> 0 | I131: 289 | J131: =DSUM(部品本日入力!$B$3:$N$5008,部品本日入力!$M$3,I130:I131) -> 0 | L131: 419 | M131: =DSUM(部品本日入力!$B$3:$N$5008,部品本日入力!$M$3,L130:L131) -> 0 | O131: 622 | P131: =DSUM(部品本日入力!$B$3:$N$5008,部品本日入力!$M$3,O130:O131) -> 0 | R131: 143 | S131: =DSUM(経費本日入力!$B$3:$K$2000,経費本日入力!$J$3,R130:R131) -> 0 | U131: 214 | V131: =DSUM(経費本日入力!$B$3:$K$2000,経費本日入力!$J$3,U130:U131) -> 0 | X131: 289 | Y131: =DSUM(経費本日入力!$B$3:$K$2000,経費本日入力!$J$3,X130:X131) -> 0 | AA131: 420 | AB131: =DSUM(経費本日入力!$B$3:$K$2000,経費本日入力!$J$3,AA130:AA131) -> 0 | AD131: 622 | AE131: =DSUM(経費本日入力!$B$3:$K$2000,経費本日入力!$J$3,AD130:AD131) -> 0
C132: CODE | F132: CODE | I132: CODE | L132: CODE | O132: CODE | R132: CODE | U132: CODE | X132: CODE | AA132: CODE | AD132: CODE
C133: 144 | D133: =DSUM(部品本日入力!$B$3:$N$5008,部品本日入力!$M$3,C132:C133) -> 0 | F133: 215 | G133: =DSUM(部品本日入力!$B$3:$N$5008,部品本日入力!$M$3,F132:F133) -> 0 | I133: 290 | J133: =DSUM(部品本日入力!$B$3:$N$5008,部品本日入力!$M$3,I132:I133) -> 0 | L133: 420 | M133: =DSUM(部品本日入力!$B$3:$N$5008,部品本日入力!$M$3,L132:L133) -> 0 | O133: 623 | P133: =DSUM(部品本日入力!$B$3:$N$5008,部品本日入力!$M$3,O132:O133) -> 0 | R133: 144 | S133: =DSUM(経費本日入力!$B$3:$K$2000,経費本日入力!$J$3,R132:R133) -> 0 | U133: 215 | V133: =DSUM(経費本日入力!$B$3:$K$2000,経費本日入力!$J$3,U132:U133) -> 0 | X133: 290 | Y133: =DSUM(経費本日入力!$B$3:$K$2000,経費本日入力!$J$3,X132:X133) -> 0 | AA133: 421 | AB133: =DSUM(経費本日入力!$B$3:$K$2000,経費本日入力!$J$3,AA132:AA133) -> 0 | AD133: 623 | AE133: =DSUM(経費本日入力!$B$3:$K$2000,経費本日入力!$J$3,AD132:AD133) -> 0
C134: CODE | F134: CODE | L134: CODE | O134: CODE | R134: CODE | U134: CODE | AA134: CODE | AD134: CODE
C135: 145 | D135: =DSUM(部品本日入力!$B$3:$N$5008,部品本日入力!$M$3,C134:C135) -> 0 | F135: 216 | G135: =DSUM(部品本日入力!$B$3:$N$5008,部品本日入力!$M$3,F134:F135) -> 0 | L135: 421 | M135: =DSUM(部品本日入力!$B$3:$N$5008,部品本日入力!$M$3,L134:L135) -> 0 | O135: 624 | P135: =DSUM(部品本日入力!$B$3:$N$5008,部品本日入力!$M$3,O134:O135) -> 0 | R135: 145 | S135: =DSUM(経費本日入力!$B$3:$K$2000,経費本日入力!$J$3,R134:R135) -> 0 | U135: 216 | V135: =DSUM(経費本日入力!$B$3:$K$2000,経費本日入力!$J$3,U134:U135) -> 0 | AA135: 422 | AB135: =DSUM(経費本日入力!$B$3:$K$2000,経費本日入力!$J$3,AA134:AA135) -> 0 | AD135: 624 | AE135: =DSUM(経費本日入力!$B$3:$K$2000,経費本日入力!$J$3,AD134:AD135) -> 0
C136: CODE | F136: CODE | L136: CODE | O136: CODE | R136: CODE | U136: CODE | AA136: CODE | AD136: CODE
C137: 146 | D137: =DSUM(部品本日入力!$B$3:$N$5008,部品本日入力!$M$3,C136:C137) -> 0 | F137: 217 | G137: =DSUM(部品本日入力!$B$3:$N$5008,部品本日入力!$M$3,F136:F137) -> 0 | L137: 422 | M137: =DSUM(部品本日入力!$B$3:$N$5008,部品本日入力!$M$3,L136:L137) -> 0 | O137: 625 | P137: =DSUM(部品本日入力!$B$3:$N$5008,部品本日入力!$M$3,O136:O137) -> 0 | R137: 146 | S137: =DSUM(経費本日入力!$B$3:$K$2000,経費本日入力!$J$3,R136:R137) -> 0 | U137: 217 | V137: =DSUM(経費本日入力!$B$3:$K$2000,経費本日入力!$J$3,U136:U137) -> 0 | AA137: 423 | AB137: =DSUM(経費本日入力!$B$3:$K$2000,経費本日入力!$J$3,AA136:AA137) -> 0 | AD137: 625 | AE137: =DSUM(経費本日入力!$B$3:$K$2000,経費本日入力!$J$3,AD136:AD137) -> 0
C138: CODE | F138: CODE | L138: CODE | O138: CODE | R138: CODE | U138: CODE | AA138: CODE | AD138: CODE
C139: 147 | D139: =DSUM(部品本日入力!$B$3:$N$5008,部品本日入力!$M$3,C138:C139) -> 0 | F139: 218 | G139: =DSUM(部品本日入力!$B$3:$N$5008,部品本日入力!$M$3,F138:F139) -> 0 | L139: 423 | M139: =DSUM(部品本日入力!$B$3:$N$5008,部品本日入力!$M$3,L138:L139) -> 0 | O139: 626 | P139: =DSUM(部品本日入力!$B$3:$N$5008,部品本日入力!$M$3,O138:O139) -> 0 | R139: 147 | S139: =DSUM(経費本日入力!$B$3:$K$2000,経費本日入力!$J$3,R138:R139) -> 0 | U139: 218 | V139: =DSUM(経費本日入力!$B$3:$K$2000,経費本日入力!$J$3,U138:U139) -> 0 | AA139: 424 | AB139: =DSUM(経費本日入力!$B$3:$K$2000,経費本日入力!$J$3,AA138:AA139) -> 0 | AD139: 626 | AE139: =DSUM(経費本日入力!$B$3:$K$2000,経費本日入力!$J$3,AD138:AD139) -> 0
C140: CODE | F140: CODE | L140: CODE | O140: CODE | R140: CODE | U140: CODE | AA140: CODE | AD140: CODE
C141: 148 | D141: =DSUM(部品本日入力!$B$3:$N$5008,部品本日入力!$M$3,C140:C141) -> 0 | F141: 219 | G141: =DSUM(部品本日入力!$B$3:$N$5008,部品本日入力!$M$3,F140:F141) -> 0 | L141: 424 | M141: =DSUM(部品本日入力!$B$3:$N$5008,部品本日入力!$M$3,L140:L141) -> 0 | O141: 627 | P141: =DSUM(部品本日入力!$B$3:$N$5008,部品本日入力!$M$3,O140:O141) -> 0 | R141: 148 | S141: =DSUM(経費本日入力!$B$3:$K$2000,経費本日入力!$J$3,R140:R141) -> 0 | U141: 219 | V141: =DSUM(経費本日入力!$B$3:$K$2000,経費本日入力!$J$3,U140:U141) -> 0 | AA141: 425 | AB141: =DSUM(経費本日入力!$B$3:$K$2000,経費本日入力!$J$3,AA140:AA141) -> 0 | AD141: 627 | AE141: =DSUM(経費本日入力!$B$3:$K$2000,経費本日入力!$J$3,AD140:AD141) -> 0
C142: CODE | F142: CODE | L142: CODE | O142: CODE | R142: CODE | U142: CODE | AA142: CODE | AD142: CODE
C143: 149 | D143: =DSUM(部品本日入力!$B$3:$N$5008,部品本日入力!$M$3,C142:C143) -> 0 | F143: 220 | G143: =DSUM(部品本日入力!$B$3:$N$5008,部品本日入力!$M$3,F142:F143) -> 0 | L143: 425 | M143: =DSUM(部品本日入力!$B$3:$N$5008,部品本日入力!$M$3,L142:L143) -> 0 | O143: 628 | P143: =DSUM(部品本日入力!$B$3:$N$5008,部品本日入力!$M$3,O142:O143) -> 0 | R143: 149 | S143: =DSUM(経費本日入力!$B$3:$K$2000,経費本日入力!$J$3,R142:R143) -> 0 | U143: 220 | V143: =DSUM(経費本日入力!$B$3:$K$2000,経費本日入力!$J$3,U142:U143) -> 0 | AA143: 426 | AB143: =DSUM(経費本日入力!$B$3:$K$2000,経費本日入力!$J$3,AA142:AA143) -> 0 | AD143: 628 | AE143: =DSUM(経費本日入力!$B$3:$K$2000,経費本日入力!$J$3,AD142:AD143) -> 0
C144: CODE | F144: CODE | L144: CODE | O144: CODE | R144: CODE | U144: CODE | AD144: CODE
C145: 150 | D145: =DSUM(部品本日入力!$B$3:$N$5008,部品本日入力!$M$3,C144:C145) -> 0 | F145: 221 | G145: =DSUM(部品本日入力!$B$3:$N$5008,部品本日入力!$M$3,F144:F145) -> 0 | L145: 426 | M145: =DSUM(部品本日入力!$B$3:$N$5008,部品本日入力!$M$3,L144:L145) -> 0 | O145: 629 | P145: =DSUM(部品本日入力!$B$3:$N$5008,部品本日入力!$M$3,O144:O145) -> 0 | R145: 150 | S145: =DSUM(経費本日入力!$B$3:$K$2000,経費本日入力!$J$3,R144:R145) -> 0 | U145: 221 | V145: =DSUM(経費本日入力!$B$3:$K$2000,経費本日入力!$J$3,U144:U145) -> 0 | AD145: 629 | AE145: =DSUM(経費本日入力!$B$3:$K$2000,経費本日入力!$J$3,AD144:AD145) -> 0
F146: CODE | L146: CODE | O146: CODE | U146: CODE | AD146: CODE
F147: 222 | G147: =DSUM(部品本日入力!$B$3:$N$5008,部品本日入力!$M$3,F146:F147) -> 0 | L147: 501 | M147: =DSUM(部品本日入力!$B$3:$N$5008,部品本日入力!$M$3,L146:L147) -> 0 | O147: 630 | P147: =DSUM(部品本日入力!$B$3:$N$5008,部品本日入力!$M$3,O146:O147) -> 0 | U147: 222 | V147: =DSUM(経費本日入力!$B$3:$K$2000,経費本日入力!$J$3,U146:U147) -> 0 | AD147: 630 | AE147: =DSUM(経費本日入力!$B$3:$K$2000,経費本日入力!$J$3,AD146:AD147) -> 0
F148: CODE | O148: CODE | U148: CODE | AD148: CODE
F149: 223 | G149: =DSUM(部品本日入力!$B$3:$N$5008,部品本日入力!$M$3,F148:F149) -> 0 | O149: 631 | P149: =DSUM(部品本日入力!$B$3:$N$5008,部品本日入力!$M$3,O148:O149) -> 0 | U149: 223 | V149: =DSUM(経費本日入力!$B$3:$K$2000,経費本日入力!$J$3,U148:U149) -> 0 | AD149: 631 | AE149: =DSUM(経費本日入力!$B$3:$K$2000,経費本日入力!$J$3,AD148:AD149) -> 0
F150: CODE | O150: CODE | U150: CODE | AD150: CODE
F151: 224 | G151: =DSUM(部品本日入力!$B$3:$N$5008,部品本日入力!$M$3,F150:F151) -> 0 | O151: 632 | P151: =DSUM(部品本日入力!$B$3:$N$5008,部品本日入力!$M$3,O150:O151) -> 0 | U151: 224 | V151: =DSUM(経費本日入力!$B$3:$K$2000,経費本日入力!$J$3,U150:U151) -> 0 | AD151: 632 | AE151: =DSUM(経費本日入力!$B$3:$K$2000,経費本日入力!$J$3,AD150:AD151) -> 0
F152: CODE | O152: CODE | U152: CODE | AD152: CODE
F153: 225 | G153: =DSUM(部品本日入力!$B$3:$N$5008,部品本日入力!$M$3,F152:F153) -> 0 | O153: 633 | P153: =DSUM(部品本日入力!$B$3:$N$5008,部品本日入力!$M$3,O152:O153) -> 0 | U153: 225 | V153: =DSUM(経費本日入力!$B$3:$K$2000,経費本日入力!$J$3,U152:U153) -> 0 | AD153: 633 | AE153: =DSUM(経費本日入力!$B$3:$K$2000,経費本日入力!$J$3,AD152:AD153) -> 0
O154: CODE | AD154: CODE
O155: 634 | P155: =DSUM(部品本日入力!$B$3:$N$5008,部品本日入力!$M$3,O154:O155) -> 0 | AD155: 634 | AE155: =DSUM(経費本日入力!$B$3:$K$2000,経費本日入力!$J$3,AD154:AD155) -> 0
O156: CODE | AD156: CODE
O157: 635 | P157: =DSUM(部品本日入力!$B$3:$N$5008,部品本日入力!$M$3,O156:O157) -> 0 | AD157: 635 | AE157: =DSUM(経費本日入力!$B$3:$K$2000,経費本日入力!$J$3,AD156:AD157) -> 0

Sheet 仕入月合計データ
I1: 行削除は不可です。数式と値のクリアを使用する。
C2: =+menu!O6 -> 2 | D2: 月 | H2: 当月部品 仕入データ | M2: =SUM(M4:M10771) -> 14345 | P2: 合計 | Q2: =+Q8+Q18+Q25+Q35+Q48+Q55+Q65+Q75+Q85+Q95 -> 14345 | S2: 行端末 | T2: B239 | U2: =U12+U22+U32+U42+U52+U62+U72+U82+U92+U102 -> 14345 | X2: 1
B3: 製番 | C3: 品番１ | D3: 品番２ | E3: 納入日 | F3: 細 品番 | G3: 材質 | H3: 品名 (材料取り） | I3: 形状・寸法 | J3: メーカー | K3: 数量 | L3: 単価 | M3: 金額 | N3: CODE | P3: 分類計算
B4: AA-1234 | C4: 01 | D4: 02 | H4: fghj | K4: 1 | L4: 10 | M4: 10 | N4: 16 | P4: 製番 | R4: 0～100 | S4: =DSUM($B$3:$N$9771,$M$3,V4:X5) -> 240 | T4: =DSUM($B$3:$N$9771,$M$3,V6:X7) -> 0 | U4: =SUM(S4:T4) -> 240 | V4: 製番 | W4: CODE | X4: CODE | Y4: 製番 | Z4: CODE | AA4: CODE | AB4: 製番 | AC4: CODE | AD4: CODE | AE4: 製番 | AF4: CODE | AG4: CODE | AH4: 製番 | AI4: CODE | AJ4: CODE | AK4: 製番 | AL4: CODE | AM4: CODE | AN4: 製番 | AO4: CODE | AP4: CODE | AQ4: 製番 | AR4: CODE | AS4: CODE
B5: AA-1234 | C5: 01 | D5: 02 | H5: fghj | K5: 1 | L5: 20 | M5: 20 | N5: 110 | P5: AA | Q5: =DSUM($B$3:$N$9771,$M$3,$P$4:$P$5) -> 4280 | R5: 101～200 | S5: =DSUM($B$3:$N$9771,$M$3,Y4:AA5) -> 3560 | T5: =DSUM($B$3:$N$9771,$M$3,Y6:AA7) -> 160 | U5: 3720 | V5: AA | W5: <22 | X5: >0 | Y5: AA | Z5: <201 | AA5: >100 | AB5: AA | AC5: <301 | AD5: >200 | AE5: AA | AF5: <335 | AG5: >300 | AH5: AA | AI5: <427 | AJ5: >400 | AK5: AA | AL5: <544 | AM5: >500 | AN5: AA | AO5: <701 | AP5: >600 | AQ5: AA | AR5: <800 | AS5: >700
B6: AA-2345 | C6: 02 | D6: 03 | H6: asdf | K6: 1 | L6: 30 | M6: 30 | N6: 220 | P6: 製番 | R6: 201～300 | S6: =DSUM($B$3:$N$9771,$M$3,AB4:AD5) -> 90 | T6: =DSUM($B$3:$N$9771,$M$3,AB6:AD7) -> 270 | U6: 360 | V6: 製番 | W6: CODE | X6: CODE | Y6: 製番 | Z6: CODE | AA6: CODE | AB6: 製番 | AC6: CODE | AD6: CODE | AE6: 製番 | AF6: CODE | AG6: CODE | AH6: 製番 | AI6: CODE | AJ6: CODE | AK6: 製番 | AL6: CODE | AM6: CODE | AN6: 製番 | AO6: CODE | AP6: CODE | AQ6: 製番 | AR6: CODE | AS6: CODE
B7: AA-2346 | C7: 02 | D7: 03 | H7: sdfg | K7: 1 | L7: 40 | M7: 40 | N7: 330 | P7: AB | Q7: =DSUM($B$3:$N$9771,$M$3,$P$6:$P$7) -> 430 | R7: 301～400 | S7: =DSUM($B$3:$N$9771,$M$3,AE4:AG5) -> 120 | T7: =DSUM($B$3:$N$9771,$M$3,AE6:AG7) -> 0 | U7: 120 | V7: AB | W7: <22 | X7: >0 | Y7: AB | Z7: <201 | AA7: >100 | AB7: AB | AC7: <301 | AD7: >200 | AE7: AB | AF7: <335 | AG7: >300 | AH7: AB | AI7: <427 | AJ7: >400 | AK7: AB | AL7: <544 | AM7: >500 | AN7: AB | AO7: <701 | AP7: >600 | AQ7: AB | AR7: <800 | AS7: >700
B8: AA-2347 | C8: 02 | D8: 03 | H8: ff | K8: 1 | L8: 50 | M8: 50 | N8: 425 | P8: 小計 | Q8: =+Q5+Q7 -> 4710 | R8: 401～500 | S8: =DSUM($B$3:$N$9771,$M$3,AH4:AJ5) -> 150 | T8: =DSUM($B$3:$N$9771,$M$3,AH6:AJ7) -> 0 | U8: 150
R9: 501～600 | S9: =DSUM($B$3:$N$9771,$M$3,AK4:AM5) -> 120 | T9: =DSUM($B$3:$N$9771,$M$3,AK6:AM7) -> 0 | U9: 120
B10: AA-2348 | C10: 02 | D10: 03 | H10: gg | K10: 1 | L10: 70 | M10: 70 | N10: 20 | R10: 601～700
B11: BB-2345 | C11: 01 | D11: 03 | H11: asdf | K11: 1 | L11: 80 | M11: 80 | N11: 120 | R11: 701～800
B12: AB-2345 | C12: 01 | D12: 03 | H12: asdf | K12: 1 | L12: 90 | M12: 90 | N12: 230 | R12: 合計 | S12: AA | T12: AB | U12: =SUM(U4:U11) -> 4710
B13: BB-1234 | C13: 01 | D13: 02 | H13: fghj | K13: 1 | L13: 11 | M13: 11 | N13: 16 | S13: =SUM(S4:S11) -> 4280 | T13: =SUM(T4:T11) -> 430
B14: BB-1234 | C14: 01 | D14: 02 | H14: fghj | K14: 1 | L14: 21 | M14: 21 | N14: 110 | P14: 製番 | R14: 0～100 | S14: =DSUM($B$3:$N$9771,$M$3,V14:X15) -> 246 | T14: =DSUM($B$3:$N$9771,$M$3,V16:X17) -> 0 | U14: =SUM(S14:T14) -> 246 | V14: 製番 | W14: CODE | X14: CODE | Y14: 製番 | Z14: CODE | AA14: CODE | AB14: 製番 | AC14: CODE | AD14: CODE | AE14: 製番 | AF14: CODE | AG14: CODE | AH14: 製番 | AI14: CODE | AJ14: CODE | AK14: 製番 | AL14: CODE | AM14: CODE | AN14: 製番 | AO14: CODE | AP14: CODE | AQ14: 製番 | AR14: CODE | AS14: CODE
B15: BB-2345 | C15: 02 | D15: 03 | H15: asdf | K15: 1 | L15: 31 | M15: 31 | N15: 220 | P15: BB | Q15: =DSUM($B$3:N9771,"金額",P14:P15) -> 941 | R15: 101～200 | S15: =DSUM($B$3:$N$9771,$M$3,Y14:AA15) -> 143 | T15: =DSUM($B$3:$N$9771,$M$3,Y16:AA17) -> 243 | U15: 386 | V15: BB | W15: <22 | X15: >0 | Y15: BB | Z15: <201 | AA15: >100 | AB15: BB | AC15: <301 | AD15: >200 | AE15: BB | AF15: <335 | AG15: >300 | AH15: BB | AI15: <427 | AJ15: >400 | AK15: BB | AL15: <544 | AM15: >500 | AN15: BB | AO15: <701 | AP15: >600 | AQ15: BB | AR15: <800 | AS15: >700
B16: BB-2346 | C16: 02 | D16: 03 | H16: sdfg | K16: 1 | L16: 41 | M16: 41 | N16: 330 | P16: 製番 | R16: 201～300 | S16: =DSUM($B$3:$N$9771,$M$3,AB14:AD15) -> 93 | T16: =DSUM($B$3:$N$9771,$M$3,AB16:AD17) -> 273 | U16: 366 | V16: 製番 | W16: CODE | X16: CODE | Y16: 製番 | Z16: CODE | AA16: CODE | AB16: 製番 | AC16: CODE | AD16: CODE | AE16: 製番 | AF16: CODE | AG16: CODE | AH16: 製番 | AI16: CODE | AJ16: CODE | AK16: 製番 | AL16: CODE | AM16: CODE | AN16: 製番 | AO16: CODE | AP16: CODE | AQ16: 製番 | AR16: CODE | AS16: CODE
B17: BB-2347 | C17: 02 | D17: 03 | H17: ff | K17: 1 | L17: 51 | M17: 51 | N17: 425 | P17: BC | Q17: =DSUM($B$3:N9771,$M$3,P16:P17) -> 516 | R17: 301～400 | S17: =DSUM($B$3:$N$9771,$M$3,AE14:AG15) -> 123 | T17: =DSUM($B$3:$N$9771,$M$3,AE16:AG17) -> 0 | U17: 123 | V17: BC | W17: <22 | X17: >0 | Y17: BC | Z17: <201 | AA17: >100 | AB17: BC | AC17: <301 | AD17: >200 | AE17: BC | AF17: <335 | AG17: >300 | AH17: BC | AI17: <427 | AJ17: >400 | AK17: BC | AL17: <544 | AM17: >500 | AN17: BC | AO17: <701 | AP17: >600 | AQ17: BC | AR17: <800 | AS17: >700
B18: BB-2348 | C18: 02 | D18: 03 | H18: gg | K18: 1 | L18: 61 | M18: 61 | N18: 540 | P18: 小計 | Q18: =+Q15+Q17 -> 1457 | R18: 401～500 | S18: =DSUM($B$3:$N$9771,$M$3,AH14:AJ15) -> 153 | T18: =DSUM($B$3:$N$9771,$M$3,AH16:AJ17) -> 0 | U18: 153
B19: BB-2348 | C19: 02 | D19: 03 | H19: gg | K19: 1 | L19: 71 | M19: 71 | N19: 20 | R19: 501～600 | S19: =DSUM($B$3:$N$9771,$M$3,AK14:AM15) -> 183 | T19: =DSUM($B$3:$N$9771,$M$3,AK16:AM17) -> 0 | U19: 183
B20: BC-2345 | C20: 01 | D20: 03 | H20: asdf | K20: 1 | L20: 81 | M20: 81 | N20: 120 | R20: 601～700
B21: BC-2345 | C21: 01 | D21: 03 | H21: asdf | K21: 1 | L21: 91 | M21: 91 | N21: 230 | R21: 701～800
B22: CC-1234 | C22: 01 | D22: 02 | H22: fghj | K22: 1 | L22: 12 | M22: 12 | N22: 16 | R22: 合計 | S22: BB | T22: BC | U22: =SUM(U14:U21) -> 1457
B23: CC-1234 | C23: 01 | D23: 02 | H23: fghj | K23: 1 | L23: 22 | M23: 22 | N23: 110
B24: CC-2345 | C24: 02 | D24: 03 | H24: asdf | K24: 1 | L24: 32 | M24: 32 | N24: 220 | P24: 製番 | R24: 0～100 | S24: =DSUM($B$3:$N$9771,$M$3,V24:X25) -> 252 | U24: =SUM(S24:T24) -> 252 | V24: 製番 | W24: CODE | X24: CODE | Y24: 製番 | Z24: CODE | AA24: CODE | AB24: 製番 | AC24: CODE | AD24: CODE | AE24: 製番 | AF24: CODE | AG24: CODE | AH24: 製番 | AI24: CODE | AJ24: CODE | AK24: 製番 | AL24: CODE | AM24: CODE | AN24: 製番 | AO24: CODE | AP24: CODE | AQ24: 製番 | AR24: CODE | AS24: CODE
B25: CC-2346 | C25: 02 | D25: 03 | H25: sdfg | K25: 1 | L25: 42 | M25: 42 | N25: 330 | P25: CC | Q25: =DSUM($B$3:N9771,$M$3,P24:P25) -> 882 | R25: 101～200 | S25: =DSUM($B$3:$N$9771,$M$3,Y24:AA25) -> 66 | U25: 66 | V25: CC | W25: <22 | X25: >0 | Y25: CC | Z25: <201 | AA25: >100 | AB25: CC | AC25: <301 | AD25: >200 | AE25: CC | AF25: <335 | AG25: >300 | AH25: CC | AI25: <427 | AJ25: >400 | AK25: CC | AL25: <544 | AM25: >500 | AN25: CC | AO25: <701 | AP25: >600 | AQ25: CC | AR25: <800 | AS25: >700
B26: CC-2347 | C26: 02 | D26: 03 | H26: ff | K26: 1 | L26: 52 | M26: 52 | N26: 425 | R26: 201～300 | S26: =DSUM($B$3:$N$9771,$M$3,AB24:AD25) -> 96 | U26: 96
B27: CC-2348 | C27: 02 | D27: 03 | H27: gg | K27: 1 | L27: 62 | M27: 62 | N27: 540 | R27: 301～400 | S27: =DSUM($B$3:$N$9771,$M$3,AE24:AG25) -> 126 | U27: 126
B28: CC-2348 | C28: 02 | D28: 03 | H28: gg | K28: 1 | L28: 72 | M28: 72 | N28: 20 | R28: 401～500 | S28: =DSUM($B$3:$N$9771,$M$3,AH24:AJ25) -> 156 | U28: 156
B29: DD-1234 | C29: 01 | D29: 02 | H29: fghj | K29: 1 | L29: 13 | M29: 13 | N29: 16 | R29: 501～600 | S29: =DSUM($B$3:$N$9771,$M$3,AK24:AM25) -> 186 | U29: 186
B30: DD-1234 | C30: 01 | D30: 02 | H30: fghj | K30: 1 | L30: 23 | M30: 23 | N30: 110 | R30: 601～700 | S30: =DSUM($B$3:$N$9771,$M$3,AN24:AP25) -> 0 | U30: 0
B31: DD-2345 | C31: 02 | D31: 03 | H31: asdf | K31: 1 | L31: 33 | M31: 33 | N31: 220 | R31: 701～800 | S31: =DSUM($B$3:$N$9771,$M$3,AQ24:AS25) -> 0 | U31: 0
B32: DD-2346 | C32: 02 | D32: 03 | H32: sdfg | K32: 1 | L32: 43 | M32: 43 | N32: 330 | R32: 合計 | S32: CC | U32: =SUM(U24:U31) -> 882
B33: DD-2347 | C33: 02 | D33: 03 | H33: ff | K33: 1 | L33: 53 | M33: 53 | N33: 425
B34: DD-2348 | C34: 02 | D34: 03 | H34: gg | K34: 1 | L34: 63 | M34: 63 | N34: 540 | P34: 製番 | R34: 0～100 | S34: =DSUM($B$3:$N$9771,$M$3,V34:X35) -> 258 | U34: =SUM(S34:T34) -> 258 | V34: 製番 | W34: CODE | X34: CODE | Y34: 製番 | Z34: CODE | AA34: CODE | AB34: 製番 | AC34: CODE | AD34: CODE | AE34: 製番 | AF34: CODE | AG34: CODE | AH34: 製番 | AI34: CODE | AJ34: CODE | AK34: 製番 | AL34: CODE | AM34: CODE | AN34: 製番 | AO34: CODE | AP34: CODE | AQ34: 製番 | AR34: CODE | AS34: CODE
B35: DD-2348 | C35: 02 | D35: 03 | H35: gg | K35: 1 | L35: 73 | M35: 73 | N35: 20 | P35: DD | Q35: =DSUM($B$3:N9771,$M$3,P34:P35) -> 903 | R35: 101～200 | S35: =DSUM($B$3:$N$9771,$M$3,Y34:AA35) -> 69 | U35: 69 | V35: DD | W35: <22 | X35: >0 | Y35: DD | Z35: <201 | AA35: >100 | AB35: DD | AC35: <301 | AD35: >200 | AE35: DD | AF35: <335 | AG35: >300 | AH35: DD | AI35: <427 | AJ35: >400 | AK35: DD | AL35: <544 | AM35: >500 | AN35: DD | AO35: <701 | AP35: >600 | AQ35: DD | AR35: <800 | AS35: >700
B36: EE-1234 | C36: 01 | D36: 02 | H36: fghj | K36: 1 | L36: 14 | M36: 14 | N36: 16 | R36: 201～300 | S36: =DSUM($B$3:$N$9771,$M$3,AB34:AD35) -> 99 | U36: 99
B37: EE-1234 | C37: 01 | D37: 02 | H37: fghj | K37: 1 | L37: 24 | M37: 24 | N37: 110 | R37: 301～400 | S37: =DSUM($B$3:$N$9771,$M$3,AE34:AG35) -> 129 | U37: 129
B38: EE-2345 | C38: 02 | D38: 03 | H38: asdf | K38: 1 | L38: 34 | M38: 34 | N38: 220 | R38: 401～500 | S38: =DSUM($B$3:$N$9771,$M$3,AH34:AJ35) -> 159 | U38: 159
B39: EE-2346 | C39: 02 | D39: 03 | H39: sdfg | K39: 1 | L39: 44 | M39: 44 | N39: 330 | R39: 501～600 | S39: =DSUM($B$3:$N$9771,$M$3,AK34:AM35) -> 189 | U39: 189
B40: EE-2347 | C40: 02 | D40: 03 | H40: ff | K40: 1 | L40: 54 | M40: 54 | N40: 425 | R40: 601～700 | S40: =DSUM($B$3:$N$9771,$M$3,AN34:AP35) -> 0 | U40: 0
B41: EE-2348 | C41: 02 | D41: 03 | H41: gg | K41: 1 | L41: 64 | M41: 64 | N41: 540 | R41: 701～800 | S41: =DSUM($B$3:$N$9771,$M$3,AQ34:AS35) -> 0 | U41: 0
B42: EE-2348 | C42: 02 | D42: 03 | H42: gg | K42: 1 | L42: 74 | M42: 74 | N42: 20 | R42: 合計 | S42: DD | U42: =SUM(U34:U41) -> 903
B43: EB-2345 | C43: 01 | D43: 03 | H43: asdf | K43: 1 | L43: 84 | M43: 84 | N43: 120
B44: EB-2345 | C44: 01 | D44: 03 | H44: asdf | K44: 1 | L44: 94 | M44: 94 | N44: 230 | P44: 製番 | R44: 0～100 | S44: =DSUM($B$3:$N$9771,$M$3,V44:X45) -> 264 | T44: =DSUM($B$3:$N$9771,$M$3,V46:X47) -> 0 | U44: =SUM(S44:T44) -> 264 | V44: 製番 | W44: CODE | X44: CODE | Y44: 製番 | Z44: CODE | AA44: CODE | AB44: 製番 | AC44: CODE | AD44: CODE | AE44: 製番 | AF44: CODE | AG44: CODE | AH44: 製番 | AI44: CODE | AJ44: CODE | AK44: 製番 | AL44: CODE | AM44: CODE | AN44: 製番 | AO44: CODE | AP44: CODE | AQ44: 製番 | AR44: CODE | AS44: CODE
B45: FF-1234 | C45: 01 | D45: 02 | H45: fghj | K45: 1 | L45: 15 | M45: 15 | N45: 16 | P45: EE | Q45: =DSUM($B$3:N9781,$M$3,P44:P45) -> 924 | R45: 101～200 | S45: =DSUM($B$3:$N$9771,$M$3,Y44:AA45) -> 72 | T45: =DSUM($B$3:$N$9771,$M$3,Y46:AA47) -> 252 | U45: 324 | V45: EE | W45: <22 | X45: >0 | Y45: EE | Z45: <201 | AA45: >100 | AB45: EE | AC45: <301 | AD45: >200 | AE45: EE | AF45: <335 | AG45: >300 | AH45: EE | AI45: <427 | AJ45: >400 | AK45: EE | AL45: <544 | AM45: >500 | AN45: EE | AO45: <701 | AP45: >600 | AQ45: EE | AR45: <800 | AS45: >700
B46: FF-1234 | C46: 01 | D46: 02 | H46: fghj | K46: 1 | L46: 25 | M46: 25 | N46: 110 | P46: 製番 | R46: 201～300 | S46: =DSUM($B$3:$N$9771,$M$3,AB44:AD45) -> 102 | T46: =DSUM($B$3:$N$9771,$M$3,AB46:AD47) -> 282 | U46: 384 | V46: 製番 | W46: CODE | X46: CODE | Y46: 製番 | Z46: CODE | AA46: CODE | AB46: 製番 | AC46: CODE | AD46: CODE | AE46: 製番 | AF46: CODE | AG46: CODE | AH46: 製番 | AI46: CODE | AJ46: CODE | AK46: 製番 | AL46: CODE | AM46: CODE | AN46: 製番 | AO46: CODE | AP46: CODE | AQ46: 製番 | AR46: CODE | AS46: CODE
B47: FF-2345 | C47: 02 | D47: 03 | H47: asdf | K47: 1 | L47: 35 | M47: 35 | N47: 220 | P47: EB | Q47: =DSUM($B$3:N9771,$M$3,P46:P47) -> 534 | R47: 301～400 | S47: =DSUM($B$3:$N$9771,$M$3,AE44:AG45) -> 132 | T47: =DSUM($B$3:$N$9771,$M$3,AE46:AG47) -> 0 | U47: 132 | V47: EB | W47: <22 | X47: >0 | Y47: EB | Z47: <201 | AA47: >100 | AB47: EB | AC47: <301 | AD47: >200 | AE47: EB | AF47: <335 | AG47: >300 | AH47: EB | AI47: <427 | AJ47: >400 | AK47: EB | AL47: <544 | AM47: >500 | AN47: EB | AO47: <701 | AP47: >600 | AQ47: EB | AR47: <800 | AS47: >700
B48: FF-2346 | C48: 02 | D48: 03 | H48: sdfg | K48: 1 | L48: 45 | M48: 45 | N48: 330 | P48: 小計 | Q48: =+Q45+Q47 -> 1458 | R48: 401～500 | S48: =DSUM($B$3:$N$9771,$M$3,AH44:AJ45) -> 162 | T48: =DSUM($B$3:$N$9771,$M$3,AH46:AJ47) -> 0 | U48: 162
B49: FF-2347 | C49: 02 | D49: 03 | H49: ff | K49: 1 | L49: 55 | M49: 55 | N49: 425 | R49: 501～600 | S49: =DSUM($B$3:$N$9771,$M$3,AK44:AM45) -> 192 | T49: =DSUM($B$3:$N$9771,$M$3,AK46:AM47) -> 0 | U49: 192
B50: FF-2348 | C50: 02 | D50: 03 | H50: gg | K50: 1 | L50: 65 | M50: 65 | N50: 540 | R50: 601～700 | S50: =DSUM($B$3:$N$9771,$M$3,AN44:AP45) -> 0 | T50: =DSUM($B$3:$N$9771,$M$3,AN46:AP47) -> 0 | U50: 0
B51: FF-2348 | C51: 02 | D51: 03 | H51: gg | K51: 1 | L51: 75 | M51: 75 | N51: 20 | R51: 701～800 | S51: =DSUM($B$3:$N$9771,$M$3,AQ44:AS45) -> 0 | T51: =DSUM($B$3:$N$9771,$M$3,AQ46:AS47) -> 0 | U51: 0
B52: GG-1234 | C52: 01 | D52: 02 | H52: fghj | K52: 1 | L52: 16 | M52: 16 | N52: 16 | R52: 合計 | S52: EE | T52: EB | U52: =SUM(U44:U51) -> 1458
B53: GG-1234 | C53: 01 | D53: 02 | H53: fghj | K53: 1 | L53: 26 | M53: 26 | N53: 110
B54: GG-2345 | C54: 02 | D54: 03 | H54: asdf | K54: 1 | L54: 36 | M54: 36 | N54: 220 | P54: 製番 | R54: 0～100 | S54: =DSUM($B$3:$N$9771,$M$3,V54:X55) -> 270 | U54: =SUM(S54:T54) -> 270 | V54: 製番 | W54: CODE | X54: CODE | Y54: 製番 | Z54: CODE | AA54: CODE | AB54: 製番 | AC54: CODE | AD54: CODE | AE54: 製番 | AF54: CODE | AG54: CODE | AH54: 製番 | AI54: CODE | AJ54: CODE | AK54: 製番 | AL54: CODE | AM54: CODE | AN54: 製番 | AO54: CODE | AP54: CODE | AQ54: 製番 | AR54: CODE | AS54: CODE
B55: GG-2346 | C55: 02 | D55: 03 | H55: sdfg | K55: 1 | L55: 46 | M55: 46 | N55: 330 | P55: FF | Q55: =DSUM($B$3:N9771,$M$3,P54:P55) -> 945 | R55: 101～200 | S55: =DSUM($B$3:$N$9771,$M$3,Y54:AA55) -> 75 | U55: 75 | V55: FF | W55: <22 | X55: >0 | Y55: FF | Z55: <201 | AA55: >100 | AB55: FF | AC55: <301 | AD55: >200 | AE55: FF | AF55: <335 | AG55: >300 | AH55: FF | AI55: <427 | AJ55: >400 | AK55: FF | AL55: <544 | AM55: >500 | AN55: FF | AO55: <701 | AP55: >600 | AQ55: FF | AR55: <800 | AS55: >700
B56: GG-2347 | C56: 02 | D56: 03 | H56: ff | K56: 1 | L56: 56 | M56: 56 | N56: 425 | R56: 201～300 | S56: =DSUM($B$3:$N$9771,$M$3,AB54:AD55) -> 105 | U56: 105
B57: GG-2348 | C57: 02 | D57: 03 | H57: gg | K57: 1 | L57: 66 | M57: 66 | N57: 540 | R57: 301～400 | S57: =DSUM($B$3:$N$9771,$M$3,AE54:AG55) -> 135 | U57: 135
B58: GG-2348 | C58: 02 | D58: 03 | H58: gg | K58: 1 | L58: 76 | M58: 76 | N58: 20 | R58: 401～500 | S58: =DSUM($B$3:$N$9771,$M$3,AH54:AJ55) -> 165 | U58: 165
B59: HH-1234 | C59: 01 | D59: 02 | H59: fghj | K59: 1 | L59: 17 | M59: 17 | N59: 16 | R59: 501～600 | S59: =DSUM($B$3:$N$9771,$M$3,AK54:AM55) -> 195 | U59: 195
B60: HH-1234 | C60: 01 | D60: 02 | H60: fghj | K60: 1 | L60: 27 | M60: 27 | N60: 110 | R60: 601～700 | S60: =DSUM($B$3:$N$9771,$M$3,AN54:AP55) -> 0 | U60: 0
B61: HH-2345 | C61: 02 | D61: 03 | H61: asdf | K61: 1 | L61: 37 | M61: 37 | N61: 220 | R61: 701～800 | S61: =DSUM($B$3:$N$9771,$M$3,AQ54:AS55) -> 0 | U61: 0
B62: HH-2346 | C62: 02 | D62: 03 | H62: sdfg | K62: 1 | L62: 47 | M62: 47 | N62: 330 | R62: 合計 | S62: FF | U62: =SUM(U54:U61) -> 945
B63: HH-2347 | C63: 02 | D63: 03 | H63: ff | K63: 1 | L63: 57 | M63: 57 | N63: 425
B64: HH-2348 | C64: 02 | D64: 03 | H64: gg | K64: 1 | L64: 67 | M64: 67 | N64: 540 | P64: 製番 | R64: 0～100 | S64: =DSUM($B$3:$N$9771,$M$3,V64:X65) -> 276 | U64: =SUM(S64:T64) -> 276 | V64: 製番 | W64: CODE | X64: CODE | Y64: 製番 | Z64: CODE | AA64: CODE | AB64: 製番 | AC64: CODE | AD64: CODE | AE64: 製番 | AF64: CODE | AG64: CODE | AH64: 製番 | AI64: CODE | AJ64: CODE | AK64: 製番 | AL64: CODE | AM64: CODE | AN64: 製番 | AO64: CODE | AP64: CODE | AQ64: 製番 | AR64: CODE | AS64: CODE
B65: HH-2348 | C65: 02 | D65: 03 | H65: gg | K65: 1 | L65: 77 | M65: 77 | N65: 20 | P65: GG | Q65: =DSUM($B$3:N9771,$M$3,P64:P65) -> 966 | R65: 101～200 | S65: =DSUM($B$3:$N$9834,$M$3,Y64:AA65) -> 78 | U65: 78 | V65: GG | W65: <22 | X65: >0 | Y65: GG | Z65: <201 | AA65: >100 | AB65: GG | AC65: <301 | AD65: >200 | AE65: GG | AF65: <335 | AG65: >300 | AH65: GG | AI65: <427 | AJ65: >400 | AK65: GG | AL65: <544 | AM65: >500 | AN65: GG | AO65: <701 | AP65: >600 | AQ65: GG | AR65: <800 | AS65: >700
B66: LL-1234 | C66: 01 | D66: 02 | H66: fghj | K66: 1 | L66: 18 | M66: 18 | N66: 16 | R66: 201～300 | S66: =DSUM($B$3:$N$9834,$M$3,AB64:AD65) -> 108 | U66: 108
B67: LL-1234 | C67: 01 | D67: 02 | H67: fghj | K67: 1 | L67: 28 | M67: 28 | N67: 110 | R67: 301～400 | S67: =DSUM($B$3:$N$9771,$M$3,AE64:AG65) -> 138 | U67: 138
B68: LL-2345 | C68: 02 | D68: 03 | H68: asdf | K68: 1 | L68: 38 | M68: 38 | N68: 220 | R68: 401～500 | S68: =DSUM($B$3:$N$9771,$M$3,AH64:AJ65) -> 168 | U68: 168
B69: LL-2346 | C69: 02 | D69: 03 | H69: sdfg | K69: 1 | L69: 48 | M69: 48 | N69: 330 | R69: 501～600 | S69: =DSUM($B$3:$N$9771,$M$3,AK64:AM65) -> 198 | U69: 198
B70: LL-2347 | C70: 02 | D70: 03 | H70: ff | K70: 1 | L70: 58 | M70: 58 | N70: 425 | R70: 601～700 | S70: =DSUM($B$3:$N$9771,$M$3,AN64:AP65) -> 0 | U70: 0
B71: LL-2348 | C71: 02 | D71: 03 | H71: gg | K71: 1 | L71: 68 | M71: 68 | N71: 540 | R71: 701～800 | S71: =DSUM($B$3:$N$9771,$M$3,AQ64:AS65) -> 0 | U71: 0
B72: LL-2348 | C72: 02 | D72: 03 | H72: gg | K72: 1 | L72: 78 | M72: 78 | N72: 20 | R72: 合計 | S72: GG | U72: =SUM(U64:U71) -> 966
B73: MM-1234 | C73: 01 | D73: 02 | H73: fghj | K73: 1 | L73: 19 | M73: 19 | N73: 16
B74: MM-1234 | C74: 01 | D74: 02 | H74: fghj | K74: 1 | L74: 29 | M74: 29 | N74: 110 | P74: 製番 | R74: 0～100 | S74: =DSUM($B$3:$N$9771,$M$3,V74:X75) -> 282 | U74: =SUM(S74:T74) -> 282 | V74: 製番 | W74: CODE | X74: CODE | Y74: 製番 | Z74: CODE | AA74: CODE | AB74: 製番 | AC74: CODE | AD74: CODE | AE74: 製番 | AF74: CODE | AG74: CODE | AH74: 製番 | AI74: CODE | AJ74: CODE | AK74: 製番 | AL74: CODE | AM74: CODE | AN74: 製番 | AO74: CODE | AP74: CODE | AQ74: 製番 | AR74: CODE | AS74: CODE
B75: MM-2345 | C75: 02 | D75: 03 | H75: asdf | K75: 1 | L75: 39 | M75: 39 | N75: 220 | P75: HH | Q75: =DSUM($B$3:N9771,$M$3,P74:P75) -> 987 | R75: 101～200 | S75: =DSUM($B$3:$N$9771,$M$3,Y74:AA75) -> 81 | U75: 81 | V75: HH | W75: <22 | X75: >0 | Y75: HH | Z75: <201 | AA75: >100 | AB75: HH | AC75: <301 | AD75: >200 | AE75: HH | AF75: <335 | AG75: >300 | AH75: HH | AI75: <427 | AJ75: >400 | AK75: HH | AL75: <544 | AM75: >500 | AN75: HH | AO75: <701 | AP75: >600 | AQ75: HH | AR75: <800 | AS75: >700
B76: MM-2346 | C76: 02 | D76: 03 | H76: sdfg | K76: 1 | L76: 49 | M76: 49 | N76: 330 | R76: 201～300 | S76: =DSUM($B$3:$N$9771,$M$3,AB74:AD75) -> 111 | U76: 111
B77: MM-2347 | C77: 02 | D77: 03 | H77: ff | K77: 1 | L77: 59 | M77: 59 | N77: 425 | R77: 301～400 | S77: =DSUM($B$3:$N$9771,$M$3,AE74:AG75) -> 141 | U77: 141
B78: MM-2348 | C78: 02 | D78: 03 | H78: gg | K78: 1 | L78: 69 | M78: 69 | N78: 540 | R78: 401～500 | S78: =DSUM($B$3:$N$9771,$M$3,AH74:AJ75) -> 171 | U78: 171
B79: MM-2348 | C79: 02 | D79: 03 | H79: gg | K79: 1 | L79: 79 | M79: 79 | N79: 20 | R79: 501～600 | S79: =DSUM($B$3:$N$9771,$M$3,AK74:AM75) -> 201 | U79: 201
R80: 601～700 | S80: =DSUM($B$3:$N$9771,$M$3,AN74:AP75) -> 0 | U80: 0
B81: AA-1234 | C81: 01 | D81: 02 | H81: fghj | K81: 1 | L81: 10 | M81: 10 | N81: 16 | R81: 701～800 | S81: =DSUM($B$3:$N$9771,$M$3,AQ74:AS75) -> 0 | U81: 0
B82: AA-1234 | C82: 01 | D82: 02 | H82: fghj | K82: 1 | L82: 20 | M82: 20 | N82: 110 | R82: 合計 | S82: HH | U82: =SUM(U74:U81) -> 987
B83: AA-2345 | C83: 02 | D83: 03 | H83: asdf | K83: 1 | L83: 30 | M83: 30 | N83: 220
B84: AA-2346 | C84: 02 | D84: 03 | H84: sdfg | K84: 1 | L84: 40 | M84: 40 | N84: 330 | P84: 製番 | R84: 0～100 | S84: =DSUM($B$3:$N$9771,$M$3,V84:X85) -> 288 | U84: =SUM(S84:T84) -> 288 | V84: 製番 | W84: CODE | X84: CODE | Y84: 製番 | Z84: CODE | AA84: CODE | AB84: 製番 | AC84: CODE | AD84: CODE | AE84: 製番 | AF84: CODE | AG84: CODE | AH84: 製番 | AI84: CODE | AJ84: CODE | AK84: 製番 | AL84: CODE | AM84: CODE | AN84: 製番 | AO84: CODE | AP84: CODE | AQ84: 製番 | AR84: CODE | AS84: CODE
B85: AA-2347 | C85: 02 | D85: 03 | H85: ff | K85: 1 | L85: 50 | M85: 50 | N85: 425 | P85: LL | Q85: =DSUM($B$3:N4834,$M$3,P84:P85) -> 1008 | R85: 101～200 | S85: =DSUM($B$3:$N$9771,$M$3,Y84:AA85) -> 84 | U85: 84 | V85: LL | W85: <22 | X85: >0 | Y85: LL | Z85: <201 | AA85: >100 | AB85: LL | AC85: <301 | AD85: >200 | AE85: LL | AF85: <335 | AG85: >300 | AH85: LL | AI85: <427 | AJ85: >400 | AK85: LL | AL85: <544 | AM85: >500 | AN85: LL | AO85: <701 | AP85: >600 | AQ85: LL | AR85: <800 | AS85: >700
B86: AA-2348 | C86: 02 | D86: 03 | H86: gg | K86: 1 | L86: 60 | M86: 60 | N86: 540 | R86: 201～300 | S86: =DSUM($B$3:$N$9771,$M$3,AB84:AD85) -> 114 | U86: 114
B87: AA-2348 | C87: 02 | D87: 03 | H87: gg | K87: 1 | L87: 70 | M87: 70 | N87: 20 | R87: 301～400 | S87: =DSUM($B$3:$N$9771,$M$3,AE84:AG85) -> 144 | U87: 144
B88: AB-2345 | C88: 01 | D88: 03 | H88: asdf | K88: 1 | L88: 80 | M88: 80 | N88: 120 | R88: 401～500 | S88: =DSUM($B$3:$N$9771,$M$3,AH84:AJ85) -> 174 | U88: 174
B89: AB-2345 | C89: 01 | D89: 03 | H89: asdf | K89: 1 | L89: 90 | M89: 90 | N89: 230 | R89: 501～600 | S89: =DSUM($B$3:$N$9771,$M$3,AK84:AM85) -> 204 | U89: 204
B90: BB-1234 | C90: 01 | D90: 02 | H90: fghj | K90: 1 | L90: 11 | M90: 11 | N90: 16 | R90: 601～700 | S90: =DSUM($B$3:$N$9771,$M$3,AN84:AP85) -> 0 | U90: 0
B91: BB-1234 | C91: 01 | D91: 02 | H91: fghj | K91: 1 | L91: 21 | M91: 21 | N91: 110 | R91: 701～800 | S91: =DSUM($B$3:$N$9771,$M$3,AQ84:AS85) -> 0 | U91: 0
B92: BB-2345 | C92: 02 | D92: 03 | H92: asdf | K92: 1 | L92: 31 | M92: 31 | N92: 220 | R92: 合計 | S92: LL | U92: =SUM(U84:U91) -> 1008
B93: BB-2346 | C93: 02 | D93: 03 | H93: sdfg | K93: 1 | L93: 41 | M93: 41 | N93: 330
B94: BB-2347 | C94: 02 | D94: 03 | H94: ff | K94: 1 | L94: 51 | M94: 51 | N94: 425 | P94: 製番 | R94: 0～100 | S94: =DSUM($B$3:$N$9771,$M$3,V94:X95) -> 294 | U94: =SUM(S94:T94) -> 294 | V94: 製番 | W94: CODE | X94: CODE | Y94: 製番 | Z94: CODE | AA94: CODE | AB94: 製番 | AC94: CODE | AD94: CODE | AE94: 製番 | AF94: CODE | AG94: CODE | AH94: 製番 | AI94: CODE | AJ94: CODE | AK94: 製番 | AL94: CODE | AM94: CODE | AN94: 製番 | AO94: CODE | AP94: CODE | AQ94: 製番 | AR94: CODE | AS94: CODE
B95: BB-2348 | C95: 02 | D95: 03 | H95: gg | K95: 1 | L95: 61 | M95: 61 | N95: 540 | P95: MM | Q95: =DSUM($B$3:N9779,$M$3,P94:P95) -> 1029 | R95: 101～200 | S95: =DSUM($B$3:$N$9771,$M$3,Y94:AA95) -> 87 | U95: 87 | V95: MM | W95: <22 | X95: >0 | Y95: MM | Z95: <201 | AA95: >100 | AB95: MM | AC95: <301 | AD95: >200 | AE95: MM | AF95: <335 | AG95: >300 | AH95: MM | AI95: <427 | AJ95: >400 | AK95: MM | AL95: <544 | AM95: >500 | AN95: MM | AO95: <701 | AP95: >600 | AQ95: MM | AR95: <800 | AS95: >700
B96: BB-2348 | C96: 02 | D96: 03 | H96: gg | K96: 1 | L96: 71 | M96: 71 | N96: 20 | R96: 201～300 | S96: =DSUM($B$3:$N$9771,$M$3,AB94:AD95) -> 117 | U96: 117
B97: BC-2345 | C97: 01 | D97: 03 | H97: asdf | K97: 1 | L97: 81 | M97: 81 | N97: 120 | R97: 301～400 | S97: =DSUM($B$3:$N$9771,$M$3,AE94:AG95) -> 147 | U97: 147
B98: BC-2345 | C98: 01 | D98: 03 | H98: asdf | K98: 1 | L98: 91 | M98: 91 | N98: 230 | R98: 401～500 | S98: =DSUM($B$3:$N$9771,$M$3,AH94:AJ95) -> 177 | U98: 177
B99: CC-1234 | C99: 01 | D99: 02 | H99: fghj | K99: 1 | L99: 12 | M99: 12 | N99: 16 | R99: 501～600 | S99: =DSUM($B$3:$N$9771,$M$3,AK94:AM95) -> 207 | U99: 207
B100: CC-1234 | C100: 01 | D100: 02 | H100: fghj | K100: 1 | L100: 22 | M100: 22 | N100: 110 | R100: 601～700 | S100: =DSUM($B$3:$N$9771,$M$3,AN94:AP95) -> 0 | U100: 0
B101: CC-2345 | C101: 02 | D101: 03 | H101: asdf | K101: 1 | L101: 32 | M101: 32 | N101: 220 | R101: 701～800 | S101: =DSUM($B$3:$N$9771,$M$3,AQ94:AS95) -> 0 | U101: 0
B102: CC-2346 | C102: 02 | D102: 03 | H102: sdfg | K102: 1 | L102: 42 | M102: 42 | N102: 330 | R102: 合計 | S102: MM | U102: =SUM(U94:U101) -> 1029
B103: CC-2347 | C103: 02 | D103: 03 | H103: ff | K103: 1 | L103: 52 | M103: 52 | N103: 425
B104: CC-2348 | C104: 02 | D104: 03 | H104: gg | K104: 1 | L104: 62 | M104: 62 | N104: 540 | P104: 製番
B105: CC-2348 | C105: 02 | D105: 03 | H105: gg | K105: 1 | L105: 72 | M105: 72 | N105: 20 | P105: P-1 | Q105: =DSUM($B$3:N9787,$M$3,P104:P105) -> 0 | R105: 製番行数 | S105: =COUNTA(B4:B9771) -> 230
B106: DD-1234 | C106: 01 | D106: 02 | H106: fghj | K106: 1 | L106: 13 | M106: 13 | N106: 16 | R106: 金額行数 | S106: =COUNT(M4:M9772) -> 230
B107: DD-1234 | C107: 01 | D107: 02 | H107: fghj | K107: 1 | L107: 23 | M107: 23 | N107: 110 | P107: 製番 | R107: コード行数 | S107: =COUNT(N4:N9771) -> 230 | T107: Check N
B108: DD-2345 | C108: 02 | D108: 03 | H108: asdf | K108: 1 | L108: 33 | M108: 33 | N108: 220 | P108: P-2 | Q108: =DSUM($B$3:N9790,$M$3,P107:P108) -> 0 | R108: 製番 | S108: =S105-S106 -> 0 | T108: =Check!N4 -> 0
B109: DD-2346 | C109: 02 | D109: 03 | H109: sdfg | K109: 1 | L109: 43 | M109: 43 | N109: 330 | R109: 金額 | S109: =S106-S105 -> 0 | T109: =Check!N5 -> 0
B110: DD-2347 | C110: 02 | D110: 03 | H110: ff | K110: 1 | L110: 53 | M110: 53 | N110: 425 | P110: 製番 | R110: コード
B111: DD-2348 | C111: 02 | D111: 03 | H111: gg | K111: 1 | L111: 63 | M111: 63 | N111: 540 | P111: P-3 | Q111: =DSUM($B$3:N9793,$M$3,P110:P111) -> 0
B112: DD-2348 | C112: 02 | D112: 03 | H112: gg | K112: 1 | L112: 73 | M112: 73 | N112: 20 | R112: Q列合計 | S112: =Q105+Q108+Q111+Q114+Q117 -> 0
B113: EE-1234 | C113: 01 | D113: 02 | H113: fghj | K113: 1 | L113: 14 | M113: 14 | N113: 16 | P113: 製番
B114: EE-1234 | C114: 01 | D114: 02 | H114: fghj | K114: 1 | L114: 24 | M114: 24 | N114: 110 | P114: P-4 | Q114: =DSUM($B$3:N9796,$M$3,P113:P114) -> 0
B115: EE-2345 | C115: 02 | D115: 03 | H115: asdf | K115: 1 | L115: 34 | M115: 34 | N115: 220
B116: EE-2346 | C116: 02 | D116: 03 | H116: sdfg | K116: 1 | L116: 44 | M116: 44 | N116: 330 | P116: 製番
B117: EE-2347 | C117: 02 | D117: 03 | H117: ff | K117: 1 | L117: 54 | M117: 54 | N117: 425 | P117: P-5 | Q117: =DSUM($B$3:N9799,$M$3,P116:P117) -> 0
B118: EE-2348 | C118: 02 | D118: 03 | H118: gg | K118: 1 | L118: 64 | M118: 64 | N118: 540
B119: EE-2348 | C119: 02 | D119: 03 | H119: gg | K119: 1 | L119: 74 | M119: 74 | N119: 20
B120: EB-2345 | C120: 01 | D120: 03 | H120: asdf | K120: 1 | L120: 84 | M120: 84 | N120: 120
B121: EB-2345 | C121: 01 | D121: 03 | H121: asdf | K121: 1 | L121: 94 | M121: 94 | N121: 230 | P121: 製番
B122: FF-1234 | C122: 01 | D122: 02 | H122: fghj | K122: 1 | L122: 15 | M122: 15 | N122: 16 | P122: * | Q122: =DSUM($B$3:N9804,$M$3,P121:P122) -> 14345
B123: FF-1234 | C123: 01 | D123: 02 | H123: fghj | K123: 1 | L123: 25 | M123: 25 | N123: 110
B124: FF-2345 | C124: 02 | D124: 03 | H124: asdf | K124: 1 | L124: 35 | M124: 35 | N124: 220
B125: FF-2346 | C125: 02 | D125: 03 | H125: sdfg | K125: 1 | L125: 45 | M125: 45 | N125: 330
B126: FF-2347 | C126: 02 | D126: 03 | H126: ff | K126: 1 | L126: 55 | M126: 55 | N126: 425
B127: FF-2348 | C127: 02 | D127: 03 | H127: gg | K127: 1 | L127: 65 | M127: 65 | N127: 540
B128: FF-2348 | C128: 02 | D128: 03 | H128: gg | K128: 1 | L128: 75 | M128: 75 | N128: 20
B129: GG-1234 | C129: 01 | D129: 02 | H129: fghj | K129: 1 | L129: 16 | M129: 16 | N129: 16
B130: GG-1234 | C130: 01 | D130: 02 | H130: fghj | K130: 1 | L130: 26 | M130: 26 | N130: 110
B131: GG-2345 | C131: 02 | D131: 03 | H131: asdf | K131: 1 | L131: 36 | M131: 36 | N131: 220
B132: GG-2346 | C132: 02 | D132: 03 | H132: sdfg | K132: 1 | L132: 46 | M132: 46 | N132: 330
B133: GG-2347 | C133: 02 | D133: 03 | H133: ff | K133: 1 | L133: 56 | M133: 56 | N133: 425
B134: GG-2348 | C134: 02 | D134: 03 | H134: gg | K134: 1 | L134: 66 | M134: 66 | N134: 540
B135: GG-2348 | C135: 02 | D135: 03 | H135: gg | K135: 1 | L135: 76 | M135: 76 | N135: 20
B136: HH-1234 | C136: 01 | D136: 02 | H136: fghj | K136: 1 | L136: 17 | M136: 17 | N136: 16
B137: HH-1234 | C137: 01 | D137: 02 | H137: fghj | K137: 1 | L137: 27 | M137: 27 | N137: 110
B138: HH-2345 | C138: 02 | D138: 03 | H138: asdf | K138: 1 | L138: 37 | M138: 37 | N138: 220
B139: HH-2346 | C139: 02 | D139: 03 | H139: sdfg | K139: 1 | L139: 47 | M139: 47 | N139: 330
B140: HH-2347 | C140: 02 | D140: 03 | H140: ff | K140: 1 | L140: 57 | M140: 57 | N140: 425
B141: HH-2348 | C141: 02 | D141: 03 | H141: gg | K141: 1 | L141: 67 | M141: 67 | N141: 540
B142: HH-2348 | C142: 02 | D142: 03 | H142: gg | K142: 1 | L142: 77 | M142: 77 | N142: 20
B143: LL-1234 | C143: 01 | D143: 02 | H143: fghj | K143: 1 | L143: 18 | M143: 18 | N143: 16
B144: LL-1234 | C144: 01 | D144: 02 | H144: fghj | K144: 1 | L144: 28 | M144: 28 | N144: 110
B145: LL-2345 | C145: 02 | D145: 03 | H145: asdf | K145: 1 | L145: 38 | M145: 38 | N145: 220
B146: LL-2346 | C146: 02 | D146: 03 | H146: sdfg | K146: 1 | L146: 48 | M146: 48 | N146: 330
B147: LL-2347 | C147: 02 | D147: 03 | H147: ff | K147: 1 | L147: 58 | M147: 58 | N147: 425
B148: LL-2348 | C148: 02 | D148: 03 | H148: gg | K148: 1 | L148: 68 | M148: 68 | N148: 540
B149: LL-2348 | C149: 02 | D149: 03 | H149: gg | K149: 1 | L149: 78 | M149: 78 | N149: 20
B150: MM-1234 | C150: 01 | D150: 02 | H150: fghj | K150: 1 | L150: 19 | M150: 19 | N150: 16
B151: MM-1234 | C151: 01 | D151: 02 | H151: fghj | K151: 1 | L151: 29 | M151: 29 | N151: 110
B152: MM-2345 | C152: 02 | D152: 03 | H152: asdf | K152: 1 | L152: 39 | M152: 39 | N152: 220
B153: MM-2346 | C153: 02 | D153: 03 | H153: sdfg | K153: 1 | L153: 49 | M153: 49 | N153: 330
B154: MM-2347 | C154: 02 | D154: 03 | H154: ff | K154: 1 | L154: 59 | M154: 59 | N154: 425
B155: MM-2348 | C155: 02 | D155: 03 | H155: gg | K155: 1 | L155: 69 | M155: 69 | N155: 540
B156: MM-2348 | C156: 02 | D156: 03 | H156: gg | K156: 1 | L156: 79 | M156: 79 | N156: 20
B158: AA-1234 | C158: 01 | D158: 02 | H158: fghj | K158: 1 | L158: 10 | M158: 10 | N158: 16
B159: AA-1234 | C159: 01 | D159: 02 | H159: fghj | K159: 1 | L159: 20 | M159: 20 | N159: 110
B160: AA-2345 | C160: 02 | D160: 03 | H160: asdf | K160: 1 | L160: 30 | M160: 30 | N160: 220
B161: AA-2346 | C161: 02 | D161: 03 | H161: sdfg | K161: 1 | L161: 40 | M161: 40 | N161: 330
B162: AA-2347 | C162: 02 | D162: 03 | H162: ff | K162: 1 | L162: 50 | M162: 50 | N162: 425
B163: AA-2348 | C163: 02 | D163: 03 | H163: gg | K163: 1 | L163: 60 | M163: 60 | N163: 540
B164: AA-2348 | C164: 02 | D164: 03 | H164: gg | K164: 1 | L164: 70 | M164: 70 | N164: 20
B165: AB-2345 | C165: 01 | D165: 03 | H165: asdf | K165: 1 | L165: 80 | M165: 80 | N165: 120
B166: AB-2345 | C166: 01 | D166: 03 | H166: asdf | K166: 1 | L166: 90 | M166: 90 | N166: 230
B167: BB-1234 | C167: 01 | D167: 02 | H167: fghj | K167: 1 | L167: 11 | M167: 11 | N167: 16
B168: BB-1234 | C168: 01 | D168: 02 | H168: fghj | K168: 1 | L168: 21 | M168: 21 | N168: 110
B169: BB-2345 | C169: 02 | D169: 03 | H169: asdf | K169: 1 | L169: 31 | M169: 31 | N169: 220
B170: BB-2346 | C170: 02 | D170: 03 | H170: sdfg | K170: 1 | L170: 41 | M170: 41 | N170: 330
B171: BB-2347 | C171: 02 | D171: 03 | H171: ff | K171: 1 | L171: 51 | M171: 51 | N171: 425
B172: BB-2348 | C172: 02 | D172: 03 | H172: gg | K172: 1 | L172: 61 | M172: 61 | N172: 540
B173: BB-2348 | C173: 02 | D173: 03 | H173: gg | K173: 1 | L173: 71 | M173: 71 | N173: 20
B174: BC-2345 | C174: 01 | D174: 03 | H174: asdf | K174: 1 | L174: 81 | M174: 81 | N174: 120
B175: BC-2345 | C175: 01 | D175: 03 | H175: asdf | K175: 1 | L175: 91 | M175: 91 | N175: 230
B176: CC-1234 | C176: 01 | D176: 02 | H176: fghj | K176: 1 | L176: 12 | M176: 12 | N176: 16
B177: CC-1234 | C177: 01 | D177: 02 | H177: fghj | K177: 1 | L177: 22 | M177: 22 | N177: 110
B178: CC-2345 | C178: 02 | D178: 03 | H178: asdf | K178: 1 | L178: 32 | M178: 32 | N178: 220
B179: CC-2346 | C179: 02 | D179: 03 | H179: sdfg | K179: 1 | L179: 42 | M179: 42 | N179: 330
B180: CC-2347 | C180: 02 | D180: 03 | H180: ff | K180: 1 | L180: 52 | M180: 52 | N180: 425
B181: CC-2348 | C181: 02 | D181: 03 | H181: gg | K181: 1 | L181: 62 | M181: 62 | N181: 540
B182: CC-2348 | C182: 02 | D182: 03 | H182: gg | K182: 1 | L182: 72 | M182: 72 | N182: 20
B183: DD-1234 | C183: 01 | D183: 02 | H183: fghj | K183: 1 | L183: 13 | M183: 13 | N183: 16
B184: DD-1234 | C184: 01 | D184: 02 | H184: fghj | K184: 1 | L184: 23 | M184: 23 | N184: 110
B185: DD-2345 | C185: 02 | D185: 03 | H185: asdf | K185: 1 | L185: 33 | M185: 33 | N185: 220
B186: DD-2346 | C186: 02 | D186: 03 | H186: sdfg | K186: 1 | L186: 43 | M186: 43 | N186: 330
B187: DD-2347 | C187: 02 | D187: 03 | H187: ff | K187: 1 | L187: 53 | M187: 53 | N187: 425
B188: DD-2348 | C188: 02 | D188: 03 | H188: gg | K188: 1 | L188: 63 | M188: 63 | N188: 540
B189: DD-2348 | C189: 02 | D189: 03 | H189: gg | K189: 1 | L189: 73 | M189: 73 | N189: 20
B190: EE-1234 | C190: 01 | D190: 02 | H190: fghj | K190: 1 | L190: 14 | M190: 14 | N190: 16
B191: EE-1234 | C191: 01 | D191: 02 | H191: fghj | K191: 1 | L191: 24 | M191: 24 | N191: 110
B192: EE-2345 | C192: 02 | D192: 03 | H192: asdf | K192: 1 | L192: 34 | M192: 34 | N192: 220
B193: EE-2346 | C193: 02 | D193: 03 | H193: sdfg | K193: 1 | L193: 44 | M193: 44 | N193: 330
B194: EE-2347 | C194: 02 | D194: 03 | H194: ff | K194: 1 | L194: 54 | M194: 54 | N194: 425
B195: EE-2348 | C195: 02 | D195: 03 | H195: gg | K195: 1 | L195: 64 | M195: 64 | N195: 540
B196: EE-2348 | C196: 02 | D196: 03 | H196: gg | K196: 1 | L196: 74 | M196: 74 | N196: 20
B197: EB-2345 | C197: 01 | D197: 03 | H197: asdf | K197: 1 | L197: 84 | M197: 84 | N197: 120
B198: EB-2345 | C198: 01 | D198: 03 | H198: asdf | K198: 1 | L198: 94 | M198: 94 | N198: 230
B199: FF-1234 | C199: 01 | D199: 02 | H199: fghj | K199: 1 | L199: 15 | M199: 15 | N199: 16
B200: FF-1234 | C200: 01 | D200: 02 | H200: fghj | K200: 1 | L200: 25 | M200: 25 | N200: 110
B201: FF-2345 | C201: 02 | D201: 03 | H201: asdf | K201: 1 | L201: 35 | M201: 35 | N201: 220
... 35 more rows

Sheet 経費月合計データ
C1: =+menu!O6 -> 2 | D1: 月 | F1: 行削除は不可です。数式と値のクリアを使用する。
E2: 当月経費 仕入データ | J2: =SUM(J4:J5000) -> 6000 | N2: 合計 | O2: =SUM(O5:O13) -> 6000 | Q2: DB用端末 | R2: B13 | S2: 本日用端末 | T2: B80
B3: 科目 | C3: 科目No | D3: 納入日 | E3: 品名 | F3: 形状・寸法 | G3: メーカー | H3: 数量 | I3: 単価 | J3: 金額 | K3: CODE | N3: 分類計算
B4: 加工用刃具 | C4: P-1 | D4: 2021-02-09 | E4: abcd | H4: 1 | I4: 100 | J4: 100 | K4: 5 | N4: 科目No
B5: 加工用工具 | C5: P-2 | D5: 2021-02-09 | E5: bcde | H5: 2 | I5: 200 | J5: 400 | K5: 6 | N5: P-1 | O5: =DSUM($B$3:$K$1000,$J$3,N4:N5) -> 200
B6: 消耗品 | C6: P-3 | D6: 2021-02-09 | E6: defg | H6: 3 | I6: 300 | J6: 900 | K6: 7 | N6: 科目No
B7: 改善５Ｓ用 | C7: P-4 | D7: 2021-02-09 | E7: fghi | H7: 4 | I7: 400 | J7: 1600 | K7: 8 | N7: P-2 | O7: =DSUM($B$3:$K$1000,$J$3,N6:N7) -> 800
N8: 科目No
B9: 加工用刃具 | C9: P-1 | D9: 2021-02-09 | E9: abcd | H9: 1 | I9: 100 | J9: 100 | K9: 5 | N9: P-3 | O9: =DSUM($B$3:$K$1000,$J$3,N8:N9) -> 1800
B10: 加工用工具 | C10: P-2 | D10: 2021-02-09 | E10: bcde | H10: 2 | I10: 200 | J10: 400 | K10: 6 | N10: 科目No
B11: 消耗品 | C11: P-3 | D11: 2021-02-09 | E11: defg | H11: 3 | I11: 300 | J11: 900 | K11: 7 | N11: P-4 | O11: =DSUM($B$3:$K$1000,$J$3,N10:N11) -> 3200
B12: 改善５Ｓ用 | C12: P-4 | D12: 2021-02-09 | E12: fghi | H12: 4 | I12: 400 | J12: 1600 | K12: 8 | N12: 科目No
N13: P-5 | O13: =DSUM($B$3:$K$1000,$J$3,N12:N13) -> 0
N20: コード行数 | O20: =COUNT(K4:K300) -> 8
N21: 科目行数 | O21: =COUNTA(C4:C300) -> 8
N22: 金額行数 | O22: =COUNT(J4:J300) -> 8
